Workbook

Sheet General Notes
A2: 1. Need to review the "Refrigerant Line Sizing Tables" section on page 1.16. Viscosity is being determined by NIST RefProp v10, not the Keating and Matula
A3: correlation. The Keating and Matula reference at the end of the chapter can be removed.
A5: 2. Discharge refrigerant state is being determined using 2 methods: (1) isentrropic compression plus 50°F with 25°F (14 K) superheat entering the compressor,
A6: and (2) Compression at an isentropic efficiency of 70 percent with 25°F (14 K) superheat entering the compressor. The former is used by AHRI Standard
A7: 760, Performance Rating of Solenoid Valves for Use with Volatile Refrigerants. I never particularly liked this method, and never got around to changing it
A8: when I was chair of that product section. My preference is for the latter method. I provide both methods with Tables 3, 3A, 4, 5 and 6 for reference.
A10: 3. R-448A and R-449A have properties close enough they do not require separate tables. Most if not all component manufacturers treat these refrigerants as
A11: the same.
A13: 4. I do not find Tables 6 through 9 in the current I-P R2022/SI R2022 useful. Who really needs discharge line capacities at 6 different evaporator temperatures?
A14: Who really needs liquid line capacities at a Dt of 5°F? Eliminating them will allow us to add additional refrigerant line tables.
A16: 5. I've selected refrigerants 32, 290, 448A, 449A, 450A, 454B, 454C, 455A and 457A. I elected to use a smaller table for 290 as it will unlikely ever be used in
A17: large capacity systems. Current refrigerants 448A and 449A will invasriably be used in new equipment in 2026. 454B is the heir apparent for 410A. 454C,
A18: 455A and 457A are the current contenders for future commercial refrigeration systems; all A2Ls having GWPs under 150. If I had to get rid of one of the
A19: refrigerants I've selected, it would be 450A, one the the 134a replacements. It would be a simple matter for me to set up tables for any other refrigerants if
A20: someone considers them important.
A22: 6. Tables 19 and 20 are suction riser and hot gas riser minimum capacities in the SI R2022 edition. They are reversed in the I-P R2022 edition. The SI edition
A23: is correct based on Example 3 which I use in this Excel file.
A25: 7. For the Jacobs' limit calculation, I'm using the POE 32 oil densities as published in the 2022 RHB, p 12.11. I have a tab set up showing the chart and my
A26: linear equation. The Jacob's limit equation actually requires the refrigerant saturated oil density, but the difference is certainly miniscule and will have little
A27: effect on the capacity calculation. If anyone has data on refrigerant saturated POE 32oil densities vs temperature, I can easily insert into my tables. I note
A28: my R-22/R-134a hot gas riser capacities match well with the 2022 RHB. Not quite as well with the suction risers. I'm consistent with my calculations.
A29: Feel free to check them.
A31: 8. No reference to Table 21 exists in the chapter. A reference to it should be made in Section 8. An example problem (Example #4) is provided in this Excel file.

Sheet Fig 1 and 2
A1: NIST Refrigerant File | B1: =VLOOKUP(A3,'NIST refrigerants listing'!A1:B176,2) -> R454B.mix
A3: 123 | D3: Refrigerant Flow Rate, lb/min-ton
C4: Series | D4: Liquid | E4: Evaporator Leaving Temp (Dew Point), °F
C5: Name | D5: Temp, °F | E5: -40 | F5: -30 | G5: -20 | H5: -10 | I5: 0 | J5: 10 | K5: 20 | L5: 30 | M5: 40 | N5: 50
C6: =D6&"°" -> 0° | D6: 0 | E6: =200/(Enthalpy($B$1,"TVAP","E",E$5)-Enthalpy($B$1,"TLIQ","E",$D6)) -> 1.709195713 | F6: 1.691764078 | G6: 1.675370933 | H6: 1.660033768 | I6: 1.645778189 | J6: 1.632639726 | K6: 1.620666049 | L6: 1.609919612 | M6: 1.600480834 | N6: 1.592452259
C7: =D7&"°" -> 10° | D7: 10 | E7: 1.765541376 | F7: 1.74694774 | G7: 1.729473219 | H7: 1.713134333 | I7: 1.697956332 | J7: 1.683975112 | K7: 1.671239553 | L7: 1.659814322 | M7: 1.649783246 | N7: 1.641253735
C8: 20° | D8: 20 | E8: 1.826568307 | F8: 1.806674297 | G8: 1.787990865 | H8: 1.770533184 | I8: 1.754325873 | J8: 1.739405012 | K8: 1.725820626 | L8: 1.713639655 | M8: 1.702949539 | N8: 1.693862935
C9: 30° | D9: 30 | E9: 1.89296535 | F9: 1.871607187 | G9: 1.851564084 | H9: 1.832849391 | I9: 1.815486721 | J9: 1.799512093 | K9: 1.784976562 | L9: 1.771949376 | M9: 1.760521808 | N9: 1.750812182
C10: 40° | D10: 40 | E10: 1.965570085 | F10: 1.942552077 | G10: 1.920969434 | H10: 1.900833045 | I10: 1.882165022 | J10: 1.865000976 | K10: 1.849392811 | L10: 1.835412092 | M10: 1.823154135 | N10: 1.812743403
C11: 50° | D11: 50 | E11: 2.045414233 | F11: 2.020500049 | G11: 1.997160985 | H11: 1.97540462 | I11: 1.955250901 | J11: 1.936734546 | K11: 1.919908032 | L11: 1.904845192 | M11: 1.891645598 | N11: 1.880440365
C12: 60° | D12: 60 | E12: 2.133787639 | F12: 2.106688343 | G12: 2.081328161 | H12: 2.057710224 | I12: 2.035851393 | J12: 2.015784823 | K12: 1.997563147 | L12: 1.981262334 | M12: 1.966986403 | N12: 1.954873685
C13: 70° | D13: 70 | E13: 2.23233119 | F13: 2.202688458 | G13: 2.174979528 | H13: 2.149201512 | I13: 2.125366921 | J13: 2.103506393 | K13: 2.083672094 | L13: 2.06594187 | M13: 2.050424327 | N13: 2.037265628
C14: 80° | D14: 80 | E14: 2.343176543 | F14: 2.310538452 | G14: 2.280068443 | H14: 2.251755417 | I14: 2.225605754 | J14: 2.201646204 | K14: 2.179927534 | L14: 2.160529 | M14: 2.143563852 | N14: 2.129186738
C15: 90° | D15: 90 | E15: 2.469164308 | F15: 2.432949218 | G15: 2.399188711 | H15: 2.36786035 | I15: 2.338961813 | J15: 2.312513961 | K15: 2.288564751 | L15: 2.267194055 | M15: 2.248519662 | N15: 2.232705374
C16: 95° | D16: 95 | E16: 2.539001074 | F16: 2.500724309 | G16: 2.46507044 | H16: 2.432009757 | I16: 2.401534264 | J16: 2.373660838 | K16: 2.348435274 | L16: 2.325937302 | M16: 2.306286854 | N16: 2.289652557
C17: 100° | D17: 100 | E17: 2.614198683 | F17: 2.573639166 | G17: 2.535891523 | H17: 2.500917371 | I17: 2.468701889 | J17: 2.439257054 | K17: 2.412625828 | L17: 2.388887374 | M17: 2.368163617 | N17: 2.350628156
C18: 105° | D18: 105 | E18: 2.695509624 | F18: 2.652408575 | G18: 2.612332936 | H18: 2.57523392 | I18: 2.541088449 | J18: 2.50990246 | K18: 2.481715229 | L18: 2.456604807 | M18: 2.434694878 | N18: 2.416164148
C19: 110° | D19: 110 | E19: 2.783851738 | F19: 2.737903301 | G19: 2.695223306 | H19: 2.655750392 | I19: 2.619451427 | J19: 2.586324868 | K19: 2.556405225 | L19: 2.529768718 | M19: 2.506540459 | N19: 2.486904354
C20: 115° | D20: 115 | E20: 2.880359961 | F20: 2.83119863 | G20: 2.785584625 | H20: 2.743441261 | I20: 2.704723065 | J20: 2.669419181 | K20: 2.63755796 | L20: 2.609212841 | M20: 2.584509891 | N20: 2.563638255
D27: Refrigerant Flow Rate, kg/h-kW
C28: Series | D28: Liquid | E28: Evaporator Leaving Temp (Dew Point), °C
C29: Name | D29: Temp, °C | E29: -40 | F29: -35 | G29: -30 | H29: -25 | I29: -20 | J29: -15 | K29: -10 | L29: -5 | M29: 0 | N29: 5 | O29: 10
C30: =D30&"°" -> -15° | D30: -15 | E30: =3600/(Enthalpy($B$1,"TVAP","C",E$29)-Enthalpy($B$1,"TLIQ","C",$D30)) -> 13.44957451 | F30: 13.32377422 | G30: 13.20472408 | H30: 13.09251379 | I30: 12.98727405 | J30: 12.88918465 | K30: 12.79848418 | L30: 12.71548156 | M30: 12.6405694 | N30: 12.57424018 | O30: 12.51710743
C31: =D31&"°" -> -10° | D31: -10 | E31: 13.85637977 | F31: 13.72289207 | G31: 13.59663653 | H31: 13.47769666 | I31: 13.36619987 | J31: 13.262326 | K31: 13.16631753 | L31: 13.07849166 | M31: 12.99925449 | N31: 12.92911803 | O31: 12.86872264
C32: -5° | D32: -5 | E32: 14.29416656 | F32: 14.15215385 | G32: 14.01791468 | H32: 13.89152441 | I32: 13.77310565 | J32: 13.66283716 | K32: 13.56096465 | L32: 13.46781352 | M32: 13.3838038 | N32: 13.30946822 | O32: 13.24547592
C33: 0° | D33: 0 | E33: 14.76708833 | F33: 14.61557301 | G33: 14.4724429 | H33: 14.33776277 | I33: 14.2116484 | J33: 14.09427603 | K33: 13.98589369 | L33: 13.88683468 | M33: 13.79753342 | N33: 13.71854454 | O33: 13.65056813
C34: 5° | D34: 5 | E34: 15.28011349 | F34: 15.11794548 | G34: 14.96485835 | H34: 14.82090307 | I34: 14.68618606 | J34: 14.56087908 | K34: 14.44523122 | L34: 14.33958317 | M34: 14.24438401 | N34: 14.16021158 | O34: 14.08779928
C35: 10° | D35: 10 | E35: 15.8392498 | F35: 15.66506405 | G35: 15.50075618 | H35: 15.34635929 | I35: 15.20196704 | J35: 15.06774412 | K35: 14.94393893 | L35: 14.83089871 | M35: 14.72908736 | N35: 14.63910717 | O35: 14.56172749
C36: 15° | D36: 15 | E36: 16.4518512 | F36: 16.26401111 | G36: 16.08696957 | H36: 15.92073639 | I36: 15.76538807 | J36: 15.62107877 | K36: 15.48805373 | L36: 15.3666654 | M36: 15.2573924 | N36: 15.16086276 | O36: 15.07788461
C37: 20° | D37: 20 | E37: 17.12704789 | F37: 16.92356856 | G37: 16.73196125 | H37: 16.5522054 | I37: 16.38435439 | J37: 16.22854716 | K37: 16.0850224 | L37: 15.95413573 | M37: 15.83637999 | N37: 15.73241009 | O37: 15.64307607
C38: 25° | D38: 25 | E38: 17.87636645 | F38: 17.65480811 | G38: 17.44638696 | H38: 17.25104247 | I38: 17.0687969 | J38: 16.89976749 | K38: 16.74418161 | L38: 16.60239502 | M38: 16.47491364 | N38: 16.36242021 | O38: 16.26581008
C39: 30° | D39: 30 | E39: 18.71465162 | F39: 18.47196783 | G39: 18.24393107 | H39: 18.03042768 | I39: 17.83143774 | J39: 17.64704787 | K39: 17.4774673 | L39: 17.3230474 | M39: 17.18430501 | N39: 17.06195131 | O39: 16.95693049
C40: 35° | D40: 35 | E40: 19.66148059 | F40: 19.39379508 | G40: 19.14258522 | H40: 18.90766586 | I40: 18.68895931 | J40: 18.4865089 | K40: 18.3004959 | L40: 18.13126046 | M40: 17.97932669 | N40: 17.84543396 | O40: 17.73057908
C41: 40° | D41: 40 | E41: 20.74341126 | F41: 20.44567787 | G41: 20.16667473 | H41: 19.90611866 | I41: 19.66385185 | J41: 19.43985584 | K41: 19.2342695 | L41: 19.04741131 | M41: 18.87980654 | N41: 18.73222118 | O41: 18.60570825
C42: 45° | D42: 45 | E42: 21.99771876 | F42: 21.66318056 | G42: 21.35021414 | H42: 21.05839895 | I42: 20.78746365 | J42: 20.53730041 | K42: 20.30798371 | L42: 20.09979417 | M42: 19.91324789 | N42: 19.74913353 | O42: 19.60856332
C48: Note: SI R2022 incorrectly states flow rate per ton in Figure 1 description. The published chart, however, is correct.

Sheet Example 1
A1: Example 1. An R-454B air conditioning system using copper pipe operates at
A2: 40°F evaporator and 105°F condensing. Capacity is 5 tons, and the
A3: liquid line is 100 ft equivalent length with a riser of 20 ft. Determine the
A4: liquid line size and total required subcooling.
A6: Solution: From Table 3, the rating for the 1/2" OD liquid line at 1°F drop is 5.58 tons.
A7: Use the equation in Note 3 of Table 3 to compute actual temperature difference. At 5 tons,
J8: Actual
A9: Actual temperature drop | D9: = | E9: 1.0(5.0/5.58)1.8 | G9: = | H9: 0.82°F | J9: 0.82°F *
A10: R-454B saturation pressure at 105°F condensing
A11: (see R-454B properties in Chapter 29, 2025 ASHRAE
A12: Handbook—Fundamentals) | G12: = | H12: 322.8 psig
A13: R-454B saturation pressure at 104°F condensing | G13: = | H13: 318.3 psig
A14: Estimated friction loss | D14: = | E14: 0.82(322.8 - 318.3) | G14: = | H14: 3.7 psi
A15: Loss for riser | D15: = | E15: 20 x 0.51 | G15: = | H15: 10 psi | J15: 20(56.91/144) = 7.9 psi
A16: Total pressure loss | D16: = | H16: 13.7 psi | J16: 11.6 psi
A17: Initial pressure at beginning of liquid line | H17: 322.8 psig
A18: Total liquid line losses | H18: -13.7 psi | J18: -11.6 psi
A19: Net pressure at expansion device | G19: = | H19: 309.1 psig | J19: 311.2 psi
A20: The saturation temperature at 309.1 psig is 101.9°F | J20: 311.2 psig is 102.4°F
A21: Required subcooling | G21: = | H21: (105-101.9) | J21: (105-102.4)
H22: or 3.1°F | J22: or 2.6°F
A24: 1Approximate loss per foot riser for halocarbon refrigerants. For hydrocarbon refrigerants, use 0.25 | J24: * using my refrigerant line Excel file
G26: Liq Density
G27: @ 100°F | H27: loss per foot
A28: NIST calculations: | F28: R22.fld | G28: =Density(F28,"TLIQ","E",100) -> 71.05653849 | H28: =G28/144 -> 0.4934481839
A29: NIST Refrigerant File | C29: R454B.mix | F29: R32.fld | G29: =Density(F29,"TLIQ","E",100) -> 56.42898575 | H29: =G29/144 -> 0.3918679566
F30: R134a.fld | G30: 72.17133918 | H30: 0.5011898554
A31: Bubble point pressures | F31: R404A.mix | G31: 61.02752537 | H31: 0.4238022595
B32: °F | C32: psig | F32: R407A.mix | G32: 67.57844768 | H32: 0.4692947756
B33: 105 | C33: =psia_psig(Pressure($C$29,"TLIQ","E",B33)) -> 322.7612552 | F33: R410A.mix | G33: 61.73181747 | H33: 0.4286931769
B34: 104 | C34: =psia_psig(Pressure($C$29,"TLIQ","E",B34)) -> 318.2753411 | F34: R448A.mix | G34: 64.7126779 | H34: 0.4493935965
F35: R449A.mix | G35: 64.70473652 | H35: 0.449338448
A36: Bubble point temperatures | F36: R450A.mix | G36: 70.5602412 | H36: 0.490001675
B37: psig | C37: °F | F37: R452B.mix | G37: 58.2629152 | H37: 0.4046035778
B38: 309.1 | C38: =Temperature($C$29,"PLIQ","E",psig_psia(B38)) -> 101.9227298 | F38: R454A.mix | G38: =Density(F38,"TLIQ","E",100) -> 60.09518233 | H38: =G38/144 -> 0.4173276551
B39: 311.2 | C39: =Temperature($C$29,"PLIQ","E",psig_psia(B39)) -> 102.4020212 | F39: R454B.mix | G39: =Density(F39,"TLIQ","E",100) -> 57.78890039 | H39: =G39/144 -> 0.4013118083
F40: R455A.mix | G40: 60.94976796 | H40: 0.4232622775
A41: Liquid density | F41: R513A.mix | G41: =Density(F41,"TLIQ","E",100) -> 67.62046753 | H41: =G41/144 -> 0.4695865801
B42: °F | C42: psig | F42: R1234yf.fld | G42: =Density(F42,"TLIQ","E",100) -> 65.10336266 | H42: =G42/144 -> 0.4521066851
B43: 105 | C43: =Density($C$29,"TLIQ","E",B43) -> 56.90846201 | F43: R1234zee.fld | G43: =Density(F43,"TLIQ","E",100) -> 69.88719221 | H43: =G43/144 -> 0.4853277237
F45: ammonia.fld | G45: =Density(F45,"TLIQ","E",100) -> 36.40677732 | H45: =G45/144 -> 0.2528248425
F47: propane.fld | G47: =Density(F47,"TLIQ","E",100) -> 29.42541992 | H47: =G47/144 -> 0.2043431939
F48: isobutane.fld | G48: =Density(F48,"TLIQ","E",100) -> 33.34644075 | H48: =G48/144 -> 0.2315725052
F49: propylen.fld | G49: =Density(F49,"TLIQ","E",100) -> 30.14895333 | H49: =G49/144 -> 0.2093677314

Sheet Example 2
A1: Example 2. An R-454B air conditioning system using copper pipe operates at
A2: 40°F evaporator and 100°F condensing. Capacity is 20 tons, and the
A3: suction line has 50 ft of straight pipe with six long-radius elbows. Determine the
A4: suction line size and pressure drop equivalent (in temperature difference).
A6: Solution: From Table 3, the rating for the 1-5/8" OD suction line at a 2°F loss per 100 ft
A7: equivalent length is 25.1 tons at 40°F evaporator and 105°F condensing. Use
A8: Note 4, Table 3, to determine capacity at 40°F evaporator and 100°F condensing:
J9: Actual
A10: Actual 1-5/8" OD line capacity | D10: = | E10: 25.1 x 1.03 | G10: = | H10: 25.9 tons | J10: 25.8 tons *
A11: Straight pipe length | G11: = | H11: 50 ft
A12: Six 1-1/2" long-radius elbows
A13: (Table 16) | D13: = | E13: 6 x 2.6 | G13: = | H13: 15.6 ft
A14: Total equivalent length | H14: 65.6 ft
A16: Use the equation in Note 3 of Table 3 to compute actual temperature difference.
A18: Dt | D18: = | E18: 2.0(65.6/100)(20.0/25.9)1.8 = | H18: 0.82°F | J18: 0.81°F *
G19: or | H19: 1.71 psi | J19: 1.69 psi
J24: * using my refrigerant line Excel file

Sheet Table 2
A1: Table 2 Approximate Effect of Gas Line Pressure Drops on R-454B Compressor Capacity and Powera
A3: Line Loss, °F | B3: Capacity, % | C3: Energy, %
A4: Suction Line
A5: 0 | B5: 100 | C5: 100
A6: 2 | B6: 96.4 | C6: 104.8
A7: 4 | B7: 92.9 | C7: 108.1
A8: Discharge Line
A9: 0 | B9: 100 | C9: 100
A10: 2 | B10: 99.1 | C10: 103
A11: 4 | B11: 98.2 | C11: 106.3
A12: aFor a system operating at a 40°F saturated evaporator temperature and 100°F saturated condensing temperature.
A13: bEnergy percentage expressed as hp/ton.
A15: Footnotes for the SI version
A16: aFor a system operating at a 5°C saturated evaporator temperature and 38°C saturated condensing temperature.
A17: bEnergy percentage expressed as kW (power) / kW (cooling).
A20: New Tables using Invotech YA50B3_220C_60HZ_1PH, R-454B performance data
A22: IP
A24: Table 2 Approximate Effect of Gas Line Pressure Drops on R-454B Compressor Capacity and Powera
A26: Line Loss, °F | B26: Capacity, % | C26: Energy, %b
A27: Suction Line
A28: 0 | B28: 100 | C28: 100
A29: 2 | B29: 96.3 | C29: 103.5
A30: 4 | B30: 92.7 | C30: 107.3
A31: Discharge Line
A32: 0 | B32: 100 | C32: 100
A33: 2 | B33: 99.1 | C33: 103
A34: 4 | B34: 98.2 | C34: 106.1
A35: aFor a system operating at a 40°F dew point evaporator temperature and 100°F dew point condensing temperature.
A36: bEnergy usage as a percentage required to maintain zero gas line pressure drop capacity.
A39: SI
A41: Table 2 Approximate Effect of Gas Line Pressure Drops on R-454B Compressor Capacity and Powera
A43: Line Loss, K | B43: Capacity, % | C43: Energy, %b
A44: Suction Line
A45: 0 | B45: 100 | C45: 100
A46: 1 | B46: 96.7 | C46: 103.2
A47: 2 | B47: 93.5 | C47: 106.5
A48: Discharge Line
A49: 0 | B49: 100 | C49: 100
A50: 1 | B50: 99.2 | C50: 102.7
A51: 2 | B51: 98.4 | C51: 105.5
A52: aFor a system operating at a 5°C dew point evaporator temperature and 38°C dew point condensing temperature.
A53: bEnergy usage as a percentage required to maintain zero gas line pressure drop capacity.

Sheet Compressor data sheets
N1: C1 | O1: C2 | P1: C3 | Q1: C4 | R1: C5 | S1: C6 | T1: C7 | U1: C8 | V1: C9 | W1: C10
B2: Invotech YA50B3_220C_60HZ_1PH, R-454B | M2: Btu/h | N2: 2648.227709 | O2: -462.7014386 | P2: 1028.920062 | Q2: -1.431805735 | R2: 25.29585253 | S2: -13.01936851 | T2: 0.01187406993 | U2: 0.06386574098 | V2: -0.1504885258 | W2: 0.04803796883
M3: Watts | N3: -1486.823875 | O3: -10.52334358 | P3: 94.65455808 | Q3: 0.05234496391 | R3: 0.2601644567 | S3: -0.8680870218 | T3: 0.0005148987447 | U3: -0.0003753830705 | V3: -0.001489221732 | W3: 0.003803015167
M6: Evap | N6: Cond
M7: Temp (°F) | N7: Temp (°F) | O7: Btu/h | P7: Watts | Q7: Btu/h % | R7: Watts % | S7: Energy %
M8: 40 | N8: 100 | O8: =PerfEqn($N$2,$O$2,$P$2,$Q$2,$R$2,$S$2,$T$2,$U$2,$V$2,$W$2,$M8,$N8) -> 54552.02973 | P8: =PerfEqn($N$3,$O$3,$P$3,$Q$3,$R$3,$S$3,$T$3,$U$3,$V$3,$W$3,$M8,$N8) -> 3181.456443 | Q8: =$O8/$O$8*100 -> 100 | R8: =$P8/$P$8*100 -> 100 | S8: =$O$8/$O8*$R8 -> 100
M9: 38 | N9: 100 | O9: =PerfEqn($N$2,$O$2,$P$2,$Q$2,$R$2,$S$2,$T$2,$U$2,$V$2,$W$2,$M9,$N9) -> 52546.70224 | P9: =PerfEqn($N$3,$O$3,$P$3,$Q$3,$R$3,$S$3,$T$3,$U$3,$V$3,$W$3,$M9,$N9) -> 3173.244839 | Q9: =$O9/$O$8*100 -> 96.32400939 | R9: =$P9/$P$8*100 -> 99.74189168 | S9: =$O$8/$O9*$R9 -> 103.5483181
M10: 36 | N10: 100 | O10: 50591.84205 | P10: 3165.621276 | Q10: 92.74053102 | R10: 99.50226675 | S10: =$O$8/$O10*$R10 -> 107.2910255
M12: 40 | N12: 100 | O12: =PerfEqn($N$2,$O$2,$P$2,$Q$2,$R$2,$S$2,$T$2,$U$2,$V$2,$W$2,$M12,$N12) -> 54552.02973 | P12: =PerfEqn($N$3,$O$3,$P$3,$Q$3,$R$3,$S$3,$T$3,$U$3,$V$3,$W$3,$M12,$N12) -> 3181.456443 | Q12: =$O12/$O$8*100 -> 100 | R12: =$P12/$P$8*100 -> 100 | S12: =$O$12/$O12*$R12 -> 100
M13: 40 | N13: 102 | O13: =PerfEqn($N$2,$O$2,$P$2,$Q$2,$R$2,$S$2,$T$2,$U$2,$V$2,$W$2,$M13,$N13) -> 54086.49696 | P13: =PerfEqn($N$3,$O$3,$P$3,$Q$3,$R$3,$S$3,$T$3,$U$3,$V$3,$W$3,$M13,$N13) -> 3248.379462 | Q13: =$O13/$O$8*100 -> 99.14662614 | R13: =$P13/$P$8*100 -> 102.103534 | S13: =$O$12/$O13*$R13 -> 102.9823586
M14: 40 | N14: 104 | O14: 53586.24987 | P14: 3317.191015 | Q14: 98.22961702 | R14: 104.2664288 | S14: 106.1456126
M16: (°C) | N16: (°C)
M17: 5 | N17: 38 | O17: =PerfEqn($N$2,$O$2,$P$2,$Q$2,$R$2,$S$2,$T$2,$U$2,$V$2,$W$2,ctof($M17),ctof($N17)) -> 55483.70252 | P17: =PerfEqn($N$3,$O$3,$P$3,$Q$3,$R$3,$S$3,$T$3,$U$3,$V$3,$W$3,ctof($M17),ctof($N17)) -> 3199.005294 | Q17: =$O17/$O$17*100 -> 100 | R17: =$P17/$P$17*100 -> 100 | S17: =$O$17/$O17*$R17 -> 100
M18: 4 | N18: 38 | O18: =PerfEqn($N$2,$O$2,$P$2,$Q$2,$R$2,$S$2,$T$2,$U$2,$V$2,$W$2,ctof($M18),ctof($N18)) -> 53653.52469 | P18: =PerfEqn($N$3,$O$3,$P$3,$Q$3,$R$3,$S$3,$T$3,$U$3,$V$3,$W$3,ctof($M18),ctof($N18)) -> 3191.3637 | Q18: =$O18/$O$17*100 -> 96.70141367 | R18: =$P18/$P$17*100 -> 99.76112592 | S18: =$O$17/$O18*$R18 -> 103.1640822
M19: 3 | N19: 38 | O19: =PerfEqn($N$2,$O$2,$P$2,$Q$2,$R$2,$S$2,$T$2,$U$2,$V$2,$W$2,ctof($M19),ctof($N19)) -> 51864.66791 | P19: =PerfEqn($N$3,$O$3,$P$3,$Q$3,$R$3,$S$3,$T$3,$U$3,$V$3,$W$3,ctof($M19),ctof($N19)) -> 3184.209457 | Q19: 93.47730154 | R19: 99.53748632 | S19: 106.4830549
M21: 5 | N21: 38 | O21: =PerfEqn($N$2,$O$2,$P$2,$Q$2,$R$2,$S$2,$T$2,$U$2,$V$2,$W$2,ctof($M21),ctof($N21)) -> 55483.70252 | P21: =PerfEqn($N$3,$O$3,$P$3,$Q$3,$R$3,$S$3,$T$3,$U$3,$V$3,$W$3,ctof($M21),ctof($N21)) -> 3199.005294 | Q21: =$O21/$O$17*100 -> 100 | R21: =$P21/$P$17*100 -> 100 | S21: =$O$21/$O21*$R21 -> 100
M22: 5 | N22: 39 | O22: =PerfEqn($N$2,$O$2,$P$2,$Q$2,$R$2,$S$2,$T$2,$U$2,$V$2,$W$2,ctof($M22),ctof($N22)) -> 55059.85188 | P22: =PerfEqn($N$3,$O$3,$P$3,$Q$3,$R$3,$S$3,$T$3,$U$3,$V$3,$W$3,ctof($M22),ctof($N22)) -> 3259.349665 | Q22: =$O22/$O$17*100 -> 99.23608083 | R22: =$P22/$P$17*100 -> 101.886348 | S22: =$O$21/$O22*$R22 -> 102.6706689
M23: 5 | N23: 40 | O23: =PerfEqn($N$2,$O$2,$P$2,$Q$2,$R$2,$S$2,$T$2,$U$2,$V$2,$W$2,ctof($M23),ctof($N23)) -> 54607.09424 | P23: =PerfEqn($N$3,$O$3,$P$3,$Q$3,$R$3,$S$3,$T$3,$U$3,$V$3,$W$3,ctof($M23),ctof($N23)) -> 3321.228885 | Q23: 98.42006167 | R23: 103.8206748 | S23: 105.4873093
B61: Copeland YAD39K1E-TF5, R-454B | N61: C1 | O61: C2 | P61: C3 | Q61: C4 | R61: C5 | S61: C6 | T61: C7 | U61: C8 | V61: C9 | W61: C10
M62: Btu/h | N62: 21399.66562 | O62: 415.3738999 | P62: 129.8343198 | Q62: 10.68707201 | R62: 1.808496388 | S62: -2.890914887 | T62: -0.02964044604 | U62: -0.02041788481 | V62: -0.02363094685 | W62: 0.01206985055
M63: Watts | N63: 632.3621209 | O63: 3.512489456 | P63: 8.402304634 | Q63: -0.3606231297 | R63: 0.002281538191 | S63: 0.08788357072 | T63: 0.00392033843 | U63: -0.0006695260827 | V63: 0.0009009453477 | W63: 7.343734481e-05
M66: Evap | N66: Cond
M67: Temp (°F) | N67: Temp (°F) | O67: Btu/h | P67: Watts | Q67: Btu/h % | R67: Watts % | S67: Energy %
M68: 40 | N68: 100 | O68: =PerfEqn($N$62,$O$62,$P$62,$Q$62,$R$62,$S$62,$T$62,$U$62,$V$62,$W$62,$M68,$N68) -> 43875.82718 | P68: =PerfEqn($N$63,$O$63,$P$63,$Q$63,$R$63,$S$63,$T$63,$U$63,$V$63,$W$63,$M68,$N68) -> 2501.649985 | Q68: =$O68/$O$68*100 -> 100 | R68: =$P68/$P$68*100 -> 100 | S68: =$O$68/$O68*$R68 -> 100
M69: 38 | N69: 100 | O69: =PerfEqn($N$62,$O$62,$P$62,$Q$62,$R$62,$S$62,$T$62,$U$62,$V$62,$W$62,$M69,$N69) -> 42077.8928 | P69: =PerfEqn($N$63,$O$63,$P$63,$Q$63,$R$63,$S$63,$T$63,$U$63,$V$63,$W$63,$M69,$N69) -> 2507.066757 | Q69: =$O69/$O$68*100 -> 95.90222112 | R69: =$P69/$P$68*100 -> 100.216528 | S69: =$O$68/$O69*$R69 -> 104.4986517
M70: 36 | N70: 100 | O70: 40322.0886 | P70: 2512.638273 | Q70: 91.90046364 | R70: 100.4392416 | S70: 109.2913329
M72: 40 | N72: 100 | O72: 43875.82718 | P72: 2501.649985 | Q72: =$O72/$O$72*100 -> 100 | R72: =$P72/$P$72*100 -> 100 | S72: =$O$72/$O72*$R72 -> 100
M73: 40 | N73: 102 | O73: 43403.804 | P73: 2571.053826 | Q73: =$O73/$O$72*100 -> 98.92418397 | R73: =$P73/$P$72*100 -> 102.7743226 | S73: =$O$72/$O73*$R73 -> 103.8920095
M74: 40 | N74: 104 | O74: 42930.63859 | P74: 2641.628813 | Q74: 97.84576461 | R74: 105.5954602 | S74: 107.9203178
M76: (°C) | N76: (°C)
M77: 5 | N77: 38 | O77: =PerfEqn($N$62,$O$62,$P$62,$Q$62,$R$62,$S$62,$T$62,$U$62,$V$62,$W$62,ctof($M77),ctof($N77)) -> 44694.03074 | P77: =PerfEqn($N$63,$O$63,$P$63,$Q$63,$R$63,$S$63,$T$63,$U$63,$V$63,$W$63,ctof($M77),ctof($N77)) -> 2512.897118 | Q77: =$O77/$O$77*100 -> 100 | R77: =$P77/$P$77*100 -> 100 | S77: =$O$77/$O77*$R77 -> 100
M78: 4 | N78: 38 | O78: =PerfEqn($N$62,$O$62,$P$62,$Q$62,$R$62,$S$62,$T$62,$U$62,$V$62,$W$62,ctof($M78),ctof($N78)) -> 43058.85757 | P78: =PerfEqn($N$63,$O$63,$P$63,$Q$63,$R$63,$S$63,$T$63,$U$63,$V$63,$W$63,ctof($M78),ctof($N78)) -> 2517.53179 | Q78: =$O78/$O$77*100 -> 96.34140592 | R78: =$P78/$P$77*100 -> 100.1844354 | S78: =$O$77/$O78*$R78 -> 103.9889697
M79: 3 | N79: 38 | O79: =PerfEqn($N$62,$O$62,$P$62,$Q$62,$R$62,$S$62,$T$62,$U$62,$V$62,$W$62,ctof($M79),ctof($N79)) -> 41457.06548 | P79: =PerfEqn($N$63,$O$63,$P$63,$Q$63,$R$63,$S$63,$T$63,$U$63,$V$63,$W$63,ctof($M79),ctof($N79)) -> 2522.381522 | Q79: 92.75749982 | R79: 100.3774291 | S79: 108.2148929
M81: 5 | N81: 38 | O81: =PerfEqn($N$62,$O$62,$P$62,$Q$62,$R$62,$S$62,$T$62,$U$62,$V$62,$W$62,ctof($M81),ctof($N81)) -> 44694.03074 | P81: =PerfEqn($N$63,$O$63,$P$63,$Q$63,$R$63,$S$63,$T$63,$U$63,$V$63,$W$63,ctof($M81),ctof($N81)) -> 2512.897118 | Q81: =$O81/$O$81*100 -> 100 | R81: =$P81/$P$81*100 -> 100 | S81: =$O$81/$O81*$R81 -> 100
M82: 5 | N82: 39 | O82: =PerfEqn($N$62,$O$62,$P$62,$Q$62,$R$62,$S$62,$T$62,$U$62,$V$62,$W$62,ctof($M82),ctof($N82)) -> 44260.67893 | P82: =PerfEqn($N$63,$O$63,$P$63,$Q$63,$R$63,$S$63,$T$63,$U$63,$V$63,$W$63,ctof($M82),ctof($N82)) -> 2575.753499 | Q82: =$O82/$O$81*100 -> 99.0304034 | R82: =$P82/$P$81*100 -> 102.5013512 | S82: =$O$81/$O82*$R82 -> 103.5049314
M83: 5 | N83: 40 | O83: =PerfEqn($N$62,$O$62,$P$62,$Q$62,$R$62,$S$62,$T$62,$U$62,$V$62,$W$62,ctof($M83),ctof($N83)) -> 43826.29572 | P83: =PerfEqn($N$63,$O$63,$P$63,$Q$63,$R$63,$S$63,$T$63,$U$63,$V$63,$W$63,ctof($M83),ctof($N83)) -> 2639.564632 | Q83: 98.0584991 | R83: 105.0406964 | S83: 107.1204407

Sheet Page 1.4 Table
A1: NIST Refrigerant File | B1: R22.fld | M1: NIST Refrigerant File | N1: =VLOOKUP(M3,'NIST refrigerants listing'!A1:B176,2) -> R457A.mix
T2: °C | U2: °F
B3: Evaporator Temp, °F | E3: 40 | M3: 127 | O3: Evaporator Temp, °F | R3: 40 | T3: 5 | U3: 41
B4: Liquid Temp, °F | E4: 105 | O4: Liquid Temp, °F | R4: 105 | T4: 40 | U4: 104
B5: Evaporator Enthalpy, Btu/lb | E5: =Enthalpy($B$1,"TVAP","E",E3) -> 174.9460246 | O5: Evaporator Enthalpy, Btu/lb | R5: =Enthalpy($N$1,"TVAP","E",R3) -> 173.9663325
B6: Liquid Enthalpy, Btu/lb | E6: =Enthalpy($B$1,"TLIQ","E",E4) -> 107.7183226 | O6: Liquid Enthalpy, Btu/lb | R6: =Enthalpy($N$1,"TLIQ","E",R4) -> 112.8054922
B7: Liquid Density, lb/ft3 | E7: =Density($B$1,"TLIQ","E",E4) -> 70.29896512 | O7: Liquid Density, lb/ft3 | R7: =Density($N$1,"TLIQ","E",R4) -> 60.21097341
B8: NRE, Btu/lb | E8: =E5-E6 -> 67.22770203 | O8: NRE, Btu/lb | R8: =R5-R6 -> 61.16084034
B9: Flow Rate, lb/min-ton | E9: =200/E8 -> 2.974964099 | I9: g, ft/s2 | J9: =9.80665/0.3048 -> 32.17404856 | O9: Flow Rate, lb/min-ton | R9: =200/R8 -> 3.270066253
I10: V2= 2gh
E12: Published data | S12: flow | T12: corr | U12: corr
B13: Pipe OD, in | C13: Pipe ID, in | E13: R-22 tons | F13: lb/min | G13: CFM | H13: A, ft2 | I13: V, ft/min | J13: h, in | K13: h diff, % | O13: V, ft/min | P13: CFM | Q13: lb/min | R13: tons | S13: coeff | T13: tons | U13: kW
B14: 1 1/8 | C14: 1.025 | E14: 14 | F14: =E14*E$9 -> 41.64949739 | G14: =F14/E$7 -> 0.592462454 | H14: =PI()*C14*C14/576 -> 0.005730270454 | I14: =G14/H14 -> 103.3917088 | J14: =I14*I14/(2*J$9*3600)*12 -> 0.5537509226 | K14: =J14/C14 -> 0.5402448025 | O14: =SQRT(2*$J$9*$C14/12)*60 -> 140.6664134 | P14: =$O14*$H14 -> 0.8060565927 | Q14: =$P14*$R$7 -> 48.53345207 | R14: =$Q14/$R$9 -> 14.84173357 | S14: 0.75 | T14: =ROUND(R14*S14,1) -> 11.1 | U14: =ROUND(R14*S14*3.51685284206667,1) -> 39.1
B15: 1 3/8 | C15: 1.265 | E15: 25 | F15: =E15*E$9 -> 74.37410248 | G15: 1.057968668 | H15: =PI()*C15*C15/576 -> 0.008727873445 | I15: =G15/H15 -> 121.2172329 | J15: =I15*I15/(2*J$9*3600)*12 -> 0.761152658 | K15: =J15/C15 -> 0.6017017059 | O15: =SQRT(2*$J$9*$C15/12)*60 -> 156.2693279 | P15: =$O15*$H15 -> 1.363898918 | Q15: =$P15*$R$7 -> 82.12168146 | R15: =$Q15/$R$9 -> 25.11315524 | S15: 0.75 | T15: =ROUND(R15*S15,1) -> 18.8 | U15: =ROUND(R15*S15*3.51685284206667,1) -> 66.2
B16: 1 5/8 | C16: 1.505 | E16: 40 | F16: 118.998564 | G16: 1.692749869 | H16: 0.01235379497 | I16: 137.0226617 | J16: 0.9725856017 | K16: 0.6462362802 | O16: 170.4498925 | P16: 2.105703024 | Q16: 126.7864288 | R16: 38.77182263 | S16: 0.75 | T16: =ROUND(R16*S16,1) -> 29.1 | U16: =ROUND(R16*S16*3.51685284206667,1) -> 102.3
B17: 2 1/8 | C17: 1.985 | E17: 80 | F17: 237.9971279 | G17: 3.385499737 | H17: 0.0214905936 | I17: 157.5340263 | J17: 1.285558318 | K17: 0.647636432 | O17: 195.75314 | P17: 4.206851178 | Q17: 253.2986044 | R17: 77.45977752 | S17: 0.75 | T17: =ROUND(R17*S17,1) -> 58.1 | U17: =ROUND(R17*S17*3.51685284206667,0) -> 204
B18: 2 5/8 | C18: 2.465 | E18: 130 | F18: 386.7453329 | G18: 5.501437073 | H18: 0.03314066636 | I18: 166.0026088 | J18: 1.427489305 | K18: 0.5791031664 | O18: 218.1408211 | P18: 7.22933217 | Q18: 435.285127 | R18: 133.1120208 | S18: 0.75 | T18: =ROUND(R18*S18,1) -> 99.8 | U18: 351
B19: 3 1/8 | C19: 2.945 | E19: 195 | F19: 580.1179993 | G19: 8.252155609 | H19: 0.04730401324 | I19: 174.4493764 | J19: 1.576456092 | K19: 0.5352991825 | O19: 238.4356177 | P19: 11.27896162 | Q19: 679.117258 | R19: 207.6769109 | S19: 0.75 | T19: =ROUND(R19*S19,0) -> 156 | U19: 548
B20: 3 5/8 | C20: 3.425 | H20: =PI()*C20*C20/576 -> 0.06398063424 | O20: 257.1335641 | P20: 16.45156851 | Q20: 990.5649544 | R20: 302.9189251 | S20: 0.75 | T20: 227 | U20: 799
B21: 4 1/8 | C21: 3.905 | E21: 410 | F21: 1219.735281 | G21: =F21/E$7 -> 17.35068615 | H21: =PI()*C21*C21/576 -> 0.08317052937 | I21: =G21/H21 -> 208.6157956 | J21: 2.254433419 | K21: 0.5773196975 | O21: 274.5610966 | P21: 22.83539175 | Q21: 1374.941165 | R21: 420.4627854 | S21: 0.75 | T21: 315 | U21: =ROUND(R21*S21*3.51685284206667,0) -> 1109
O23: Line Size | P23: Tons, Refrigeration
B24: Note: Flow is being adjusted by a flow coefficient to account for the vena contracta. 0.75 appears to have been used which I find a reasonable number. | O24: Type L, | P24: Refrigerant
B25: 0.61 is commonly used for a flat plate orifice. 0.90 - 0.98 is commonly used for a venturi nozzle. | O25: Copper, | P25: 448A/ 449A | Q25: 32 | R25: 454B | S25: 454C/ 455A | T25: 454A/ 457A
O26: OD, in
O27: 1 1/8 | P27: 11.5 | Q27: 17.3 | R27: 14.1 | S27: 10.3 | T27: 11.1
O28: 1 3/8 | P28: 19.5 | Q28: 29.3 | R28: 23.9 | S28: 17.4 | T28: 18.8
O29: 1 5/8 | P29: 30.1 | Q29: 45.2 | R29: 36.9 | S29: 26.9 | T29: 29.1
O30: 2 1/8 | P30: 60.2 | Q30: 90.2 | R30: 73.7 | S30: 53.7 | T30: 58.1
O31: 2 5/8 | P31: 103 | Q31: 155 | R31: 127 | S31: 92.3 | T31: 99.8
O32: 3 1/8 | P32: 161 | Q32: 242 | R32: 198 | S32: 144 | T32: 156
O33: 3 5/8 | P33: 236 | Q33: 353 | R33: 288 | S33: 210 | T33: 227
O34: 4 1/8 | P34: 327 | Q34: 490 | R34: 400 | S34: 292 | T34: 315
O37: Line Size | P37: Kilowatts, Refrigeration
O38: Type L, | P38: Refrigerant
O39: Copper, | P39: 448A/ 449A | Q39: 32 | R39: 454B | S39: 454C/ 455A | T39: 454A/ 457A
O40: OD, in (mm)
O41: 1 1/8 (29) | P41: 41 | Q41: 61.3 | R41: 50.2 | S41: 36.6 | T41: 39.6
O42: 1 3/8 (35) | P42: 69.5 | Q42: 104 | R42: 84.9 | S42: 62 | T42: 67
O43: 1 5/8 (41) | P43: 107 | Q43: 160 | R43: 131 | S43: 95.7 | T43: 103
O44: 2 1/8 (54) | P44: 214 | Q44: 320 | R44: 262 | S44: 191 | T44: 207
O45: 2 5/8 (67) | P45: 368 | Q45: 550 | R45: 450 | S45: 329 | T45: 355
O46: 3 1/8 (79) | P46: 574 | Q46: 858 | R46: 702 | S46: 513 | T46: 554
O47: 3 5/8 (92) | P47: 838 | Q47: 1250 | R47: 1020 | S47: 748 | T47: 808
O48: 4 1/8 (105) | P48: 1160 | Q48: 1740 | R48: 1420 | S48: 1040 | T48: 1120

Sheet Table 3
A1: NIST Refrigerant File | D1: R454B.mix | J1: =Pressure($D$1,"TVAP","E",105)-Pressure($D$1,"TVAP","E",104) -> 4.408452387 | N1: =Pressure($D$1,"TLIQ","E",105)-Pressure($D$1,"TLIQ","E",104) -> 4.485914163
A3: Table 3 Suction, Discharge, and Liquid Line Capacities for Refrigerant 454B (Single- or High-Stage Applications)
C5: Suction Lines (Dt = 2°F, max velocity 3000 fpm, | H5: Discharge Linesc | L5: Liquid Linesa,b,c
A6: Line Size | C6: corresponding Dp, psi) | H6: (Dt = 1°F, Dp = 4.41 psi, | L6: Velocity = 100 fpm | N6: (Dt = 1°F, Dp = 4.49 psi,
A7: Type L, | C7: =Pressure($D$1,"TVAP","E",C9)-Pressure($D$1,"TVAP","E",C9-2) -> 1.14127491 | D7: =Pressure($D$1,"TVAP","E",D9)-Pressure($D$1,"TVAP","E",D9-2) -> 1.66130633 | E7: =Pressure($D$1,"TVAP","E",E9)-Pressure($D$1,"TVAP","E",E9-2) -> 2.322919419 | F7: =Pressure($D$1,"TVAP","E",F9)-Pressure($D$1,"TVAP","E",F9-2) -> 3.141176993 | G7: =Pressure($D$1,"TVAP","E",G9)-Pressure($D$1,"TVAP","E",G9-2) -> 4.131211978 | H7: max velocity 3000 fpm) | N7: max velocity 300 fpm)
A8: Copper, | C8: Saturated Suction Temperature, °F
A9: OD, in | C9: -40 | D9: -20 | E9: 0 | F9: 20 | G9: 40 | H9: -40 | I9: 40 | J9: -40 | K9: 40 | L9: -40 | M9: 40 | N9: -40 | O9: 40
A10: 3/8 | C10: --- | D10: 0.117 | E10: 0.181 | F10: 0.27 | G10: 0.387 | H10: 0.473 | I10: 0.571 | J10: 0.464 | K10: 0.597 | L10: 1.11 | M10: 1.23 | N10: 2.05 | O10: 2.27
A11: 1/2 | C11: 0.178 | D11: 0.289 | E11: 0.448 | F11: 0.664 | G11: 0.952 | H11: 1.16 | I11: 1.4 | J11: 1.14 | K11: 1.46 | L11: 2.19 | M11: 2.42 | N11: 5.04 | O11: 5.58
A12: 5/8 | C12: 0.324 | D12: 0.525 | E12: 0.812 | F12: 1.2 | G12: 1.72 | H12: 2.11 | I12: 2.54 | J12: 2.06 | K12: 2.65 | L12: 3.42 | M12: 3.78 | N12: 9.13 | O12: 10.1
A13: 3/4 | C13: 0.553 | D13: 0.897 | E13: 1.38 | F13: 2.05 | G13: 2.93 | H13: 3.58 | I13: 4.31 | J13: 3.51 | K13: 4.5 | L13: 5.1 | M13: 5.65 | N13: 15.3 | O13: 17
A14: 7/8 | C14: 0.858 | D14: 1.39 | E14: 2.14 | F14: 3.16 | G14: 4.52 | H14: 5.53 | I14: 6.66 | J14: 5.42 | K14: 6.94 | L14: 7.09 | M14: 7.85 | N14: 21.3 | O14: 23.6
A15: 1 1/8 | C15: 1.75 | D15: 2.82 | E15: 4.34 | F15: 6.4 | G15: 9.13 | H15: 11.2 | I15: 13.4 | J15: 11 | K15: 14 | L15: 12.1 | M15: 13.4 | N15: 36.3 | O15: 40.2
A16: 1 3/8 | C16: 3.05 | D16: 4.93 | E16: 7.57 | F16: 11.1 | G16: 15.9 | H16: 19.5 | I16: 23.4 | J16: 19.1 | K16: 24.4 | L16: 18.4 | M16: 20.4 | N16: 55.2 | O16: 61.2
A17: 1 5/8 | C17: 4.68 | D17: 7.61 | E17: 11.8 | F17: 17.6 | G17: 25.1 | H17: 30.7 | I17: 36.9 | J17: 30.1 | K17: 38.4 | L17: 26.1 | M17: 28.9 | N17: 78.2 | O17: 86.6
A18: 2 1/8 | C18: 8.14 | D18: 13.2 | E18: 20.6 | F18: 30.9 | G18: 45.1 | H18: 63.5 | I18: 76.2 | J18: 62.4 | K18: 79.4 | L18: 45.3 | M18: 50.2 | N18: 136 | O18: 151
A19: 2 5/8 | C19: 12.6 | D19: 20.4 | E19: 31.8 | F19: 47.7 | G19: 69.6 | H19: 108 | I19: 134 | J19: 105 | K19: 140 | L19: 69.9 | M19: 77.4 | N19: 210 | O19: 232
A20: 3 1/8 | C20: 17.9 | D20: 29.1 | E20: 45.3 | F20: 68.1 | G20: 99.3 | H20: 155 | I20: 197 | J20: 149 | K20: 212 | L20: 100 | M20: 110 | N20: 299 | O20: 331
A21: 3 5/8 | C21: 24.2 | D21: 39.4 | E21: 61.3 | F21: 92.1 | G21: 134 | H21: 209 | I21: 267 | J21: 202 | K21: 287 | L21: 135 | M21: 149 | N21: 405 | O21: 448
A22: 4 1/8 | C22: 31.5 | D22: 51.2 | E22: 79.7 | F22: 120 | G22: 175 | H22: 272 | I22: 347 | J22: 263 | K22: 373 | L22: 175 | M22: 194 | N22: 526 | O22: 583
A23: Steel
A24: IPS | B24: SCH
A25: 3/8 | B25: 80 | C25: 0.137 | D25: 0.217 | E25: 0.328 | F25: 0.476 | G25: 0.668 | H25: 0.824 | I25: 0.982 | J25: 0.81 | K25: 1.02 | L25: 2.06 | M25: 2.28 | N25: 3.62 | O25: 4
A26: 1/2 | B26: 80 | C26: 0.272 | D26: 0.429 | E26: 0.647 | F26: 0.937 | G26: 1.32 | H26: 1.62 | I26: 1.93 | J26: 1.59 | K26: 2.01 | L26: 3.43 | M26: 3.8 | N26: 7.12 | O26: 7.89
A27: 3/4 | B27: 80 | C27: 0.614 | D27: 0.969 | E27: 1.46 | F27: 2.11 | G27: 2.96 | H27: 3.65 | I27: 4.35 | J27: 3.59 | K27: 4.52 | L27: 6.34 | M27: 7.01 | N27: 16.1 | O27: 17.8
A28: 1 | B28: 80 | C28: 1.21 | D28: 1.9 | E28: 2.86 | F28: 4.14 | G28: 5.8 | H28: 7.16 | I28: 8.52 | J28: 7.03 | K28: 8.84 | L28: 10.5 | M28: 11.7 | N28: 31.4 | O28: 34.8
A29: 1 1/4 | B29: 80 | C29: 2.59 | D29: 4.08 | E29: 6.13 | F29: 8.86 | G29: 12.4 | H29: 15.3 | I29: 18.3 | J29: 15.1 | K29: 18.9 | L29: 18.8 | M29: 20.8 | N29: 56.4 | O29: 62.4
A30: 1 1/2 | B30: 80 | C30: 3.96 | D30: 6.22 | E30: 9.34 | F30: 13.5 | G30: 18.9 | H30: 23.4 | I30: 27.8 | J30: 23 | K30: 28.9 | L30: 25.9 | M30: 28.7 | N30: 77.7 | O30: 86
A31: 2 | B31: 40 | C31: 8.83 | D31: 14.3 | E31: 21.7 | F31: 31.4 | G31: 43.9 | H31: 54.2 | I31: 64.6 | J31: 53.3 | K31: 67 | L31: 49.2 | M31: 54.4 | N31: 147 | O31: 163
A32: 2 1/2 | B32: 40 | C32: 12.6 | D32: 20.5 | E32: 31.9 | F32: 47.9 | G32: 69.8 | H32: 86.4 | I32: 103 | J32: 85 | K32: 107 | L32: 70.1 | M32: 77.7 | N32: 210 | O32: 233
A33: 3 | B33: 40 | C33: 19.5 | D33: 31.6 | E33: 49.2 | F33: 73.9 | G33: 108 | H33: 153 | I33: 182 | J33: 150 | K33: 188 | L33: 108 | M33: 120 | N33: 325 | O33: 360
A34: 4 | B34: 40 | C34: 33.5 | D34: 54.4 | E34: 84.7 | F34: 127 | G34: 186 | H34: 289 | I34: 369 | J34: 279 | K34: 384 | L34: 187 | M34: 206 | N34: 560 | O34: 619
A35: Notes:
A36: 1. Table capacities are in tons of refrigeration. Discharge refrigerant state is determined by adding 50°F to the temperature resulting from isentropic compression and 25°F superheated refrigerant entering compressor. Liquid and suction refrigerant states are at saturation.
A37: (For comparison, values in red have discharge refrigerant state determined with compression at 70 percent isentropic efficiency and 25°F superheated refrigerant entering the compressor).
A38: Dp = pressure drop from line friction, psi per 100 ft equivalent length.
A39: Dt = change in saturation temperature corresponding to Dp, °F per 100 ft equivalent length.
A40: 2. Same as I-P R2022 chapter 1 tables.
A41: 3. Same as I-P R2022 chapter 1 tables.
A42: 4. Refrigerant thermodynamic and thermophysical properties calculated using NIST RefProp v10.0. Refrigerant flow rates calculated using the Darcy-Weisbach and Colebrook equations.
A43: 5. Table capacities based on 105°F condensing temperature and 0°F subcooling. Multiply capacities by the following correction factors for other condensing temperatures. Correction factors based on a 0°F evaporator temperature, and are suitable in the range of -40°F to 40°F.
D44: Condensing Temperature, °F
D45: 80 | E45: 90 | F45: 100 | G45: 110 | H45: 120 | I45: 130 | J45: 140
B46: Liquid Line | D46: 1.22 | E46: 1.14 | F46: 1.05 | G46: 0.95 | H46: 0.86 | I46: 0.77 | J46: 0.67
B47: Suction Line | D47: =ROUND($J57/$J$60,2) -> 1.14 | E47: =ROUND($J58/$J$60,2) -> 1.09 | F47: =ROUND($J59/$J$60,2) -> 1.03 | G47: =ROUND($J61/$J$60,2) -> 0.97 | H47: =ROUND($J62/$J$60,2) -> 0.91 | I47: =ROUND($J63/$J$60,2) -> 0.84 | J47: =ROUND($J64/$J$60,2) -> 0.77
B48: Discharge Line | D48: 0.85 | E48: 0.91 | F48: 0.97 | G48: 1.03 | H48: 1.07 | I48: 1.11 | J48: 1.13
A49: aSame as I-P R2022 chapter 1 tables.
A50: bSame as I-P R2022 chapter 1 tables.
A51: cSame as I-P R2022 chapter 1 tables.
D54: Discharge refrigerant state calculator | J54: NRE @ 0°F
I55: Cond | J55: Evap,
D56: NIST Refrigerant File | G56: R454B.mix | I56: Temp, °F | J56: Btu/lb
D57: Evap, °F | G57: -20 | I57: 80 | J57: =Enthalpy($D$1,"TVAP","E",0)-Enthalpy($D$1,"TLIQ","E",$I57) -> 89.86317529
D58: Superheat, °F | G58: 25 | I58: 90 | J58: 85.5080228
D59: Cond, °F | G59: 105 | I59: 100 | J59: 81.01423705
I60: 105 | J60: 78.70642995
D61: Evap, psia | G61: =Pressure($G$56,"TVAP","E",G57) -> 37.24990322 | I61: 110 | J61: 76.35186435
D62: Cond, psia | G62: =Pressure($G$56,"TLIQ","E",G59) -> 337.457204 | I62: 120 | J62: 71.47787607
D63: Evap Entropy, Btu/lb-°F | G63: =Entropy($G$56,"PT","E",G61,G57+G58) -> 0.4987870485 | I63: 130 | J63: 66.32704717
I64: 140 | J64: 60.79202624
D65: Isentropic Temperature + 50°F | G65: =Temperature(G56,"PS","E",G62,G63)+50 -> 263.3894096
D67: Isentropic Efficiency | G67: 0.7
D68: Evap Enthalpy, Btu/lb | G68: =Enthalpy($G$56,"PT","E",G61,G57+G58) -> 198.7921343
D69: Cond Enthalpy, isentropic, Btu/lb | G69: =Enthalpy($G$56,"PS","E",G62,G63) -> 234.2963033
D70: Cond Enthalpy, actual, Btu/lb | G70: =(G69-G68)/G67+G68 -> 249.5123757
D72: Discharge Temperature, °F | G72: =Temperature($G$56,"HP","E",G70,G62) -> 267.8304858

Sheet Table 3 SI
A1: NIST Refrigerant File | D1: R454B.mix | I1: =(Pressure($D$1,"TVAP","C",40)-Pressure($D$1,"TVAP","C",39.5))*1000 -> 27.08595196 | M1: =(Pressure($D$1,"TLIQ","C",40)-Pressure($D$1,"TLIQ","C",39.5))*1000 -> 27.57168722
A3: Table 3 Suction, Discharge, and Liquid Line Capacities for Refrigerant 454B (Single- or High-Stage Applications)
C5: Suction Lines (Dt = 1 K, max velocity 15 m/s, | H5: Discharge Linesc | J5: Liquid Linesa,b,c
A6: Line Size | C6: corresponding Dp, kPa) | H6: (Dt = 0.5 K, Dp = 27.1 kPa, | J6: Velocity = 0.5 m/s | L6: (Dt = 0.5 K, Dp = 27.6 kPa,
A7: Type L, | C7: =(Pressure($D$1,"TVAP","C",C9)-Pressure($D$1,"TVAP","C",C9-1))*1000 -> 7.095969757 | D7: =(Pressure($D$1,"TVAP","C",D9)-Pressure($D$1,"TVAP","C",D9-1))*1000 -> 9.965978023 | E7: =(Pressure($D$1,"TVAP","C",E9)-Pressure($D$1,"TVAP","C",E9-1))*1000 -> 13.54031281 | F7: =(Pressure($D$1,"TVAP","C",F9)-Pressure($D$1,"TVAP","C",F9-1))*1000 -> 20.37178968 | G7: =(Pressure($D$1,"TVAP","C",G9)-Pressure($D$1,"TVAP","C",G9-1))*1000 -> 26.00603239 | H7: max velocity 15 m/s) | L7: max velocity 1.5 m/s)
A8: Copper, | C8: Saturated Suction Temperature, °C
A9: OD, in (mm) | C9: -40 | D9: -30 | E9: -20 | F9: -5 | G9: 5 | H9: -40 | I9: 5 | J9: -40 | K9: 5 | L9: -40 | M9: 5
A10: 3/8 (10) | C10: 0.241 | D10: 0.376 | E10: 0.561 | F10: 0.962 | G10: 1.33 | H10: 1.54 | I10: 1.99 | J10: 3.89 | K10: 4.31 | L10: 6.87 | M10: 7.6
A11: 1/2 (13) | C11: 0.599 | D11: 0.931 | E11: 1.39 | F11: 2.37 | G11: 3.26 | H11: 3.8 | I11: 4.89 | J11: 7.64 | K11: 8.46 | L11: 16.9 | M11: 18.7
A12: 5/8 (16) | C12: 1.09 | D12: 1.69 | E12: 2.52 | F12: 4.29 | G12: 5.9 | H12: 6.88 | I12: 8.84 | J12: 11.9 | K12: 13.2 | L12: 30.6 | M12: 33.9
A13: 3/4 (19) | C13: 1.87 | D13: 2.89 | E13: 4.29 | F13: 7.3 | G13: 10 | H13: 11.7 | I13: 15 | J13: 17.8 | K13: 19.7 | L13: 52.2 | M13: 57.8
A14: 7/8 (22) | C14: 2.89 | D14: 4.48 | E14: 6.64 | F14: 11.3 | G14: 15.5 | H14: 18.1 | I14: 23.2 | J14: 24.8 | K14: 27.4 | L14: 74.3 | M14: 82.3
A15: 1 1/8 (29) | C15: 5.89 | D15: 9.09 | E15: 13.5 | F15: 22.8 | G15: 31.3 | H15: 36.6 | I15: 46.8 | J15: 42.2 | K15: 46.8 | L15: 127 | M15: 140
A16: 1 3/8 (35) | C16: 10.3 | D16: 15.9 | E16: 23.5 | F16: 39.8 | G16: 54.5 | H16: 63.7 | I16: 81.5 | J16: 64.3 | K16: 71.2 | L16: 193 | M16: 214
A17: 1 5/8 (41) | C17: 16.3 | D17: 25.1 | E17: 37.2 | F17: 62.8 | G17: 86 | H17: 101 | I17: 129 | J17: 91.1 | K17: 101 | L17: 273 | M17: 303
A18: 2 1/8 (54) | C18: 28.4 | D18: 44 | E18: 65.8 | F18: 114 | G18: 160 | H18: 208 | I18: 266 | J18: 158 | K18: 175 | L18: 475 | M18: 526
A19: 2 5/8 (67) | C19: 43.7 | D19: 67.8 | E19: 102 | F19: 176 | G19: 247 | H19: 360 | I19: 468 | J19: 244 | K19: 271 | L19: 733 | M19: 812
A20: 3 1/8 (79) | C20: 62.4 | D20: 96.8 | E20: 145 | F20: 251 | G20: 352 | H20: 514 | I20: 733 | J20: 349 | K20: 386 | L20: 1050 | M20: 1160
A21: 3 5/8 (92) | C21: 84.4 | D21: 131 | E21: 196 | F21: 340 | G21: 476 | H21: 696 | I21: 992 | J21: 472 | K21: 522 | L21: 1410 | M21: 1570
A22: 4 1/8 (105) | C22: 110 | D22: 170 | E22: 255 | F22: 442 | G22: 619 | H22: 904 | I22: 1290 | J22: 613 | K22: 679 | L22: 1840 | M22: 2040
A23: Steel
A24: IPS (mm) | B24: SCH
A25: 3/8 (10) | B25: 80 | C25: 0.465 | D25: 0.704 | E25: 1.03 | F25: 1.7 | G25: 2.3 | H25: 2.71 | I25: 3.42 | J25: 7.19 | K25: 7.97 | L25: 12.2 | M25: 13.5
A26: 1/2 (13) | B26: 80 | C26: 0.919 | D26: 1.39 | E26: 2.02 | F26: 3.34 | G26: 4.52 | H26: 5.34 | I26: 6.73 | J26: 12 | K26: 13.3 | L26: 24 | M26: 26.6
A27: 3/4 (19) | B27: 80 | C27: 2.08 | D27: 3.14 | E27: 4.56 | F27: 7.53 | G27: 10.2 | H27: 12 | I27: 15.1 | J27: 22.1 | K27: 24.5 | L27: 54.1 | M27: 59.9
A28: 1 (25) | B28: 80 | C28: 4.08 | D28: 6.16 | E28: 8.94 | F28: 14.7 | G28: 19.9 | H28: 23.5 | I28: 29.6 | J28: 36.8 | K28: 40.8 | L28: 106 | M28: 117
A29: 1 1/4 (32) | B29: 80 | C29: 8.77 | D29: 13.2 | E29: 19.2 | F29: 31.6 | G29: 42.7 | H29: 50.4 | I29: 63.5 | J29: 65.7 | K29: 72.7 | L29: 197 | M29: 218
A30: 1 1/2 (38) | B30: 80 | C30: 13.4 | D30: 20.2 | E30: 29.2 | F30: 48.2 | G30: 65.1 | H30: 76.9 | I30: 96.8 | J30: 90.5 | K30: 100 | L30: 271 | M30: 301
A31: 2 (51) | B31: 40 | C31: 30.8 | D31: 46.9 | E31: 67.9 | F31: 112 | G31: 151 | H31: 178 | I31: 225 | J31: 172 | K31: 190 | L31: 515 | M31: 571
A32: 2 1/2 (64) | B32: 40 | C32: 43.9 | D32: 68 | E32: 102 | F32: 177 | G32: 241 | H32: 284 | I32: 358 | J32: 245 | K32: 271 | L32: 735 | M32: 814
A33: 3 (76) | B33: 40 | C33: 67.8 | D33: 105 | E33: 157 | F33: 273 | G33: 382 | H33: 502 | I33: 632 | J33: 378 | K33: 419 | L33: 1140 | M33: 1260
A34: 4 (102) | B34: 40 | C34: 117 | D34: 181 | E34: 271 | F34: 470 | G34: 658 | H34: 961 | I34: 1290 | J34: 652 | K34: 722 | L34: 1960 | M34: 2170
A35: Notes:
A36: 1. Table capacities are in kilowatts of refrigeration. Discharge refrigerant state is determined with compression at 70 percent isentropic efficiency and 14 K superheated refrigerant entering the compressor. Liquid and suction refrigerant states are at saturation.
A37: Dp = pressure drop from line friction, kPa per 30 meters equivalent length.
A38: Dt = change in saturation temperature corresponding to Dp, K per 30 meters equivalent length.
A39: 2. Same as SI R2022 chapter 1 tables.
A40: 3. Same as SI R2022 chapter 1 tables.
A41: 4. Refrigerant thermodynamic and thermophysical properties calculated using NIST RefProp v10.0. Refrigerant flow rates calculated using the Darcy-Weisbach and Colebrook equations.
A42: 5. Table capacities based on 40°C condensing temperature and 0 K subcooling. Multiply capacities by the following correction factors for other condensing temperatures. Correction factors based on a -18°C evaporator temperature, and are suitable in the range of -40°C to 5°C.
D43: Condensing Temperature, °C
D44: 25 | E44: 30 | F44: 35 | G44: 45 | H44: 50 | I44: 55 | J44: 60
B45: Liquid Line | D45: 1.24 | E45: 1.16 | F45: 1.08 | G45: 0.92 | H45: 0.84 | I45: 0.75 | J45: 0.66
B46: Suction Line | D46: =ROUND($E56/$E$59,2) -> 1.15 | E46: =ROUND($E57/$E$59,2) -> 1.1 | F46: =ROUND($E58/$E$59,2) -> 1.05 | G46: =ROUND($E60/$E$59,2) -> 0.95 | H46: =ROUND($E61/$E$59,2) -> 0.89 | I46: =ROUND($E62/$E$59,2) -> 0.83 | J46: =ROUND($E63/$E$59,2) -> 0.77
B47: Discharge Line | D47: 0.83 | E47: 0.89 | F47: 0.95 | G47: 1.05 | H47: 1.09 | I47: 1.12 | J47: 1.14
A48: aSame as SI R2022 chapter 1 tables.
A49: bSame as SI R2022 chapter 1 tables.
A50: cSame as SI R2022 chapter 1 tables.
E53: NRE @ -18°C
D54: Cond | E54: Evap,
D55: Temp, °C | E55: Btu/lb
D56: 25 | E56: =Enthalpy($D$1,"TVAP","C",-18)-Enthalpy($D$1,"TLIQ","C",$D56) -> 211.7698244
D57: 30 | E57: 202.7492688
D58: 35 | E58: 193.4857481
D59: 40 | E59: 183.9357006
D60: 45 | E60: 174.039951
D61: 50 | E61: 163.715205
D62: 55 | E62: 152.8383259
D63: 60 | E63: 141.2134832

Sheet Table 3A
A1: NIST Refrigerant File | D1: R454A.mix | I1: =Pressure($D$1,"TVAP","E",105)-Pressure($D$1,"TVAP","E",104) -> 3.534144296 | M1: =Pressure($D$1,"TLIQ","E",105)-Pressure($D$1,"TLIQ","E",104) -> 3.740740523
A3: Table 3A Suction, Discharge, and Liquid Line Capacities for Refrigerant 454A (Single- or High-Stage Applications)
C5: Suction Lines (Dt = 2°F, max velocity 3000 fpm, | H5: Discharge Linesc | J5: Liquid Linesa,b,c
A6: Line Size | C6: corresponding Dp, psi) | H6: (Dt = 1°F, Dp = 3.53 psi, | J6: Velocity = 100 fpm | L6: (Dt = 1°F, Dp = 3.74 psi,
A7: Type L, | C7: =Pressure($D$1,"TVAP","E",C9)-Pressure($D$1,"TVAP","E",C9-2) -> 0.8397366136 | D7: =Pressure($D$1,"TVAP","E",D9)-Pressure($D$1,"TVAP","E",D9-2) -> 1.244645032 | E7: =Pressure($D$1,"TVAP","E",E9)-Pressure($D$1,"TVAP","E",E9-2) -> 1.766735263 | F7: =Pressure($D$1,"TVAP","E",F9)-Pressure($D$1,"TVAP","E",F9-2) -> 2.419595976 | G7: =Pressure($D$1,"TVAP","E",G9)-Pressure($D$1,"TVAP","E",G9-2) -> 3.217046196 | H7: max velocity 3000 fpm) | L7: max velocity 300 fpm)
A8: Copper, | C8: Saturated Suction Temperature, °F
A9: OD, in | C9: -40 | D9: -20 | E9: 0 | F9: 20 | G9: 40 | H9: -40 | I9: 40 | J9: -40 | K9: 40 | L9: -40 | M9: 40
A10: 3/8 | C10: --- | D10: --- | E10: 0.11 | F10: 0.169 | G10: 0.25 | H10: 0.333 | I10: 0.444 | J10: 0.815 | K10: 0.978 | L10: 1.32 | M10: 1.59
A11: 1/2 | C11: 0.1 | D11: 0.169 | E11: 0.271 | F11: 0.416 | G11: 0.614 | H11: 0.818 | I11: 1.09 | J11: 1.6 | K11: 1.92 | L11: 3.26 | M11: 3.92
A12: 5/8 | C12: 0.181 | D12: 0.307 | E12: 0.492 | F12: 0.754 | G12: 1.11 | H12: 1.48 | I12: 1.97 | J12: 2.5 | K12: 3 | L12: 5.91 | M12: 7.1
A13: 3/4 | C13: 0.311 | D13: 0.525 | E13: 0.839 | F13: 1.28 | G13: 1.89 | H13: 2.51 | I13: 3.34 | J13: 3.74 | K13: 4.48 | L13: 10.1 | M13: 12.1
A14: 7/8 | C14: 0.482 | D14: 0.813 | E14: 1.3 | F14: 1.98 | G14: 2.92 | H14: 3.88 | I14: 5.16 | J14: 5.19 | K14: 6.23 | L14: 15.6 | M14: 18.7
A15: 1 1/8 | C15: 0.982 | D15: 1.65 | E15: 2.64 | F15: 4.02 | G15: 5.9 | H15: 7.85 | I15: 10.4 | J15: 8.85 | K15: 10.6 | L15: 26.6 | M15: 31.9
A16: 1 3/8 | C16: 1.72 | D16: 2.89 | E16: 4.6 | F16: 7 | G16: 10.3 | H16: 13.6 | I16: 18.1 | J16: 13.5 | K16: 16.2 | L16: 40.4 | M16: 48.5
A17: 1 5/8 | C17: 2.73 | D17: 4.57 | E17: 7.28 | F17: 11.1 | G17: 16.2 | H17: 21.5 | I17: 28.6 | J17: 19.1 | K17: 22.9 | L17: 57.2 | M17: 68.7
A18: 2 1/8 | C18: 5.13 | D18: 8.66 | E18: 13.9 | F18: 21.6 | G18: 32.4 | H18: 44.5 | I18: 59 | J18: 33.2 | K18: 39.8 | L18: 100 | M18: 119
A19: 2 5/8 | C19: 7.91 | D19: 13.4 | E19: 21.5 | F19: 33.3 | G19: 49.9 | H19: 78.5 | I19: 104 | J19: 51.2 | K19: 61.4 | L19: 154 | M19: 184
A20: 3 1/8 | C20: 11.3 | D20: 19.1 | E20: 30.7 | F20: 47.5 | G20: 71.2 | H20: 125 | I20: 165 | J20: 73.1 | K20: 87.7 | L20: 219 | M20: 263
A21: 3 5/8 | C21: 15.3 | D21: 25.8 | E21: 41.5 | F21: 64.3 | G21: 96.4 | H21: 174 | I21: 245 | J21: 98.8 | K21: 119 | L21: 296 | M21: 356
A22: 4 1/8 | C22: 19.9 | D22: 33.5 | E22: 54 | F22: 83.6 | G22: 125 | H22: 226 | I22: 324 | J22: 128 | K22: 154 | L22: 385 | M22: 462
A23: Steel
A24: IPS | B24: SCH
A25: 3/8 | B25: 80 | C25: --- | D25: 0.128 | E25: 0.201 | F25: 0.301 | G25: 0.435 | H25: 0.576 | I25: 0.758 | J25: 1.51 | K25: 1.81 | L25: 2.36 | M25: 2.84
A26: 1/2 | B26: 80 | C26: 0.154 | D26: 0.254 | E26: 0.396 | F26: 0.593 | G26: 0.857 | H26: 1.13 | I26: 1.49 | J26: 2.51 | K26: 3.01 | L26: 4.66 | M26: 5.59
A27: 3/4 | B27: 80 | C27: 0.349 | D27: 0.573 | E27: 0.894 | F27: 1.34 | G27: 1.93 | H27: 2.55 | I27: 3.36 | J27: 4.64 | K27: 5.57 | L27: 10.5 | M27: 12.6
A28: 1 | B28: 80 | C28: 0.686 | D28: 1.12 | E28: 1.75 | F28: 2.62 | G28: 3.78 | H28: 5 | I28: 6.57 | J28: 7.72 | K28: 9.26 | L28: 20.6 | M28: 24.7
A29: 1 1/4 | B29: 80 | C29: 1.47 | D29: 2.41 | E29: 3.76 | F29: 5.61 | G29: 8.1 | H29: 10.7 | I29: 14.1 | J29: 13.8 | K29: 16.5 | L29: 41.3 | M29: 49.5
A30: 1 1/2 | B30: 80 | C30: 2.25 | D30: 3.68 | E30: 5.73 | F30: 8.56 | G30: 12.3 | H30: 16.3 | I30: 21.4 | J30: 19 | K30: 22.7 | L30: 56.9 | M30: 68.2
A31: 2 | B31: 40 | C31: 5.24 | D31: 8.56 | E31: 13.3 | F31: 19.9 | G31: 28.6 | H31: 37.9 | I31: 49.8 | J31: 36 | K31: 43.2 | L31: 108 | M31: 130
A32: 2 1/2 | B32: 40 | C32: 7.94 | D32: 13.4 | E32: 21.2 | F32: 31.7 | G32: 45.7 | H32: 60.4 | I32: 79.3 | J32: 51.4 | K32: 61.6 | L32: 154 | M32: 185
A33: 3 | B33: 40 | C33: 12.3 | D33: 20.7 | E33: 33.3 | F33: 51.6 | G33: 77.3 | H33: 107 | I33: 140 | J33: 79.3 | K33: 95.1 | L33: 238 | M33: 285
A34: 4 | B34: 40 | C34: 21.1 | D34: 35.6 | E34: 57.4 | F34: 88.8 | G34: 133 | H34: 217 | I34: 285 | J34: 137 | K34: 164 | L34: 410 | M34: 492
A35: Notes:
A36: 1. Table capacities are in tons of refrigeration. Discharge refrigerant state is determined with compression at 70 percent isentropic efficiency and 25°F superheated refrigerant entering compressor. Liquid and suction refrigerant states are at saturation.
A37: Dp = pressure drop from line friction, psi per 100 ft equivalent length.
A38: Dt = change in saturation temperature corresponding to Dp, °F per 100 ft equivalent length.
A39: 2. Same as I-P R2022 chapter 1 tables.
A40: 3. Same as I-P R2022 chapter 1 tables.
A41: 4. Refrigerant thermodynamic and thermophysical properties calculated using NIST RefProp v10.0. Refrigerant flow rates calculated using the Darcy-Weisbach and Colebrook equations.
A42: 5. Table capacities based on 105°F condensing temperature and 0°F subcooling. Multiply capacities by the following correction factors for other condensing temperatures. Correction factors based on a 0°F evaporator temperature, and are suitable in the range of -40°F to 40°F.
D43: Condensing Temperature, °F
D44: 80 | E44: 90 | F44: 100 | G44: 110 | H44: 120 | I44: 130 | J44: 140
B45: Liquid Line | D45: 1.25 | E45: 1.15 | F45: 1.05 | G45: 0.95 | H45: 0.85 | I45: 0.74 | J45: 0.64
B46: Suction Line | D46: =ROUND($E56/$E$59,2) -> 1.17 | E46: =ROUND($E57/$E$59,2) -> 1.11 | F46: =ROUND($E58/$E$59,2) -> 1.04 | G46: =ROUND($E60/$E$59,2) -> 0.96 | H46: =ROUND($E61/$E$59,2) -> 0.89 | I46: =ROUND($E62/$E$59,2) -> 0.81 | J46: =ROUND($E63/$E$59,2) -> 0.73
B47: Discharge Line | D47: 0.87 | E47: 0.92 | F47: 0.98 | G47: 1.02 | H47: 1.05 | I47: 1.07 | J47: 1.08
A48: aSame as I-P R2022 chapter 1 tables.
A49: bSame as I-P R2022 chapter 1 tables.
A50: cSame as I-P R2022 chapter 1 tables.
E53: NRE @ 0°F
D54: Cond | E54: Evap,
D55: Temp, °F | E55: Btu/lb
D56: 80 | E56: =Enthalpy($D$1,"TVAP","E",0)-Enthalpy($D$1,"TLIQ","E",$D56) -> 67.73553865
D57: 90 | E57: 63.81040497
D58: 100 | E58: 59.77759626
D59: 105 | E59: 57.71470567
D60: 110 | E60: 55.61668087
D61: 120 | E61: 51.29913776
D62: 130 | E62: 46.78377453
D63: 140 | E63: 42.00695835

Sheet Tavle 3A SI
A1: NIST Refrigerant File | D1: R454A.mix | I1: =(Pressure($D$1,"TVAP","C",40)-Pressure($D$1,"TVAP","C",39.5))*1000 -> 21.70535576 | M1: =(Pressure($D$1,"TLIQ","C",40)-Pressure($D$1,"TLIQ","C",39.5))*1000 -> 23.00134204
A3: Table 3A Suction, Discharge, and Liquid Line Capacities for Refrigerant 454A (Single- or High-Stage Applications)
C5: Suction Lines (Dt = 1 K, max velocity 15 m/s, | H5: Discharge Linesc | J5: Liquid Linesa,b,c
A6: Line Size | C6: corresponding Dp, kPa) | H6: (Dt = 0.5 K, Dp = 21.7 kPa, | J6: Velocity = 0.5 m/s | L6: (Dt = 0.5 K, Dp = 23.0 kPa,
A7: Type L, | C7: =(Pressure($D$1,"TVAP","C",C9)-Pressure($D$1,"TVAP","C",C9-1))*1000 -> 5.221649424 | D7: =(Pressure($D$1,"TVAP","C",D9)-Pressure($D$1,"TVAP","C",D9-1))*1000 -> 7.454708561 | E7: =(Pressure($D$1,"TVAP","C",E9)-Pressure($D$1,"TVAP","C",E9-1))*1000 -> 10.27020475 | F7: =(Pressure($D$1,"TVAP","C",F9)-Pressure($D$1,"TVAP","C",F9-1))*1000 -> 15.72020115 | G7: =(Pressure($D$1,"TVAP","C",G9)-Pressure($D$1,"TVAP","C",G9-1))*1000 -> 20.26261752 | H7: max velocity 15 m/s) | L7: max velocity 1.5 m/s)
A8: Copper, | C8: Saturated Suction Temperature, °C
A9: OD, in (mm) | C9: -40 | D9: -30 | E9: -20 | F9: -5 | G9: 5 | H9: -40 | I9: 5 | J9: -40 | K9: 5 | L9: -40 | M9: 5
A10: 3/8 (10) | C10: 0.135 | D10: 0.218 | E10: 0.338 | F10: 0.605 | G10: 0.858 | H10: 1.11 | I10: 1.48 | J10: 2.85 | K10: 3.42 | L10: 4.45 | M10: 5.34
A11: 1/2 (13) | C11: 0.336 | D11: 0.542 | E11: 0.836 | F11: 1.49 | G11: 2.11 | H11: 2.73 | I11: 3.64 | J11: 5.6 | K11: 6.73 | L11: 11 | M11: 13.2
A12: 5/8 (16) | C12: 0.613 | D12: 0.986 | E12: 1.52 | F12: 2.7 | G12: 3.82 | H12: 4.93 | I12: 6.58 | J12: 8.76 | K12: 10.5 | L12: 19.9 | M12: 23.9
A13: 3/4 (19) | C13: 1.05 | D13: 1.69 | E13: 2.59 | F13: 4.6 | G13: 6.5 | H13: 8.39 | I13: 11.2 | J13: 13.1 | K13: 15.7 | L13: 33.9 | M13: 40.7
A14: 7/8 (22) | C14: 1.63 | D14: 2.61 | E14: 4.01 | F14: 7.12 | G14: 10 | H14: 13 | I14: 17.3 | J14: 18.2 | K14: 21.8 | L14: 52.4 | M14: 62.9
A15: 1 1/8 (29) | C15: 3.32 | D15: 5.31 | E15: 8.14 | F15: 14.4 | G15: 20.3 | H15: 26.2 | I15: 34.9 | J15: 31 | K15: 37.2 | L15: 92.9 | M15: 112
A16: 1 3/8 (35) | C16: 5.81 | D16: 9.29 | E16: 14.2 | F16: 25.1 | G16: 35.3 | H16: 45.6 | I16: 60.6 | J16: 47.2 | K16: 56.6 | L16: 142 | M16: 170
A17: 1 5/8 (41) | C17: 9.21 | D17: 14.7 | E17: 22.5 | F17: 39.7 | G17: 55.8 | H17: 72 | I17: 95.6 | J17: 66.8 | K17: 80.2 | L17: 200 | M17: 240
A18: 2 1/8 (54) | C18: 17.9 | D18: 28.7 | E18: 44.4 | F18: 80.1 | G18: 115 | H18: 149 | I18: 198 | J18: 116 | K18: 139 | L18: 349 | M18: 418
A19: 2 5/8 (67) | C19: 27.6 | D19: 44.3 | E19: 68.4 | F19: 124 | G19: 177 | H19: 263 | I19: 348 | J19: 179 | K19: 215 | L19: 537 | M19: 645
A20: 3 1/8 (79) | C20: 39.4 | D20: 63.2 | E20: 97.6 | F20: 176 | G20: 253 | H20: 418 | I20: 554 | J20: 256 | K20: 307 | L20: 767 | M20: 921
A21: 3 5/8 (92) | C21: 53.3 | D21: 85.5 | E21: 132 | F21: 239 | G21: 342 | H21: 599 | I21: 822 | J21: 346 | K21: 415 | L21: 1040 | M21: 1250
A22: 4 1/8 (105) | C22: 69.3 | D22: 111 | E22: 172 | F22: 310 | G22: 445 | H22: 779 | I22: 1120 | J22: 450 | K22: 540 | L22: 1350 | M22: 1620
A23: Steel
A24: IPS (mm) | B24: SCH
A25: 3/8 (10) | B25: 80 | C25: 0.264 | D25: 0.415 | E25: 0.624 | F25: 1.08 | G25: 1.5 | H25: 1.93 | I25: 2.54 | J25: 5.28 | K25: 6.33 | L25: 7.98 | M25: 9.58
A26: 1/2 (13) | B26: 80 | C26: 0.522 | D26: 0.819 | E26: 1.23 | F26: 2.13 | G26: 2.95 | H26: 3.8 | I26: 5 | J26: 8.79 | K26: 10.5 | L26: 15.7 | M26: 18.9
A27: 3/4 (19) | B27: 80 | C27: 1.18 | D27: 1.85 | E27: 2.78 | F27: 4.79 | G27: 6.65 | H27: 8.56 | I27: 11.3 | J27: 16.2 | K27: 19.5 | L27: 35.5 | M27: 42.6
A28: 1 (25) | B28: 80 | C28: 2.32 | D28: 3.63 | E28: 5.45 | F28: 9.39 | G28: 13 | H28: 16.8 | I28: 22.1 | J28: 27 | K28: 32.4 | L28: 69.5 | M28: 83.4
A29: 1 1/4 (32) | B29: 80 | C29: 5 | D29: 7.81 | E29: 11.7 | F29: 20.1 | G29: 27.9 | H29: 35.9 | I29: 47.2 | J29: 48.2 | K29: 57.8 | L29: 144 | M29: 173
A30: 1 1/2 (38) | B30: 80 | C30: 7.63 | D30: 11.9 | E30: 17.8 | F30: 30.7 | G30: 42.5 | H30: 54.7 | I30: 72 | J30: 66.3 | K30: 79.6 | L30: 199 | M30: 239
A31: 2 (51) | B31: 40 | C31: 17.8 | D31: 27.7 | E31: 41.5 | F31: 71.3 | G31: 98.7 | H31: 127 | I31: 167 | J31: 126 | K31: 151 | L31: 378 | M31: 454
A32: 2 1/2 (64) | B32: 40 | C32: 27.7 | D32: 44.2 | E32: 66.1 | F32: 114 | G32: 157 | H32: 202 | I32: 266 | J32: 180 | K32: 216 | L32: 539 | M32: 647
A33: 3 (76) | B33: 40 | C33: 42.8 | D33: 68.6 | E33: 106 | F33: 191 | G33: 275 | H33: 358 | I33: 470 | J33: 278 | K33: 333 | L33: 833 | M33: 999
A34: 4 (102) | B34: 40 | C34: 73.6 | D34: 118 | E34: 182 | F34: 330 | G34: 473 | H34: 728 | I34: 956 | J34: 478 | K34: 574 | L34: 1430 | M34: 1720
A35: Notes:
A36: 1. Table capacities are in kilowatts of refrigeration. Discharge refrigerant state is determined with compression at 70 percent isentropic efficiency and 14 K superheated refrigerant entering the compressor. Liquid and suction refrigerant states are at saturation.
A37: Dp = pressure drop from line friction, kPa per 30 meters equivalent length.
A38: Dt = change in saturation temperature corresponding to Dp, K per 30 meters equivalent length.
A39: 2. Same as SI R2022 chapter 1 tables.
A40: 3. Same as SI R2022 chapter 1 tables.
A41: 4. Refrigerant thermodynamic and thermophysical properties calculated using NIST RefProp v10.0. Refrigerant flow rates calculated using the Darcy-Weisbach and Colebrook equations.
A42: 5. Table capacities based on 40°C condensing temperature and 0 K subcooling. Multiply capacities by the following correction factors for other condensing temperatures. Correction factors based on a -18°C evaporator temperature, and are suitable in the range of -40°C to 5°C.
D43: Condensing Temperature, °C
D44: 25 | E44: 30 | F44: 35 | G44: 45 | H44: 50 | I44: 55 | J44: 60
B45: Liquid Line | D45: 1.27 | E45: 1.18 | F45: 1.09 | G45: 0.91 | H45: 0.82 | I45: 0.73 | J45: 0.63
B46: Suction Line | D46: =ROUND($E56/$E$59,2) -> 1.19 | E46: =ROUND($E57/$E$59,2) -> 1.13 | F46: =ROUND($E58/$E$59,2) -> 1.06 | G46: =ROUND($E60/$E$59,2) -> 0.93 | H46: =ROUND($E61/$E$59,2) -> 0.87 | I46: =ROUND($E62/$E$59,2) -> 0.8 | J46: =ROUND($E63/$E$59,2) -> 0.72
B47: Discharge Line | D47: 0.85 | E47: 0.91 | F47: 0.96 | G47: 1.03 | H47: 1.06 | I47: 1.07 | J47: 1.08
A48: aSame as SI R2022 chapter 1 tables.
A49: bSame as SI R2022 chapter 1 tables.
A50: cSame as SI R2022 chapter 1 tables.
E53: NRE @ -18°C
D54: Cond | E54: Evap,
D55: Temp, °C | E55: Btu/lb
D56: 25 | E56: =Enthalpy($D$1,"TVAP","C",-18)-Enthalpy($D$1,"TLIQ","C",$D56) -> 160.0187325
D57: 30 | E57: 151.8785738
D58: 35 | E58: 143.5480927
D59: 40 | E59: 134.9973917
D60: 45 | E60: 126.1864754
D61: 50 | E61: 117.060886
D62: 55 | E62: 107.5438609
D63: 60 | E63: 97.52031601

Sheet Table 4
A1: NIST Refrigerant File | D1: propane.fld | I1: =Pressure($D$1,"TVAP","E",105)-Pressure($D$1,"TVAP","E",104) -> 2.559725091 | N1: =Pressure($D$1,"TLIQ","E",105)-Pressure($D$1,"TLIQ","E",104) -> 2.559725091
A3: Table 4 Suction, Discharge, and Liquid Line Capacities for Refrigerant 290 (Single- or High-Stage Applications)
C5: Suction Lines (Dt = 2°F, max velocity 3000 fpm, | H5: Discharge Linesc | L5: Liquid Linesa,b,c
A6: Line Size | C6: corresponding Dp, psi) | H6: (Dt = 1°F, Dp = 2.56 psi, | L6: Velocity = 100 fpm | N6: (Dt = 1°F, Dp = 2.56 psi,
A7: Type L, | C7: =Pressure($D$1,"TVAP","E",C9)-Pressure($D$1,"TVAP","E",C9-2) -> 0.7595651943 | D7: =Pressure($D$1,"TVAP","E",D9)-Pressure($D$1,"TVAP","E",D9-2) -> 1.082201771 | E7: =Pressure($D$1,"TVAP","E",E9)-Pressure($D$1,"TVAP","E",E9-2) -> 1.484050395 | F7: =Pressure($D$1,"TVAP","E",F9)-Pressure($D$1,"TVAP","E",F9-2) -> 1.970758239 | G7: =Pressure($D$1,"TVAP","E",G9)-Pressure($D$1,"TVAP","E",G9-2) -> 2.547112426 | H7: max velocity 3000 fpm) | N7: max velocity 300 fpm)
A8: Copper, | C8: Saturated Suction Temperature, °F
A9: OD, in | C9: -40 | D9: -20 | E9: 0 | F9: 20 | G9: 40 | H9: -40 | I9: 40 | J9: -40 | K9: 40 | L9: -40 | M9: 40 | N9: -40 | O9: 40
A10: 1/4 | C10: 0.0331 | D10: 0.054 | E10: 0.0839 | F10: 0.125 | G10: 0.18 | H10: 0.203 | I10: 0.257 | J10: 0.204 | K10: 0.271 | L10: 0.271 | M10: 0.334 | N10: 0.812 | O10: 1
A11: 5/16 | C11: 0.0683 | D11: 0.111 | E11: 0.172 | F11: 0.256 | G11: 0.367 | H11: 0.414 | I11: 0.526 | J11: 0.417 | K11: 0.554 | L11: 0.463 | M11: 0.571 | N11: 1.39 | O11: 1.71
A12: 3/8 | C12: 0.123 | D12: 0.199 | E12: 0.31 | F12: 0.465 | G12: 0.666 | H12: 0.751 | I12: 0.953 | J12: 0.756 | K12: 1 | L12: 0.726 | M12: 0.895 | N12: 2.18 | O12: 2.68
A13: 1/2 | C13: 0.241 | D13: 0.392 | E13: 0.609 | F13: 0.914 | G13: 1.33 | H13: 1.84 | I13: 2.33 | J13: 1.85 | K13: 2.45 | L13: 1.43 | M13: 1.76 | N13: 4.28 | O13: 5.28
A14: 5/8 | C14: 0.377 | D14: 0.612 | E14: 0.952 | F14: 1.43 | G14: 2.08 | H14: 3.24 | I14: 4.2 | J14: 3.27 | K14: 4.41 | L14: 2.23 | M14: 2.75 | N14: 6.68 | O14: 8.24
A15: 3/4 | C15: 0.563 | D15: 0.914 | E15: 1.42 | F15: 2.13 | G15: 3.11 | H15: 4.84 | I15: 6.27 | J15: 4.89 | K15: 6.85 | L15: 3.33 | M15: 4.1 | N15: 10 | O15: 12.3
A16: 7/8 | C16: 0.783 | D16: 1.27 | E16: 1.97 | F16: 2.96 | G16: 4.32 | H16: 6.73 | I16: 8.71 | J16: 6.79 | K16: 9.52 | L16: 4.62 | M16: 5.7 | N16: 13.9 | O16: 17.1
A17: Notes:
A18: 1. Table capacities are in tons of refrigeration. Discharge refrigerant state is determined by adding 50°F to the temperature resulting from isentropic compression and 25°F superheated refrigerant entering compressor. Liquid and suction refrigerant states are at saturation.
A19: (For comparison, values in red have discharge refrigerant state determined with compression at 70 percent isentropic efficiency and 25°F superheated refrigerant entering the compressor).
A20: Dp = pressure drop from line friction, psi per 20 ft equivalent length.
A21: Dt = change in saturation temperature corresponding to Dp, °F per 20 ft equivalent length.
A22: 2. Same as I-P R2022 chapter 1 tables.
A23: 3. Same as I-P R2022 chapter 1 tables.
A24: 4. Refrigerant thermodynamic and thermophysical properties calculated using NIST RefProp v10.0. Refrigerant flow rates calculated using the Darcy-Weisbach and Colebrook equations.
A25: 5. Table capacities based on 105°F condensing temperature and 0°F subcooling. Multiply capacities by the following correction factors for other condensing temperatures. Correction factors based on a 0°F evaporator temperature, and are suitable in the range of -40°F to 40°F.
D26: Condensing Temperature, °F
D27: 80 | E27: 90 | F27: 100 | G27: 110 | H27: 120 | I27: 130 | J27: 140
B28: Liquid Line | D28: 1.22 | E28: 1.13 | F28: 1.04 | G28: 0.96 | H28: 0.87 | I28: 0.78 | J28: 0.7
B29: Suction Line | D29: =ROUND($E39/$E$42,2) -> 1.16 | E29: =ROUND($E40/$E$42,2) -> 1.1 | F29: =ROUND($E41/$E$42,2) -> 1.03 | G29: =ROUND($E43/$E$42,2) -> 0.97 | H29: =ROUND($E44/$E$42,2) -> 0.9 | I29: =ROUND($E45/$E$42,2) -> 0.83 | J29: =ROUND($E46/$E$42,2) -> 0.76
B30: Discharge Line | D30: 0.85 | E30: 0.91 | F30: 0.97 | G30: 1.03 | H30: 1.08 | I30: 1.12 | J30: 1.14
A31: aSame as I-P R2022 chapter 1 tables.
A32: bSame as I-P R2022 chapter 1 tables.
A33: cSame as I-P R2022 chapter 1 tables.
E36: NRE @ 0°F
D37: Cond | E37: Evap,
D38: Temp, °F | E38: Btu/lb
D39: 80 | E39: =Enthalpy($D$1,"TVAP","E",0)-Enthalpy($D$1,"TLIQ","E",$D39) -> 122.6366399
D40: 90 | E40: 116.0241413
D41: 100 | E41: 109.258276
D42: 105 | E42: 105.8129592
D43: 110 | E43: 102.3230057
D44: 120 | E44: 95.19826254
D45: 130 | E45: 87.8581555
D46: 140 | E46: 80.26801876

Sheet Table 4 SI
A1: NIST Refrigerant File | D1: propane.fld | I1: =(Pressure($D$1,"TVAP","C",40)-Pressure($D$1,"TVAP","C",39.5))*1000 -> 15.7428284 | M1: =(Pressure($D$1,"TLIQ","C",40)-Pressure($D$1,"TLIQ","C",39.5))*1000 -> 15.7428284
A3: Table 4 Suction, Discharge, and Liquid Line Capacities for Refrigerant 290 (Single- or High-Stage Applications)
C5: Suction Lines (Dt = 1 K, max velocity 15 m/s, | H5: Discharge Linesc | J5: Liquid Linesa,b,c
A6: Line Size | C6: corresponding Dp, kPa) | H6: (Dt = 0.5 K, Dp = 15.7 kPa, | J6: Velocity = 0.5 m/s | L6: (Dt = 0.5 K, Dp = 15.7 kPa,
A7: Type L, | C7: =(Pressure($D$1,"TVAP","C",C9)-Pressure($D$1,"TVAP","C",C9-1))*1000 -> 4.722134542 | D7: =(Pressure($D$1,"TVAP","C",D9)-Pressure($D$1,"TVAP","C",D9-1))*1000 -> 6.504608776 | E7: =(Pressure($D$1,"TVAP","C",E9)-Pressure($D$1,"TVAP","C",E9-1))*1000 -> 8.682336173 | F7: =(Pressure($D$1,"TVAP","C",F9)-Pressure($D$1,"TVAP","C",F9-1))*1000 -> 12.74628532 | G7: =(Pressure($D$1,"TVAP","C",G9)-Pressure($D$1,"TVAP","C",G9-1))*1000 -> 16.01888978 | H7: max velocity 15 m/s) | L7: max velocity 1.5 m/s)
A8: Copper, | C8: Saturated Suction Temperature, °C
A9: OD, in (mm) | C9: -40 | D9: -30 | E9: -20 | F9: -5 | G9: 5 | H9: -40 | I9: 5 | J9: -40 | K9: 5 | L9: -40 | M9: 5
A10: 1/4 (6) | C10: 0.124 | D10: 0.193 | E10: 0.288 | F10: 0.492 | G10: 0.68 | H10: 0.751 | I10: 1 | J10: 0.946 | K10: 1.17 | L10: 2.84 | M10: 3.5
A11: 5/16 (8) | C11: 0.255 | D11: 0.396 | E11: 0.59 | F11: 1.01 | G11: 1.39 | H11: 1.53 | I11: 2.04 | J11: 1.62 | K11: 2 | L11: 4.86 | M11: 5.99
A12: 3/8 (10) | C12: 0.428 | D12: 0.663 | E12: 0.991 | F12: 1.72 | G12: 2.4 | H12: 2.78 | I12: 3.7 | J12: 2.54 | K12: 3.13 | L12: 7.61 | M12: 9.39
A13: 1/2 (13) | C13: 0.842 | D13: 1.3 | E13: 1.95 | F13: 3.38 | G13: 4.72 | H13: 6.8 | I13: 9.03 | J13: 4.98 | K13: 6.15 | L13: 14.9 | M13: 18.5
A14: 5/8 (16) | C14: 1.32 | D14: 2.04 | E14: 3.04 | F14: 5.27 | G14: 7.38 | H14: 11.3 | I14: 15.8 | J14: 7.79 | K14: 9.61 | L14: 23.4 | M14: 28.8
A15: 3/4 (19) | C15: 1.96 | D15: 3.04 | E15: 4.55 | F15: 7.87 | G15: 11 | H15: 16.8 | I15: 23.6 | J15: 11.6 | K15: 14.4 | L15: 34.9 | M15: 43.1
A16: 7/8 (22) | C16: 2.73 | D16: 4.22 | E16: 6.32 | F16: 10.9 | G16: 15.3 | H16: 23.4 | I16: 32.8 | J16: 16.2 | K16: 19.9 | L16: 48.5 | M16: 59.8
A17: Notes:
A18: 1. Table capacities are in kilowatts of refrigeration. Discharge refrigerant state is determined with compression at 70 percent isentropic efficiency and 14 K superheated refrigerant entering the compressor. Liquid and suction refrigerant states are at saturation.
A19: Dp = pressure drop from line friction, kPa per 5 meters equivalent length.
A20: Dt = change in saturation temperature corresponding to Dp, K per 5 meters equivalent length.
A21: 2. Same as SI R2022 chapter 1 tables.
A22: 3. Same as SI R2022 chapter 1 tables.
A23: 4. Refrigerant thermodynamic and thermophysical properties calculated using NIST RefProp v10.0. Refrigerant flow rates calculated using the Darcy-Weisbach and Colebrook equations.
A24: 5. Table capacities based on 40°C condensing temperature and 0 K subcooling. Multiply capacities by the following correction factors for other condensing temperatures. Correction factors based on a -18°C evaporator temperature, and are suitable in the range of -40°C to 5°C.
D25: Condensing Temperature, °C
D26: 25 | E26: 30 | F26: 35 | G26: 45 | H26: 50 | I26: 55 | J26: 60
B27: Liquid Line | D27: 1.23 | E27: 1.15 | F27: 1.08 | G27: 0.92 | H27: 0.84 | I27: 0.77 | J27: 0.69
B28: Suction Line | D28: =ROUND($E38/$E$41,2) -> 1.17 | E28: =ROUND($E39/$E$41,2) -> 1.11 | F28: =ROUND($E40/$E$41,2) -> 1.06 | G28: =ROUND($E42/$E$41,2) -> 0.94 | H28: =ROUND($E43/$E$41,2) -> 0.88 | I28: =ROUND($E44/$E$41,2) -> 0.82 | J28: =ROUND($E45/$E$41,2) -> 0.75
B29: Discharge Line | D29: 0.83 | E29: 0.89 | F29: 0.95 | G29: 1.05 | H29: 1.09 | I29: 1.12 | J29: 1.15
A30: aSame as SI R2022 chapter 1 tables.
A31: bSame as SI R2022 chapter 1 tables.
A32: cSame as SI R2022 chapter 1 tables.
E35: NRE @ -18°C
D36: Cond | E36: Evap,
D37: Temp, °C | E37: Btu/lb
D38: 25 | E38: =Enthalpy($D$1,"TVAP","C",-18)-Enthalpy($D$1,"TLIQ","C",$D38) -> 289.3506436
D39: 30 | E39: 275.6230378
D40: 35 | E40: 261.6172145
D41: 40 | E41: 247.3084256
D42: 45 | E42: 232.6667687
D43: 50 | E43: 217.6552891
D44: 55 | E44: 202.2271017
D45: 60 | E45: 186.3208244

Sheet Table 5
A1: NIST Refrigerant File | D1: R449A.mix | I1: =Pressure($D$1,"TVAP","E",0)-Pressure($D$1,"TVAP","E",-1) -> 0.8466246772 | N1: =Pressure($D$1,"TLIQ","E",0)-Pressure($D$1,"TLIQ","E",-1) -> 0.9846931498
A3: Table 5 Suction, Discharge, and Liquid Line Capacities for Refrigerants 448A/449A (Intermediate- or Low-Stage Applications)
C5: Suction Lines (Dt = 2°F, max velocity 3000 fpm, | H5: Discharge Linesc | L5: Liquid Linesa,b,c
A6: Line Size | C6: corresponding Dp, psi) | H6: (Dt = 1°F, Dp = 0.85 psi, | L6: Velocity = 100 fpm | N6: (Dt = 1°F, Dp = 0.98 psi,
A7: Type L, | C7: =Pressure($D$1,"TVAP","E",C9)-Pressure($D$1,"TVAP","E",C9-2) -> 0.2163118298 | D7: =Pressure($D$1,"TVAP","E",D9)-Pressure($D$1,"TVAP","E",D9-2) -> 0.2901332965 | E7: =Pressure($D$1,"TVAP","E",E9)-Pressure($D$1,"TVAP","E",E9-2) -> 0.4919905184 | F7: =Pressure($D$1,"TVAP","E",F9)-Pressure($D$1,"TVAP","E",F9-2) -> 0.7802246756 | G7: =Pressure($D$1,"TVAP","E",G9)-Pressure($D$1,"TVAP","E",G9-2) -> 0.9618182696 | H7: max velocity 3000 fpm) | N7: max velocity 300 fpm)
A8: Copper, | C8: Saturated Suction Temperature, °F
A9: OD, in | C9: -90 | D9: -80 | E9: -60 | F9: -40 | G9: -30 | H9: -90 | I9: -30 | J9: -90 | K9: -30 | L9: -90 | M9: -30 | N9: -90 | O9: -30
A10: 3/8 | C10: --- | D10: --- | E10: --- | F10: --- | G10: --- | H10: --- | I10: 0.115 | J10: --- | K10: 0.121 | L10: 1.65 | M10: 1.83 | N10: 1 | O10: 1.11
A11: 1/2 | C11: --- | D11: --- | E11: --- | F11: 0.156 | G11: 0.204 | H11: 0.243 | I11: 0.287 | J11: 0.241 | K11: 0.3 | L11: 3.24 | M11: 3.59 | N11: 2.51 | O11: 2.78
A12: 5/8 | C12: --- | D12: --- | E12: 0.158 | F12: 0.284 | G12: 0.371 | H12: 0.442 | I12: 0.522 | J12: 0.439 | K12: 0.545 | L12: 5.06 | M12: 5.61 | N12: 4.59 | O12: 5.08
A13: 3/4 | C13: --- | D13: 0.139 | E13: 0.27 | F13: 0.486 | G13: 0.635 | H13: 0.757 | I13: 0.892 | J13: 0.751 | K13: 0.932 | L13: 7.56 | M13: 8.38 | N13: 7.86 | O13: 8.71
A14: 7/8 | C14: 0.149 | D14: 0.216 | E14: 0.421 | F14: 0.755 | G14: 0.985 | H14: 1.17 | I14: 1.38 | J14: 1.17 | K14: 1.44 | L14: 10.5 | M14: 11.6 | N14: 12.2 | O14: 13.5
A15: 1 1/8 | C15: 0.307 | D15: 0.443 | E15: 0.86 | F15: 1.54 | G15: 2.01 | H15: 2.39 | I15: 2.82 | J15: 2.37 | K15: 2.94 | L15: 17.9 | M15: 19.8 | N15: 25 | O15: 27.7
A16: 1 3/8 | C16: 0.541 | D16: 0.78 | E16: 1.51 | F16: 2.69 | G16: 3.51 | H16: 4.19 | I16: 4.93 | J16: 4.15 | K16: 5.14 | L16: 27.3 | M16: 30.2 | N16: 43.8 | O16: 48.5
A17: 1 5/8 | C17: 0.863 | D17: 1.24 | E17: 2.4 | F17: 4.27 | G17: 5.56 | H17: 6.64 | I17: 7.81 | J17: 6.59 | K17: 8.14 | L17: 38.6 | M17: 42.8 | N17: 69.5 | O17: 77
A18: 2 1/8 | C18: 1.73 | D18: 2.46 | E18: 4.68 | F18: 8.3 | G18: 10.8 | H18: 13.8 | I18: 16.2 | J18: 13.7 | K18: 16.9 | L18: 67.2 | M18: 74.4 | N18: 145 | O18: 161
A19: 2 5/8 | C19: 2.67 | D19: 3.79 | E19: 7.21 | F19: 12.8 | G19: 16.7 | H19: 24.5 | I19: 28.8 | J19: 24.3 | K19: 30 | L19: 104 | M19: 115 | N19: 258 | O19: 285
A20: 3 1/8 | C20: 3.81 | D20: 5.41 | E20: 10.3 | F20: 18.3 | G20: 23.8 | H20: 37.3 | I20: 45.4 | J20: 36.8 | K20: 47.9 | L20: 148 | M20: 164 | N20: 412 | O20: 457
A21: 3 5/8 | C21: 5.15 | D21: 7.32 | E21: 13.9 | F21: 24.7 | G21: 32.2 | H21: 50.4 | I21: 61.4 | J21: 49.8 | K21: 65.7 | L21: 200 | M21: 222 | N21: 600 | O21: 665
A22: 4 1/8 | C22: 6.69 | D22: 9.52 | E22: 18.1 | F22: 32.1 | G22: 41.9 | H22: 65.5 | I22: 79.9 | J22: 64.7 | K22: 85.4 | L22: 260 | M22: 288 | N22: 780 | O22: 864
A23: Notes:
A24: 1. Table capacities are in tons of refrigeration. Discharge refrigerant state is determined by adding 50°F to the temperature resulting from isentropic compression and 25°F superheated refrigerant entering compressor. Liquid and suction refrigerant states are at saturation.
A25: (For comparison, values in red have discharge refrigerant state determined with compression at 70 percent isentropic efficiency and 25°F superheated refrigerant entering the compressor).
A26: Dp = pressure drop from line friction, psi per 100 ft equivalent length.
A27: Dt = change in saturation temperature corresponding to Dp, °F per 100 ft equivalent length.
A28: 2. Same as I-P R2022 chapter 1 tables.
A29: 3. Same as I-P R2022 chapter 1 tables.
A30: 4. Refrigerant thermodynamic and thermophysical properties calculated using NIST RefProp v10.0. Refrigerant flow rates calculated using the Darcy-Weisbach and Colebrook equations.
A31: 5. Table capacities based on 0°F condensing temperature and 0°F subcooling. Multiply capacities by the following correction factors for other condensing temperatures. Correction factors based on a -60°F evaporator temperature, and are suitable in the range of -90°F to -30°F.
D32: Condensing Temperature, °F
D33: -30 | E33: -20 | F33: -10 | G33: 0 | H33: 10 | I33: 20 | J33: 30
B34: Liquid Line | D34: 1.16 | E34: 1.11 | F34: 1.05 | G34: 1 | H34: 0.95 | I34: 0.89 | J34: 0.84
B35: Suction Line | D35: =ROUND($E45/$E$48,2) -> 1.11 | E35: =ROUND($E46/$E$48,2) -> 1.08 | F35: =ROUND($E47/$E$48,2) -> 1.04 | G35: =ROUND($E48/$E$48,2) -> 1 | H35: =ROUND($E49/$E$48,2) -> 0.96 | I35: =ROUND($E50/$E$48,2) -> 0.92 | J35: =ROUND($E51/$E$48,2) -> 0.88
B36: Discharge Line | D36: 0.63 | E36: 0.74 | F36: 0.86 | G36: 1 | H36: 1.15 | I36: 1.3 | J36: 1.47
A37: aSame as I-P R2022 chapter 1 tables.
A38: bSame as I-P R2022 chapter 1 tables.
A39: cSame as I-P R2022 chapter 1 tables.
E42: NRE @ -60°F
D43: Cond | E43: Evap,
D44: Temp, °F | E44: Btu/lb
D45: -30 | E45: =Enthalpy($D$1,"TVAP","E",-60)-Enthalpy($D$1,"TLIQ","E",$D45) -> 93.49285469
D46: -20 | E46: 90.32664663
D47: -10 | E47: 87.12852453
D48: 0 | E48: 83.89543897
D49: 10 | E49: 80.62413788
D50: 20 | E50: 77.31108477
D51: 30 | E51: 73.95236609

Sheet Table 5 SI
A1: NIST Refrigerant File | D1: R449A.mix | I1: =(Pressure($D$1,"TVAP","C",-15)-Pressure($D$1,"TVAP","C",-15.5))*1000 -> 5.716817456 | M1: =(Pressure($D$1,"TLIQ","C",-15)-Pressure($D$1,"TLIQ","C",-15.5))*1000 -> 6.611355927
A3: Table 5 Suction, Discharge, and Liquid Line Capacities for Refrigerants 448A/449A (Intermediate- or Low-Stage Applications)
C5: Suction Lines (Dt = 1 K, max velocity 15 m/s, | H5: Discharge Linesc | J5: Liquid Linesa,b,c
A6: Line Size | C6: corresponding Dp, kPa) | H6: (Dt = 0.5 K, Dp = 5.72 kPa, | J6: Velocity = 0.5 m/s | L6: (Dt = 0.5 K, Dp = 6.61 kPa,
A7: Type L, | C7: =(Pressure($D$1,"TVAP","C",C9)-Pressure($D$1,"TVAP","C",C9-1))*1000 -> 1.189851371 | D7: =(Pressure($D$1,"TVAP","C",D9)-Pressure($D$1,"TVAP","C",D9-1))*1000 -> 2.018560835 | E7: =(Pressure($D$1,"TVAP","C",E9)-Pressure($D$1,"TVAP","C",E9-1))*1000 -> 3.213764028 | F7: =(Pressure($D$1,"TVAP","C",F9)-Pressure($D$1,"TVAP","C",F9-1))*1000 -> 4.851923887 | G7: =(Pressure($D$1,"TVAP","C",G9)-Pressure($D$1,"TVAP","C",G9-1))*1000 -> 7.005752902 | H7: max velocity 15 m/s) | L7: max velocity 1.5 m/s)
A8: Copper, | C8: Saturated Suction Temperature, °C
A9: OD, in (mm) | C9: -70 | D9: -60 | E9: -50 | F9: -40 | G9: -30 | H9: -70 | I9: -30 | J9: -70 | K9: -30 | L9: -70 | M9: -30
A10: 3/8 (10) | C10: --- | D10: --- | E10: 0.12 | F10: 0.205 | G10: 0.331 | H10: 0.342 | I10: 0.445 | J10: 5.51 | K10: 6.24 | L10: 3.42 | M10: 3.87
A11: 1/2 (13) | C11: --- | D11: 0.166 | E11: 0.301 | F11: 0.512 | G11: 0.823 | H11: 0.851 | I11: 1.11 | J11: 10.8 | K11: 12.3 | L11: 8.54 | M11: 9.67
A12: 5/8 (16) | C12: 0.156 | D12: 0.305 | E12: 0.551 | F12: 0.933 | G12: 1.5 | H12: 1.55 | I12: 2.01 | J12: 16.9 | K12: 19.2 | L12: 15.6 | M12: 17.7
A13: 3/4 (19) | C13: 0.269 | D13: 0.524 | E13: 0.945 | F13: 1.6 | G13: 2.56 | H13: 2.65 | I13: 3.44 | J13: 25.3 | K13: 28.6 | L13: 26.7 | M13: 30.3
A14: 7/8 (22) | C14: 0.42 | D14: 0.817 | E14: 1.47 | F14: 2.48 | G14: 3.97 | H14: 4.12 | I14: 5.33 | J14: 35.1 | K14: 39.8 | L14: 41.5 | M14: 47.1
A15: 1 1/8 (29) | C15: 0.864 | D15: 1.67 | E15: 3.01 | F15: 5.06 | G15: 8.07 | H15: 8.39 | I15: 10.8 | J15: 59.8 | K15: 67.8 | L15: 84.8 | M15: 96.1
A16: 1 3/8 (35) | C16: 1.52 | D16: 2.94 | E16: 5.27 | F16: 8.86 | G16: 14.1 | H16: 14.7 | I16: 18.9 | J16: 91.1 | K16: 103 | L16: 149 | M16: 168
A17: 1 5/8 (41) | C17: 2.43 | D17: 4.69 | E17: 8.38 | F17: 14.1 | G17: 22.4 | H17: 23.3 | I17: 30 | J17: 129 | K17: 146 | L17: 236 | M17: 268
A18: 2 1/8 (54) | C18: 5.06 | D18: 9.55 | E18: 16.9 | F18: 28.2 | G18: 45 | H18: 48.5 | I18: 62.3 | J18: 224 | K18: 254 | L18: 493 | M18: 558
A19: 2 5/8 (67) | C19: 7.8 | D19: 14.7 | E19: 26 | F19: 43.5 | G19: 69.4 | H19: 85.9 | I19: 110 | J19: 346 | K19: 392 | L19: 874 | M19: 991
A20: 3 1/8 (79) | C20: 11.1 | D20: 21 | E20: 37.1 | F20: 62.1 | G20: 99.1 | H20: 134 | I20: 176 | J20: 494 | K20: 560 | L20: 1400 | M20: 1590
A21: 3 5/8 (92) | C21: 15.1 | D21: 28.4 | E21: 50.2 | F21: 83.9 | G21: 134 | H21: 181 | I21: 252 | J21: 668 | K21: 757 | L21: 2000 | M21: 2270
A22: 4 1/8 (105) | C22: 19.6 | D22: 36.9 | E22: 65.3 | F22: 109 | G22: 174 | H22: 235 | I22: 327 | J22: 868 | K22: 984 | L22: 2610 | M22: 2950
A23: Notes:
A24: 1. Table capacities are in kilowatts of refrigeration. Discharge refrigerant state is determined with compression at 70 percent isentropic efficiency and 14 K superheated refrigerant entering the compressor. Liquid and suction refrigerant states are at saturation.
A25: Dp = pressure drop from line friction, kPa per 30 meters equivalent length.
A26: Dt = change in saturation temperature corresponding to Dp, K per 30 meters equivalent length.
A27: 2. Same as SI R2022 chapter 1 tables.
A28: 3. Same as SI R2022 chapter 1 tables.
A29: 4. Refrigerant thermodynamic and thermophysical properties calculated using NIST RefProp v10.0. Refrigerant flow rates calculated using the Darcy-Weisbach and Colebrook equations.
A30: 5. Table capacities based on -15°C condensing temperature and 0 K subcooling. Multiply capacities by the following correction factors for other condensing temperatures. Correction factors based on a -50°C evaporator temperature, and are suitable in the range of -70°C to -30°C.
D31: Condensing Temperature, °C
D32: -30 | E32: -25 | F32: -20 | G32: -15 | H32: -10 | I32: -5 | J32: 0
B33: Liquid Line | D33: 1.15 | E33: 1.1 | F33: 1.05 | G33: 1 | H33: 0.95 | I33: 0.9 | J33: 0.85
B34: Suction Line | D34: =ROUND($E44/$E$47,2) -> 1.11 | E34: =ROUND($E45/$E$47,2) -> 1.07 | F34: =ROUND($E46/$E$47,2) -> 1.04 | G34: =ROUND($E47/$E$47,2) -> 1 | H34: =ROUND($E48/$E$47,2) -> 0.96 | I34: =ROUND($E49/$E$47,2) -> 0.93 | J34: =ROUND($E50/$E$47,2) -> 0.89
B35: Discharge Line | D35: 0.66 | E35: 0.77 | F35: 0.88 | G35: 1 | H35: 1.13 | I35: 1.26 | J35: 1.4
A36: aSame as SI R2022 chapter 1 tables.
A37: bSame as SI R2022 chapter 1 tables.
A38: cSame as SI R2022 chapter 1 tables.
E41: NRE @ -50°C
D42: Cond | E42: Evap,
D43: Temp, °C | E43: Btu/lb
D44: -30 | E44: =Enthalpy($D$1,"TVAP","C",-50)-Enthalpy($D$1,"TLIQ","C",$D44) -> 212.1044046
D45: -25 | E45: 205.431259
D46: -20 | E46: 198.6940454
D47: -15 | E47: 191.8873915
D48: -10 | E48: 185.0055432
D49: -5 | E49: 178.042245
D50: 0 | E50: 170.9906051

Sheet Table 6
A1: NIST Refrigerant File | D1: R450A.mix | I1: =Pressure($D$1,"TVAP","E",105)-Pressure($D$1,"TVAP","E",104) -> 1.938435468 | N1: =Pressure($D$1,"TLIQ","E",105)-Pressure($D$1,"TLIQ","E",104) -> 1.960543258
A3: Table 6 Suction, Discharge, and Liquid Line Capacities for Refrigerant 450A (Single- or High-Stage Applications)
C5: Suction Lines (Dt = 2°F, max velocity 3000 fpm, | H5: Discharge Linesc | L5: Liquid Linesa,b,c
A6: Line Size | C6: corresponding Dp, psi) | H6: (Dt = 1°F, Dp = 1.94 psi, | L6: Velocity = 100 fpm | N6: (Dt = 1°F, Dp = 1.96 psi,
A7: Type L, | C7: =Pressure($D$1,"TVAP","E",C9)-Pressure($D$1,"TVAP","E",C9-2) -> 0.8476432214 | D7: =Pressure($D$1,"TVAP","E",D9)-Pressure($D$1,"TVAP","E",D9-2) -> 1.016376675 | E7: =Pressure($D$1,"TVAP","E",E9)-Pressure($D$1,"TVAP","E",E9-2) -> 1.206794584 | F7: =Pressure($D$1,"TVAP","E",F9)-Pressure($D$1,"TVAP","E",F9-2) -> 1.420049294 | G7: =Pressure($D$1,"TVAP","E",G9)-Pressure($D$1,"TVAP","E",G9-2) -> 1.657235808 | H7: max velocity 3000 fpm) | N7: max velocity 300 fpm)
A8: Copper, | C8: Saturated Suction Temperature, °F
A9: OD, in | C9: 0 | D9: 10 | E9: 20 | F9: 30 | G9: 40 | H9: 0 | I9: 40 | J9: 0 | K9: 40 | L9: 0 | M9: 40 | N9: 0 | O9: 40
A10: 3/8 | C10: --- | D10: --- | E10: --- | F10: --- | G10: 0.121 | H10: 0.189 | I10: 0.213 | J10: 0.195 | K10: 0.224 | L10: 0.956 | M10: 1.07 | N10: 0.957 | O10: 1.07
A11: 1/2 | C11: 0.119 | D11: 0.152 | E11: 0.193 | F11: 0.242 | G11: 0.3 | H11: 0.467 | I11: 0.526 | J11: 0.48 | K11: 0.553 | L11: 1.88 | M11: 2.1 | N11: 2.38 | O11: 2.66
A12: 5/8 | C12: 0.216 | D12: 0.277 | E12: 0.351 | F12: 0.439 | G12: 0.545 | H12: 0.845 | I12: 0.952 | J12: 0.87 | K12: 1 | L12: 2.94 | M12: 3.29 | N12: 4.32 | O12: 4.84
A13: 3/4 | C13: 0.369 | D13: 0.473 | E13: 0.599 | F13: 0.75 | G13: 0.929 | H13: 1.44 | I13: 1.62 | J13: 1.48 | K13: 1.71 | L13: 4.39 | M13: 4.91 | N13: 7.38 | O13: 8.27
A14: 7/8 | C14: 0.573 | D14: 0.734 | E14: 0.928 | F14: 1.16 | G14: 1.44 | H14: 2.23 | I14: 2.51 | J14: 2.29 | K14: 2.64 | L14: 6.09 | M14: 6.82 | N14: 11.4 | O14: 12.8
A15: 1 1/8 | C15: 1.17 | D15: 1.49 | E15: 1.89 | F15: 2.36 | G15: 2.92 | H15: 4.51 | I15: 5.08 | J15: 4.64 | K15: 5.34 | L15: 10.4 | M15: 11.6 | N15: 23.3 | O15: 26.1
A16: 1 3/8 | C16: 2.04 | D16: 2.61 | E16: 3.29 | F16: 4.11 | G16: 5.09 | H16: 7.86 | I16: 8.85 | J16: 8.08 | K16: 9.3 | L16: 15.8 | M16: 17.7 | N16: 40.7 | O16: 45.6
A17: 1 5/8 | C17: 3.23 | D17: 4.13 | E17: 5.22 | F17: 6.51 | G17: 8.05 | H17: 12.4 | I17: 14 | J17: 12.8 | K17: 14.7 | L17: 22.4 | M17: 25.1 | N17: 64.4 | O17: 72.2
A18: 2 1/8 | C18: 6.73 | D18: 8.59 | E18: 10.8 | F18: 13.5 | G18: 16.7 | H18: 25.7 | I18: 29 | J18: 26.5 | K18: 30.4 | L18: 39 | M18: 43.6 | N18: 117 | O18: 131
A19: 2 5/8 | C19: 10.9 | D19: 14 | E19: 17.7 | F19: 22.3 | G19: 27.7 | H19: 45.4 | I19: 51.2 | J19: 46.7 | K19: 53.7 | L19: 60.1 | M19: 67.3 | N19: 180 | O19: 202
A20: 3 1/8 | C20: 15.6 | D20: 20 | E20: 25.3 | F20: 31.8 | G20: 39.5 | H20: 72.4 | I20: 81.6 | J20: 74.4 | K20: 85.5 | L20: 85.7 | M20: 96 | N20: 257 | O20: 288
A21: 3 5/8 | C21: 21.1 | D21: 27 | E21: 34.2 | F21: 43 | G21: 53.5 | H21: 108 | I21: 121 | J21: 111 | K21: 127 | L21: 116 | M21: 130 | N21: 348 | O21: 390
A22: 4 1/8 | C22: 27.4 | D22: 35.1 | E22: 44.5 | F22: 55.9 | G22: 69.5 | H22: 152 | I22: 171 | J22: 156 | K22: 179 | L22: 151 | M22: 169 | N22: 452 | O22: 507
A23: Steel
A24: IPS | B24: SCH
A25: 3/8 | B25: 80 | C25: --- | D25: 0.117 | E25: 0.146 | F25: 0.181 | G25: 0.222 | H25: 0.339 | I25: 0.381 | J25: 0.347 | K25: 0.398 | L25: 1.77 | M25: 1.98 | N25: 1.81 | O25: 2.03
A26: 1/2 | B26: 80 | C26: 0.182 | D26: 0.23 | E26: 0.288 | F26: 0.357 | G26: 0.437 | H26: 0.667 | I26: 0.751 | J26: 0.684 | K26: 0.784 | L26: 2.95 | M26: 3.3 | N26: 3.59 | O26: 4.02
A27: 3/4 | B27: 80 | C27: 0.412 | D27: 0.521 | E27: 0.651 | F27: 0.806 | G27: 0.987 | H27: 1.5 | I27: 1.69 | J27: 1.54 | K27: 1.77 | L27: 5.44 | M27: 6.1 | N27: 8.1 | O27: 9.07
A28: 1 | B28: 80 | C28: 0.809 | D28: 1.02 | E28: 1.28 | F28: 1.58 | G28: 1.93 | H28: 2.95 | I28: 3.32 | J28: 3.02 | K28: 3.46 | L28: 9.05 | M28: 10.1 | N28: 15.9 | O28: 17.8
A29: 1 1/4 | B29: 80 | C29: 1.74 | D29: 2.2 | E29: 2.74 | F29: 3.39 | G29: 4.15 | H29: 6.32 | I29: 7.11 | J29: 6.47 | K29: 7.42 | L29: 16.1 | M29: 18.1 | N29: 34.2 | O29: 38.3
A30: 1 1/2 | B30: 80 | C30: 2.65 | D30: 3.35 | E30: 4.19 | F30: 5.17 | G30: 6.33 | H30: 9.63 | I30: 10.8 | J30: 9.87 | K30: 11.3 | L30: 22.2 | M30: 24.9 | N30: 52.1 | O30: 58.4
A31: 2 | B31: 40 | C31: 6.18 | D31: 7.8 | E31: 9.73 | F31: 12 | G31: 14.7 | H31: 22.4 | I31: 25.2 | J31: 22.9 | K31: 26.3 | L31: 42.2 | M31: 47.3 | N31: 121 | O31: 136
A32: 2 1/2 | B32: 40 | C32: 9.86 | D32: 12.4 | E32: 15.5 | F32: 19.2 | G32: 23.4 | H32: 35.6 | I32: 40.1 | J32: 36.5 | K32: 41.8 | L32: 60.3 | M32: 67.5 | N32: 181 | O32: 203
A33: 3 | B33: 40 | C33: 16.9 | D33: 21.7 | E33: 27.4 | F33: 33.9 | G33: 41.4 | H33: 63 | I33: 70.9 | J33: 64.5 | K33: 73.9 | L33: 93.1 | M33: 104 | N33: 279 | O33: 313
A34: 4 | B34: 40 | C34: 29.1 | D34: 37.3 | E34: 47.3 | F34: 59.4 | G34: 73.9 | H34: 128 | I34: 144 | J34: 131 | K34: 150 | L34: 160 | M34: 179 | N34: 481 | O34: 538
A35: Notes:
A36: 1. Table capacities are in tons of refrigeration. Discharge refrigerant state is determined by adding 50°F to the temperature resulting from isentropic compression and 25°F superheated refrigerant entering compressor. Liquid and suction refrigerant states are at saturation.
A37: (For comparison, values in red have discharge refrigerant state determined with compression at 70 percent isentropic efficiency and 25°F superheated refrigerant entering the compressor).
A38: Dp = pressure drop from line friction, psi per 100 ft equivalent length.
A39: Dt = change in saturation temperature corresponding to Dp, °F per 100 ft equivalent length.
A40: 2. Same as I-P R2022 chapter 1 tables.
A41: 3. Same as I-P R2022 chapter 1 tables.
A42: 4. Refrigerant thermodynamic and thermophysical properties calculated using NIST RefProp v10.0. Refrigerant flow rates calculated using the Darcy-Weisbach and Colebrook equations.
A43: 5. Table capacities based on 105°F condensing temperature and 0°F subcooling. Multiply capacities by the following correction factors for other condensing temperatures. Correction factors based on a 20°F evaporator temperature, and are suitable in the range of 0°F to 40°F.
D44: Condensing Temperature, °F
D45: 80 | E45: 90 | F45: 100 | G45: 110 | H45: 120 | I45: 130 | J45: 140
B46: Liquid Line | D46: 1.21 | E46: 1.13 | F46: 1.04 | G46: 0.96 | H46: 0.88 | I46: 0.79 | J46: 0.71
B47: Suction Line | D47: =ROUND($E57/$E$60,2) -> 1.16 | E47: =ROUND($E58/$E$60,2) -> 1.09 | F47: =ROUND($E59/$E$60,2) -> 1.03 | G47: =ROUND($E61/$E$60,2) -> 0.97 | H47: =ROUND($E62/$E$60,2) -> 0.9 | I47: =ROUND($E63/$E$60,2) -> 0.84 | J47: =ROUND($E64/$E$60,2) -> 0.77
B48: Discharge Line | D48: 0.8 | E48: 0.88 | F48: 0.96 | G48: 1.04 | H48: 1.12 | I48: 1.19 | J48: 1.25
A49: aSame as I-P R2022 chapter 1 tables.
A50: bSame as I-P R2022 chapter 1 tables.
A51: cSame as I-P R2022 chapter 1 tables.
E54: NRE @ 20°F
D55: Cond | E55: Evap,
D56: Temp, °F | E56: Btu/lb
D57: 80 | E57: =Enthalpy($D$1,"TVAP","E",20)-Enthalpy($D$1,"TLIQ","E",$D57) -> 63.6610544
D58: 90 | E58: 60.26427591
D59: 100 | E59: 56.81370839
D60: 105 | E60: 55.06650187
D61: 110 | E61: 53.30361474
D62: 120 | E62: 49.727095
D63: 130 | E63: 46.07562697
D64: 140 | E64: 42.33835812

Sheet Table 6 SI
A1: NIST Refrigerant File | D1: R450A.mix | I1: =(Pressure($D$1,"TVAP","C",40)-Pressure($D$1,"TVAP","C",39.5))*1000 -> 11.90039327 | M1: =(Pressure($D$1,"TLIQ","C",40)-Pressure($D$1,"TLIQ","C",39.5))*1000 -> 12.03734998
A3: Table 6 Suction, Discharge, and Liquid Line Capacities for Refrigerant 450A (Single- or High-Stage Applications)
C5: Suction Lines (Dt = 1 K, max velocity 15 m/s, | H5: Discharge Linesc | J5: Liquid Linesa,b,c
A6: Line Size | C6: corresponding Dp, kPa) | H6: (Dt = 0.5 K, Dp = 11.9 kPa, | J6: Velocity = 0.5 m/s | L6: (Dt = 0.5 K, Dp = 12.0 kPa,
A7: Type L, | C7: =(Pressure($D$1,"TVAP","C",C9)-Pressure($D$1,"TVAP","C",C9-1))*1000 -> 5.777451316 | D7: =(Pressure($D$1,"TVAP","C",D9)-Pressure($D$1,"TVAP","C",D9-1))*1000 -> 6.774616839 | E7: =(Pressure($D$1,"TVAP","C",E9)-Pressure($D$1,"TVAP","C",E9-1))*1000 -> 7.883254636 | F7: =(Pressure($D$1,"TVAP","C",F9)-Pressure($D$1,"TVAP","C",F9-1))*1000 -> 9.108296826 | G7: =(Pressure($D$1,"TVAP","C",G9)-Pressure($D$1,"TVAP","C",G9-1))*1000 -> 10.45481467 | H7: max velocity 15 m/s) | L7: max velocity 1.5 m/s)
A8: Copper, | C8: Saturated Suction Temperature, °C
A9: OD, in (mm) | C9: -15 | D9: -10 | E9: -5 | F9: 0 | G9: 5 | H9: -15 | I9: 5 | J9: -15 | K9: 5 | L9: -15 | M9: 5
A10: 3/8 (10) | C10: 0.182 | D10: 0.228 | E10: 0.281 | F10: 0.344 | G10: 0.418 | H10: 0.66 | I10: 0.748 | J10: 3.39 | K10: 3.75 | L10: 3.25 | M10: 3.6
A11: 1/2 (13) | C11: 0.454 | D11: 0.565 | E11: 0.697 | F11: 0.852 | G11: 1.03 | H11: 1.63 | I11: 1.84 | J11: 6.66 | K11: 7.36 | L11: 8.08 | M11: 8.93
A12: 5/8 (16) | C12: 0.826 | D12: 1.03 | E12: 1.27 | F12: 1.55 | G12: 1.87 | H12: 2.95 | I12: 3.34 | J12: 10.4 | K12: 11.5 | L12: 14.7 | M12: 16.2
A13: 3/4 (19) | C13: 1.41 | D13: 1.76 | E13: 2.16 | F13: 2.64 | G13: 3.2 | H13: 5.03 | I13: 5.69 | J13: 15.5 | K13: 17.2 | L13: 25.1 | M13: 27.8
A14: 7/8 (22) | C14: 2.19 | D14: 2.72 | E14: 3.35 | F14: 4.09 | G14: 4.95 | H14: 7.77 | I14: 8.8 | J14: 21.6 | K14: 23.9 | L14: 38.9 | M14: 43
A15: 1 1/8 (29) | C15: 4.46 | D15: 5.54 | E15: 6.81 | F15: 8.3 | G15: 10 | H15: 15.7 | I15: 17.8 | J15: 36.8 | K15: 40.7 | L15: 79.2 | M15: 87.6
A16: 1 3/8 (35) | C16: 7.8 | D16: 9.68 | E16: 11.9 | F16: 14.5 | G16: 17.5 | H16: 27.4 | I16: 31 | J16: 56.1 | K16: 62 | L16: 138 | M16: 153
A17: 1 5/8 (41) | C17: 12.4 | D17: 15.3 | E17: 18.8 | F17: 22.9 | G17: 27.7 | H17: 43.4 | I17: 49 | J17: 79.4 | K17: 87.7 | L17: 219 | M17: 243
A18: 2 1/8 (54) | C18: 25.7 | D18: 31.9 | E18: 39.1 | F18: 47.6 | G18: 57.5 | H18: 89.8 | I18: 102 | J18: 138 | K18: 153 | L18: 414 | M18: 458
A19: 2 5/8 (67) | C19: 43.1 | D19: 53.6 | E19: 66.2 | F19: 81.1 | G19: 98.6 | H19: 159 | I19: 179 | J19: 213 | K19: 235 | L19: 639 | M19: 706
A20: 3 1/8 (79) | C20: 61.5 | D20: 76.5 | E20: 94.5 | F20: 116 | G20: 141 | H20: 253 | I20: 286 | J20: 304 | K20: 336 | L20: 912 | M20: 1010
A21: 3 5/8 (92) | C21: 83.2 | D21: 104 | E21: 128 | F21: 156 | G21: 190 | H21: 375 | I21: 424 | J21: 411 | K21: 454 | L21: 1230 | M21: 1360
A22: 4 1/8 (105) | C22: 108 | D22: 135 | E22: 166 | F22: 203 | G22: 247 | H22: 529 | I22: 598 | J22: 534 | K22: 591 | L22: 1600 | M22: 1770
A23: Steel
A24: IPS (mm) | B24: SCH
A25: 3/8 (10) | B25: 80 | C25: 0.351 | D25: 0.432 | E25: 0.527 | F25: 0.638 | G25: 0.765 | H25: 1.18 | I25: 1.33 | J25: 6.27 | K25: 6.93 | L25: 6.2 | M25: 6.85
A26: 1/2 (13) | B26: 80 | C26: 0.694 | D26: 0.854 | E26: 1.04 | F26: 1.26 | G26: 1.51 | H26: 2.33 | I26: 2.63 | J26: 10.4 | K26: 11.5 | L26: 12.2 | M26: 13.5
A27: 3/4 (19) | B27: 80 | C27: 1.57 | D27: 1.93 | E27: 2.35 | F27: 2.84 | G27: 3.4 | H27: 5.24 | I27: 5.92 | J27: 19.3 | K27: 21.3 | L27: 27.7 | M27: 30.6
A28: 1 (25) | B28: 80 | C28: 3.08 | D28: 3.79 | E28: 4.61 | F28: 5.57 | G28: 6.67 | H28: 10.3 | I28: 11.6 | J28: 32.1 | K28: 35.5 | L28: 54.3 | M28: 60.1
A29: 1 1/4 (32) | B29: 80 | C29: 6.63 | D29: 8.14 | E29: 9.9 | F29: 12 | G29: 14.3 | H29: 22 | I29: 24.8 | J29: 57.2 | K29: 63.3 | L29: 117 | M29: 129
A30: 1 1/2 (38) | B30: 80 | C30: 10.1 | D30: 12.4 | E30: 15.1 | F30: 18.2 | G30: 21.8 | H30: 33.6 | I30: 37.9 | J30: 78.9 | K30: 87.2 | L30: 178 | M30: 197
A31: 2 (51) | B31: 40 | C31: 23.5 | D31: 28.9 | E31: 35.1 | F31: 42.4 | G31: 50.7 | H31: 78 | I31: 87.9 | J31: 150 | K31: 165 | L31: 414 | M31: 458
A32: 2 1/2 (64) | B32: 40 | C32: 37.5 | D32: 46.1 | E32: 56 | F32: 67.6 | G32: 80.9 | H32: 124 | I32: 140 | J32: 214 | K32: 236 | L32: 641 | M32: 708
A33: 3 (76) | B33: 40 | C33: 66.4 | D33: 81.4 | E33: 99 | F33: 119 | G33: 143 | H33: 220 | I33: 248 | J33: 330 | K33: 365 | L33: 990 | M33: 1090
A34: 4 (102) | B34: 40 | C34: 115 | D34: 143 | E34: 177 | F34: 216 | G34: 263 | H34: 447 | I34: 504 | J34: 568 | K34: 628 | L34: 1700 | M34: 1880
A35: Notes:
A36: 1. Table capacities are in kilowatts of refrigeration. Discharge refrigerant state is determined with compression at 70 percent isentropic efficiency and 14 K superheated refrigerant entering the compressor. Liquid and suction refrigerant states are at saturation.
A37: Dp = pressure drop from line friction, kPa per 30 meters equivalent length.
A38: Dt = change in saturation temperature corresponding to Dp, K per 30 meters equivalent length.
A39: 2. Same as SI R2022 chapter 1 tables.
A40: 3. Same as SI R2022 chapter 1 tables.
A41: 4. Refrigerant thermodynamic and thermophysical properties calculated using NIST RefProp v10.0. Refrigerant flow rates calculated using the Darcy-Weisbach and Colebrook equations.
A42: 5. Table capacities based on 40°C condensing temperature and 0 K subcooling. Multiply capacities by the following correction factors for other condensing temperatures. Correction factors based on a -5°C evaporator temperature, and are suitable in the range of -15°C to 5°C.
D43: Condensing Temperature, °C
D44: 25 | E44: 30 | F44: 35 | G44: 45 | H44: 50 | I44: 55 | J44: 60
B45: Liquid Line | D45: 1.22 | E45: 1.15 | F45: 1.07 | G45: 0.93 | H45: 0.85 | I45: 0.78 | J45: 0.71
B46: Suction Line | D46: =ROUND($E56/$E$59,2) -> 1.17 | E46: =ROUND($E57/$E$59,2) -> 1.11 | F46: =ROUND($E58/$E$59,2) -> 1.06 | G46: =ROUND($E60/$E$59,2) -> 0.94 | H46: =ROUND($E61/$E$59,2) -> 0.89 | I46: =ROUND($E62/$E$59,2) -> 0.83 | J46: =ROUND($E63/$E$59,2) -> 0.77
B47: Discharge Line | D47: 0.79 | E47: 0.87 | F47: 0.93 | G47: 1.06 | H47: 1.12 | I47: 1.17 | J47: 1.21
A48: aSame as SI R2022 chapter 1 tables.
A49: bSame as SI R2022 chapter 1 tables.
A50: cSame as SI R2022 chapter 1 tables.
E53: NRE @ -5°C
D54: Cond | E54: Evap,
D55: Temp, °C | E55: Btu/lb
D56: 25 | E56: =Enthalpy($D$1,"TVAP","C",-5)-Enthalpy($D$1,"TLIQ","C",$D56) -> 151.4086055
D57: 30 | E57: 144.339517
D58: 35 | E58: 137.1730203
D59: 40 | E59: 129.9001105
D60: 45 | E60: 122.5102705
D61: 50 | E61: 114.9909727
D62: 55 | E62: 107.3269542
D63: 60 | E63: 99.49913808

Sheet Table 7
A1: NIST Refrigerant File | D1: R449A.mix | I1: =Pressure($D$1,"TVAP","E",105)-Pressure($D$1,"TVAP","E",104) -> 3.44428543 | N1: =Pressure($D$1,"TLIQ","E",105)-Pressure($D$1,"TLIQ","E",104) -> 3.612026938
A3: Table 7 Suction, Discharge, and Liquid Line Capacities for Refrigerants 448A/449A (Single- or High-Stage Applications)
C5: Suction Lines (Dt = 2°F, max velocity 3000 fpm, | H5: Discharge Linesc | L5: Liquid Linesa,b,c
A6: Line Size | C6: corresponding Dp, psi) | H6: (Dt = 1°F, Dp = 3.44 psi, | L6: Velocity = 100 fpm | N6: (Dt = 1°F, Dp = 3.61 psi,
A7: Type L, | C7: =Pressure($D$1,"TVAP","E",C9)-Pressure($D$1,"TVAP","E",C9-2) -> 0.7802246756 | D7: =Pressure($D$1,"TVAP","E",D9)-Pressure($D$1,"TVAP","E",D9-2) -> 1.170936702 | E7: =Pressure($D$1,"TVAP","E",E9)-Pressure($D$1,"TVAP","E",E9-2) -> 1.678965877 | F7: =Pressure($D$1,"TVAP","E",F9)-Pressure($D$1,"TVAP","E",F9-2) -> 2.318098332 | G7: =Pressure($D$1,"TVAP","E",G9)-Pressure($D$1,"TVAP","E",G9-2) -> 3.101842047 | H7: max velocity 3000 fpm) | N7: max velocity 300 fpm)
A8: Copper, | C8: Saturated Suction Temperature, °F
A9: OD, in | C9: -40 | D9: -20 | E9: 0 | F9: 20 | G9: 40 | H9: -40 | I9: 40 | J9: -40 | K9: 40 | L9: -40 | M9: 40 | N9: -40 | O9: 40
A10: 3/8 | C10: 0.0357 | D10: 0.0619 | E10: 0.101 | F10: 0.158 | G10: 0.236 | H10: 0.317 | I10: 0.401 | J10: 0.316 | K10: 0.423 | L10: 0.834 | M10: 1.01 | N10: 1.27 | O10: 1.53
A11: 1/2 | C11: 0.089 | D11: 0.154 | E11: 0.25 | F11: 0.389 | G11: 0.58 | H11: 0.78 | I11: 0.986 | J11: 0.777 | K11: 1.04 | L11: 1.64 | M11: 1.98 | N11: 3.13 | O11: 3.78
A12: 5/8 | C12: 0.162 | D12: 0.28 | E12: 0.455 | F12: 0.704 | G12: 1.05 | H12: 1.41 | I12: 1.78 | J12: 1.4 | K12: 1.87 | L12: 2.56 | M12: 3.09 | N12: 5.67 | O12: 6.85
A13: 3/4 | C13: 0.278 | D13: 0.478 | E13: 0.776 | F13: 1.2 | G13: 1.78 | H13: 2.4 | I13: 3.03 | J13: 2.39 | K13: 3.18 | L13: 3.82 | M13: 4.61 | N13: 9.67 | O13: 11.7
A14: 7/8 | C14: 0.431 | D14: 0.741 | E14: 1.2 | F14: 1.86 | G14: 2.76 | H14: 3.7 | I14: 4.68 | J14: 3.69 | K14: 4.91 | L14: 5.31 | M14: 6.41 | N14: 15 | O14: 18.1
A15: 1 1/8 | C15: 0.879 | D15: 1.51 | E15: 2.44 | F15: 3.76 | G15: 5.57 | H15: 7.48 | I15: 9.44 | J15: 7.45 | K15: 9.92 | L15: 9.05 | M15: 10.9 | N15: 27.2 | O15: 32.8
A16: 1 3/8 | C16: 1.54 | D16: 2.63 | E16: 4.25 | F16: 6.55 | G16: 9.7 | H16: 13 | I16: 16.4 | J16: 13 | K16: 17.2 | L16: 13.8 | M16: 16.6 | N16: 41.4 | O16: 49.9
A17: 1 5/8 | C17: 2.44 | D17: 4.17 | E17: 6.73 | F17: 10.4 | G17: 15.3 | H17: 20.5 | I17: 25.9 | J17: 20.5 | K17: 27.2 | L17: 19.5 | M17: 23.6 | N17: 58.6 | O17: 70.7
A18: 2 1/8 | C18: 4.74 | D18: 8.13 | E18: 13.3 | F18: 20.8 | G18: 31.4 | H18: 42.5 | I18: 53.5 | J18: 42.3 | K18: 56.2 | L18: 34 | M18: 41 | N18: 102 | O18: 123
A19: 2 5/8 | C19: 7.32 | D19: 12.5 | E19: 20.5 | F19: 32 | G19: 48.4 | H19: 74.9 | I19: 94.4 | J19: 74.6 | K19: 99 | L19: 52.4 | M19: 63.2 | N19: 157 | O19: 190
A20: 3 1/8 | C20: 10.4 | D20: 17.9 | E20: 29.2 | F20: 45.7 | G20: 69.1 | H20: 119 | I20: 150 | J20: 119 | K20: 158 | L20: 74.7 | M20: 90.2 | N20: 224 | O20: 271
A21: 3 5/8 | C21: 14.1 | D21: 24.2 | E21: 39.5 | F21: 61.8 | G21: 93.5 | H21: 172 | I21: 223 | J21: 171 | K21: 234 | L21: 101 | M21: 122 | N21: 303 | O21: 366
A22: 4 1/8 | C22: 18.4 | D22: 31.5 | E22: 51.3 | F22: 80.4 | G22: 122 | H22: 224 | I22: 292 | J22: 222 | K22: 318 | L22: 131 | M22: 159 | N22: 394 | O22: 476
A23: Steel
A24: IPS | B24: SCH
A25: 3/8 | B25: 80 | C25: 0.0701 | D25: 0.117 | E25: 0.186 | F25: 0.282 | G25: 0.411 | H25: 0.549 | I25: 0.69 | J25: 0.547 | K25: 0.721 | L25: 1.54 | M25: 1.86 | N25: 2.29 | O25: 2.76
A26: 1/2 | B26: 80 | C26: 0.139 | D26: 0.232 | E26: 0.367 | F26: 0.556 | G26: 0.81 | H26: 1.08 | I26: 1.36 | J26: 1.08 | K26: 1.42 | L26: 2.57 | M26: 3.1 | N26: 4.5 | O26: 5.44
A27: 3/4 | B27: 80 | C27: 0.314 | D27: 0.524 | E27: 0.829 | F27: 1.25 | G27: 1.82 | H27: 2.43 | I27: 3.06 | J27: 2.43 | K27: 3.2 | L27: 4.75 | M27: 5.73 | N27: 10.2 | O27: 12.3
A28: 1 | B28: 80 | C28: 0.618 | D28: 1.03 | E28: 1.62 | F28: 2.45 | G28: 3.57 | H28: 4.76 | I28: 5.99 | J28: 4.75 | K28: 6.26 | L28: 7.89 | M28: 9.53 | N28: 19.9 | O28: 24
A29: 1 1/4 | B29: 80 | C29: 1.33 | D29: 2.21 | E29: 3.49 | F29: 5.26 | G29: 7.66 | H29: 10.2 | I29: 12.8 | J29: 10.2 | K29: 13.4 | L29: 14.1 | M29: 17 | N29: 42.2 | O29: 51
A30: 1 1/2 | B30: 80 | C30: 2.03 | D30: 3.37 | E30: 5.32 | F30: 8.02 | G30: 11.7 | H30: 15.6 | I30: 19.5 | J30: 15.5 | K30: 20.4 | L30: 19.4 | M30: 23.4 | N30: 58.2 | O30: 70.2
A31: 2 | B31: 40 | C31: 4.73 | D31: 7.84 | E31: 12.4 | F31: 18.6 | G31: 27.1 | H31: 36.1 | I31: 45.3 | J31: 36 | K31: 47.4 | L31: 36.8 | M31: 44.5 | N31: 110 | O31: 133
A32: 2 1/2 | B32: 40 | C32: 7.34 | D32: 12.5 | E32: 19.7 | F32: 29.7 | G32: 43.2 | H32: 57.5 | I32: 72.2 | J32: 57.3 | K32: 75.5 | L32: 52.5 | M32: 63.4 | N32: 158 | O32: 190
A33: 3 | B33: 40 | C33: 11.3 | D33: 19.4 | E33: 31.7 | F33: 49.6 | G33: 75 | H33: 102 | I33: 128 | J33: 101 | K33: 133 | L33: 81.1 | M33: 97.9 | N33: 243 | O33: 294
A34: 4 | B34: 40 | C34: 19.5 | D34: 33.5 | E34: 54.6 | F34: 85.4 | G34: 129 | H34: 207 | I34: 260 | J34: 206 | K34: 271 | L34: 140 | M34: 169 | N34: 419 | O34: 506
A35: Notes:
A36: 1. Table capacities are in tons of refrigeration. Discharge refrigerant state is determined by adding 50°F to the temperature resulting from isentropic compression and 25°F superheated refrigerant entering compressor. Liquid and suction refrigerant states are at saturation.
A37: (For comparison, values in red have discharge refrigerant state determined with compression at 70 percent isentropic efficiency and 25°F superheated refrigerant entering the compressor).
A38: Dp = pressure drop from line friction, psi per 100 ft equivalent length.
A39: Dt = change in saturation temperature corresponding to Dp, °F per 100 ft equivalent length.
A40: 2. Same as I-P R2022 chapter 1 tables.
A41: 3. Same as I-P R2022 chapter 1 tables.
A42: 4. Refrigerant thermodynamic and thermophysical properties calculated using NIST RefProp v10.0. Refrigerant flow rates calculated using the Darcy-Weisbach and Colebrook equations.
A43: 5. Table capacities based on 105°F condensing temperature and 0°F subcooling. Multiply capacities by the following correction factors for other condensing temperatures. Correction factors based on a 0°F evaporator temperature, and are suitable in the range of -40°F to 40°F.
D44: Condensing Temperature, °F
D45: 80 | E45: 90 | F45: 100 | G45: 110 | H45: 120 | I45: 130 | J45: 140
B46: Liquid Line | D46: 1.25 | E46: 1.15 | F46: 1.05 | G46: 0.95 | H46: 0.85 | I46: 0.75 | J46: 0.64
B47: Suction Line | D47: =ROUND($E57/$E$60,2) -> 1.17 | E47: =ROUND($E58/$E$60,2) -> 1.11 | F47: =ROUND($E59/$E$60,2) -> 1.04 | G47: =ROUND($E61/$E$60,2) -> 0.96 | H47: =ROUND($E62/$E$60,2) -> 0.89 | I47: =ROUND($E63/$E$60,2) -> 0.81 | J47: =ROUND($E64/$E$60,2) -> 0.73
B48: Discharge Line | D48: 0.85 | E48: 0.91 | F48: 0.97 | G48: 1.03 | H48: 1.07 | I48: 1.09 | J48: 1.11
A49: aSame as I-P R2022 chapter 1 tables.
A50: bSame as I-P R2022 chapter 1 tables.
A51: cSame as I-P R2022 chapter 1 tables.
E54: NRE @ 0°F
D55: Cond | E55: Evap,
D56: Temp, °F | E56: Btu/lb
D57: 80 | E57: =Enthalpy($D$1,"TVAP","E",0)-Enthalpy($D$1,"TLIQ","E",$D57) -> 64.55821516
D58: 90 | E58: 60.80449751
D59: 100 | E59: 56.95193591
D60: 105 | E60: 54.98334136
D61: 110 | E61: 52.98300071
D62: 120 | E62: 48.87331616
D63: 130 | E63: 44.58741924
D64: 140 | E64: 40.06990523

Sheet Table 7 SI
A1: NIST Refrigerant File | D1: R449A.mix | I1: =(Pressure($D$1,"TVAP","C",40)-Pressure($D$1,"TVAP","C",39.5))*1000 -> 21.15254246 | M1: =(Pressure($D$1,"TLIQ","C",40)-Pressure($D$1,"TLIQ","C",39.5))*1000 -> 22.20507462
A3: Table 7 Suction, Discharge, and Liquid Line Capacities for Refrigerant 448A/449A (Single- or High-Stage Applications)
C5: Suction Lines (Dt = 1 K, max velocity 15 m/s, | H5: Discharge Linesc | J5: Liquid Linesa,b,c
A6: Line Size | C6: corresponding Dp, kPa) | H6: (Dt = 0.5 K, Dp = 21.2 kPa, | J6: Velocity = 0.5 m/s | L6: (Dt = 0.5 K, Dp = 22.2 kPa,
A7: Type L, | C7: =(Pressure($D$1,"TVAP","C",C9)-Pressure($D$1,"TVAP","C",C9-1))*1000 -> 4.851923887 | D7: =(Pressure($D$1,"TVAP","C",D9)-Pressure($D$1,"TVAP","C",D9-1))*1000 -> 7.005752902 | E7: =(Pressure($D$1,"TVAP","C",E9)-Pressure($D$1,"TVAP","C",E9-1))*1000 -> 9.742420116 | F7: =(Pressure($D$1,"TVAP","C",F9)-Pressure($D$1,"TVAP","C",F9-1))*1000 -> 15.07728236 | G7: =(Pressure($D$1,"TVAP","C",G9)-Pressure($D$1,"TVAP","C",G9-1))*1000 -> 19.54297859 | H7: max velocity 15 m/s) | L7: max velocity 1.5 m/s)
A8: Copper, | C8: Saturated Suction Temperature, °C
A9: OD, in (mm) | C9: -40 | D9: -30 | E9: -20 | F9: -5 | G9: 5 | H9: -40 | I9: 5 | J9: -40 | K9: 5 | L9: -40 | M9: 5
A10: 3/8 (10) | C10: 0.121 | D10: 0.198 | E10: 0.311 | F10: 0.566 | G10: 0.81 | H10: 1.05 | I10: 1.41 | J10: 2.92 | K10: 3.52 | L10: 4.26 | M10: 5.14
A11: 1/2 (13) | C11: 0.3 | D11: 0.493 | E11: 0.77 | F11: 1.4 | G11: 1.99 | H11: 2.59 | I11: 3.47 | J11: 5.73 | K11: 6.92 | L11: 10.5 | M11: 12.7
A12: 5/8 (16) | C12: 0.548 | D12: 0.896 | E12: 1.4 | F12: 2.53 | G12: 3.61 | H12: 4.69 | I12: 6.26 | J12: 8.96 | K12: 10.8 | L12: 19.1 | M12: 23
A13: 3/4 (19) | C13: 0.938 | D13: 1.53 | E13: 2.39 | F13: 4.31 | G13: 6.14 | H13: 7.97 | I13: 10.6 | J13: 13.4 | K13: 16.2 | L13: 32.5 | M13: 39.3
A14: 7/8 (22) | C14: 1.46 | D14: 2.38 | E14: 3.7 | F14: 6.66 | G14: 9.48 | H14: 12.3 | I14: 16.4 | J14: 18.6 | K14: 22.4 | L14: 50.3 | M14: 60.7
A15: 1 1/8 (29) | C15: 2.97 | D15: 4.83 | E15: 7.5 | F15: 13.5 | G15: 19.2 | H15: 24.9 | I15: 33.2 | J15: 31.7 | K15: 38.3 | L15: 95.1 | M15: 115
A16: 1 3/8 (35) | C16: 5.2 | D16: 8.45 | E16: 13.1 | F16: 23.5 | G16: 33.4 | H16: 43.3 | I16: 57.7 | J16: 48.3 | K16: 58.3 | L16: 145 | M16: 175
A17: 1 5/8 (41) | C17: 8.25 | D17: 13.4 | E17: 20.7 | F17: 37.2 | G17: 52.7 | H17: 68.4 | I17: 91.1 | J17: 68.3 | K17: 82.5 | L17: 205 | M17: 247
A18: 2 1/8 (54) | C18: 16.6 | D18: 26.9 | E18: 42.1 | F18: 77 | G18: 109 | H18: 141 | I18: 188 | J18: 119 | K18: 144 | L18: 356 | M18: 431
A19: 2 5/8 (67) | C19: 25.5 | D19: 41.6 | E19: 64.9 | F19: 119 | G19: 172 | H19: 249 | I19: 331 | J19: 183 | K19: 221 | L19: 550 | M19: 664
A20: 3 1/8 (79) | C20: 36.4 | D20: 59.3 | E20: 92.7 | F20: 170 | G20: 246 | H20: 397 | I20: 527 | J20: 262 | K20: 316 | L20: 785 | M20: 948
A21: 3 5/8 (92) | C21: 49.3 | D21: 80.2 | E21: 125 | F21: 230 | G21: 332 | H21: 588 | I21: 782 | J21: 354 | K21: 427 | L21: 1060 | M21: 1280
A22: 4 1/8 (105) | C22: 64.1 | D22: 104 | E22: 163 | F22: 299 | G22: 432 | H22: 765 | I22: 1100 | J22: 460 | K22: 555 | L22: 1380 | M22: 1670
A23: Steel
A24: IPS (mm) | B24: SCH
A25: 3/8 (10) | B25: 80 | C25: 0.237 | D25: 0.379 | E25: 0.577 | F25: 1.01 | G25: 1.42 | H25: 1.83 | I25: 2.42 | J25: 5.4 | K25: 6.52 | L25: 7.71 | M25: 9.31
A26: 1/2 (13) | B26: 80 | C26: 0.47 | D26: 0.749 | E26: 1.14 | F26: 2 | G26: 2.79 | H26: 3.61 | I26: 4.76 | J26: 8.99 | K26: 10.9 | L26: 15.2 | M26: 18.4
A27: 3/4 (19) | B27: 80 | C27: 1.06 | D27: 1.69 | E27: 2.57 | F27: 4.5 | G27: 6.29 | H27: 8.13 | I27: 10.7 | J27: 16.6 | K27: 20.1 | L27: 34.3 | M27: 41.4
A28: 1 (25) | B28: 80 | C28: 2.09 | D28: 3.32 | E28: 5.04 | F28: 8.81 | G28: 12.3 | H28: 15.9 | I28: 21 | J28: 27.6 | K28: 33.4 | L28: 67.2 | M28: 81.1
A29: 1 1/4 (32) | B29: 80 | C29: 4.5 | D29: 7.14 | E29: 10.8 | F29: 18.9 | G29: 26.4 | H29: 34.1 | I29: 45 | J29: 49.3 | K29: 59.5 | L29: 144 | M29: 174
A30: 1 1/2 (38) | B30: 80 | C30: 6.88 | D30: 10.9 | E30: 16.5 | F30: 28.8 | G30: 40.2 | H30: 51.9 | I30: 68.5 | J30: 67.9 | K30: 82 | L30: 204 | M30: 246
A31: 2 (51) | B31: 40 | C31: 16 | D31: 25.3 | E31: 38.4 | F31: 66.9 | G31: 93.4 | H31: 121 | I31: 159 | J31: 129 | K31: 156 | L31: 387 | M31: 467
A32: 2 1/2 (64) | B32: 40 | C32: 25.6 | D32: 40.4 | E32: 61.2 | F32: 107 | G32: 149 | H32: 192 | I32: 253 | J32: 184 | K32: 222 | L32: 552 | M32: 666
A33: 3 (76) | B33: 40 | C33: 39.5 | D33: 64.4 | E33: 101 | F33: 184 | G33: 263 | H33: 339 | I33: 447 | J33: 284 | K33: 343 | L33: 852 | M33: 1030
A34: 4 (102) | B34: 40 | C34: 68.1 | D34: 111 | E34: 173 | F34: 317 | G34: 459 | H34: 691 | I34: 910 | J34: 489 | K34: 590 | L34: 1470 | M34: 1770
A35: Notes:
A36: 1. Table capacities are in kilowatts of refrigeration. Discharge refrigerant state is determined with compression at 70 percent isentropic efficiency and 14 K superheated refrigerant entering the compressor. Liquid and suction refrigerant states are at saturation.
A37: Dp = pressure drop from line friction, kPa per 30 meters equivalent length.
A38: Dt = change in saturation temperature corresponding to Dp, K per 30 meters equivalent length.
A39: 2. Same as SI R2022 chapter 1 tables.
A40: 3. Same as SI R2022 chapter 1 tables.
A41: 4. Refrigerant thermodynamic and thermophysical properties calculated using NIST RefProp v10.0. Refrigerant flow rates calculated using the Darcy-Weisbach and Colebrook equations.
A42: 5. Table capacities based on 40°C condensing temperature and 0 K subcooling. Multiply capacities by the following correction factors for other condensing temperatures. Correction factors based on a -18°C evaporator temperature, and are suitable in the range of -40°C to 5°C.
D43: Condensing Temperature, °C
D44: 25 | E44: 30 | F44: 35 | G44: 45 | H44: 50 | I44: 55 | J44: 60
B45: Liquid Line | D45: 1.27 | E45: 1.18 | F45: 1.09 | G45: 0.91 | H45: 0.82 | I45: 0.73 | J45: 0.64
B46: Suction Line | D46: =ROUND($E56/$E$59,2) -> 1.19 | E46: =ROUND($E57/$E$59,2) -> 1.13 | F46: =ROUND($E58/$E$59,2) -> 1.06 | G46: =ROUND($E60/$E$59,2) -> 0.93 | H46: =ROUND($E61/$E$59,2) -> 0.87 | I46: =ROUND($E62/$E$59,2) -> 0.8 | J46: =ROUND($E63/$E$59,2) -> 0.72
B47: Discharge Line | D47: 0.85 | E47: 0.91 | F47: 0.96 | G47: 1.04 | H47: 1.07 | I47: 1.08 | J47: 1.09
A48: aSame as SI R2022 chapter 1 tables.
A49: bSame as SI R2022 chapter 1 tables.
A50: cSame as SI R2022 chapter 1 tables.
E53: NRE @ -18°C
D54: Cond | E54: Evap,
D55: Temp, °C | E55: Btu/lb
D56: 25 | E56: =Enthalpy($D$1,"TVAP","C",-18)-Enthalpy($D$1,"TLIQ","C",$D56) -> 152.5189624
D57: 30 | E57: 144.7319272
D58: 35 | E58: 136.7695599
D59: 40 | E59: 128.6060278
D60: 45 | E60: 120.2071497
D61: 50 | E61: 111.5263193
D62: 55 | E62: 102.4972907
D63: 60 | E63: 93.01971356

Sheet Table 8
A1: NIST Refrigerant File | D1: R32.fld | I1: =Pressure($D$1,"TVAP","E",105)-Pressure($D$1,"TVAP","E",104) -> 4.894435539 | M1: =Pressure($D$1,"TLIQ","E",105)-Pressure($D$1,"TLIQ","E",104) -> 4.894435539
A3: Table 8 Suction, Discharge, and Liquid Line Capacities for Refrigerant 32 (Single- or High-Stage Applications)
C5: Suction Lines (Dt = 2°F, max velocity 3000 fpm, | H5: Discharge Linesc | J5: Liquid Linesa,b,c
A6: Line Size | C6: corresponding Dp, psi) | H6: (Dt = 1°F, Dp = 4.89 psi, | J6: Velocity = 100 fpm | L6: (Dt = 1°F, Dp = 4.89 psi,
A7: Type L, | C7: =Pressure($D$1,"TVAP","E",C9)-Pressure($D$1,"TVAP","E",C9-2) -> 1.851325881 | D7: =Pressure($D$1,"TVAP","E",D9)-Pressure($D$1,"TVAP","E",D9-2) -> 2.199659495 | E7: =Pressure($D$1,"TVAP","E",E9)-Pressure($D$1,"TVAP","E",E9-2) -> 2.589652753 | F7: =Pressure($D$1,"TVAP","E",F9)-Pressure($D$1,"TVAP","E",F9-2) -> 3.50264998 | G7: =Pressure($D$1,"TVAP","E",G9)-Pressure($D$1,"TVAP","E",G9-2) -> 4.606287342 | H7: max velocity 3000 fpm) | L7: max velocity 300 fpm)
A8: Copper, | C8: Saturated Suction Temperature, °F
A9: OD, in | C9: -20 | D9: -10 | E9: 0 | F9: 20 | G9: 40 | H9: -20 | I9: 40 | J9: -20 | K9: 40 | L9: -20 | M9: 40
A10: 3/8 | C10: 0.154 | D10: 0.192 | E10: 0.236 | F10: 0.348 | G10: 0.495 | H10: 0.599 | I10: 0.717 | J10: 1.45 | K10: 1.51 | L10: 2.83 | M10: 2.94
A11: 1/2 | C11: 0.381 | D11: 0.474 | E11: 0.584 | F11: 0.858 | G11: 1.22 | H11: 1.47 | I11: 1.76 | J11: 2.85 | K11: 2.96 | L11: 6.96 | M11: 7.24
A12: 5/8 | C12: 0.691 | D12: 0.86 | E12: 1.06 | F12: 1.55 | G12: 2.2 | H12: 2.67 | I12: 3.18 | J12: 4.45 | K12: 4.63 | L12: 12.6 | M12: 13.1
A13: 3/4 | C13: 1.18 | D13: 1.47 | E13: 1.8 | F13: 2.64 | G13: 3.74 | H13: 4.54 | I13: 5.41 | J13: 6.65 | K13: 6.91 | L13: 19.9 | M13: 20.7
A14: 7/8 | C14: 1.83 | D14: 2.27 | E14: 2.79 | F14: 4.08 | G14: 5.77 | H14: 7.01 | I14: 8.35 | J14: 9.23 | K14: 9.61 | L14: 27.7 | M14: 28.8
A15: 1 1/8 | C15: 3.71 | D15: 4.61 | E15: 5.66 | F15: 8.27 | G15: 11.7 | H15: 14.2 | I15: 16.9 | J15: 15.7 | K15: 16.4 | L15: 47.2 | M15: 49.1
A16: 1 3/8 | C16: 6.45 | D16: 8.04 | E16: 9.86 | F16: 14.4 | G16: 20.3 | H16: 24.7 | I16: 29.3 | J16: 24 | K16: 24.9 | L16: 71.9 | M16: 74.8
A17: 1 5/8 | C17: 9.12 | D17: 11.4 | E17: 14.1 | F17: 20.9 | G17: 30.3 | H17: 39 | I17: 46.3 | J17: 33.9 | K17: 35.3 | L17: 102 | M17: 106
A18: 2 1/8 | C18: 15.9 | D18: 19.8 | E18: 24.5 | F18: 36.4 | G18: 52.7 | H18: 78.5 | I18: 95.6 | J18: 59 | K18: 61.4 | L18: 177 | M18: 184
A19: 2 5/8 | C19: 24.5 | D19: 30.5 | E19: 37.7 | F19: 56.2 | G19: 81.2 | H19: 121 | I19: 159 | J19: 91 | K19: 94.7 | L19: 273 | M19: 284
A20: 3 1/8 | C20: 34.9 | D20: 43.6 | E20: 53.9 | F20: 80.2 | G20: 116 | H20: 173 | I20: 227 | J20: 130 | K20: 135 | L20: 390 | M20: 406
A21: 3 5/8 | C21: 47.3 | D21: 59 | E21: 72.9 | F21: 108 | G21: 157 | H21: 234 | I21: 306 | J21: 176 | K21: 183 | L21: 527 | M21: 549
A22: 4 1/8 | C22: 61.4 | D22: 76.6 | E22: 94.7 | F22: 141 | G22: 204 | H22: 304 | I22: 398 | J22: 228 | K22: 238 | L22: 685 | M22: 713
A23: Steel
A24: IPS | B24: SCH
A25: 3/8 | B25: 80 | C25: 0.286 | D25: 0.351 | E25: 0.427 | F25: 0.614 | G25: 0.854 | H25: 1.05 | I25: 1.23 | J25: 2.68 | K25: 2.79 | L25: 4.98 | M25: 5.18
A26: 1/2 | B26: 80 | C26: 0.564 | D26: 0.693 | E26: 0.842 | F26: 1.21 | G26: 1.68 | H26: 2.07 | I26: 2.42 | J26: 4.47 | K26: 4.65 | L26: 9.81 | M26: 10.2
A27: 3/4 | B27: 80 | C27: 1.27 | D27: 1.56 | E27: 1.9 | F27: 2.72 | G27: 3.78 | H27: 4.66 | I27: 5.45 | J27: 8.25 | K27: 8.58 | L27: 22.1 | M27: 23
A28: 1 | B28: 80 | C28: 2.5 | D28: 3.06 | E28: 3.72 | F28: 5.33 | G28: 7.41 | H28: 9.12 | I28: 10.7 | J28: 13.7 | K28: 14.3 | L28: 41.2 | M28: 42.8
A29: 1 1/4 | B29: 80 | C29: 5.36 | D29: 6.57 | E29: 7.98 | F29: 11.4 | G29: 15.9 | H29: 19.5 | I29: 22.9 | J29: 24.5 | K29: 25.5 | L29: 73.4 | M29: 76.4
A30: 1 1/2 | B30: 80 | C30: 8.18 | D30: 10 | E30: 12.2 | F30: 17.4 | G30: 24.2 | H30: 29.8 | I30: 34.8 | J30: 33.7 | K30: 35.1 | L30: 101 | M30: 105
A31: 2 | B31: 40 | C31: 17.2 | D31: 21.5 | E31: 26.5 | F31: 39.5 | G31: 56.1 | H31: 69.1 | I31: 80.9 | J31: 64 | K31: 66.6 | L31: 192 | M31: 200
A32: 2 1/2 | B32: 40 | C32: 24.6 | D32: 30.6 | E32: 37.9 | F32: 56.4 | G32: 81.5 | H32: 110 | I32: 129 | J32: 91.3 | K32: 95 | L32: 274 | M32: 285
A33: 3 | B33: 40 | C33: 37.9 | D33: 47.3 | E33: 58.5 | F33: 87 | G33: 126 | H33: 188 | I33: 228 | J33: 141 | K33: 147 | L33: 423 | M33: 440
A34: 4 | B34: 40 | C34: 65.3 | D34: 81.5 | E34: 101 | F34: 150 | G34: 217 | H34: 323 | I34: 423 | J34: 243 | K34: 253 | L34: 729 | M34: 758
A35: Notes:
A36: 1. Table capacities are in tons of refrigeration. Discharge refrigerant state is determined with compression at 70 percent isentropic efficiency and 25°F superheated refrigerant entering compressor. Liquid and suction refrigerant states are at saturation.
A37: Dp = pressure drop from line friction, psi per 100 ft equivalent length.
A38: Dt = change in saturation temperature corresponding to Dp, °F per 100 ft equivalent length.
A39: 2. Same as I-P R2022 chapter 1 tables.
A40: 3. Same as I-P R2022 chapter 1 tables.
A41: 4. Refrigerant thermodynamic and thermophysical properties calculated using NIST RefProp v10.0. Refrigerant flow rates calculated using the Darcy-Weisbach and Colebrook equations.
A42: 5. Table capacities based on 105°F condensing temperature and 0°F subcooling. Multiply capacities by the following correction factors for other condensing temperatures. Correction factors based on a 10°F evaporator temperature, and are suitable in the range of -20°F to 40°F.
D43: Condensing Temperature, °F
D44: 80 | E44: 90 | F44: 100 | G44: 110 | H44: 120 | I44: 130 | J44: 140
B45: Liquid Line | D45: 1.2 | E45: 1.12 | F45: 1.04 | G45: 0.96 | H45: 0.88 | I45: 0.79 | J45: 0.7
B46: Suction Line | D46: =ROUND($E56/$E$59,2) -> 1.12 | E46: =ROUND($E57/$E$59,2) -> 1.07 | F46: =ROUND($E58/$E$59,2) -> 1.02 | G46: =ROUND($E60/$E$59,2) -> 0.97 | H46: =ROUND($E61/$E$59,2) -> 0.92 | I46: =ROUND($E62/$E$59,2) -> 0.87 | J46: =ROUND($E63/$E$59,2) -> 0.81
B47: Discharge Line | D47: 0.84 | E47: 0.9 | F47: 0.97 | G47: 1.03 | H47: 1.09 | I47: 1.14 | J47: 1.19
A48: aSame as I-P R2022 chapter 1 tables.
A49: bSame as I-P R2022 chapter 1 tables.
A50: cSame as I-P R2022 chapter 1 tables.
E53: NRE @ 10°F
D54: Cond | E54: Evap,
D55: Temp, °F | E55: Btu/lb
D56: 80 | E56: =Enthalpy($D$1,"TVAP","E",10)-Enthalpy($D$1,"TLIQ","E",$D56) -> 113.3996637
D57: 90 | E57: 108.7076011
D58: 100 | E58: 103.8602229
D59: 105 | E59: 101.3681357
D60: 110 | E60: 98.82350981
D61: 120 | E61: 93.5489882
D62: 130 | E62: 87.96324149
D63: 140 | E63: 81.94528167

Sheet Table 8 SI
A1: NIST Refrigerant File | D1: R32.fld | I1: =(Pressure($D$1,"TVAP","C",40)-Pressure($D$1,"TVAP","C",39.5))*1000 -> 30.0759816 | M1: =(Pressure($D$1,"TLIQ","C",40)-Pressure($D$1,"TLIQ","C",39.5))*1000 -> 30.0759816
A3: Table 8 Suction, Discharge, and Liquid Line Capacities for Refrigerant 32 (Single- or High-Stage Applications)
C5: Suction Lines (Dt = 1 K, max velocity 15 m/s, | H5: Discharge Linesc | J5: Liquid Linesa,b,c
A6: Line Size | C6: corresponding Dp, kPa) | H6: (Dt = 0.5 K, Dp = 30.1 kPa, | J6: Velocity = 0.5 m/s | L6: (Dt = 0.5 K, Dp = 30.1 kPa,
A7: Type L, | C7: =(Pressure($D$1,"TVAP","C",C9)-Pressure($D$1,"TVAP","C",C9-1))*1000 -> 11.10540352 | D7: =(Pressure($D$1,"TVAP","C",D9)-Pressure($D$1,"TVAP","C",D9-1))*1000 -> 15.09407834 | E7: =(Pressure($D$1,"TVAP","C",E9)-Pressure($D$1,"TVAP","C",E9-1))*1000 -> 19.94499436 | F7: =(Pressure($D$1,"TVAP","C",F9)-Pressure($D$1,"TVAP","C",F9-1))*1000 -> 22.71634234 | G7: =(Pressure($D$1,"TVAP","C",G9)-Pressure($D$1,"TVAP","C",G9-1))*1000 -> 28.99620954 | H7: max velocity 15 m/s) | L7: max velocity 1.5 m/s)
A8: Copper, | C8: Saturated Suction Temperature, °C
A9: OD, in (mm) | C9: -30 | D9: -20 | E9: -10 | F9: -5 | G9: 5 | H9: -30 | I9: 5 | J9: -30 | K9: 5 | L9: -30 | M9: 5
A10: 3/8 (10) | C10: 0.494 | D10: 0.733 | E10: 1.05 | F10: 1.24 | G10: 1.7 | H10: 1.98 | I10: 2.39 | J10: 5.05 | K10: 5.26 | L10: 9.45 | M10: 9.85
A11: 1/2 (13) | C11: 1.23 | D11: 1.81 | E11: 2.58 | F11: 3.05 | G11: 4.17 | H11: 4.88 | I11: 5.88 | J11: 9.92 | K11: 10.3 | L11: 23.3 | M11: 24.3
A12: 5/8 (16) | C12: 2.23 | D12: 3.29 | E12: 4.68 | F12: 5.52 | G12: 7.54 | H12: 8.82 | I12: 10.6 | J12: 15.5 | K12: 16.2 | L12: 42.2 | M12: 44
A13: 3/4 (19) | C13: 3.8 | D13: 5.6 | E13: 7.97 | F13: 9.4 | G13: 12.8 | H13: 15 | I13: 18.1 | J13: 23.1 | K13: 24.1 | L13: 69.4 | M13: 72.4
A14: 7/8 (22) | C14: 5.89 | D14: 8.67 | E14: 12.3 | F14: 14.5 | G14: 19.8 | H14: 23.2 | I14: 27.9 | J14: 32.2 | K14: 33.5 | L14: 96.5 | M14: 101
A15: 1 1/8 (29) | C15: 12 | D15: 17.6 | E15: 25 | F15: 29.4 | G15: 40 | H15: 47 | I15: 56.3 | J15: 54.8 | K15: 57.2 | L15: 164 | M15: 172
A16: 1 3/8 (35) | C16: 20.9 | D16: 30.7 | E16: 43.5 | F16: 51.2 | G16: 69.6 | H16: 81.8 | I16: 98 | J16: 83.5 | K16: 87.1 | L16: 251 | M16: 261
A17: 1 5/8 (41) | C17: 30.3 | D17: 45 | E17: 64.9 | F17: 77.1 | G17: 107 | H17: 129 | I17: 155 | J17: 118 | K17: 123 | L17: 355 | M17: 370
A18: 2 1/8 (54) | C18: 52.8 | D18: 78.3 | E18: 113 | F18: 134 | G18: 186 | H18: 267 | I18: 320 | J18: 206 | K18: 214 | L18: 617 | M18: 643
A19: 2 5/8 (67) | C19: 81.4 | D19: 121 | E19: 174 | F19: 207 | G19: 288 | H19: 412 | I19: 548 | J19: 317 | K19: 331 | L19: 951 | M19: 992
A20: 3 1/8 (79) | C20: 116 | D20: 172 | E20: 248 | F20: 295 | G20: 410 | H20: 589 | I20: 782 | J20: 453 | K20: 472 | L20: 1360 | M20: 1420
A21: 3 5/8 (92) | C21: 157 | D21: 233 | E21: 336 | F21: 399 | G21: 555 | H21: 796 | I21: 1060 | J21: 612 | K21: 638 | L21: 1840 | M21: 1910
A22: 4 1/8 (105) | C22: 204 | D22: 303 | E22: 437 | F22: 519 | G22: 722 | H22: 1030 | I22: 1380 | J22: 796 | K22: 830 | L22: 2390 | M22: 2490
A23: Steel
A24: IPS (mm) | B24: SCH
A25: 3/8 (10) | B25: 80 | C25: 0.925 | D25: 1.34 | E25: 1.87 | F25: 2.18 | G25: 2.93 | H25: 3.49 | I25: 4.12 | J25: 9.34 | K25: 9.74 | L25: 16.7 | M25: 17.4
A26: 1/2 (13) | B26: 80 | C26: 1.83 | D26: 2.63 | E26: 3.68 | F26: 4.3 | G26: 5.77 | H26: 6.87 | I26: 8.11 | J26: 15.6 | K26: 16.2 | L26: 33 | M26: 34.4
A27: 3/4 (19) | B27: 80 | C27: 4.13 | D27: 5.94 | E27: 8.29 | F27: 9.69 | G27: 13 | H27: 15.5 | I27: 18.3 | J27: 28.7 | K27: 30 | L27: 74.3 | M27: 77.4
A28: 1 (25) | B28: 80 | C28: 8.09 | D28: 11.6 | E28: 16.2 | F28: 19 | G28: 25.4 | H28: 30.3 | I28: 35.8 | J28: 47.8 | K28: 49.8 | L28: 143 | M28: 150
A29: 1 1/4 (32) | B29: 80 | C29: 17.4 | D29: 25 | E29: 34.8 | F29: 40.7 | G29: 54.5 | H29: 64.9 | I29: 76.6 | J29: 85.2 | K29: 88.9 | L29: 256 | M29: 267
A30: 1 1/2 (38) | B30: 80 | C30: 26.5 | D30: 38.1 | E30: 53.1 | F30: 62 | G30: 83 | H30: 99 | I30: 117 | J30: 117 | K30: 122 | L30: 352 | M30: 367
A31: 2 (51) | B31: 40 | C31: 57.2 | D31: 84.9 | E31: 122 | F31: 144 | G31: 193 | H31: 230 | I31: 271 | J31: 223 | K31: 232 | L31: 669 | M31: 697
A32: 2 1/2 (64) | B32: 40 | C32: 81.6 | D32: 121 | E32: 175 | F32: 208 | G32: 288 | H32: 366 | I32: 432 | J32: 318 | K32: 332 | L32: 954 | M32: 995
A33: 3 (76) | B33: 40 | C33: 126 | D33: 187 | E33: 270 | F33: 320 | G33: 445 | H33: 639 | I33: 762 | J33: 491 | K33: 512 | L33: 1470 | M33: 1540
A34: 4 (102) | B34: 40 | C34: 217 | D34: 322 | E34: 464 | F34: 552 | G34: 767 | H34: 1100 | I34: 1460 | J34: 845 | K34: 882 | L34: 2540 | M34: 2650
A35: Notes:
A36: 1. Table capacities are in kilowatts of refrigeration. Discharge refrigerant state is determined with compression at 70 percent isentropic efficiency and 14 K superheated refrigerant entering the compressor. Liquid and suction refrigerant states are at saturation.
A37: Dp = pressure drop from line friction, kPa per 30 meters equivalent length.
A38: Dt = change in saturation temperature corresponding to Dp, K per 30 meters equivalent length.
A39: 2. Same as SI R2022 chapter 1 tables.
A40: 3. Same as SI R2022 chapter 1 tables.
A41: 4. Refrigerant thermodynamic and thermophysical properties calculated using NIST RefProp v10.0. Refrigerant flow rates calculated using the Darcy-Weisbach and Colebrook equations.
A42: 5. Table capacities based on 40°C condensing temperature and 0 K subcooling. Multiply capacities by the following correction factors for other condensing temperatures. Correction factors based on a -12°C evaporator temperature, and are suitable in the range of -30°C to 5°C.
D43: Condensing Temperature, °C
D44: 25 | E44: 30 | F44: 35 | G44: 45 | H44: 50 | I44: 55 | J44: 60
B45: Liquid Line | D45: 1.21 | E45: 1.15 | F45: 1.07 | G45: 0.93 | H45: 0.85 | I45: 0.78 | J45: 0.7
B46: Suction Line | D46: =ROUND($E56/$E$59,2) -> 1.13 | E46: =ROUND($E57/$E$59,2) -> 1.09 | F46: =ROUND($E58/$E$59,2) -> 1.04 | G46: =ROUND($E60/$E$59,2) -> 0.95 | H46: =ROUND($E61/$E$59,2) -> 0.91 | I46: =ROUND($E62/$E$59,2) -> 0.86 | J46: =ROUND($E63/$E$59,2) -> 0.8
B47: Discharge Line | D47: 0.82 | E47: 0.89 | F47: 0.94 | G47: 1.06 | H47: 1.11 | I47: 1.15 | J47: 1.19
A48: aSame as SI R2022 chapter 1 tables.
A49: bSame as SI R2022 chapter 1 tables.
A50: cSame as SI R2022 chapter 1 tables.
E53: NRE @ -12°C
D54: Cond | E54: Evap,
D55: Temp, °C | E55: Btu/lb
D56: 25 | E56: =Enthalpy($D$1,"TVAP","C",-12)-Enthalpy($D$1,"TLIQ","C",$D56) -> 266.86505
D57: 30 | E57: 257.1502463
D58: 35 | E58: 247.1637155
D59: 40 | E59: 236.855676
D60: 45 | E60: 226.1592367
D61: 50 | E61: 214.9806657
D62: 55 | E62: 203.1813119
D63: 60 | E63: 190.5404539

Sheet Table 9
A1: NIST Refrigerant File | D1: R454C.mix | I1: =Pressure($D$1,"TVAP","E",105)-Pressure($D$1,"TVAP","E",104) -> 3.018210051 | M1: =Pressure($D$1,"TLIQ","E",105)-Pressure($D$1,"TLIQ","E",104) -> 3.275496078
A3: Table 9 Suction, Discharge, and Liquid Line Capacities for Refrigerant 454C (Single- or High-Stage Applications)
C5: Suction Lines (Dt = 2°F, max velocity 3000 fpm, | H5: Discharge Linesc | J5: Liquid Linesa,b,c
A6: Line Size | C6: corresponding Dp, psi) | H6: (Dt = 1°F, Dp = 3.02 psi, | J6: Velocity = 100 fpm | L6: (Dt = 1°F, Dp = 3.28 psi,
A7: Type L, | C7: =Pressure($D$1,"TVAP","E",C9)-Pressure($D$1,"TVAP","E",C9-2) -> 0.6900410757 | D7: =Pressure($D$1,"TVAP","E",D9)-Pressure($D$1,"TVAP","E",D9-2) -> 1.030869163 | E7: =Pressure($D$1,"TVAP","E",E9)-Pressure($D$1,"TVAP","E",E9-2) -> 1.473664808 | F7: =Pressure($D$1,"TVAP","E",F9)-Pressure($D$1,"TVAP","E",F9-2) -> 2.030799567 | G7: =Pressure($D$1,"TVAP","E",G9)-Pressure($D$1,"TVAP","E",G9-2) -> 2.714638803 | H7: max velocity 3000 fpm) | L7: max velocity 300 fpm)
A8: Copper, | C8: Saturated Suction Temperature, °F
A9: OD, in | C9: -40 | D9: -20 | E9: 0 | F9: 20 | G9: 40 | H9: -40 | I9: 40 | J9: -40 | K9: 40 | L9: -40 | M9: 40
A10: 3/8 | C10: --- | D10: --- | E10: --- | F10: 0.13 | G10: 0.195 | H10: 0.273 | I10: 0.373 | J10: 0.714 | K10: 0.898 | L10: 1.06 | M10: 1.33
A11: 1/2 | C11: --- | D11: 0.126 | E11: 0.205 | F11: 0.321 | G11: 0.481 | H11: 0.67 | I11: 0.916 | J11: 1.4 | K11: 1.76 | L11: 2.62 | M11: 3.29
A12: 5/8 | C12: 0.132 | D12: 0.228 | E12: 0.373 | F12: 0.581 | G12: 0.87 | H12: 1.21 | I12: 1.65 | J12: 2.19 | K12: 2.76 | L12: 4.74 | M12: 5.96
A13: 3/4 | C13: 0.226 | D13: 0.39 | E13: 0.636 | F13: 0.99 | G13: 1.48 | H13: 2.06 | I13: 2.81 | J13: 3.28 | K13: 4.12 | L13: 8.08 | M13: 10.2
A14: 7/8 | C14: 0.352 | D14: 0.605 | E14: 0.986 | F14: 1.53 | G14: 2.29 | H14: 3.18 | I14: 4.34 | J14: 4.55 | K14: 5.72 | L14: 12.5 | M14: 15.7
A15: 1 1/8 | C15: 0.717 | D15: 1.23 | E15: 2 | F15: 3.1 | G15: 4.63 | H15: 6.43 | I15: 8.76 | J15: 7.76 | K15: 9.75 | L15: 23.3 | M15: 29.2
A16: 1 3/8 | C16: 1.26 | D16: 2.15 | E16: 3.49 | F16: 5.41 | G16: 8.06 | H16: 11.2 | I16: 15.2 | J16: 11.8 | K16: 14.8 | L16: 35.5 | M16: 44.5
A17: 1 5/8 | C17: 1.99 | D17: 3.41 | E17: 5.53 | F17: 8.55 | G17: 12.7 | H17: 17.7 | I17: 24 | J17: 16.7 | K17: 21 | L17: 50.2 | M17: 63.1
A18: 2 1/8 | C18: 3.99 | D18: 6.85 | E18: 11.2 | F18: 17.6 | G18: 26.3 | H18: 36.5 | I18: 49.6 | J18: 29.1 | K18: 36.6 | L18: 87.3 | M18: 110
A19: 2 5/8 | C19: 6.15 | D19: 10.6 | E19: 17.3 | F19: 27.2 | G19: 41.2 | H19: 64.3 | I19: 87.5 | J19: 44.9 | K19: 56.4 | L19: 135 | M19: 169
A20: 3 1/8 | C20: 8.77 | D20: 15.1 | E20: 24.7 | F20: 38.8 | G20: 58.9 | H20: 102 | I20: 139 | J20: 64.1 | K20: 80.5 | L20: 192 | M20: 241
A21: 3 5/8 | C21: 11.9 | D21: 20.4 | E21: 33.4 | F21: 52.4 | G21: 79.6 | H21: 152 | I21: 206 | J21: 86.6 | K21: 109 | L21: 260 | M21: 327
A22: 4 1/8 | C22: 15.4 | D22: 26.5 | E22: 43.4 | F22: 68.1 | G22: 104 | H22: 203 | I22: 291 | J22: 113 | K22: 142 | L22: 338 | M22: 425
A23: Steel
A24: IPS | B24: SCH
A25: 3/8 | B25: 80 | C25: --- | D25: --- | E25: 0.153 | F25: 0.234 | G25: 0.343 | H25: 0.472 | I25: 0.638 | J25: 1.32 | K25: 1.66 | L25: 1.91 | M25: 2.4
A26: 1/2 | B26: 80 | C26: 0.113 | D26: 0.19 | E26: 0.303 | F26: 0.461 | G26: 0.676 | H26: 0.929 | I26: 1.26 | J26: 2.2 | K26: 2.77 | L26: 3.77 | M26: 4.73
A27: 3/4 | B27: 80 | C27: 0.257 | D27: 0.43 | E27: 0.683 | F27: 1.04 | G27: 1.52 | H27: 2.09 | I27: 2.83 | J27: 4.07 | K27: 5.11 | L27: 8.49 | M27: 10.7
A28: 1 | B28: 80 | C28: 0.505 | D28: 0.844 | E28: 1.34 | F28: 2.04 | G28: 2.98 | H28: 4.1 | I28: 5.54 | J28: 6.76 | K28: 8.5 | L28: 16.6 | M28: 20.9
A29: 1 1/4 | B29: 80 | C29: 1.09 | D29: 1.81 | E29: 2.88 | F29: 4.37 | G29: 6.39 | H29: 8.78 | I29: 11.9 | J29: 12.1 | K29: 15.2 | L29: 35.7 | M29: 44.8
A30: 1 1/2 | B30: 80 | C30: 1.66 | D30: 2.77 | E30: 4.38 | F30: 6.65 | G30: 9.74 | H30: 13.4 | I30: 18.1 | J30: 16.6 | K30: 20.9 | L30: 49.9 | M30: 62.6
A31: 2 | B31: 40 | C31: 3.86 | D31: 6.44 | E31: 10.2 | F31: 15.5 | G31: 22.6 | H31: 31 | I31: 41.9 | J31: 31.6 | K31: 39.6 | L31: 94.7 | M31: 119
A32: 2 1/2 | B32: 40 | C32: 6.17 | D32: 10.3 | E32: 16.2 | F32: 24.6 | G32: 36 | H32: 49.5 | I32: 66.8 | J32: 45 | K32: 56.6 | L32: 135 | M32: 170
A33: 3 | B33: 40 | C33: 9.52 | D33: 16.4 | E33: 26.8 | F33: 42.1 | G33: 63.7 | H33: 87.4 | I33: 118 | J33: 69.5 | K33: 87.3 | L33: 209 | M33: 262
A34: 4 | B34: 40 | C34: 16.4 | D34: 28.2 | E34: 46.1 | F34: 72.4 | G34: 110 | H34: 178 | I34: 240 | J34: 120 | K34: 150 | L34: 359 | M34: 451
A35: Notes:
A36: 1. Table capacities are in tons of refrigeration. Discharge refrigerant state is determined with compression at 70 percent isentropic efficiency and 25°F superheated refrigerant entering compressor. Liquid and suction refrigerant states are at saturation.
A37: Dp = pressure drop from line friction, psi per 100 ft equivalent length.
A38: Dt = change in saturation temperature corresponding to Dp, °F per 100 ft equivalent length.
A39: 2. Same as I-P R2022 chapter 1 tables.
A40: 3. Same as I-P R2022 chapter 1 tables.
A41: 4. Refrigerant thermodynamic and thermophysical properties calculated using NIST RefProp v10.0. Refrigerant flow rates calculated using the Darcy-Weisbach and Colebrook equations.
A42: 5. Table capacities based on 105°F condensing temperature and 0°F subcooling. Multiply capacities by the following correction factors for other condensing temperatures. Correction factors based on a 0°F evaporator temperature, and are suitable in the range of -40°F to 40°F.
D43: Condensing Temperature, °F
D44: 80 | E44: 90 | F44: 100 | G44: 110 | H44: 120 | I44: 130 | J44: 140
B45: Liquid Line | D45: 1.26 | E45: 1.16 | F45: 1.05 | G45: 0.95 | H45: 0.84 | I45: 0.74 | J45: 0.63
B46: Suction Line | D46: =ROUND($E56/$E$59,2) -> 1.19 | E46: =ROUND($E57/$E$59,2) -> 1.11 | F46: =ROUND($E58/$E$59,2) -> 1.04 | G46: =ROUND($E60/$E$59,2) -> 0.96 | H46: =ROUND($E61/$E$59,2) -> 0.88 | I46: =ROUND($E62/$E$59,2) -> 0.8 | J46: =ROUND($E63/$E$59,2) -> 0.71
B47: Discharge Line | D47: 0.87 | E47: 0.92 | F47: 0.98 | G47: 1.02 | H47: 1.06 | I47: 1.07 | J47: 1.08
A48: aSame as I-P R2022 chapter 1 tables.
A49: bSame as I-P R2022 chapter 1 tables.
A50: cSame as I-P R2022 chapter 1 tables.
E53: NRE @ 0°F
D54: Cond | E54: Evap,
D55: Temp, °F | E55: Btu/lb
D56: 80 | E56: =Enthalpy($D$1,"TVAP","E",0)-Enthalpy($D$1,"TLIQ","E",$D56) -> 60.02186986
D57: 90 | E57: 56.29620343
D58: 100 | E58: 52.47988076
D59: 105 | E59: 50.53323371
D60: 110 | E60: 48.55791263
D61: 120 | E61: 44.50977707
D62: 130 | E62: 40.30698009
D63: 140 | E63: 35.90806907

Sheet Table 9 SI
A1: NIST Refrigerant File | D1: R454C.mix | I1: =(Pressure($D$1,"TVAP","C",40)-Pressure($D$1,"TVAP","C",39.5))*1000 -> 18.53462351 | M1: =(Pressure($D$1,"TLIQ","C",40)-Pressure($D$1,"TLIQ","C",39.5))*1000 -> 20.14404782
A3: Table 9 Suction, Discharge, and Liquid Line Capacities for Refrigerant 454C (Single- or High-Stage Applications)
C5: Suction Lines (Dt = 1 K, max velocity 15 m/s, | H5: Discharge Linesc | J5: Liquid Linesa,b,c
A6: Line Size | C6: corresponding Dp, kPa) | H6: (Dt = 0.5 K, Dp = 18.5 kPa, | J6: Velocity = 0.5 m/s | L6: (Dt = 0.5 K, Dp = 20.1 kPa,
A7: Type L, | C7: =(Pressure($D$1,"TVAP","C",C9)-Pressure($D$1,"TVAP","C",C9-1))*1000 -> 4.290988133 | D7: =(Pressure($D$1,"TVAP","C",D9)-Pressure($D$1,"TVAP","C",D9-1))*1000 -> 6.169897759 | E7: =(Pressure($D$1,"TVAP","C",E9)-Pressure($D$1,"TVAP","C",E9-1))*1000 -> 8.555330336 | F7: =(Pressure($D$1,"TVAP","C",F9)-Pressure($D$1,"TVAP","C",F9-1))*1000 -> 13.20587176 | G7: =(Pressure($D$1,"TVAP","C",G9)-Pressure($D$1,"TVAP","C",G9-1))*1000 -> 17.10283575 | H7: max velocity 15 m/s) | L7: max velocity 1.5 m/s)
A8: Copper, | C8: Saturated Suction Temperature, °C
A9: OD, in (mm) | C9: -40 | D9: -30 | E9: -20 | F9: -5 | G9: 5 | H9: -40 | I9: 5 | J9: -40 | K9: 5 | L9: -40 | M9: 5
A10: 3/8 (10) | C10: --- | D10: 0.162 | E10: 0.255 | F10: 0.467 | G10: 0.672 | H10: 0.91 | I10: 1.25 | J10: 2.5 | K10: 3.14 | L10: 3.56 | M10: 4.48
A11: 1/2 (13) | C11: 0.245 | D11: 0.402 | E11: 0.631 | F11: 1.15 | G11: 1.65 | H11: 2.24 | I11: 3.06 | J11: 4.92 | K11: 6.18 | L11: 8.8 | M11: 11.1
A12: 5/8 (16) | C12: 0.447 | D12: 0.732 | E12: 1.15 | F12: 2.09 | G12: 2.99 | H12: 4.05 | I12: 5.53 | J12: 7.68 | K12: 9.66 | L12: 15.9 | M12: 20
A13: 3/4 (19) | C13: 0.765 | D13: 1.25 | E13: 1.96 | F13: 3.56 | G13: 5.1 | H13: 6.88 | I13: 9.41 | J13: 11.5 | K13: 14.4 | L13: 27.2 | M13: 34.2
A14: 7/8 (22) | C14: 1.19 | D14: 1.94 | E14: 3.03 | F14: 5.51 | G14: 7.88 | H14: 10.6 | I14: 14.5 | J14: 15.9 | K14: 20 | L14: 42.1 | M14: 52.9
A15: 1 1/8 (29) | C15: 2.42 | D15: 3.95 | E15: 6.16 | F15: 11.2 | G15: 15.9 | H15: 21.5 | I15: 29.3 | J15: 27.2 | K15: 34.2 | L15: 81.5 | M15: 102
A16: 1 3/8 (35) | C16: 4.24 | D16: 6.91 | E16: 10.8 | F16: 19.5 | G16: 27.8 | H16: 37.4 | I16: 51 | J16: 41.4 | K16: 52 | L16: 124 | M16: 156
A17: 1 5/8 (41) | C17: 6.73 | D17: 11 | E17: 17 | F17: 30.8 | G17: 43.8 | H17: 59 | I17: 80.5 | J17: 58.6 | K17: 73.6 | L17: 176 | M17: 221
A18: 2 1/8 (54) | C18: 13.9 | D18: 22.7 | E18: 35.4 | F18: 63.7 | G18: 90.7 | H18: 122 | I18: 166 | J18: 102 | K18: 128 | L18: 306 | M18: 384
A19: 2 5/8 (67) | C19: 21.5 | D19: 35 | E19: 54.8 | F19: 101 | G19: 147 | H19: 215 | I19: 293 | J19: 157 | K19: 198 | L19: 471 | M19: 593
A20: 3 1/8 (79) | C20: 30.6 | D20: 50 | E20: 78.3 | F20: 144 | G20: 209 | H20: 343 | I20: 467 | J20: 224 | K20: 282 | L20: 673 | M20: 846
A21: 3 5/8 (92) | C21: 41.4 | D21: 67.6 | E21: 106 | F21: 195 | G21: 283 | H21: 509 | I21: 692 | J21: 303 | K21: 381 | L21: 910 | M21: 1140
A22: 4 1/8 (105) | C22: 53.9 | D22: 87.8 | E22: 138 | F22: 253 | G22: 368 | H22: 698 | I22: 974 | J22: 394 | K22: 496 | L22: 1180 | M22: 1490
A23: Steel
A24: IPS (mm) | B24: SCH
A25: 3/8 (10) | B25: 80 | C25: 0.194 | D25: 0.311 | E25: 0.475 | F25: 0.841 | G25: 1.18 | H25: 1.58 | I25: 2.14 | J25: 4.63 | K25: 5.82 | L25: 6.45 | M25: 8.11
A26: 1/2 (13) | B26: 80 | C26: 0.384 | D26: 0.614 | E26: 0.938 | F26: 1.66 | G26: 2.33 | H26: 3.12 | I26: 4.22 | J26: 7.71 | K26: 9.69 | L26: 12.7 | M26: 16
A27: 3/4 (19) | B27: 80 | C27: 0.87 | D27: 1.39 | E27: 2.12 | F27: 3.74 | G27: 5.25 | H27: 7.02 | I27: 9.5 | J27: 14.2 | K27: 17.9 | L27: 28.7 | M27: 36.1
A28: 1 (25) | B28: 80 | C28: 1.71 | D28: 2.73 | E28: 4.16 | F28: 7.32 | G28: 10.3 | H28: 13.7 | I28: 18.6 | J28: 23.7 | K28: 29.8 | L28: 56.2 | M28: 70.7
A29: 1 1/4 (32) | B29: 80 | C29: 3.68 | D29: 5.86 | E29: 8.92 | F29: 15.7 | G29: 22.1 | H29: 29.4 | I29: 39.8 | J29: 42.2 | K29: 53.1 | L29: 121 | M29: 152
A30: 1 1/2 (38) | B30: 80 | C30: 5.63 | D30: 8.94 | E30: 13.6 | F30: 23.9 | G30: 33.6 | H30: 44.9 | I30: 60.7 | J30: 58.2 | K30: 73.1 | L30: 175 | M30: 219
A31: 2 (51) | B31: 40 | C31: 13.1 | D31: 20.8 | E31: 31.6 | F31: 55.6 | G31: 78 | H31: 104 | I31: 141 | J31: 110 | K31: 139 | L31: 331 | M31: 417
A32: 2 1/2 (64) | B32: 40 | C32: 20.9 | D32: 33.2 | E32: 50.4 | F32: 88.6 | G32: 124 | H32: 166 | I32: 224 | J32: 158 | K32: 198 | L32: 473 | M32: 595
A33: 3 (76) | B33: 40 | C33: 33.2 | D33: 54.2 | E33: 84.9 | F33: 156 | G33: 220 | H33: 293 | I33: 396 | J33: 243 | K33: 306 | L33: 730 | M33: 918
A34: 4 (102) | B34: 40 | C34: 57.2 | D34: 93.4 | E34: 146 | F34: 269 | G34: 391 | H34: 596 | I34: 806 | J34: 419 | K34: 527 | L34: 1260 | M34: 1580
A35: Notes:
A36: 1. Table capacities are in kilowatts of refrigeration. Discharge refrigerant state is determined with compression at 70 percent isentropic efficiency and 14 K superheated refrigerant entering the compressor. Liquid and suction refrigerant states are at saturation.
A37: Dp = pressure drop from line friction, kPa per 30 meters equivalent length.
A38: Dt = change in saturation temperature corresponding to Dp, K per 30 meters equivalent length.
A39: 2. Same as SI R2022 chapter 1 tables.
A40: 3. Same as SI R2022 chapter 1 tables.
A41: 4. Refrigerant thermodynamic and thermophysical properties calculated using NIST RefProp v10.0. Refrigerant flow rates calculated using the Darcy-Weisbach and Colebrook equations.
A42: 5. Table capacities based on 40°C condensing temperature and 0 K subcooling. Multiply capacities by the following correction factors for other condensing temperatures. Correction factors based on a -18°C evaporator temperature, and are suitable in the range of -40°C to 5°C.
D43: Condensing Temperature, °C
D44: 25 | E44: 30 | F44: 35 | G44: 45 | H44: 50 | I44: 55 | J44: 60
B45: Liquid Line | D45: 1.28 | E45: 1.19 | F45: 1.09 | G45: 0.91 | H45: 0.81 | I45: 0.72 | J45: 0.62
B46: Suction Line | D46: =ROUND($E56/$E$59,2) -> 1.2 | E46: =ROUND($E57/$E$59,2) -> 1.14 | F46: =ROUND($E58/$E$59,2) -> 1.07 | G46: =ROUND($E60/$E$59,2) -> 0.93 | H46: =ROUND($E61/$E$59,2) -> 0.86 | I46: =ROUND($E62/$E$59,2) -> 0.78 | J46: =ROUND($E63/$E$59,2) -> 0.7
B47: Discharge Line | D47: 0.86 | E47: 0.91 | F47: 0.96 | G47: 1.03 | H47: 1.05 | I47: 1.07 | J47: 1.08
A48: aSame as SI R2022 chapter 1 tables.
A49: bSame as SI R2022 chapter 1 tables.
A50: cSame as SI R2022 chapter 1 tables.
E53: NRE @ -18°C
D54: Cond | E54: Evap,
D55: Temp, °C | E55: Btu/lb
D56: 25 | E56: =Enthalpy($D$1,"TVAP","C",-18)-Enthalpy($D$1,"TLIQ","C",$D56) -> 141.9443758
D57: 30 | E57: 134.2110478
D58: 35 | E58: 126.3161728
D59: 40 | E59: 118.237741
D60: 45 | E60: 109.9465772
D61: 50 | E61: 101.403901
D62: 55 | E62: 92.55722761
D63: 60 | E63: 83.33223867

Sheet Table 10
A1: NIST Refrigerant File | D1: R455A.mix | I1: =Pressure($D$1,"TVAP","E",105)-Pressure($D$1,"TVAP","E",104) -> 3.224725081 | M1: =Pressure($D$1,"TLIQ","E",105)-Pressure($D$1,"TLIQ","E",104) -> 3.553303752
A3: Table 10 Suction, Discharge, and Liquid Line Capacities for Refrigerant 455A (Single- or High-Stage Applications)
C5: Suction Lines (Dt = 2°F, max velocity 3000 fpm, | H5: Discharge Linesc | J5: Liquid Linesa,b,c
A6: Line Size | C6: corresponding Dp, psi) | H6: (Dt = 1°F, Dp = 3.22 psi, | J6: Velocity = 100 fpm | L6: (Dt = 1°F, Dp = 3.55 psi,
A7: Type L, | C7: =Pressure($D$1,"TVAP","E",C9)-Pressure($D$1,"TVAP","E",C9-2) -> 0.7370174338 | D7: =Pressure($D$1,"TVAP","E",D9)-Pressure($D$1,"TVAP","E",D9-2) -> 1.100265096 | E7: =Pressure($D$1,"TVAP","E",E9)-Pressure($D$1,"TVAP","E",E9-2) -> 1.572033328 | F7: =Pressure($D$1,"TVAP","E",F9)-Pressure($D$1,"TVAP","E",F9-2) -> 2.165662594 | G7: =Pressure($D$1,"TVAP","E",G9)-Pressure($D$1,"TVAP","E",G9-2) -> 2.894676846 | H7: max velocity 3000 fpm) | L7: max velocity 300 fpm)
A8: Copper, | C8: Saturated Suction Temperature, °F
A9: OD, in | C9: -40 | D9: -20 | E9: 0 | F9: 20 | G9: 40 | H9: -40 | I9: 40 | J9: -40 | K9: 40 | L9: -40 | M9: 40
A10: 3/8 | C10: --- | D10: --- | E10: --- | F10: 0.139 | G10: 0.209 | H10: 0.303 | I10: 0.413 | J10: 0.725 | K10: 0.905 | L10: 1.13 | M10: 1.42
A11: 1/2 | C11: --- | D11: 0.135 | E11: 0.221 | F11: 0.344 | G11: 0.514 | H11: 0.743 | I11: 1.01 | J11: 1.42 | K11: 1.78 | L11: 2.8 | M11: 3.49
A12: 5/8 | C12: 0.143 | D12: 0.246 | E12: 0.401 | F12: 0.622 | G12: 0.93 | H12: 1.34 | I12: 1.83 | J12: 2.23 | K12: 2.78 | L12: 5.07 | M12: 6.33
A13: 3/4 | C13: 0.244 | D13: 0.42 | E13: 0.683 | F13: 1.06 | G13: 1.58 | H13: 2.28 | I13: 3.11 | J13: 3.32 | K13: 4.15 | L13: 8.63 | M13: 10.8
A14: 7/8 | C14: 0.38 | D14: 0.652 | E14: 1.06 | F14: 1.64 | G14: 2.45 | H14: 3.53 | I14: 4.81 | J14: 4.62 | K14: 5.77 | L14: 13.4 | M14: 16.7
A15: 1 1/8 | C15: 0.774 | D15: 1.33 | E15: 2.15 | F15: 3.32 | G15: 4.95 | H15: 7.13 | I15: 9.7 | J15: 7.88 | K15: 9.83 | L15: 23.6 | M15: 29.5
A16: 1 3/8 | C16: 1.35 | D16: 2.32 | E16: 3.75 | F16: 5.79 | G16: 8.61 | H16: 12.4 | I16: 16.9 | J16: 12 | K16: 15 | L16: 36 | M16: 44.9
A17: 1 5/8 | C17: 2.15 | D17: 3.67 | E17: 5.93 | F17: 9.16 | G17: 13.6 | H17: 19.6 | I17: 26.6 | J17: 17 | K17: 21.2 | L17: 50.9 | M17: 63.6
A18: 2 1/8 | C18: 4.21 | D18: 7.22 | E18: 11.8 | F18: 18.5 | G18: 28 | H18: 40.4 | I18: 54.9 | J18: 29.5 | K18: 36.9 | L18: 88.6 | M18: 111
A19: 2 5/8 | C19: 6.49 | D19: 11.1 | E19: 18.2 | F19: 28.5 | G19: 43.1 | H19: 71.3 | I19: 96.8 | J19: 45.5 | K19: 56.9 | L19: 137 | M19: 171
A20: 3 1/8 | C20: 9.27 | D20: 15.9 | E20: 25.9 | F20: 40.6 | G20: 61.6 | H20: 114 | I20: 154 | J20: 65 | K20: 81.1 | L20: 195 | M20: 243
A21: 3 5/8 | C21: 12.5 | D21: 21.5 | E21: 35.1 | F21: 55 | G21: 83.3 | H21: 168 | I21: 228 | J21: 87.9 | K21: 110 | L21: 264 | M21: 329
A22: 4 1/8 | C22: 16.3 | D22: 27.9 | E22: 45.6 | F22: 71.4 | G22: 108 | H22: 223 | I22: 321 | J22: 114 | K22: 143 | L22: 343 | M22: 428
A23: Steel
A24: IPS | B24: SCH
A25: 3/8 | B25: 80 | C25: --- | D25: 0.103 | E25: 0.164 | F25: 0.25 | G25: 0.366 | H25: 0.522 | I25: 0.705 | J25: 1.34 | K25: 1.67 | L25: 2.03 | M25: 2.54
A26: 1/2 | B26: 80 | C26: 0.122 | D26: 0.204 | E26: 0.324 | F26: 0.493 | G26: 0.721 | H26: 1.03 | I26: 1.39 | J26: 2.23 | K26: 2.79 | L26: 4.01 | M26: 5
A27: 3/4 | B27: 80 | C27: 0.277 | D27: 0.462 | E27: 0.732 | F27: 1.11 | G27: 1.62 | H27: 2.32 | I27: 3.12 | J27: 4.13 | K27: 5.15 | L27: 9.03 | M27: 11.3
A28: 1 | B28: 80 | C28: 0.544 | D28: 0.907 | E28: 1.44 | F28: 2.18 | G28: 3.18 | H28: 4.53 | I28: 6.11 | J28: 6.86 | K28: 8.57 | L28: 17.7 | M28: 22.1
A29: 1 1/4 | B29: 80 | C29: 1.17 | D29: 1.95 | E29: 3.08 | F29: 4.66 | G29: 6.82 | H29: 9.71 | I29: 13.1 | J29: 12.2 | K29: 15.3 | L29: 36.7 | M29: 45.8
A30: 1 1/2 | B30: 80 | C30: 1.79 | D30: 2.97 | E30: 4.7 | F30: 7.11 | G30: 10.4 | H30: 14.8 | I30: 20 | J30: 16.9 | K30: 21.1 | L30: 50.6 | M30: 63.2
A31: 2 | B31: 40 | C31: 4.16 | D31: 6.91 | E31: 10.9 | F31: 16.5 | G31: 24.1 | H31: 34.3 | I31: 46.3 | J31: 32 | K31: 40 | L31: 96.1 | M31: 120
A32: 2 1/2 | B32: 40 | C32: 6.51 | D32: 11 | E32: 17.4 | F32: 26.3 | G32: 38.4 | H32: 54.7 | I32: 73.8 | J32: 45.7 | K32: 57 | L32: 137 | M32: 171
A33: 3 | B33: 40 | C33: 10.1 | D33: 17.2 | E33: 28.1 | F33: 44.1 | G33: 66.8 | H33: 96.6 | I33: 130 | J33: 70.6 | K33: 88.1 | L33: 212 | M33: 264
A34: 4 | B34: 40 | C34: 17.3 | D34: 29.7 | E34: 48.4 | F34: 15.9 | G34: 115 | H34: 197 | I34: 265 | J34: 121 | K34: 152 | L34: 364 | M34: 455
A35: Notes:
A36: 1. Table capacities are in tons of refrigeration. Discharge refrigerant state is determined with compression at 70 percent isentropic efficiency and 25°F superheated refrigerant entering compressor. Liquid and suction refrigerant states are at saturation.
A37: Dp = pressure drop from line friction, psi per 100 ft equivalent length.
A38: Dt = change in saturation temperature corresponding to Dp, °F per 100 ft equivalent length.
A39: 2. Same as I-P R2022 chapter 1 tables.
A40: 3. Same as I-P R2022 chapter 1 tables.
A41: 4. Refrigerant thermodynamic and thermophysical properties calculated using NIST RefProp v10.0. Refrigerant flow rates calculated using the Darcy-Weisbach and Colebrook equations.
A42: 5. Table capacities based on 105°F condensing temperature and 0°F subcooling. Multiply capacities by the following correction factors for other condensing temperatures. Correction factors based on a 0°F evaporator temperature, and are suitable in the range of -40°F to 40°F.
D43: Condensing Temperature, °F
D44: 80 | E44: 90 | F44: 100 | G44: 110 | H44: 120 | I44: 130 | J44: 140
B45: Liquid Line | D45: 1.27 | E45: 1.16 | F45: 1.05 | G45: 0.95 | H45: 0.84 | I45: 0.73 | J45: 0.63
B46: Suction Line | D46: =ROUND($E56/$E$59,2) -> 1.19 | E46: =ROUND($E57/$E$59,2) -> 1.11 | F46: =ROUND($E58/$E$59,2) -> 1.04 | G46: =ROUND($E60/$E$59,2) -> 0.96 | H46: =ROUND($E61/$E$59,2) -> 0.88 | I46: =ROUND($E62/$E$59,2) -> 0.8 | J46: =ROUND($E63/$E$59,2) -> 0.71
B47: Discharge Line | D47: 0.87 | E47: 0.93 | F47: 0.98 | G47: 1.02 | H47: 1.05 | I47: 1.06 | J47: 1.06
A48: aSame as I-P R2022 chapter 1 tables.
A49: bSame as I-P R2022 chapter 1 tables.
A50: cSame as I-P R2022 chapter 1 tables.
E53: NRE @ 0°F
D54: Cond | E54: Evap,
D55: Temp, °F | E55: Btu/lb
D56: 80 | E56: =Enthalpy($D$1,"TVAP","E",0)-Enthalpy($D$1,"TLIQ","E",$D56) -> 61.31628682
D57: 90 | E57: 57.5260696
D58: 100 | E58: 53.64113273
D59: 105 | E59: 51.65830192
D60: 110 | E60: 49.64535442
D61: 120 | E61: 45.51705728
D62: 130 | E62: 41.22641037
D63: 140 | E63: 36.72966201

Sheet Table 10 SI
A1: NIST Refrigerant File | D1: R455A.mix | I1: =(Pressure($D$1,"TVAP","C",40)-Pressure($D$1,"TVAP","C",39.5))*1000 -> 19.8015644 | M1: =(Pressure($D$1,"TLIQ","C",40)-Pressure($D$1,"TLIQ","C",39.5))*1000 -> 21.86587208
A3: Table 10 Suction, Discharge, and Liquid Line Capacities for Refrigerant 455A (Single- or High-Stage Applications)
C5: Suction Lines (Dt = 1 K, max velocity 15 m/s, | H5: Discharge Linesc | J5: Liquid Linesa,b,c
A6: Line Size | C6: corresponding Dp, kPa) | H6: (Dt = 0.5 K, Dp = 19.8 kPa, | J6: Velocity = 0.5 m/s | L6: (Dt = 0.5 K, Dp = 21.9 kPa,
A7: Type L, | C7: =(Pressure($D$1,"TVAP","C",C9)-Pressure($D$1,"TVAP","C",C9-1))*1000 -> 4.58309049 | D7: =(Pressure($D$1,"TVAP","C",D9)-Pressure($D$1,"TVAP","C",D9-1))*1000 -> 6.585639739 | E7: =(Pressure($D$1,"TVAP","C",E9)-Pressure($D$1,"TVAP","C",E9-1))*1000 -> 9.127210013 | F7: =(Pressure($D$1,"TVAP","C",F9)-Pressure($D$1,"TVAP","C",F9-1))*1000 -> 14.0824492 | G7: =(Pressure($D$1,"TVAP","C",G9)-Pressure($D$1,"TVAP","C",G9-1))*1000 -> 18.23716304 | H7: max velocity 15 m/s) | L7: max velocity 1.5 m/s)
A8: Copper, | C8: Saturated Suction Temperature, °C
A9: OD, in (mm) | C9: -40 | D9: -30 | E9: -20 | F9: -5 | G9: 5 | H9: -40 | I9: 5 | J9: -40 | K9: 5 | L9: -40 | M9: 5
A10: 3/8 (10) | C10: 0.106 | D10: 0.175 | E10: 0.274 | F10: 0.5 | G10: 0.718 | H10: 1.01 | I10: 1.38 | J10: 2.54 | K10: 3.17 | L10: 3.81 | M10: 4.76
A11: 1/2 (13) | C11: 0.265 | D11: 0.434 | E11: 0.678 | F11: 1.23 | G11: 1.77 | H11: 2.48 | I11: 3.4 | J11: 4.99 | K11: 6.23 | L11: 9.41 | M11: 11.8
A12: 5/8 (16) | C12: 0.482 | D12: 0.789 | E12: 1.23 | F12: 2.24 | G12: 3.2 | H12: 4.49 | I12: 6.14 | J12: 7.8 | K12: 9.74 | L12: 17.1 | M12: 21.3
A13: 3/4 (19) | C13: 0.826 | D13: 1.35 | E13: 2.1 | F13: 3.81 | G13: 5.45 | H13: 7.64 | I13: 10.4 | J13: 11.6 | K13: 14.5 | L13: 29.1 | M13: 36.3
A14: 7/8 (22) | C14: 1.28 | D14: 2.09 | E14: 3.26 | F14: 5.9 | G14: 8.42 | H14: 11.8 | I14: 16.1 | J14: 16.2 | K14: 20.2 | L14: 45 | M14: 56.2
A15: 1 1/8 (29) | C15: 2.62 | D15: 4.26 | E15: 6.62 | F15: 11.9 | G15: 17 | H15: 23.8 | I15: 32.5 | J15: 27.6 | K15: 34.4 | L15: 82.7 | M15: 103
A16: 1 3/8 (35) | C16: 4.58 | D16: 7.44 | E16: 11.6 | F16: 20.8 | G16: 29.7 | H16: 41.5 | I16: 56.5 | J16: 42 | K16: 52.5 | L16: 126 | M16: 157
A17: 1 5/8 (41) | C17: 7.27 | D17: 11.8 | E17: 18.3 | F17: 32.9 | G17: 46.8 | H17: 65.5 | I17: 89.2 | J17: 59.4 | K17: 74.2 | L17: 178 | M17: 223
A18: 2 1/8 (54) | C18: 14.7 | D18: 23.9 | E18: 37.4 | F18: 68.2 | G18: 96.9 | H18: 135 | I18: 184 | J18: 103 | K18: 129 | L18: 310 | M18: 387
A19: 2 5/8 (67) | C19: 22.7 | D19: 36.9 | E19: 57.6 | F19: 106 | G19: 153 | H19: 239 | I19: 325 | J19: 159 | K19: 199 | L19: 478 | M19: 598
A20: 3 1/8 (79) | C20: 32.4 | D20: 52.6 | E20: 82.3 | F20: 151 | G20: 219 | H20: 380 | I20: 517 | J20: 228 | K20: 284 | L20: 683 | M20: 853
A21: 3 5/8 (92) | C21: 43.8 | D21: 71.2 | E21: 111 | F21: 204 | G21: 296 | H21: 564 | I21: 766 | J21: 308 | K21: 385 | L21: 924 | M21: 1150
A22: 4 1/8 (105) | C22: 56.9 | D22: 92.6 | E22: 145 | F22: 266 | G22: 385 | H22: 768 | I22: 1080 | J22: 400 | K22: 500 | L22: 1200 | M22: 1500
A23: Steel
A24: IPS (mm) | B24: SCH
A25: 3/8 (10) | B25: 80 | C25: 0.209 | D25: 0.334 | E25: 0.51 | F25: 0.898 | G25: 1.26 | H25: 1.75 | I25: 2.37 | J25: 4.7 | K25: 5.86 | L25: 6.87 | M25: 8.58
A26: 1/2 (13) | B26: 80 | C26: 0.414 | D26: 0.66 | E26: 1.01 | F26: 1.77 | G26: 2.49 | H26: 3.45 | I26: 4.66 | J26: 7.82 | K26: 9.77 | L26: 13.5 | M26: 16.9
A27: 3/4 (19) | B27: 80 | C27: 0.938 | D27: 1.49 | E27: 2.27 | F27: 3.99 | G27: 5.6 | H27: 7.77 | I27: 10.5 | J27: 14.5 | K27: 18 | L27: 30.5 | M27: 38.1
A28: 1 (25) | B28: 80 | C28: 1.84 | D28: 2.93 | E28: 4.45 | F28: 7.82 | G28: 11 | H28: 15.2 | I28: 20.5 | J28: 24 | K28: 30 | L28: 59.8 | M28: 74.7
A29: 1 1/4 (32) | B29: 80 | C29: 3.97 | D29: 6.29 | E29: 9.56 | F29: 16.8 | G29: 23.5 | H29: 32.6 | I29: 44 | J29: 42.9 | K29: 53.5 | L29: 128 | M29: 160
A30: 1 1/2 (38) | B30: 80 | C30: 6.06 | D30: 9.6 | E30: 14.6 | F30: 25.6 | G30: 35.8 | H30: 49.7 | I30: 67.1 | J30: 59.1 | K30: 73.8 | L30: 177 | M30: 221
A31: 2 (51) | B31: 40 | C31: 14.1 | D31: 22.3 | E31: 33.9 | F31: 59.4 | G31: 83.2 | H31: 115 | I31: 156 | J31: 112 | K31: 140 | L31: 336 | M31: 420
A32: 2 1/2 (64) | B32: 40 | C32: 22.5 | D32: 35.6 | E32: 54 | F32: 94.6 | G32: 133 | H32: 184 | I32: 248 | J32: 160 | K32: 200 | L32: 480 | M32: 599
A33: 3 (76) | B33: 40 | C33: 35.1 | D33: 57.1 | E33: 89.3 | F33: 164 | G33: 234 | H33: 324 | I33: 438 | J33: 247 | K33: 309 | L33: 741 | M33: 926
A34: 4 (102) | B34: 40 | C34: 60.5 | D34: 98.4 | E34: 154 | F34: 282 | G34: 409 | H34: 660 | I34: 891 | J34: 425 | K34: 531 | L34: 1280 | M34: 1590
A35: Notes:
A36: 1. Table capacities are in kilowatts of refrigeration. Discharge refrigerant state is determined with compression at 70 percent isentropic efficiency and 14 K superheated refrigerant entering the compressor. Liquid and suction refrigerant states are at saturation.
A37: Dp = pressure drop from line friction, kPa per 30 meters equivalent length.
A38: Dt = change in saturation temperature corresponding to Dp, K per 30 meters equivalent length.
A39: 2. Same as SI R2022 chapter 1 tables.
A40: 3. Same as SI R2022 chapter 1 tables.
A41: 4. Refrigerant thermodynamic and thermophysical properties calculated using NIST RefProp v10.0. Refrigerant flow rates calculated using the Darcy-Weisbach and Colebrook equations.
A42: 5. Table capacities based on 40°C condensing temperature and 0 K subcooling. Multiply capacities by the following correction factors for other condensing temperatures. Correction factors based on a -18°C evaporator temperature, and are suitable in the range of -40°C to 5°C.
D43: Condensing Temperature, °C
D44: 25 | E44: 30 | F44: 35 | G44: 45 | H44: 50 | I44: 55 | J44: 60
B45: Liquid Line | D45: 1.28 | E45: 1.19 | F45: 1.1 | G45: 0.9 | H45: 0.81 | I45: 0.72 | J45: 0.62
B46: Suction Line | D46: =ROUND($E56/$E$59,2) -> 1.2 | E46: =ROUND($E57/$E$59,2) -> 1.13 | F46: =ROUND($E58/$E$59,2) -> 1.07 | G46: =ROUND($E60/$E$59,2) -> 0.93 | H46: =ROUND($E61/$E$59,2) -> 0.86 | I46: =ROUND($E62/$E$59,2) -> 0.78 | J46: =ROUND($E63/$E$59,2) -> 0.71
B47: Discharge Line | D47: 0.86 | E47: 0.91 | F47: 0.96 | G47: 1.03 | H47: 1.05 | I47: 1.06 | J47: 1.06
A48: aSame as SI R2022 chapter 1 tables.
A49: bSame as SI R2022 chapter 1 tables.
A50: cSame as SI R2022 chapter 1 tables.
E53: NRE @ -18°C
D54: Cond | E54: Evap,
D55: Temp, °C | E55: Btu/lb
D56: 25 | E56: =Enthalpy($D$1,"TVAP","C",-18)-Enthalpy($D$1,"TLIQ","C",$D56) -> 144.9976195
D57: 30 | E57: 137.1317207
D58: 35 | E58: 129.0974335
D59: 40 | E59: 120.8708861
D60: 45 | E60: 112.4209583
D61: 50 | E61: 103.7068849
D62: 55 | E62: 94.67372804
D63: 60 | E63: 85.2428933

Sheet Table 11
A1: NIST Refrigerant File | D1: R457A.mix | I1: =Pressure($D$1,"TVAP","E",105)-Pressure($D$1,"TVAP","E",104) -> 2.781938326 | M1: =Pressure($D$1,"TLIQ","E",105)-Pressure($D$1,"TLIQ","E",104) -> 3.007793734
A3: Table 11 Suction, Discharge, and Liquid Line Capacities for Refrigerant 457A (Single- or High-Stage Applications)
C5: Suction Lines (Dt = 2°F, max velocity 3000 fpm, | H5: Discharge Linesc | J5: Liquid Linesa,b,c
A6: Line Size | C6: corresponding Dp, psi) | H6: (Dt = 1°F, Dp = 2.78 psi, | J6: Velocity = 100 fpm | L6: (Dt = 1°F, Dp = 3.01 psi,
A7: Type L, | C7: =Pressure($D$1,"TVAP","E",C9)-Pressure($D$1,"TVAP","E",C9-2) -> 0.6262239874 | D7: =Pressure($D$1,"TVAP","E",D9)-Pressure($D$1,"TVAP","E",D9-2) -> 0.9396753591 | E7: =Pressure($D$1,"TVAP","E",E9)-Pressure($D$1,"TVAP","E",E9-2) -> 1.34842049 | F7: =Pressure($D$1,"TVAP","E",F9)-Pressure($D$1,"TVAP","E",F9-2) -> 1.864088065 | G7: =Pressure($D$1,"TVAP","E",G9)-Pressure($D$1,"TVAP","E",G9-2) -> 2.497928526 | H7: max velocity 3000 fpm) | L7: max velocity 300 fpm)
A8: Copper, | C8: Saturated Suction Temperature, °F
A9: OD, in | C9: -40 | D9: -20 | E9: 0 | F9: 20 | G9: 40 | H9: -40 | I9: 40 | J9: -40 | K9: 40 | L9: -40 | M9: 40
A10: 3/8 | C10: --- | D10: --- | E10: --- | F10: 0.126 | G10: 0.189 | H10: 0.265 | I10: 0.359 | J10: 0.784 | K10: 0.971 | L10: 1.11 | M10: 1.37
A11: 1/2 | C11: --- | D11: 0.122 | E11: 0.199 | F11: 0.311 | G11: 0.467 | H11: 0.653 | I11: 0.882 | J11: 1.54 | K11: 1.91 | L11: 2.74 | M11: 3.39
A12: 5/8 | C12: 0.128 | D12: 0.222 | E12: 0.362 | F12: 0.564 | G12: 0.845 | H12: 1.18 | I12: 1.59 | J12: 2.41 | K12: 2.98 | L12: 4.96 | M12: 6.15
A13: 3/4 | C13: 0.22 | D13: 0.379 | E13: 0.618 | F13: 0.962 | G13: 1.44 | H13: 2.01 | I13: 2.71 | J13: 3.59 | K13: 4.45 | L13: 8.46 | M13: 10.5
A14: 7/8 | C14: 0.341 | D14: 0.588 | E14: 0.958 | F14: 1.49 | G14: 2.22 | H14: 3.11 | I14: 4.18 | J14: 4.99 | K14: 6.18 | L14: 13.1 | M14: 16.2
A15: 1 1/8 | C15: 0.696 | D15: 1.2 | E15: 1.94 | F15: 3.02 | G15: 4.5 | H15: 6.28 | I15: 8.45 | J15: 8.51 | K15: 10.5 | L15: 25.5 | M15: 31.6
A16: 1 3/8 | C16: 1.22 | D16: 2.09 | E16: 3.4 | F16: 5.26 | G16: 7.84 | H16: 10.9 | I16: 14.7 | J16: 13 | K16: 16.1 | L16: 38.9 | M16: 48.2
A17: 1 5/8 | C17: 1.93 | D17: 3.32 | E17: 5.38 | F17: 8.32 | G17: 12.4 | H17: 17.3 | I17: 23.2 | J17: 18.4 | K17: 22.7 | L17: 55.1 | M17: 68.2
A18: 2 1/8 | C18: 3.82 | D18: 6.56 | E18: 10.7 | F18: 16.8 | G18: 25.5 | H18: 35.7 | I18: 47.9 | J18: 31.9 | K18: 39.5 | L18: 95.8 | M18: 119
A19: 2 5/8 | C19: 5.89 | D19: 10.1 | E19: 16.5 | F19: 26 | G19: 39.4 | H19: 62.9 | I19: 84.5 | J19: 49.2 | K19: 61 | L19: 148 | M19: 183
A20: 3 1/8 | C20: 8.41 | D20: 14.4 | E20: 23.6 | F20: 37 | G20: 56.2 | H20: 100 | I20: 135 | J20: 70.3 | K20: 87 | L20: 211 | M20: 261
A21: 3 5/8 | C21: 11.4 | D21: 19.5 | E21: 31.9 | F21: 50.1 | G21: 76 | H21: 148 | I21: 199 | J21: 95.1 | K21: 118 | L21: 285 | M21: 353
A22: 4 1/8 | C22: 14.8 | D22: 25.4 | E22: 41.5 | F22: 65.1 | G22: 98.8 | H22: 193 | I22: 276 | J22: 124 | K22: 153 | L22: 371 | M22: 459
A23: Steel
A24: IPS | B24: SCH
A25: 3/8 | B25: 80 | C25: --- | D25: --- | E25: 0.15 | F25: 0.229 | G25: 0.336 | H25: 0.463 | I25: 0.619 | J25: 1.45 | K25: 1.8 | L25: 2.01 | M25: 2.49
A26: 1/2 | B26: 80 | C26: 0.111 | D26: 0.186 | E26: 0.296 | F26: 0.451 | G26: 0.661 | H26: 0.912 | I26: 1.22 | J26: 2.42 | K26: 2.99 | L26: 3.97 | M26: 4.92
A27: 3/4 | B27: 80 | C27: 0.251 | D27: 0.421 | E27: 0.668 | F27: 1.02 | G27: 1.49 | H27: 2.06 | I27: 2.74 | J27: 4.46 | K27: 5.53 | L27: 8.95 | M27: 11.1
A28: 1 | B28: 80 | C28: 0.494 | D28: 0.826 | E28: 1.31 | F28: 1.99 | G28: 2.92 | H28: 4.02 | I28: 5.37 | J28: 7.42 | K28: 9.19 | L28: 17.5 | M28: 21.7
A29: 1 1/4 | B29: 80 | C29: 1.06 | D29: 1.78 | E29: 2.81 | F29: 4.27 | G29: 6.25 | H29: 8.62 | I29: 11.5 | J29: 13.2 | K29: 16.4 | L29: 37.6 | M29: 46.6
A30: 1 1/2 | B30: 80 | C30: 1.62 | D30: 2.71 | E30: 4.29 | F30: 6.51 | G30: 9.53 | H30: 13.1 | I30: 17.5 | J30: 18.2 | K30: 22.6 | L30: 54.7 | M30: 67.7
A31: 2 | B31: 40 | C31: 3.78 | D31: 6.3 | E31: 10 | F31: 15.1 | G31: 22.1 | H31: 30.5 | I31: 40.7 | J31: 34.6 | K31: 42.9 | L31: 104 | M31: 129
A32: 2 1/2 | B32: 40 | C32: 5.91 | D32: 10.1 | E32: 15.9 | F32: 24.1 | G32: 35.3 | H32: 48.6 | I32: 64.8 | J32: 49.4 | K32: 61.2 | L32: 148 | M32: 184
A33: 3 | B33: 40 | C33: 9.13 | D33: 15.7 | E33: 25.6 | F33: 40.2 | G33: 61 | H33: 85.9 | I33: 114 | J33: 76.3 | K33: 94.5 | L33: 229 | M33: 283
A34: 4 | B34: 40 | C34: 15.7 | D34: 27 | E34: 44.1 | F34: 69.2 | G34: 105 | H34: 175 | I34: 233 | J34: 131 | K34: 163 | L34: 394 | M34: 488
A35: Notes:
A36: 1. Table capacities are in tons of refrigeration. Discharge refrigerant state is determined with compression at 70 percent isentropic efficiency and 25°F superheated refrigerant entering compressor. Liquid and suction refrigerant states are at saturation.
A37: Dp = pressure drop from line friction, psi per 100 ft equivalent length.
A38: Dt = change in saturation temperature corresponding to Dp, °F per 100 ft equivalent length.
A39: 2. Same as I-P R2022 chapter 1 tables.
A40: 3. Same as I-P R2022 chapter 1 tables.
A41: 4. Refrigerant thermodynamic and thermophysical properties calculated using NIST RefProp v10.0. Refrigerant flow rates calculated using the Darcy-Weisbach and Colebrook equations.
A42: 5. Table capacities based on 105°F condensing temperature and 0°F subcooling. Multiply capacities by the following correction factors for other condensing temperatures. Correction factors based on a 0°F evaporator temperature, and are suitable in the range of -40°F to 40°F.
D43: Condensing Temperature, °F
D44: 80 | E44: 90 | F44: 100 | G44: 110 | H44: 120 | I44: 130 | J44: 140
B45: Liquid Line | D45: 1.24 | E45: 1.15 | F45: 1.05 | G45: 0.95 | H45: 0.86 | I45: 0.76 | J45: 0.66
B46: Suction Line | D46: =ROUND($E56/$E$59,2) -> 1.17 | E46: =ROUND($E57/$E$59,2) -> 1.1 | F46: =ROUND($E58/$E$59,2) -> 1.04 | G46: =ROUND($E60/$E$59,2) -> 0.96 | H46: =ROUND($E61/$E$59,2) -> 0.89 | I46: =ROUND($E62/$E$59,2) -> 0.82 | J46: =ROUND($E63/$E$59,2) -> 0.74
B47: Discharge Line | D47: 0.84 | E47: 0.91 | F47: 0.97 | G47: 1.03 | H47: 1.08 | I47: 1.11 | J47: 1.13
A48: aSame as I-P R2022 chapter 1 tables.
A49: bSame as I-P R2022 chapter 1 tables.
A50: cSame as I-P R2022 chapter 1 tables.
E53: NRE @ 0°F
D54: Cond | E54: Evap,
D55: Temp, °F | E55: Btu/lb
D56: 80 | E56: =Enthalpy($D$1,"TVAP","E",0)-Enthalpy($D$1,"TLIQ","E",$D56) -> 65.06641288
D57: 90 | E57: 61.29315062
D58: 100 | E58: 57.43574187
D59: 105 | E59: 55.4719114
D60: 110 | E60: 53.48227653
D61: 120 | E61: 49.41654695
D62: 130 | E62: 45.216346
D63: 140 | E63: 40.8505871

Sheet Table 11 SI
A1: NIST Refrigerant File | D1: R457A.mix | I1: =(Pressure($D$1,"TVAP","C",40)-Pressure($D$1,"TVAP","C",39.5))*1000 -> 17.08493354 | M1: =(Pressure($D$1,"TLIQ","C",40)-Pressure($D$1,"TLIQ","C",39.5))*1000 -> 18.49403088
A3: Table 11 Suction, Discharge, and Liquid Line Capacities for Refrigerant 457A (Single- or High-Stage Applications)
C5: Suction Lines (Dt = 1 K, max velocity 15 m/s, | H5: Discharge Linesc | J5: Liquid Linesa,b,c
A6: Line Size | C6: corresponding Dp, kPa) | H6: (Dt = 0.5 K, Dp = 17.1 kPa, | J6: Velocity = 0.5 m/s | L6: (Dt = 0.5 K, Dp = 18.5 kPa,
A7: Type L, | C7: =(Pressure($D$1,"TVAP","C",C9)-Pressure($D$1,"TVAP","C",C9-1))*1000 -> 3.894235512 | D7: =(Pressure($D$1,"TVAP","C",D9)-Pressure($D$1,"TVAP","C",D9-1))*1000 -> 5.621875535 | E7: =(Pressure($D$1,"TVAP","C",E9)-Pressure($D$1,"TVAP","C",E9-1))*1000 -> 7.822804658 | F7: =(Pressure($D$1,"TVAP","C",F9)-Pressure($D$1,"TVAP","C",F9-1))*1000 -> 12.12698064 | G7: =(Pressure($D$1,"TVAP","C",G9)-Pressure($D$1,"TVAP","C",G9-1))*1000 -> 15.73929956 | H7: max velocity 15 m/s) | L7: max velocity 1.5 m/s)
A8: Copper, | C8: Saturated Suction Temperature, °C
A9: OD, in (mm) | C9: -40 | D9: -30 | E9: -20 | F9: -5 | G9: 5 | H9: -40 | I9: 5 | J9: -40 | K9: 5 | L9: -40 | M9: 5
A10: 3/8 (10) | C10: --- | D10: 0.157 | E10: 0.247 | F10: 0.453 | G10: 0.651 | H10: 0.885 | I10: 1.2 | J10: 2.74 | K10: 3.4 | L10: 3.72 | M10: 4.61
A11: 1/2 (13) | C11: 0.237 | D11: 0.39 | E11: 0.612 | F11: 1.12 | G11: 1.61 | H11: 2.18 | I11: 2.95 | J11: 5.39 | K11: 6.68 | L11: 9.19 | M11: 11.4
A12: 5/8 (16) | C12: 0.433 | D12: 0.71 | E12: 1.11 | F12: 2.03 | G12: 2.91 | H12: 3.94 | I12: 5.33 | J12: 8.42 | K12: 10.4 | L12: 16.7 | M12: 20.7
A13: 3/4 (19) | C13: 0.741 | D13: 1.21 | E13: 1.9 | F13: 3.46 | G13: 4.95 | H13: 6.71 | I13: 9.06 | J13: 12.6 | K13: 15.6 | L13: 28.4 | M13: 35.2
A14: 7/8 (22) | C14: 1.15 | D14: 1.88 | E14: 2.94 | F14: 5.35 | G14: 7.65 | H14: 10.4 | I14: 14 | J14: 17.5 | K14: 21.6 | L14: 44 | M14: 54.5
A15: 1 1/8 (29) | C15: 2.35 | D15: 3.84 | E15: 5.98 | F15: 10.8 | G15: 15.5 | H15: 21 | I15: 28.3 | J15: 29.8 | K15: 36.9 | L15: 89.3 | M15: 111
A16: 1 3/8 (35) | C16: 4.12 | D16: 6.71 | E16: 10.5 | F16: 18.9 | G16: 27 | H16: 36.5 | I16: 49.2 | J16: 45.4 | K16: 56.2 | L16: 136 | M16: 169
A17: 1 5/8 (41) | C17: 6.54 | D17: 10.6 | E17: 16.6 | F17: 29.9 | G17: 42.6 | H17: 57.7 | I17: 77.6 | J17: 64.2 | K17: 79.6 | L17: 193 | M17: 239
A18: 2 1/8 (54) | C18: 13.3 | D18: 21.7 | E18: 34 | F18: 62 | G18: 88.3 | H18: 119 | I18: 160 | J18: 112 | K18: 138 | L18: 335 | M18: 415
A19: 2 5/8 (67) | C19: 20.6 | D19: 33.5 | E19: 52.4 | F19: 96.5 | G19: 140 | H19: 210 | I19: 283 | J19: 172 | K19: 213 | L19: 517 | M19: 640
A20: 3 1/8 (79) | C20: 29.3 | D20: 47.8 | E20: 74.8 | F20: 138 | G20: 200 | H20: 335 | I20: 450 | J20: 246 | K20: 305 | L20: 738 | M20: 914
A21: 3 5/8 (92) | C21: 39.7 | D21: 64.7 | E21: 101 | F21: 186 | G21: 270 | H21: 497 | I21: 668 | J21: 333 | K21: 412 | L21: 998 | M21: 1240
A22: 4 1/8 (105) | C22: 51.6 | D22: 84.1 | E22: 132 | F22: 242 | G22: 351 | H22: 663 | I22: 941 | J22: 432 | K22: 536 | L22: 1300 | M22: 1610
A23: Steel
A24: IPS (mm) | B24: SCH
A25: 3/8 (10) | B25: 80 | C25: 0.189 | D25: 0.303 | E25: 0.464 | F25: 0.821 | G25: 1.16 | H25: 1.55 | I25: 2.07 | J25: 5.07 | K25: 6.29 | L25: 6.79 | M25: 8.42
A26: 1/2 (13) | B26: 80 | C26: 0.375 | D26: 0.6 | E26: 0.917 | F26: 1.62 | G26: 2.28 | H26: 3.06 | I26: 4.08 | J26: 8.45 | K26: 10.5 | L26: 13.4 | M26: 16.6
A27: 3/4 (19) | B27: 80 | C27: 0.85 | D27: 1.36 | E27: 2.07 | F27: 3.65 | G27: 5.13 | H27: 6.89 | I27: 9.2 | J27: 15.6 | K27: 19.3 | L27: 30.2 | M27: 37.5
A28: 1 (25) | B28: 80 | C28: 1.67 | D28: 2.66 | E28: 4.06 | F28: 7.16 | G28: 10.1 | H28: 13.5 | I28: 18 | J28: 26 | K28: 32.2 | L28: 59.2 | M28: 73.4
A29: 1 1/4 (32) | B29: 80 | C29: 3.6 | D29: 5.73 | E29: 8.73 | F29: 15.3 | G29: 21.6 | H29: 28.9 | I29: 38.6 | J29: 46.3 | K29: 57.4 | L29: 127 | M29: 157
A30: 1 1/2 (38) | B30: 80 | C30: 5.5 | D30: 8.74 | E30: 13.3 | F30: 23.4 | G30: 32.9 | H30: 44 | I30: 58.8 | J30: 63.8 | K30: 79 | L30: 191 | M30: 237
A31: 2 (51) | B31: 40 | C31: 12.8 | D31: 20.4 | E31: 31 | F31: 54.4 | G31: 76.3 | H31: 102 | I31: 136 | J31: 121 | K31: 150 | L31: 363 | M31: 450
A32: 2 1/2 (64) | B32: 40 | C32: 20.5 | D32: 32.5 | E32: 49.4 | F32: 86.7 | G32: 122 | H32: 163 | I32: 217 | J32: 173 | K32: 214 | L32: 518 | M32: 642
A33: 3 (76) | B33: 40 | C33: 31.8 | D33: 51.9 | E33: 81.2 | F33: 149 | G33: 215 | H33: 288 | I33: 384 | J33: 267 | K33: 331 | L33: 800 | M33: 992
A34: 4 (102) | B34: 40 | C34: 54.8 | D34: 89.4 | E34: 140 | F34: 257 | G34: 373 | H34: 586 | I34: 781 | J34: 459 | K34: 569 | L34: 1380 | M34: 1710
A35: Notes:
A36: 1. Table capacities are in kilowatts of refrigeration. Discharge refrigerant state is determined with compression at 70 percent isentropic efficiency and 14 K superheated refrigerant entering the compressor. Liquid and suction refrigerant states are at saturation.
A37: Dp = pressure drop from line friction, kPa per 30 meters equivalent length.
A38: Dt = change in saturation temperature corresponding to Dp, K per 30 meters equivalent length.
A39: 2. Same as SI R2022 chapter 1 tables.
A40: 3. Same as SI R2022 chapter 1 tables.
A41: 4. Refrigerant thermodynamic and thermophysical properties calculated using NIST RefProp v10.0. Refrigerant flow rates calculated using the Darcy-Weisbach and Colebrook equations.
A42: 5. Table capacities based on 40°C condensing temperature and 0 K subcooling. Multiply capacities by the following correction factors for other condensing temperatures. Correction factors based on a -18°C evaporator temperature, and are suitable in the range of -40°C to 5°C.
D43: Condensing Temperature, °C
D44: 25 | E44: 30 | F44: 35 | G44: 45 | H44: 50 | I44: 55 | J44: 60
B45: Liquid Line | D45: 1.26 | E45: 1.17 | F45: 1.09 | G45: 0.91 | H45: 0.83 | I45: 0.74 | J45: 0.65
B46: Suction Line | D46: =ROUND($E56/$E$59,2) -> 1.18 | E46: =ROUND($E57/$E$59,2) -> 1.12 | F46: =ROUND($E58/$E$59,2) -> 1.06 | G46: =ROUND($E60/$E$59,2) -> 0.94 | H46: =ROUND($E61/$E$59,2) -> 0.87 | I46: =ROUND($E62/$E$59,2) -> 0.8 | J46: =ROUND($E63/$E$59,2) -> 0.73
B47: Discharge Line | D47: 0.85 | E47: 0.91 | F47: 0.96 | G47: 1.04 | H47: 1.08 | I47: 1.11 | J47: 1.13
A48: aSame as SI R2022 chapter 1 tables.
A49: bSame as SI R2022 chapter 1 tables.
A50: cSame as SI R2022 chapter 1 tables.
E53: NRE @ -18°C
D54: Cond | E54: Evap,
D55: Temp, °C | E55: Btu/lb
D56: 25 | E56: =Enthalpy($D$1,"TVAP","C",-18)-Enthalpy($D$1,"TLIQ","C",$D56) -> 153.7016604
D57: 30 | E57: 145.8651001
D58: 35 | E58: 137.877435
D59: 40 | E59: 129.7210849
D60: 45 | E60: 121.3729423
D61: 50 | E61: 112.8024493
D62: 55 | E62: 103.9689263
D63: 60 | E63: 94.81701524

Sheet Table 11A
A1: NIST Refrigerant File | D1: R1234yf;7750;R134a;850;R152a;1400 mass | I1: =Pressure($D$1,"TVAP","E",105)-Pressure($D$1,"TVAP","E",104) -> 2.154085583 | M1: =Pressure($D$1,"TLIQ","E",105)-Pressure($D$1,"TLIQ","E",104) -> 2.155093671 | O1: =(I1+M1)/2 -> 2.154589627
A3: Table 11A Suction, Discharge, and Liquid Line Capacities for Refrigerant 516A (Single- or High-Stage Applications)
C5: Suction Lines (Dt = 2°F, max velocity 3000 fpm, | H5: Discharge Linesc | J5: Liquid Linesa,b,c
A6: Line Size | C6: corresponding Dp, psi) | H6: (Dt = 1°F, Dp = 2.15 psi, | J6: Velocity = 100 fpm | L6: (Dt = 1°F, Dp = 2.15 psi,
A7: Type L, | C7: =Pressure($D$1,"TVAP","E",C9)-Pressure($D$1,"TVAP","E",C9-2) -> 1.043140286 | D7: =Pressure($D$1,"TVAP","E",D9)-Pressure($D$1,"TVAP","E",D9-2) -> 1.234266895 | E7: =Pressure($D$1,"TVAP","E",E9)-Pressure($D$1,"TVAP","E",E9-2) -> 1.447505559 | F7: =Pressure($D$1,"TVAP","E",F9)-Pressure($D$1,"TVAP","E",F9-2) -> 1.683808889 | G7: =Pressure($D$1,"TVAP","E",G9)-Pressure($D$1,"TVAP","E",G9-2) -> 1.944093881 | H7: max velocity 3000 fpm) | L7: max velocity 300 fpm)
A8: Copper, | C8: Saturated Suction Temperature, °F
A9: OD, in | C9: 0 | D9: 10 | E9: 20 | F9: 30 | G9: 40 | H9: 0 | I9: 40 | J9: 0 | K9: 40 | L9: 0 | M9: 40
A10: 3/8 | C10: --- | D10: --- | E10: --- | F10: 0.114 | G10: 0.14 | H10: 0.209 | I10: 0.242 | J10: 0.813 | K10: 0.917 | L10: 0.92 | M10: 1.04
A11: 1/2 | C11: 0.143 | D11: 0.182 | E11: 0.227 | F11: 0.282 | G11: 0.346 | H11: 0.514 | I11: 0.594 | J11: 1.6 | K11: 1.8 | L11: 2.28 | M11: 2.57
A12: 5/8 | C12: 0.261 | D12: 0.33 | E12: 0.413 | F12: 0.511 | G12: 0.627 | H12: 0.931 | I12: 1.08 | J12: 2.5 | K12: 2.81 | L12: 4.14 | M12: 4.67
A13: 3/4 | C13: 0.445 | D13: 0.563 | E13: 0.704 | F13: 0.872 | G13: 1.07 | H13: 1.58 | I13: 1.83 | J13: 3.73 | K13: 4.2 | L13: 7.07 | M13: 7.97
A14: 7/8 | C14: 0.69 | D14: 0.872 | E14: 1.09 | F14: 1.35 | G14: 1.65 | H14: 2.45 | I14: 2.83 | J14: 5.18 | K14: 5.84 | L14: 10.9 | M14: 12.3
A15: 1 1/8 | C15: 1.4 | D15: 1.77 | E15: 2.21 | F15: 2.73 | G15: 3.35 | H15: 4.95 | I15: 5.72 | J15: 8.83 | K15: 10 | L15: 22.2 | M15: 25.1
A16: 1 3/8 | C16: 2.45 | D16: 3.09 | E16: 3.86 | F16: 4.77 | G16: 5.83 | H16: 8.62 | I16: 10 | J16: 13.5 | K16: 15.2 | L16: 38.8 | M16: 43.8
A17: 1 5/8 | C17: 3.88 | D17: 4.9 | E17: 6.11 | F17: 7.54 | G17: 9.22 | H17: 13.6 | I17: 15.7 | J17: 19 | K17: 21.5 | L17: 57.1 | M17: 64.4
A18: 2 1/8 | C18: 8.07 | D18: 10.2 | E18: 12.7 | F18: 15.6 | G18: 19.1 | H18: 28.2 | I18: 32.5 | J18: 33.1 | K18: 37.3 | L18: 99.4 | M18: 112
A19: 2 5/8 | C19: 12.9 | D19: 16.4 | E19: 20.6 | F19: 25.7 | G19: 31.7 | H19: 49.7 | I19: 57.3 | J19: 51.1 | K19: 57.6 | L19: 153 | M19: 173
A20: 3 1/8 | C20: 18.5 | D20: 23.4 | E20: 29.4 | F20: 36.6 | G20: 45.2 | H20: 79.1 | I20: 91.3 | J20: 72.9 | K20: 82.2 | L20: 219 | M20: 247
A21: 3 5/8 | C21: 25 | D21: 31.7 | E21: 39.8 | F21: 49.5 | G21: 61.1 | H21: 117 | I21: 135 | J21: 98.6 | K21: 111 | L21: 296 | M21: 334
A22: 4 1/8 | C22: 32.5 | D22: 41.2 | E22: 51.7 | F22: 64.4 | G22: 79.5 | H22: 165 | I22: 191 | J22: 128 | K22: 145 | L22: 385 | M22: 434
A23: Steel
A24: IPS | B24: SCH
A25: 3/8 | B25: 80 | C25: 0.109 | D25: 0.137 | E25: 0.169 | F25: 0.207 | G25: 0.251 | H25: 0.367 | I25: 0.423 | J25: 1.5 | K25: 1.7 | L25: 1.72 | M25: 1.93
A26: 1/2 | B26: 80 | C26: 0.216 | D26: 0.27 | E26: 0.333 | F26: 0.408 | G26: 0.496 | H26: 0.722 | I26: 0.832 | J26: 2.51 | K26: 2.83 | L26: 3.39 | M26: 3.82
A27: 3/4 | B27: 80 | C27: 0.487 | D27: 0.609 | E27: 0.752 | F27: 0.921 | G27: 1.12 | H27: 1.63 | I27: 1.87 | J27: 4.63 | K27: 5.22 | L27: 7.64 | M27: 8.62
A28: 1 | B28: 80 | C28: 0.956 | D28: 1.19 | E28: 1.47 | F28: 1.8 | G28: 2.19 | H28: 3.19 | I28: 3.67 | J28: 7.7 | K28: 8.68 | L28: 15 | M28: 16.9
A29: 1 1/4 | B29: 80 | C29: 2.05 | D29: 2.56 | E29: 3.16 | F29: 3.87 | G29: 4.69 | H29: 6.83 | I29: 7.86 | J29: 13.7 | K29: 15.5 | L29: 32.2 | M29: 36.3
A30: 1 1/2 | B30: 80 | C30: 3.13 | D30: 3.91 | E30: 4.83 | F30: 5.9 | G30: 7.15 | H30: 10.4 | I30: 12 | J30: 18.9 | K30: 21.3 | L30: 49.1 | M30: 55.3
A31: 2 | B31: 40 | C31: 7.28 | D31: 9.08 | E31: 11.2 | F31: 13.7 | G31: 16.6 | H31: 24.2 | I31: 27.8 | J31: 35.9 | K31: 40.5 | L31: 108 | M31: 121
A32: 2 1/2 | B32: 40 | C32: 11.6 | D32: 14.5 | E32: 17.9 | F32: 21.9 | G32: 26.5 | H32: 38.5 | I32: 44.3 | J32: 51.2 | K32: 57.8 | L32: 154 | M32: 173
A33: 3 | B33: 40 | C33: 20.1 | D33: 25.4 | E33: 31.6 | F33: 38.6 | G33: 46.8 | H33: 68 | I33: 78.3 | J33: 79.1 | K33: 89.2 | L33: 237 | M33: 268
A34: 4 | B34: 40 | C34: 34.5 | D34: 43.8 | E34: 55 | F34: 68.4 | G34: 84.5 | H34: 138 | I34: 159 | J34: 136 | K34: 154 | L34: 409 | M34: 461
A35: Notes:
A36: 1. Table capacities are in tons of refrigeration. Discharge refrigerant state is determined with compression at 70 percent isentropic efficiency and 25°F superheated refrigerant entering compressor. Liquid and suction refrigerant states are at saturation.
A37: Dp = pressure drop from line friction, psi per 100 ft equivalent length.
A38: Dt = change in saturation temperature corresponding to Dp, °F per 100 ft equivalent length.
A39: 2. Same as I-P R2022 chapter 1 tables.
A40: 3. Same as I-P R2022 chapter 1 tables.
A41: 4. Refrigerant thermodynamic and thermophysical properties calculated using NIST RefProp v10.0. Refrigerant flow rates calculated using the Darcy-Weisbach and Colebrook equations.
A42: 5. Table capacities based on 105°F condensing temperature and 0°F subcooling. Multiply capacities by the following correction factors for other condensing temperatures. Correction factors based on a 20°F evaporator temperature, and are suitable in the range of 0°F to 40°F.
D43: Condensing Temperature, °F
D44: 80 | E44: 90 | F44: 100 | G44: 110 | H44: 120 | I44: 130 | J44: 140
B45: Liquid Line | D45: 1.23 | E45: 1.14 | F45: 1.05 | G45: 0.95 | H45: 0.86 | I45: 0.77 | J45: 0.68
B46: Suction Line | D46: =ROUND($E56/$E$59,2) -> 1.17 | E46: =ROUND($E57/$E$59,2) -> 1.1 | F46: =ROUND($E58/$E$59,2) -> 1.04 | G46: =ROUND($E60/$E$59,2) -> 0.96 | H46: =ROUND($E61/$E$59,2) -> 0.89 | I46: =ROUND($E62/$E$59,2) -> 0.82 | J46: =ROUND($E63/$E$59,2) -> 0.74
B47: Discharge Line | D47: 0.84 | E47: 0.91 | F47: 0.97 | G47: 1.03 | H47: 1.07 | I47: 1.11 | J47: 1.13
A48: aSame as I-P R2022 chapter 1 tables.
A49: bSame as I-P R2022 chapter 1 tables.
A50: cSame as I-P R2022 chapter 1 tables.
E53: NRE @ 20°F
D54: Cond | E54: Evap,
D55: Temp, °F | E55: Btu/lb
D56: 80 | E56: =Enthalpy($D$1,"TVAP","E",20)-Enthalpy($D$1,"TLIQ","E",$D56) -> 61.09057414
D57: 90 | E57: 57.56063376
D58: 100 | E58: 53.96384488
D59: 105 | E59: 52.13843073
D60: 110 | E60: 50.29369435
D61: 120 | E61: 46.54123603
D62: 130 | E62: 42.69407656
D63: 140 | E63: 38.73516985

Sheet Table 11A SI
A1: NIST Refrigerant File | D1: R1234yf;7750;R134a;850;R152a;1400 mass | I1: =(Pressure($D$1,"TVAP","C",40)-Pressure($D$1,"TVAP","C",39.5))*1000 -> 13.23238398 | M1: =(Pressure($D$1,"TLIQ","C",40)-Pressure($D$1,"TLIQ","C",39.5))*1000 -> 13.23849809
A3: Table 11A Suction, Discharge, and Liquid Line Capacities for Refrigerant 516A (Single- or High-Stage Applications)
C5: Suction Lines (Dt = 1 K, max velocity 15 m/s, | H5: Discharge Linesc | J5: Liquid Linesa,b,c
A6: Line Size | C6: corresponding Dp, kPa) | H6: (Dt = 0.5 K, Dp = 13.2 kPa, | J6: Velocity = 0.5 m/s | L6: (Dt = 0.5 K, Dp = 13.2 kPa,
A7: Type L, | C7: =(Pressure($D$1,"TVAP","C",C9)-Pressure($D$1,"TVAP","C",C9-1))*1000 -> 7.061027314 | D7: =(Pressure($D$1,"TVAP","C",D9)-Pressure($D$1,"TVAP","C",D9-1))*1000 -> 8.184505853 | E7: =(Pressure($D$1,"TVAP","C",E9)-Pressure($D$1,"TVAP","C",E9-1))*1000 -> 9.42111944 | F7: =(Pressure($D$1,"TVAP","C",F9)-Pressure($D$1,"TVAP","C",F9-1))*1000 -> 10.77510891 | G7: =(Pressure($D$1,"TVAP","C",G9)-Pressure($D$1,"TVAP","C",G9-1))*1000 -> 12.25059141 | H7: max velocity 15 m/s) | L7: max velocity 1.5 m/s)
A8: Copper, | C8: Saturated Suction Temperature, °C
A9: OD, in (mm) | C9: -15 | D9: -10 | E9: -5 | F9: 0 | G9: 5 | H9: -15 | I9: 5 | J9: -15 | K9: 5 | L9: -15 | M9: 5
A10: 3/8 (10) | C10: 0.22 | D10: 0.271 | E10: 0.331 | F10: 0.401 | G10: 0.483 | H10: 0.709 | I10: 0.806 | J10: 2.89 | K10: 3.21 | L10: 3.13 | M10: 3.48
A11: 1/2 (13) | C11: 0.545 | D11: 0.671 | E11: 0.819 | F11: 0.992 | G11: 1.19 | H11: 1.75 | I11: 1.98 | J11: 5.68 | K11: 6.31 | L11: 7.77 | M11: 8.63
A12: 5/8 (16) | C12: 0.991 | D12: 1.22 | E12: 1.49 | F12: 1.8 | G12: 2.16 | H12: 3.16 | I12: 3.59 | J12: 8.87 | K12: 9.86 | L12: 14.1 | M12: 15.7
A13: 3/4 (19) | C13: 1.69 | D13: 2.08 | E13: 2.54 | F13: 3.07 | G13: 3.68 | H13: 5.38 | I13: 6.11 | J13: 13.2 | K13: 14.7 | L13: 24.1 | M13: 26.8
A14: 7/8 (22) | C14: 2.62 | D14: 3.22 | E14: 3.93 | F14: 4.74 | G14: 5.69 | H14: 8.32 | I14: 9.44 | J14: 18.4 | K14: 20.4 | L14: 37.3 | M14: 41.5
A15: 1 1/8 (29) | C15: 5.33 | D15: 6.55 | E15: 7.97 | F15: 9.62 | G15: 11.5 | H15: 16.8 | I15: 19.1 | J15: 31.4 | K15: 34.9 | L15: 75.9 | M15: 84.3
A16: 1 3/8 (35) | C16: 9.32 | D16: 11.4 | E16: 13.9 | F16: 16.8 | G16: 20.1 | H16: 29.3 | I16: 33.3 | J16: 47.8 | K16: 53.1 | L16: 133 | M16: 147
A17: 1 5/8 (41) | C17: 14.8 | D17: 18.1 | E17: 22 | F17: 26.5 | G17: 31.8 | H17: 46.3 | I17: 52.5 | J17: 67.6 | K17: 75.2 | L17: 203 | M17: 225
A18: 2 1/8 (54) | C18: 30.7 | D18: 37.6 | E18: 45.6 | F18: 55 | G18: 65.8 | H18: 95.8 | I18: 109 | J18: 118 | K18: 131 | L18: 353 | M18: 392
A19: 2 5/8 (67) | C19: 50.9 | D19: 62.8 | E19: 76.8 | F19: 93.3 | G19: 113 | H19: 169 | I19: 192 | J19: 181 | K19: 202 | L19: 544 | M19: 605
A20: 3 1/8 (79) | C20: 72.7 | D20: 89.6 | E20: 110 | F20: 133 | G20: 161 | H20: 269 | I20: 305 | J20: 259 | K20: 288 | L20: 777 | M20: 863
A21: 3 5/8 (92) | C21: 98.3 | D21: 121 | E21: 148 | F21: 180 | G21: 217 | H21: 400 | I21: 453 | J21: 350 | K21: 389 | L21: 1050 | M21: 1170
A22: 4 1/8 (105) | C22: 128 | D22: 158 | E22: 193 | F22: 234 | G22: 283 | H22: 563 | I22: 638 | J22: 455 | K22: 506 | L22: 1370 | M22: 1520
A23: Steel
A24: IPS (mm) | B24: SCH
A25: 3/8 (10) | B25: 80 | C25: 0.414 | D25: 0.504 | E25: 0.609 | F25: 0.729 | G25: 0.867 | H25: 1.25 | I25: 1.42 | J25: 5.34 | K25: 5.94 | L25: 5.87 | M25: 6.53
A26: 1/2 (13) | B26: 80 | C26: 0.817 | D26: 0.995 | E26: 1.2 | F26: 1.44 | G26: 1.71 | H26: 2.46 | I26: 2.79 | J26: 8.9 | K26: 9.89 | L26: 11.6 | M26: 12.9
A27: 3/4 (19) | B27: 80 | C27: 1.85 | D27: 2.25 | E27: 2.71 | F27: 3.24 | G27: 3.85 | H27: 5.55 | I27: 6.28 | J27: 16.4 | K27: 18.3 | L27: 26.2 | M27: 29.1
A28: 1 (25) | B28: 80 | C28: 3.62 | D28: 4.41 | E28: 5.31 | F28: 6.36 | G28: 7.55 | H28: 10.9 | I28: 12.3 | J28: 27.3 | K28: 30.4 | L28: 51.4 | M28: 57.1
A29: 1 1/4 (32) | B29: 80 | C29: 7.78 | D29: 9.46 | E29: 11.4 | F29: 13.6 | G29: 16.2 | H29: 23.3 | I29: 26.4 | J29: 48.8 | K29: 54.2 | L29: 110 | M29: 123
A30: 1 1/2 (38) | B30: 80 | C30: 11.9 | D30: 14.4 | E30: 17.4 | F30: 20.8 | G30: 24.7 | H30: 35.5 | I30: 40.2 | J30: 67.2 | K30: 74.7 | L30: 168 | M30: 187
A31: 2 (51) | B31: 40 | C31: 27.6 | D31: 33.5 | E31: 40.4 | F31: 48.3 | G31: 57.3 | H31: 82.4 | I31: 93.3 | J31: 128 | K31: 142 | L31: 383 | M31: 425
A32: 2 1/2 (64) | B32: 40 | C32: 44 | D32: 53.4 | E32: 64.4 | F32: 77 | G32: 91.4 | H32: 131 | I32: 149 | J32: 182 | K32: 202 | L32: 546 | M32: 607
A33: 3 (76) | B33: 40 | C33: 77.8 | D33: 94.5 | E33: 114 | F33: 136 | G33: 161 | H33: 232 | I33: 263 | J33: 281 | K33: 312 | L33: 843 | M33: 937
A34: 4 (102) | B34: 40 | C34: 136 | D34: 167 | E34: 205 | F34: 249 | G34: 300 | H34: 472 | I34: 534 | J34: 484 | K34: 538 | L34: 1450 | M34: 1610
A35: Notes:
A36: 1. Table capacities are in kilowatts of refrigeration. Discharge refrigerant state is determined with compression at 70 percent isentropic efficiency and 14 K superheated refrigerant entering the compressor. Liquid and suction refrigerant states are at saturation.
A37: Dp = pressure drop from line friction, kPa per 30 meters equivalent length.
A38: Dt = change in saturation temperature corresponding to Dp, K per 30 meters equivalent length.
A39: 2. Same as SI R2022 chapter 1 tables.
A40: 3. Same as SI R2022 chapter 1 tables.
A41: 4. Refrigerant thermodynamic and thermophysical properties calculated using NIST RefProp v10.0. Refrigerant flow rates calculated using the Darcy-Weisbach and Colebrook equations.
A42: 5. Table capacities based on 40°C condensing temperature and 0 K subcooling. Multiply capacities by the following correction factors for other condensing temperatures. Correction factors based on a -5°C evaporator temperature, and are suitable in the range of -15°C to 5°C.
D43: Condensing Temperature, °C
D44: 25 | E44: 30 | F44: 35 | G44: 45 | H44: 50 | I44: 55 | J44: 60
B45: Liquid Line | D45: 1.24 | E45: 1.16 | F45: 1.08 | G45: 0.92 | H45: 0.84 | I45: 0.76 | J45: 0.68
B46: Suction Line | D46: =ROUND($E56/$E$59,2) -> 1.18 | E46: =ROUND($E57/$E$59,2) -> 1.12 | F46: =ROUND($E58/$E$59,2) -> 1.06 | G46: =ROUND($E60/$E$59,2) -> 0.94 | H46: =ROUND($E61/$E$59,2) -> 0.87 | I46: =ROUND($E62/$E$59,2) -> 0.81 | J46: =ROUND($E63/$E$59,2) -> 0.74
B47: Discharge Line | D47: 0.82 | E47: 0.88 | F47: 0.94 | G47: 1.05 | H47: 1.09 | I47: 1.13 | J47: 1.15
A48: aSame as SI R2022 chapter 1 tables.
A49: bSame as SI R2022 chapter 1 tables.
A50: cSame as SI R2022 chapter 1 tables.
E53: NRE @ -5°C
D54: Cond | E54: Evap,
D55: Temp, °C | E55: Btu/lb
D56: 25 | E56: =Enthalpy($D$1,"TVAP","C",-5)-Enthalpy($D$1,"TLIQ","C",$D56) -> 145.5207993
D57: 30 | E57: 138.1826255
D58: 35 | E58: 130.7226188
D59: 40 | E59: 123.1311413
D60: 45 | E60: 115.3955353
D61: 50 | E61: 107.4988474
D62: 55 | E62: 99.41836689
D63: 60 | E63: 91.12387964

Sheet Table 12
A1: NIST Refrigerant File | D1: R454B.mix | F1: =Pressure($D$1,"TVAP","E",C6)-Pressure($D$1,"TVAP","E",C6-1) -> 0.5763240636 | G1: =Pressure($D$1,"TVAP","E",C6)-Pressure($D$1,"TVAP","E",C6-0.5) -> 0.2895784883 | H1: =Pressure($D$1,"TVAP","E",E6)-Pressure($D$1,"TVAP","E",E6-1) -> 0.83800637 | I1: =Pressure($D$1,"TVAP","E",E6)-Pressure($D$1,"TVAP","E",E6-0.5) -> 0.4208525618 | J1: =Pressure($D$1,"TVAP","E",G6)-Pressure($D$1,"TVAP","E",G6-1) -> 1.17067791 | K1: =Pressure($D$1,"TVAP","E",G6)-Pressure($D$1,"TVAP","E",G6-0.5) -> 0.5876557498 | L1: =Pressure($D$1,"TVAP","E",I6)-Pressure($D$1,"TVAP","E",I6-1) -> 1.581857891 | M1: =Pressure($D$1,"TVAP","E",I6)-Pressure($D$1,"TVAP","E",I6-0.5) -> 0.7937597125 | N1: =Pressure($D$1,"TVAP","E",K6)-Pressure($D$1,"TVAP","E",K6-1) -> 2.079121659 | O1: =Pressure($D$1,"TVAP","E",K6)-Pressure($D$1,"TVAP","E",K6-0.5) -> 1.042954455
A3: Table 12 Suction Line Capacities in Tons for Refrigerant 454B (Single- or High-Stage Applications)
A5: Line Size | C5: Saturated Suction Temperature, °F
A6: Type L, | C6: -40 | E6: -20 | G6: 0 | I6: 20 | K6: 40
A7: Copper, | C7: Dt = 1°F | D7: Dt = 0.5°F | E7: Dt = 1°F | F7: Dt = 0.5°F | G7: Dt = 1°F | H7: Dt = 0.5°F | I7: Dt = 1°F | J7: Dt = 0.5°F | K7: Dt = 1°F | L7: Dt = 0.5°F
A8: OD, in | C8: Dp = 0.58 psi | D8: Dp = 0.29 psi | E8: Dp = 0.84 psi | F8: Dp = 0.42 psi | G8: Dp = 1.17 psi | H8: Dp = 0.59 psi | I8: Dp = 1.58 psi | J8: Dp = 0.79 psi | K8: Dp = 2.08 psi | L8: Dp = 1,04 psi
A9: 3/8 | C9: --- | D9: --- | E9: --- | F9: --- | G9: 0.124 | H9: --- | I9: 0.185 | J9: 0.126 | K9: 0.266 | L9: 0.181
A10: 1/2 | C10: 0.121 | D10: --- | E10: 0.198 | F10: 0.134 | G10: 0.307 | H10: 0.209 | I10: 0.456 | J10: 0.311 | K10: 0.655 | L10: 0.448
A11: 5/8 | C11: 0.221 | D11: 0.15 | E11: 0.36 | F11: 0.245 | G11: 0.557 | H11: 0.38 | I11: 0.827 | J11: 0.566 | K11: 1.19 | L11: 0.813
A12: 3/4 | C12: 0.379 | D12: 0.258 | E12: 0.615 | F12: 0.42 | G12: 0.951 | H12: 0.65 | I12: 1.41 | J12: 0.966 | K12: 2.02 | L12: 1.39
A13: 7/8 | C13: 0.588 | D13: 0.401 | E13: 0.954 | F13: 0.652 | G13: 1.47 | H13: 1.01 | I13: 2.18 | J13: 1.5 | K13: 3.12 | L13: 2.15
A14: 1 1/8 | C14: 1.2 | D14: 0.819 | E14: 1.94 | F14: 1.33 | G14: 2.99 | H14: 2.05 | I14: 4.42 | J14: 3.04 | K14: 6.32 | L14: 4.35
A15: 1 3/8 | C15: 2.1 | D15: 1.44 | E15: 3.39 | F15: 2.33 | G15: 5.22 | H15: 3.59 | I15: 7.71 | J15: 5.31 | K15: 11 | L15: 7.59
A16: 1 5/8 | C16: 3.33 | D16: 2.28 | E16: 5.38 | F16: 3.69 | G16: 8.27 | H16: 5.69 | I16: 12.2 | J16: 8.41 | K16: 17.4 | L16: 12
A17: 2 1/8 | C17: 6.95 | D17: 4.77 | E17: 11.2 | F17: 7.7 | G17: 17.2 | H17: 11.8 | I17: 25.3 | J17: 17.5 | K17: 36 | L17: 24.9
A18: 2 5/8 | C18: 12.3 | D18: 8.47 | E18: 19.8 | F18: 13.7 | G18: 30.4 | H18: 21 | I18: 44.7 | J18: 30.9 | K18: 63.5 | L18: 44
A19: 3 1/8 | C19: 17.9 | D19: 13.6 | E19: 29.1 | F19: 21.8 | G19: 45.3 | H19: 33.5 | I19: 68.1 | J19: 49.4 | K19: 99.3 | L19: 70.3
A20: 3 5/8 | C20: 24.2 | D20: 20.2 | E20: 39.4 | F20: 32.5 | G20: 61.3 | H20: 49.9 | I20: 92.1 | J20: 73.4 | K20: 134 | L20: 104
A21: 4 1/8 | C21: 31.5 | D21: 28.6 | E21: 51.2 | F21: 46 | G21: 79.7 | H21: 70.4 | I21: 120 | J21: 104 | K21: 175 | L21: 147
A22: Steel
A23: IPS | B23: SCH
A24: 3/8 | B24: 80 | C24: --- | D24: --- | E24: 0.153 | F24: 0.106 | G24: 0.231 | H24: 0.161 | I24: 0.335 | J24: 0.235 | K24: 0.471 | L24: 0.331
A25: 1/2 | B25: 80 | C25: 0.19 | D25: 0.133 | E25: 0.302 | F25: 0.211 | G25: 0.455 | H25: 0.319 | I25: 0.661 | J25: 0.464 | K25: 0.929 | L25: 0.654
A26: 3/4 | B26: 80 | C26: 0.431 | D26: 0.301 | E26: 0.682 | F26: 0.478 | G26: 1.03 | H26: 0.722 | I26: 1.49 | J26: 1.05 | K26: 2.09 | L26: 1.47
A27: 1 | B27: 80 | C27: 0.849 | D27: 0.593 | E27: 1.34 | F27: 0.939 | G27: 2.02 | H27: 1.42 | I27: 2.92 | J27: 2.06 | K27: 4.1 | L27: 2.89
A28: 1 1/4 | B28: 80 | C28: 1.83 | D28: 1.28 | E28: 2.88 | F28: 2.02 | G28: 4.33 | H28: 3.05 | I28: 6.27 | J28: 4.42 | K28: 8.79 | L28: 6.2
A29: 1 1/2 | B29: 80 | C29: 2.79 | D29: 1.96 | E29: 4.39 | F29: 3.09 | G29: 6.6 | H29: 4.65 | I29: 9.56 | J29: 6.74 | K29: 13.4 | L29: 9.45
A30: 2 | B30: 40 | C30: 6.5 | D30: 4.56 | E30: 10.2 | F30: 7.19 | G30: 15.3 | H30: 10.8 | I30: 22.2 | J30: 15.7 | K30: 31.1 | L30: 22
A31: 2 1/2 | B31: 40 | C31: 10.4 | D31: 7.29 | E31: 16.3 | F31: 11.5 | G31: 24.5 | H31: 17.3 | I31: 35.4 | J31: 25 | K31: 49.6 | L31: 35
A32: 3 | B32: 40 | C32: 18.4 | D32: 12.9 | E32: 28.8 | F32: 20.3 | G32: 43.3 | H32: 30.5 | I32: 62.5 | J32: 44.2 | K32: 87.6 | L32: 61.9
A33: 4 | B33: 40 | C33: 33.5 | D33: 26.4 | E33: 54.4 | F33: 41.4 | G33: 84.7 | H33: 62.2 | I33: 127 | J33: 90 | K33: 178 | L33: 126
A34: Notes:
A35: 1. Table capacities are in tons of refrigeration. Maximum veloxity = 3000 fpm. Suction refrigerant state is at saturation.
A36: Dp = pressure drop from line friction, psi per 100 ft equivalent length.
A37: Dt = change in saturation temperature corresponding to Dp, °F per 100 ft equivalent length.
A38: 2. Same as I-P R2022 chapter 1 tables.
A39: 3. Same as I-P R2022 chapter 1 tables.
A40: 4. Refrigerant thermodynamic and thermophysical properties calculated using NIST RefProp v10.0. Refrigerant flow rates calculated using the Darcy-Weisbach and Colebrook equations.
A41: 5. Table capacities based on 105°F liquid temperature entering the expansion device. Multiply capacities by the following correction factors for other liquid temperatures. Correction factors based on a 0°F evaporator temperature, and are suitable in the range of -40°F to 40°F.
D42: Liquid Temperature, °F
D43: 80 | E43: 90 | F43: 100 | G43: 110 | H43: 120 | I43: 130 | J43: 140
B44: Suction Line | D44: =ROUND($E50/$E$53,2) -> 1.14 | E44: =ROUND($E51/$E$53,2) -> 1.09 | F44: =ROUND($E52/$E$53,2) -> 1.03 | G44: =ROUND($E54/$E$53,2) -> 0.97 | H44: =ROUND($E55/$E$53,2) -> 0.91 | I44: =ROUND($E56/$E$53,2) -> 0.84 | J44: =ROUND($E57/$E$53,2) -> 0.77
E47: NRE @ 0°F
D48: Liquid | E48: Evap,
D49: Temp, °F | E49: Btu/lb
D50: 80 | E50: =Enthalpy($D$1,"TVAP","E",0)-Enthalpy($D$1,"TLIQ","E",$D50) -> 89.86317529
D51: 90 | E51: 85.5080228
D52: 100 | E52: 81.01423705
D53: 105 | E53: 78.70642995
D54: 110 | E54: 76.35186435
D55: 120 | E55: 71.47787607
D56: 130 | E56: 66.32704717
D57: 140 | E57: 60.79202624

Sheet Table 12 SI
A1: NIST Refrigerant File | D1: R454B.mix | F1: =(Pressure($D$1,"TVAP","C",C6)-Pressure($D$1,"TVAP","C",C6-0.5))*1000 -> 3.579795724 | G1: =(Pressure($D$1,"TVAP","C",C6)-Pressure($D$1,"TVAP","C",C6-0.25))*1000 -> 1.797888976 | H1: =(Pressure($D$1,"TVAP","C",E6)-Pressure($D$1,"TVAP","C",E6-0.5))*1000 -> 5.023120081 | I1: =(Pressure($D$1,"TVAP","C",E6)-Pressure($D$1,"TVAP","C",E6-0.25))*1000 -> 2.521647901 | J1: =(Pressure($D$1,"TVAP","C",G6)-Pressure($D$1,"TVAP","C",G6-0.5))*1000 -> 6.819525038 | K1: =(Pressure($D$1,"TVAP","C",G6)-Pressure($D$1,"TVAP","C",G6-0.25))*1000 -> 3.422165086 | L1: =(Pressure($D$1,"TVAP","C",I6)-Pressure($D$1,"TVAP","C",I6-0.5))*1000 -> 10.25070203 | M1: =(Pressure($D$1,"TVAP","C",I6)-Pressure($D$1,"TVAP","C",I6-0.25))*1000 -> 5.141621203 | N1: =(Pressure($D$1,"TVAP","C",K6)-Pressure($D$1,"TVAP","C",K6-0.5))*1000 -> 13.07922212 | O1: =(Pressure($D$1,"TVAP","C",K6)-Pressure($D$1,"TVAP","C",K6-0.25))*1000 -> 6.558736851
A3: Table 12 Suction Line Capacities in Tons for Refrigerant 454B (Single- or High-Stage Applications)
A5: Line Size | C5: Saturated Suction Temperature, °C
A6: Type L, | C6: -40 | E6: -30 | G6: -20 | I6: -5 | K6: 5
A7: Copper, | C7: Dt = 0.5 K | D7: Dt = 0.25 K | E7: Dt = 0.5 K | F7: Dt = 0.25 K | G7: Dt = 0.5 K | H7: Dt = 0.25 K | I7: Dt = 0.5 K | J7: Dt = 0.25 K | K7: Dt = 0.5 K | L7: Dt = 0.25 K
A8: OD, in (mm) | C8: Dp = 3.58 kPa | D8: Dp = 1.80 kPa | E8: Dp = 5.02 kPa | F8: Dp = 2.52 kPa | G8: Dp = 6.82 kPa | H8: Dp = 3.42 kPa | I8: Dp = 10.3 kPa | J8: Dp = 5.14 kPa | K8: Dp = 13.1 kPa | L8: Dp = 6.56 kPa
A9: 3/8 (10) | C9: 0.164 | D9: 0.11 | E9: 0.255 | F9: 0.173 | G9: 0.383 | H9: 0.26 | I9: 0.658 | J9: 0.448 | K9: 0.91 | L9: 0.621
A10: 1/2 (13) | C10: 0.408 | D10: 0.276 | E10: 0.635 | F10: 0.431 | G10: 0.949 | H10: 0.646 | I10: 1.62 | J10: 1.11 | K10: 2.24 | L10: 1.54
A11: 5/8 (16) | C11: 0.744 | D11: 0.505 | E11: 1.16 | F11: 0.787 | G11: 1.72 | H11: 1.18 | I11: 2.95 | J11: 2.02 | K11: 4.06 | L11: 2.79
A12: 3/4 (19) | C12: 1.28 | D12: 0.867 | E12: 1.98 | F12: 1.35 | G12: 2.95 | H12: 2.01 | I12: 5.02 | J12: 3.44 | K12: 6.92 | L12: 4.75
A13: 7/8 (22) | C13: 1.98 | D13: 1.35 | E13: 3.07 | F13: 2.1 | G13: 4.57 | H13: 3.12 | I13: 7.77 | J13: 5.33 | K13: 10.7 | L13: 7.36
A14: 1 1/8 (29) | C14: 4.04 | D14: 2.76 | E14: 6.25 | F14: 4.28 | G14: 9.28 | H14: 6.36 | I14: 15.8 | J14: 10.8 | K14: 21.7 | L14: 14.9
A15: 1 3/8 (35) | C15: 7.08 | D15: 4.84 | E15: 10.9 | F15: 7.49 | G15: 16.2 | H15: 11.1 | I15: 27.5 | J15: 18.9 | K15: 37.7 | L15: 26
A16: 1 5/8 (41) | C16: 11.2 | D16: 7.69 | E16: 17.3 | F16: 11.9 | G16: 25.7 | H16: 17.6 | I16: 43.5 | J16: 30 | K16: 59.7 | L16: 41.2
A17: 2 1/8 (54) | C17: 23.4 | D17: 16.1 | E17: 36.1 | F17: 24.8 | G17: 53.3 | H17: 36.7 | I17: 90.1 | J17: 62.2 | K17: 124 | L17: 85.4
A18: 2 5/8 (67) | C18: 41.6 | D18: 28.5 | E18: 63.9 | F18: 44 | G18: 94.4 | H18: 65.1 | I18: 159 | J18: 110 | K18: 218 | L18: 151
A19: 3 1/8 (79) | C19: 62.4 | D19: 45.7 | E19: 96.8 | F19: 70.4 | G19: 145 | H19: 104 | I19: 251 | J19: 176 | K19: 347 | L19: 241
A20: 3 5/8 (92) | C20: 84.4 | D20: 68.2 | E20: 131 | F20: 105 | G20: 196 | H20: 155 | I20: 340 | J20: 261 | K20: 476 | L20: 358
A21: 4 1/8 (105) | C21: 110 | D21: 96.4 | E21: 170 | F21: 148 | G21: 255 | H21: 219 | I21: 442 | J21: 369 | K21: 619 | L21: 505
A22: Steel
A23: IPS (mm) | B23: SCH
A24: 3/8 (10) | B24: 80 | C24: 0.325 | D24: 0.225 | E24: 0.493 | F24: 0.344 | G24: 0.72 | H24: 0.503 | I24: 1.2 | J24: 0.838 | K24: 1.62 | L24: 1.14
A25: 1/2 (13) | B25: 80 | C25: 0.643 | D25: 0.447 | E25: 0.975 | F25: 0.681 | G25: 1.42 | H25: 1 | I25: 2.36 | J25: 1.65 | K25: 3.19 | L25: 2.24
A26: 3/4 (19) | B26: 80 | C26: 1.46 | D26: 1.02 | E26: 2.21 | F26: 1.54 | G26: 3.21 | H26: 2.25 | I26: 5.31 | J26: 3.74 | K26: 7.19 | L26: 5.06
A27: 1 (25) | B27: 80 | C27: 2.87 | D27: 2 | E27: 4.34 | F27: 3.04 | G27: 6.3 | H27: 4.43 | I27: 10.4 | J27: 7.33 | K27: 14.1 | L27: 9.93
A28: 1 1/4 (32) | B28: 80 | C28: 6.17 | D28: 4.32 | E28: 9.32 | F28: 6.54 | G28: 13.5 | H28: 9.52 | I28: 22.3 | J28: 15.7 | K28: 30.2 | L28: 21.3
A29: 1 1/2 (38) | B29: 80 | C29: 9.43 | D29: 6.61 | E29: 14.2 | F29: 10 | G29: 20.6 | H29: 14.5 | I29: 34.1 | J29: 24 | K29: 46 | L29: 32.5
A30: 2 (51) | B30: 40 | C30: 22 | D30: 15.4 | E30: 33.1 | F30: 23.3 | G30: 48 | H30: 33.8 | I30: 79.1 | J30: 55.8 | K30: 107 | L30: 75.5
A31: 2 1/2 (64) | B31: 40 | C31: 35.1 | D31: 24.7 | E31: 52.8 | F31: 37.2 | G31: 76.6 | H31: 54 | I31: 126 | J31: 89 | K31: 170 | L31: 120
A32: 3 (76) | B32: 40 | C32: 62.1 | D32: 43.7 | E32: 93.4 | F32: 65.8 | G32: 135 | H32: 95.5 | I32: 223 | J32: 157 | K32: 301 | L32: 213
A33: 4 (102) | B33: 40 | C33: 117 | D33: 89.2 | E33: 181 | F33: 134 | G33: 271 | H33: 195 | I33: 454 | J33: 321 | K33: 613 | L33: 433
A34: Notes:
A35: 1. Table capacities are in kilowatts of refrigeration. Maximum veloxity = 15 m/s. Suction refrigerant state is at saturation.
A36: Dp = pressure drop from line friction, kPa per 30 meters equivalent length.
A37: Dt = change in saturation temperature corresponding to Dp, K per 30 meters equivalent length.
A38: 2. Same as SI R2022 chapter 1 tables.
A39: 3. Same as SI R2022 chapter 1 tables.
A40: 4. Refrigerant thermodynamic and thermophysical properties calculated using NIST RefProp v10.0. Refrigerant flow rates calculated using the Darcy-Weisbach and Colebrook equations.
A41: 5. Table capacities based on 40°C liquid temperature entering the expansion device. Multiply capacities by the following correction factors for other liquid temperatures. Correction factors based on a -18°C evaporator temperature, and are suitable in the range of -40°C to 5°C.
D42: Liquid Temperature, °C
D43: 25 | E43: 30 | F43: 35 | G43: 45 | H43: 50 | I43: 55 | J43: 60
B44: Suction Line | D44: =ROUND($E50/$E$53,2) -> 1.15 | E44: =ROUND($E51/$E$53,2) -> 1.1 | F44: =ROUND($E52/$E$53,2) -> 1.05 | G44: =ROUND($E54/$E$53,2) -> 0.95 | H44: =ROUND($E55/$E$53,2) -> 0.89 | I44: =ROUND($E56/$E$53,2) -> 0.83 | J44: =ROUND($E57/$E$53,2) -> 0.77
E47: NRE @ -18°C
D48: Liquid | E48: Evap,
D49: Temp, °C | E49: Btu/lb
D50: 25 | E50: =Enthalpy($D$1,"TVAP","C",-18)-Enthalpy($D$1,"TLIQ","C",$D50) -> 211.7698244
D51: 30 | E51: 202.7492688
D52: 35 | E52: 193.4857481
D53: 40 | E53: 183.9357006
D54: 45 | E54: 174.039951
D55: 50 | E55: 163.715205
D56: 55 | E56: 152.8383259
D57: 60 | E57: 141.2134832

Sheet Table 12A
A1: NIST Refrigerant File | D1: R454A.mix | F1: =Pressure($D$1,"TVAP","E",C6)-Pressure($D$1,"TVAP","E",C6-1) -> 0.4242556369 | G1: =Pressure($D$1,"TVAP","E",C6)-Pressure($D$1,"TVAP","E",C6-0.5) -> 0.2132327054 | H1: =Pressure($D$1,"TVAP","E",E6)-Pressure($D$1,"TVAP","E",E6-1) -> 0.6280874788 | I1: =Pressure($D$1,"TVAP","E",E6)-Pressure($D$1,"TVAP","E",E6-0.5) -> 0.3154941466 | J1: =Pressure($D$1,"TVAP","E",G6)-Pressure($D$1,"TVAP","E",G6-1) -> 0.890682969 | K1: =Pressure($D$1,"TVAP","E",G6)-Pressure($D$1,"TVAP","E",G6-0.5) -> 0.4471805407 | L1: =Pressure($D$1,"TVAP","E",I6)-Pressure($D$1,"TVAP","E",I6-1) -> 1.218832602 | M1: =Pressure($D$1,"TVAP","E",I6)-Pressure($D$1,"TVAP","E",I6-0.5) -> 0.6116862474 | N1: =Pressure($D$1,"TVAP","E",K6)-Pressure($D$1,"TVAP","E",K6-1) -> 1.619456437 | O1: =Pressure($D$1,"TVAP","E",K6)-Pressure($D$1,"TVAP","E",K6-0.5) -> 0.8124740422
A3: Table 12A Suction Line Capacities in Tons for Refrigerant 454A (Single- or High-Stage Applications)
A5: Line Size | C5: Saturated Suction Temperature, °F
A6: Type L, | C6: -40 | E6: -20 | G6: 0 | I6: 20 | K6: 40
A7: Copper, | C7: Dt = 1°F | D7: Dt = 0.5°F | E7: Dt = 1°F | F7: Dt = 0.5°F | G7: Dt = 1°F | H7: Dt = 0.5°F | I7: Dt = 1°F | J7: Dt = 0.5°F | K7: Dt = 1°F | L7: Dt = 0.5°F
A8: OD, in | C8: Dp = 0.42 psi | D8: Dp = 0.21 psi | E8: Dp = 0.63 psi | F8: Dp = 0.32 psi | G8: Dp = 0.89 psi | H8: Dp = 0.45 psi | I8: Dp = 1.22 psi | J8: Dp = 0.61 psi | K8: Dp = 1.62 psi | L8: Dp = 0.81 psi
A9: 3/8 | C9: --- | D9: --- | E9: --- | F9: --- | G9: --- | H9: --- | I9: 0.115 | J9: --- | K9: 0.171 | L9: 0.117
A10: 1/2 | C10: --- | D10: --- | E10: 0.115 | F10: --- | G10: 0.186 | H10: 0.126 | I10: 0.285 | J10: 0.195 | K10: 0.422 | L10: 0.289
A11: 5/8 | C11: 0.124 | D11: --- | E11: 0.21 | F11: 0.143 | G11: 0.337 | H11: 0.23 | I11: 0.518 | J11: 0.354 | K11: 0.765 | L11: 0.524
A12: 3/4 | C12: 0.212 | D12: 0.144 | E12: 0.359 | F12: 0.245 | G12: 0.576 | H12: 0.394 | I12: 0.883 | J12: 0.605 | K12: 1.3 | L12: 0.894
A13: 7/8 | C13: 0.33 | D13: 0.225 | E13: 0.558 | F13: 0.381 | G13: 0.893 | H13: 0.611 | I13: 1.37 | J13: 0.937 | K13: 2.02 | L13: 1.38
A14: 1 1/8 | C14: 0.674 | D14: 0.46 | E14: 1.14 | F14: 0.777 | G14: 1.82 | H14: 1.24 | I14: 2.77 | J14: 1.91 | K14: 4.08 | L14: 2.81
A15: 1 3/8 | C15: 1.18 | D15: 0.807 | E15: 1.99 | F15: 1.36 | G15: 3.17 | H15: 2.18 | I15: 4.84 | J15: 3.33 | K15: 7.12 | L15: 4.91
A16: 1 5/8 | C16: 1.87 | D16: 1.28 | E16: 3.15 | F16: 2.16 | G16: 5.02 | H16: 3.45 | I16: 7.66 | J16: 5.28 | K16: 11.2 | L16: 7.76
A17: 2 1/8 | C17: 3.91 | D17: 2.68 | E17: 6.56 | F17: 4.51 | G17: 10.4 | H17: 7.19 | I17: 15.9 | J17: 11 | K17: 23.3 | L17: 16.1
A18: 2 5/8 | C18: 6.94 | D18: 4.77 | E18: 11.6 | F18: 8 | G18: 18.5 | H18: 12.7 | I18: 28.1 | J18: 19.4 | K18: 41.2 | L18: 28.5
A19: 3 1/8 | C19: 11.1 | D19: 7.64 | E19: 18.6 | F19: 12.8 | G19: 29.5 | H19: 20.4 | I19: 44.8 | J19: 31 | K19: 65.6 | L19: 45.5
A20: 3 5/8 | C20: 15.3 | D20: 11.4 | E20: 25.8 | F20: 19.1 | G20: 41.5 | H20: 30.3 | I20: 64.3 | J20: 46.1 | K20: 96.4 | L20: 67.6
A21: 4 1/8 | C21: 19.9 | D21: 16.1 | E21: 33.5 | F21: 27 | G21: 54 | H21: 42.8 | I21: 83.6 | J21: 65.1 | K21: 125 | L21: 95.3
A22: Steel
A23: IPS | B23: SCH
A24: 3/8 | B24: 80 | C24: --- | D24: --- | E24: --- | F24: --- | G24: 0.141 | H24: --- | I24: 0.212 | J24: 0.149 | K24: 0.307 | L24: 0.216
A25: 1/2 | B25: 80 | C25: 0.108 | D25: --- | E25: 0.178 | F25: 0.124 | G25: 0.279 | H25: 0.195 | I25: 0.418 | J25: 0.293 | K25: 0.605 | L25: 0.425
A26: 3/4 | B26: 80 | C26: 0.245 | D26: 0.171 | E26: 0.403 | F26: 0.282 | G26: 0.63 | H26: 0.442 | I26: 0.943 | J26: 0.663 | K26: 1.36 | L26: 0.96
A27: 1 | B27: 80 | C27: 0.482 | D27: 0.336 | E27: 0.792 | F27: 0.555 | G27: 1.24 | H27: 0.868 | I27: 1.85 | J27: 1.3 | K27: 2.67 | L27: 1.88
A28: 1 1/4 | B28: 80 | C28: 1.04 | D28: 0.726 | E28: 1.7 | F28: 1.19 | G28: 2.65 | H28: 1.87 | I28: 3.97 | J28: 2.79 | K28: 5.73 | L28: 4.04
A29: 1 1/2 | B29: 80 | C29: 1.59 | D29: 1.11 | E29: 2.6 | F29: 1.83 | G29: 4.05 | H29: 2.85 | I29: 6.05 | J29: 4.26 | K29: 8.73 | L29: 6.16
A30: 2 | B30: 40 | C30: 3.7 | D30: 2.59 | E30: 6.05 | F30: 4.26 | G30: 9.42 | H30: 6.63 | I30: 14.1 | J30: 9.92 | K30: 20.3 | L30: 14.3
A31: 2 1/2 | B31: 40 | C31: 5.9 | D31: 4.15 | E31: 9.65 | F31: 6.8 | G31: 15 | H31: 10.6 | I31: 22.4 | J31: 15.8 | K31: 32.3 | L31: 22.8
A32: 3 | B32: 40 | C32: 10.5 | D32: 7.35 | E32: 17.1 | F32: 12 | G32: 26.5 | H32: 18.7 | I32: 39.6 | J32: 28 | K32: 57.1 | L32: 40.3
A33: 4 | B33: 40 | C33: 21.1 | D33: 15 | E33: 34.8 | F33: 24.5 | G33: 54.1 | H33: 38.2 | I33: 80.7 | J33: 57 | K33: 116 | L33: 82.2
A34: Notes:
A35: 1. Table capacities are in tons of refrigeration. Maximum veloxity = 3000 fpm. Suction refrigerant state is at saturation.
A36: Dp = pressure drop from line friction, psi per 100 ft equivalent length.
A37: Dt = change in saturation temperature corresponding to Dp, °F per 100 ft equivalent length.
A38: 2. Same as I-P R2022 chapter 1 tables.
A39: 3. Same as I-P R2022 chapter 1 tables.
A40: 4. Refrigerant thermodynamic and thermophysical properties calculated using NIST RefProp v10.0. Refrigerant flow rates calculated using the Darcy-Weisbach and Colebrook equations.
A41: 5. Table capacities based on 105°F liquid temperature entering the expansion device. Multiply capacities by the following correction factors for other liquid temperatures. Correction factors based on a 0°F evaporator temperature, and are suitable in the range of -40°F to 40°F.
D42: Liquid Temperature, °F
D43: 80 | E43: 90 | F43: 100 | G43: 110 | H43: 120 | I43: 130 | J43: 140
B44: Suction Line | D44: =ROUND($E50/$E$53,2) -> 1.17 | E44: =ROUND($E51/$E$53,2) -> 1.11 | F44: =ROUND($E52/$E$53,2) -> 1.04 | G44: =ROUND($E54/$E$53,2) -> 0.96 | H44: =ROUND($E55/$E$53,2) -> 0.89 | I44: =ROUND($E56/$E$53,2) -> 0.81 | J44: =ROUND($E57/$E$53,2) -> 0.73
E47: NRE @ 0°F
D48: Liquid | E48: Evap,
D49: Temp, °F | E49: Btu/lb
D50: 80 | E50: =Enthalpy($D$1,"TVAP","E",0)-Enthalpy($D$1,"TLIQ","E",$D50) -> 67.73553865
D51: 90 | E51: 63.81040497
D52: 100 | E52: 59.77759626
D53: 105 | E53: 57.71470567
D54: 110 | E54: 55.61668087
D55: 120 | E55: 51.29913776
D56: 130 | E56: 46.78377453
D57: 140 | E57: 42.00695835

Sheet Table 12A SI
A1: NIST Refrigerant File | D1: R454A.mix | F1: =(Pressure($D$1,"TVAP","C",C6)-Pressure($D$1,"TVAP","C",C6-0.5))*1000 -> 2.635362795 | G1: =(Pressure($D$1,"TVAP","C",C6)-Pressure($D$1,"TVAP","C",C6-0.25))*1000 -> 1.323856427 | H1: =(Pressure($D$1,"TVAP","C",E6)-Pressure($D$1,"TVAP","C",E6-0.5))*1000 -> 3.758776926 | I1: =(Pressure($D$1,"TVAP","C",E6)-Pressure($D$1,"TVAP","C",E6-0.25))*1000 -> 1.88728968 | J1: =(Pressure($D$1,"TVAP","C",G6)-Pressure($D$1,"TVAP","C",G6-0.5))*1000 -> 5.174194532 | K1: =(Pressure($D$1,"TVAP","C",G6)-Pressure($D$1,"TVAP","C",G6-0.25))*1000 -> 2.596920653 | L1: =(Pressure($D$1,"TVAP","C",I6)-Pressure($D$1,"TVAP","C",I6-0.5))*1000 -> 7.912131748 | M1: =(Pressure($D$1,"TVAP","C",I6)-Pressure($D$1,"TVAP","C",I6-0.25))*1000 -> 3.969131299 | N1: =(Pressure($D$1,"TVAP","C",K6)-Pressure($D$1,"TVAP","C",K6-0.5))*1000 -> 10.19298385 | O1: =(Pressure($D$1,"TVAP","C",K6)-Pressure($D$1,"TVAP","C",K6-0.25))*1000 -> 5.111973832
A3: Table 12A Suction Line Capacities in Tons for Refrigerant 454A (Single- or High-Stage Applications)
A5: Line Size | C5: Saturated Suction Temperature, °C
A6: Type L, | C6: -40 | E6: -30 | G6: -20 | I6: -5 | K6: 5
A7: Copper, | C7: Dt = 0.5 K | D7: Dt = 0.25 K | E7: Dt = 0.5 K | F7: Dt = 0.25 K | G7: Dt = 0.5 K | H7: Dt = 0.25 K | I7: Dt = 0.5 K | J7: Dt = 0.25 K | K7: Dt = 0.5 K | L7: Dt = 0.25 K
A8: OD, in (mm) | C8: Dp = 2.64 kPa | D8: Dp = 1.32 kPa | E8: Dp = 3.76 kPa | F8: Dp = 1.89 kPa | G8: Dp = 5.17 kPa | H8: Dp = 2.60 kPa | I8: Dp = 7.91 kPa | J8: Dp = 3.97 kPa | K8: Dp = 10.2 kPa | L8: Dp = 5.11 kPa
A9: 3/8 (10) | C9: --- | D9: --- | E9: 0.148 | F9: 0.1 | G9: 0.23 | H9: 0.156 | I9: 0.413 | J9: 0.281 | K9: 0.588 | L9: 0.4
A10: 1/2 (13) | C10: 0.229 | D10: 0.155 | E10: 0.37 | F10: 0.251 | G10: 0.571 | H10: 0.388 | I10: 1.02 | J10: 0.697 | K10: 1.45 | L10: 0.991
A11: 5/8 (16) | C11: 0.418 | D11: 0.283 | E11: 0.674 | F11: 0.458 | G11: 1.04 | H11: 0.708 | I11: 1.86 | J11: 1.27 | K11: 2.63 | L11: 1.8
A12: 3/4 (19) | C12: 0.716 | D12: 0.487 | E12: 1.15 | F12: 0.785 | G12: 1.78 | H12: 1.21 | I12: 3.17 | J12: 2.17 | K12: 4.48 | L12: 3.07
A13: 7/8 (22) | C13: 1.11 | D13: 0.758 | E13: 1.79 | F13: 1.22 | G13: 2.75 | H13: 1.88 | I13: 4.9 | J13: 3.36 | K13: 6.93 | L13: 4.76
A14: 1 1/8 (29) | C14: 2.27 | D14: 1.55 | E14: 3.65 | F14: 2.49 | G14: 5.6 | H14: 3.83 | I14: 9.94 | J14: 6.83 | K14: 14 | L14: 9.66
A15: 1 3/8 (35) | C15: 3.99 | D15: 2.72 | E15: 6.39 | F15: 4.37 | G15: 9.79 | H15: 6.71 | I15: 17.4 | J15: 11.9 | K15: 24.5 | L15: 16.9
A16: 1 5/8 (41) | C16: 6.33 | D16: 4.33 | E16: 10.1 | F16: 6.94 | G16: 15.5 | H16: 10.7 | I16: 27.5 | J16: 18.9 | K16: 38.7 | L16: 26.7
A17: 2 1/8 (54) | C17: 13.2 | D17: 9.05 | E17: 21.1 | F17: 14.5 | G17: 32.3 | H17: 22.2 | I17: 57 | J17: 39.3 | K17: 80.1 | L17: 55.4
A18: 2 5/8 (67) | C18: 23.4 | D18: 16.1 | E18: 37.4 | F18: 25.7 | G18: 57.1 | H18: 39.3 | I18: 101 | J18: 69.6 | K18: 142 | L18: 97.9
A19: 3 1/8 (79) | C19: 37.5 | D19: 25.8 | E19: 59.8 | F19: 41.2 | G19: 91.2 | H19: 62.9 | I19: 161 | J19: 111 | K19: 226 | L19: 156
A20: 3 5/8 (92) | C20: 53.3 | D20: 38.5 | E20: 85.5 | F20: 61.4 | G20: 132 | H20: 93.7 | I20: 239 | J20: 165 | K20: 335 | L20: 232
A21: 4 1/8 (105) | C21: 69.3 | D21: 54.4 | E21: 111 | F21: 86.7 | G21: 172 | H21: 132 | I21: 310 | J21: 233 | K21: 445 | L21: 328
A22: Steel
A23: IPS (mm) | B23: SCH
A24: 3/8 (10) | B24: 80 | C24: 0.184 | D24: 0.127 | E24: 0.29 | F24: 0.202 | G24: 0.438 | H24: 0.306 | I24: 0.76 | J24: 0.532 | K24: 1.06 | L24: 0.742
A25: 1/2 (13) | B25: 80 | C25: 0.365 | D25: 0.253 | E25: 0.575 | F25: 0.401 | G25: 0.866 | H25: 0.605 | I25: 1.5 | J25: 1.05 | K25: 2.08 | L25: 1.46
A26: 3/4 (19) | B26: 80 | C26: 0.829 | D26: 0.577 | E26: 1.3 | F26: 0.909 | G26: 1.96 | H26: 1.37 | I26: 3.38 | J26: 2.38 | K26: 4.7 | L26: 3.3
A27: 1 (25) | B27: 80 | C27: 1.63 | D27: 1.14 | E27: 2.56 | F27: 1.79 | G27: 3.84 | H27: 2.7 | I27: 6.63 | J27: 4.66 | K27: 9.2 | L27: 6.48
A28: 1 1/4 (32) | B28: 80 | C28: 3.51 | D28: 2.46 | E28: 5.5 | F28: 3.86 | G28: 8.25 | H28: 5.8 | I28: 14.2 | J28: 10 | K28: 19.7 | L28: 13.9
A29: 1 1/2 (38) | B29: 80 | C29: 5.37 | D29: 3.76 | E29: 8.4 | F29: 5.89 | G29: 12.6 | H29: 8.86 | I29: 21.7 | J29: 15.3 | K29: 30.1 | L29: 21.2
A30: 2 (51) | B30: 40 | C30: 12.5 | D30: 8.78 | E30: 19.6 | F30: 13.7 | G30: 29.3 | H30: 20.6 | I30: 50.4 | J30: 35.5 | K30: 69.9 | L30: 49.3
A31: 2 1/2 (64) | B31: 40 | C31: 20 | D31: 14 | E31: 31.2 | F31: 22 | G31: 46.7 | H31: 32.9 | I31: 80.3 | J31: 56.7 | K31: 111 | L31: 78.6
A32: 3 (76) | B32: 40 | C32: 35.4 | D32: 24.9 | E32: 55.2 | F32: 38.9 | G32: 82.6 | H32: 58.2 | I32: 142 | J32: 100 | K32: 197 | L32: 139
A33: 4 (102) | B33: 40 | C33: 72.3 | D33: 50.8 | E33: 113 | F33: 79.3 | G33: 168 | H33: 119 | I33: 289 | J33: 204 | K33: 401 | L33: 283
A34: Notes:
A35: 1. Table capacities are in kilowatts of refrigeration. Maximum veloxity = 15 m/s. Suction refrigerant state is at saturation.
A36: Dp = pressure drop from line friction, kPa per 30 meters equivalent length.
A37: Dt = change in saturation temperature corresponding to Dp, K per 30 meters equivalent length.
A38: 2. Same as SI R2022 chapter 1 tables.
A39: 3. Same as SI R2022 chapter 1 tables.
A40: 4. Refrigerant thermodynamic and thermophysical properties calculated using NIST RefProp v10.0. Refrigerant flow rates calculated using the Darcy-Weisbach and Colebrook equations.
A41: 5. Table capacities based on 40°C liquid temperature entering the expansion device. Multiply capacities by the following correction factors for other liquid temperatures. Correction factors based on a -18°C evaporator temperature, and are suitable in the range of -40°C to 5°C.
D42: Liquid Temperature, °C
D43: 25 | E43: 30 | F43: 35 | G43: 45 | H43: 50 | I43: 55 | J43: 60
B44: Suction Line | D44: =ROUND($E50/$E$53,2) -> 1.19 | E44: =ROUND($E51/$E$53,2) -> 1.13 | F44: =ROUND($E52/$E$53,2) -> 1.06 | G44: =ROUND($E54/$E$53,2) -> 0.93 | H44: =ROUND($E55/$E$53,2) -> 0.87 | I44: =ROUND($E56/$E$53,2) -> 0.8 | J44: =ROUND($E57/$E$53,2) -> 0.72
E47: NRE @ -18°C
D48: Liquid | E48: Evap,
D49: Temp, °C | E49: Btu/lb
D50: 25 | E50: =Enthalpy($D$1,"TVAP","C",-18)-Enthalpy($D$1,"TLIQ","C",$D50) -> 160.0187325
D51: 30 | E51: 151.8785738
D52: 35 | E52: 143.5480927
D53: 40 | E53: 134.9973917
D54: 45 | E54: 126.1864754
D55: 50 | E55: 117.060886
D56: 55 | E56: 107.5438609
D57: 60 | E57: 97.52031601

Sheet Table 13
A1: NIST Refrigerant File | D1: R450A.mix | F1: =Pressure($D$1,"TVAP","E",C6)-Pressure($D$1,"TVAP","E",C6-1) -> 0.4277787183 | G1: =Pressure($D$1,"TVAP","E",C6)-Pressure($D$1,"TVAP","E",C6-0.5) -> 0.214885026 | H1: =Pressure($D$1,"TVAP","E",E6)-Pressure($D$1,"TVAP","E",E6-1) -> 0.5126739011 | I1: =Pressure($D$1,"TVAP","E",E6)-Pressure($D$1,"TVAP","E",E6-0.5) -> 0.2574659381 | J1: =Pressure($D$1,"TVAP","E",G6)-Pressure($D$1,"TVAP","E",G6-1) -> 0.6084385388 | K1: =Pressure($D$1,"TVAP","E",G6)-Pressure($D$1,"TVAP","E",G6-0.5) -> 0.3054867225 | L1: =Pressure($D$1,"TVAP","E",I6)-Pressure($D$1,"TVAP","E",I6-1) -> 0.7156506573 | M1: =Pressure($D$1,"TVAP","E",I6)-Pressure($D$1,"TVAP","E",I6-0.5) -> 0.3592393151 | N1: =Pressure($D$1,"TVAP","E",K6)-Pressure($D$1,"TVAP","E",K6-1) -> 0.8348555841 | O1: =Pressure($D$1,"TVAP","E",K6)-Pressure($D$1,"TVAP","E",K6-0.5) -> 0.4189950266
A3: Table 13 Suction Line Capacities in Tons for Refrigerant 450A (Single- or High-Stage Applications)
A5: Line Size | C5: Saturated Suction Temperature, °F
A6: Type L, | C6: 0 | E6: 10 | G6: 20 | I6: 30 | K6: 40
A7: Copper, | C7: Dt = 1°F | D7: Dt = 0.5°F | E7: Dt = 1°F | F7: Dt = 0.5°F | G7: Dt = 1°F | H7: Dt = 0.5°F | I7: Dt = 1°F | J7: Dt = 0.5°F | K7: Dt = 1°F | L7: Dt = 0.5°F
A8: OD, in | C8: Dp = 0.43 psi | D8: Dp = 0.21 psi | E8: Dp = 0.51 psi | F8: Dp = 0.26 psi | G8: Dp = 0.61 psi | H8: Dp = 0.31 psi | I8: Dp = 0.72 psi | J8: Dp = 0.36 psi | K8: Dp = 0.83 psi | L8: Dp = 0.42 psi
A9: 3/8 | C9: --- | D9: --- | E9: --- | F9: --- | G9: --- | H9: --- | I9: --- | J9: --- | K9: --- | L9: ---
A10: 1/2 | C10: --- | D10: --- | E10: 0.104 | F10: --- | G10: 0.132 | H10: --- | I10: 0.165 | J10: 0.112 | K10: 0.205 | L10: 0.14
A11: 5/8 | C11: 0.147 | D11: 0.1 | E11: 0.189 | F11: 0.129 | G11: 0.24 | H11: 0.163 | I11: 0.301 | J11: 0.205 | K11: 0.373 | L11: 0.255
A12: 3/4 | C12: 0.252 | D12: 0.172 | E12: 0.324 | F12: 0.221 | G12: 0.41 | H12: 0.28 | I12: 0.514 | J12: 0.351 | K12: 0.638 | L12: 0.436
A13: 7/8 | C13: 0.392 | D13: 0.267 | E13: 0.503 | F13: 0.343 | G13: 0.637 | H13: 0.435 | I13: 0.797 | J13: 0.545 | K13: 0.988 | L13: 0.676
A14: 1 1/8 | C14: 0.8 | D14: 0.546 | E14: 1.02 | F14: 0.7 | G14: 1.3 | H14: 0.887 | I14: 1.62 | J14: 1.11 | K14: 2.01 | L14: 1.38
A15: 1 3/8 | C15: 1.4 | D15: 0.958 | E15: 1.79 | F15: 1.23 | G15: 2.27 | H15: 1.55 | I15: 2.84 | J15: 1.94 | K15: 3.51 | L15: 2.41
A16: 1 5/8 | C16: 2.23 | D16: 1.52 | E16: 2.85 | F16: 1.95 | G16: 3.6 | H16: 2.47 | I16: 4.49 | J16: 3.09 | K16: 5.56 | L16: 3.82
A17: 2 1/8 | C17: 4.64 | D17: 3.18 | E17: 5.93 | F17: 4.07 | G17: 7.48 | H17: 5.14 | I17: 9.34 | J17: 6.43 | K17: 11.5 | L17: 7.95
A18: 2 5/8 | C18: 8.23 | D18: 5.65 | E18: 10.5 | F18: 7.23 | G18: 13.3 | H18: 9.13 | I18: 16.5 | J18: 11.4 | K18: 20.4 | L18: 14.1
A19: 3 1/8 | C19: 13.2 | D19: 9.06 | E19: 16.8 | F19: 11.6 | G19: 21.2 | H19: 14.6 | I19: 26.4 | J19: 18.2 | K19: 32.6 | L19: 22.5
A20: 3 5/8 | C20: 19.6 | D20: 13.5 | E20: 25 | F20: 17.2 | G20: 31.5 | H20: 21.8 | I20: 39.3 | J20: 27.1 | K20: 48.5 | L20: 33.5
A21: 4 1/8 | C21: 27.4 | D21: 19.1 | E21: 35.1 | F21: 24.4 | G21: 44.5 | H21: 30.7 | I21: 55.5 | J21: 38.3 | K21: 68.4 | L21: 47.3
A22: Steel
A23: IPS | B23: SCH
A24: 3/8 | B24: 80 | C24: --- | D24: --- | E24: --- | F24: --- | G24: 0.102 | H24: --- | I24: 0.127 | J24: --- | K24: 0.156 | L24: 0.109
A25: 1/2 | B25: 80 | C25: 0.127 | D25: --- | E25: 0.162 | F25: 0.113 | G25: 0.202 | H25: 0.141 | I25: 0.251 | J25: 0.175 | K25: 0.308 | L25: 0.215
A26: 3/4 | B26: 80 | C26: 0.289 | D26: 0.202 | E26: 0.366 | F26: 0.256 | G26: 0.458 | H26: 0.321 | I26: 0.567 | J26: 0.397 | K26: 0.695 | L26: 0.488
A27: 1 | B27: 80 | C27: 0.569 | D27: 0.397 | E27: 0.72 | F27: 0.504 | G27: 0.9 | H27: 0.631 | I27: 1.11 | J27: 0.781 | K27: 1.36 | L27: 0.958
A28: 1 1/4 | B28: 80 | C28: 1.22 | D28: 0.857 | E28: 1.55 | F28: 1.09 | G28: 1.93 | H28: 1.36 | I28: 2.39 | J28: 1.68 | K28: 2.93 | L28: 2.06
A29: 1 1/2 | B29: 80 | C29: 1.87 | D29: 1.31 | E29: 2.36 | F29: 1.66 | G29: 2.95 | H29: 2.07 | I29: 3.65 | J29: 2.57 | K29: 4.47 | L29: 3.14
A30: 2 | B30: 40 | C30: 4.36 | D30: 3.06 | E30: 5.5 | F30: 3.87 | G30: 6.87 | H30: 4.83 | I30: 8.49 | J30: 5.98 | K30: 10.4 | L30: 7.32
A31: 2 1/2 | B31: 40 | C31: 6.96 | D31: 4.89 | E31: 8.78 | F31: 6.18 | G31: 11 | H31: 7.72 | I31: 13.5 | J31: 9.54 | K31: 16.6 | L31: 11.7
A32: 3 | B32: 40 | C32: 12.3 | D32: 8.66 | E32: 15.5 | F32: 10.9 | G32: 19.4 | H32: 13.7 | I32: 23.9 | J32: 16.9 | K32: 29.3 | L32: 20.7
A33: 4 | B33: 40 | C33: 25.1 | D33: 17.7 | E33: 31.7 | F33: 22.3 | G33: 39.5 | H33: 27.9 | I33: 48.8 | J33: 34.4 | K33: 59.7 | L33: 42.1
A34: Notes:
A35: 1. Table capacities are in tons of refrigeration. Maximum veloxity = 3000 fpm. Suction refrigerant state is at saturation.
A36: Dp = pressure drop from line friction, psi per 100 ft equivalent length.
A37: Dt = change in saturation temperature corresponding to Dp, °F per 100 ft equivalent length.
A38: 2. Same as I-P R2022 chapter 1 tables.
A39: 3. Same as I-P R2022 chapter 1 tables.
A40: 4. Refrigerant thermodynamic and thermophysical properties calculated using NIST RefProp v10.0. Refrigerant flow rates calculated using the Darcy-Weisbach and Colebrook equations.
A41: 5. Table capacities based on 105°F liquid temperature entering the expension device. Multiply capacities by the following correction factors for other liquid temperatures. Correction factors based on a 20°F evaporator temperature, and are suitable in the range of 0°F to 40°F.
D42: Liquid Temperature, °F
D43: 80 | E43: 90 | F43: 100 | G43: 110 | H43: 120 | I43: 130 | J43: 140
B44: Suction Line | D44: =ROUND($E50/$E$53,2) -> 1.16 | E44: =ROUND($E51/$E$53,2) -> 1.09 | F44: =ROUND($E52/$E$53,2) -> 1.03 | G44: =ROUND($E54/$E$53,2) -> 0.97 | H44: =ROUND($E55/$E$53,2) -> 0.9 | I44: =ROUND($E56/$E$53,2) -> 0.84 | J44: =ROUND($E57/$E$53,2) -> 0.77
E47: NRE @ 20°F
D48: Liquid | E48: Evap,
D49: Temp, °F | E49: Btu/lb
D50: 80 | E50: =Enthalpy($D$1,"TVAP","E",20)-Enthalpy($D$1,"TLIQ","E",$D50) -> 63.6610544
D51: 90 | E51: 60.26427591
D52: 100 | E52: 56.81370839
D53: 105 | E53: 55.06650187
D54: 110 | E54: 53.30361474
D55: 120 | E55: 49.727095
D56: 130 | E56: 46.07562697
D57: 140 | E57: 42.33835812

Sheet Table 13 SI
A1: NIST Refrigerant File | D1: R450A.mix | F1: =(Pressure($D$1,"TVAP","C",C6)-Pressure($D$1,"TVAP","C",C6-0.5))*1000 -> 2.912309487 | G1: =(Pressure($D$1,"TVAP","C",C6)-Pressure($D$1,"TVAP","C",C6-0.25))*1000 -> 1.462086487 | H1: =(Pressure($D$1,"TVAP","C",E6)-Pressure($D$1,"TVAP","C",E6-0.5))*1000 -> 3.413608604 | I1: =(Pressure($D$1,"TVAP","C",E6)-Pressure($D$1,"TVAP","C",E6-0.25))*1000 -> 1.713414191 | J1: =(Pressure($D$1,"TVAP","C",G6)-Pressure($D$1,"TVAP","C",G6-0.5))*1000 -> 3.970803877 | K1: =(Pressure($D$1,"TVAP","C",G6)-Pressure($D$1,"TVAP","C",G6-0.25))*1000 -> 1.992752377 | L1: =(Pressure($D$1,"TVAP","C",I6)-Pressure($D$1,"TVAP","C",I6-0.5))*1000 -> 4.586273344 | M1: =(Pressure($D$1,"TVAP","C",I6)-Pressure($D$1,"TVAP","C",I6-0.25))*1000 -> 2.301205872 | N1: =(Pressure($D$1,"TVAP","C",K6)-Pressure($D$1,"TVAP","C",K6-0.5))*1000 -> 5.262627945 | O1: =(Pressure($D$1,"TVAP","C",K6)-Pressure($D$1,"TVAP","C",K6-0.25))*1000 -> 2.640158582
A3: Table 13 Suction Line Capacities in Tons for Refrigerant 450A (Single- or High-Stage Applications)
A5: Line Size | C5: Saturated Suction Temperature, °C
A6: Type L, | C6: -15 | E6: -10 | G6: -5 | I6: 0 | K6: 5
A7: Copper, | C7: Dt = 0.5 K | D7: Dt = 0.25 K | E7: Dt = 0.5 K | F7: Dt = 0.25 K | G7: Dt = 0.5 K | H7: Dt = 0.25 K | I7: Dt = 0.5 K | J7: Dt = 0.25 K | K7: Dt = 0.5 K | L7: Dt = 0.25 K
A8: OD, in (mm) | C8: Dp = 2.91 kPa | D8: Dp = 1.46 kPa | E8: Dp = 3.41 kPa | F8: Dp = 1.71 kPa | G8: Dp = 3.97 kPa | H8: Dp = 1.99 kPa | I8: Dp = 4.59 kPa | J8: Dp = 2.30 kPa | K8: Dp = 5.26 kPa | L8: Dp = 2.64 kPa
A9: 3/8 (10) | C9: 0.124 | D9: --- | E9: 0.155 | F9: 0.105 | G9: 0.191 | H9: 0.129 | I9: 0.234 | J9: 0.159 | K9: 0.285 | L9: 0.193
A10: 1/2 (13) | C10: 0.309 | D10: 0.209 | E10: 0.385 | F10: 0.261 | G10: 0.476 | H10: 0.323 | I10: 0.582 | J10: 0.396 | K10: 0.706 | L10: 0.48
A11: 5/8 (16) | C11: 0.563 | D11: 0.382 | E11: 0.702 | F11: 0.477 | G11: 0.866 | H11: 0.589 | I11: 1.06 | J11: 0.721 | K11: 1.28 | L11: 0.875
A12: 3/4 (19) | C12: 0.965 | D12: 0.656 | E12: 1.2 | F12: 0.818 | G12: 1.48 | H12: 1.01 | I12: 1.81 | J12: 1.23 | K12: 2.19 | L12: 1.5
A13: 7/8 (22) | C13: 1.5 | D13: 1.02 | E13: 1.87 | F13: 1.27 | G13: 2.3 | H13: 1.57 | I13: 2.81 | J13: 1.92 | K13: 3.4 | L13: 2.32
A14: 1 1/8 (29) | C14: 3.06 | D14: 2.09 | E14: 3.8 | F14: 2.6 | G14: 4.68 | H14: 3.2 | I14: 5.71 | J14: 3.91 | K14: 6.91 | L14: 4.73
A15: 1 3/8 (35) | C15: 5.36 | D15: 3.66 | E15: 6.65 | F15: 4.55 | G15: 8.19 | H15: 5.61 | I15: 10 | J15: 6.84 | K15: 12.1 | L15: 8.29
A16: 1 5/8 (41) | C16: 8.5 | D16: 5.82 | E16: 10.6 | F16: 7.23 | G16: 13 | H16: 8.9 | I16: 15.8 | J16: 10.9 | K16: 19.1 | L16: 13.1
A17: 2 1/8 (54) | C17: 17.7 | D17: 12.2 | E17: 22 | F17: 15.1 | G17: 27 | H17: 18.6 | I17: 32.9 | J17: 22.6 | K17: 39.7 | L17: 27.4
A18: 2 5/8 (67) | C18: 31.4 | D18: 21.6 | E18: 39 | F18: 26.8 | G18: 47.9 | H18: 32.9 | I18: 58.3 | J18: 40.1 | K18: 70.3 | L18: 48.5
A19: 3 1/8 (79) | C19: 50.3 | D19: 34.6 | E19: 62.3 | F19: 42.9 | G19: 76.5 | H19: 52.7 | I19: 93.1 | J19: 64.2 | K19: 112 | L19: 77.5
A20: 3 5/8 (92) | C20: 74.9 | D20: 51.6 | E20: 92.8 | F20: 63.9 | G20: 114 | H20: 78.5 | I20: 138 | J20: 95.6 | K20: 167 | L20: 115
A21: 4 1/8 (105) | C21: 106 | D21: 72.9 | E21: 131 | F21: 90.3 | G21: 161 | H21: 111 | I21: 195 | J21: 135 | K21: 236 | L21: 163
A22: Steel
A23: IPS (mm) | B23: SCH
A24: 3/8 (10) | B24: 80 | C24: 0.245 | D24: 0.17 | E24: 0.302 | F24: 0.21 | G24: 0.369 | H24: 0.257 | I24: 0.447 | J24: 0.312 | K24: 0.537 | L24: 0.375
A25: 1/2 (13) | B25: 80 | C25: 0.486 | D25: 0.338 | E25: 0.599 | F25: 0.417 | G25: 0.731 | H25: 0.51 | I25: 0.884 | J25: 0.618 | K25: 1.06 | L25: 0.743
A26: 3/4 (19) | B26: 80 | C26: 1.1 | D26: 0.768 | E26: 1.36 | F26: 0.947 | G26: 1.65 | H26: 1.16 | I26: 2 | J26: 1.4 | K26: 2.4 | L26: 1.68
A27: 1 (25) | B27: 80 | C27: 2.17 | D27: 1.51 | E27: 2.66 | F27: 1.86 | G27: 3.25 | H27: 2.28 | I27: 3.92 | J27: 2.75 | K27: 4.7 | L27: 3.3
A28: 1 1/4 (32) | B28: 80 | C28: 4.66 | D28: 3.27 | E28: 5.73 | F28: 4.02 | G28: 6.98 | H28: 4.9 | I28: 8.43 | J28: 5.92 | K28: 10.1 | L28: 7.1
A29: 1 1/2 (38) | B29: 80 | C29: 7.12 | D29: 4.99 | E29: 8.75 | F29: 6.14 | G29: 10.7 | H29: 7.48 | I29: 12.9 | J29: 9.04 | K29: 15.4 | L29: 10.8
A30: 2 (51) | B30: 40 | C30: 16.6 | D30: 11.6 | E30: 20.4 | F30: 14.3 | G30: 24.8 | H30: 17.4 | I30: 29.9 | J30: 21.1 | K30: 35.8 | L30: 25.2
A31: 2 1/2 (64) | B31: 40 | C31: 26.5 | D31: 18.6 | E31: 32.5 | F31: 22.9 | G31: 39.6 | H31: 27.8 | I31: 47.7 | J31: 33.6 | K31: 57.2 | L31: 40.3
A32: 3 (76) | B32: 40 | C32: 46.9 | D32: 33 | E32: 57.5 | F32: 40.5 | G32: 70 | H32: 49.3 | I32: 84.4 | J32: 59.5 | K32: 101 | L32: 71.2
A33: 4 (102) | B33: 40 | C33: 95.6 | D33: 67.3 | E33: 117 | F33: 82.6 | G33: 143 | H33: 101 | I33: 172 | J33: 121 | K33: 206 | L33: 145
A34: Notes:
A35: 1. Table capacities are in kilowatts of refrigeration. Maximum veloxity = 15 m/s. Suction refrigerant state is at saturation.
A36: Dp = pressure drop from line friction, kPa per 30 meters equivalent length.
A37: Dt = change in saturation temperature corresponding to Dp, K per 30 meters equivalent length.
A38: 2. Same as SI R2022 chapter 1 tables.
A39: 3. Same as SI R2022 chapter 1 tables.
A40: 4. Refrigerant thermodynamic and thermophysical properties calculated using NIST RefProp v10.0. Refrigerant flow rates calculated using the Darcy-Weisbach and Colebrook equations.
A41: 5. Table capacities based on 40°C liquid temperature entering the expansion device. Multiply capacities by the following correction factors for other liquid temperatures. Correction factors based on a -5°C evaporator temperature, and are suitable in the range of -15°C to 5°C.
D42: Liquid Temperature, °C
D43: 25 | E43: 30 | F43: 35 | G43: 45 | H43: 50 | I43: 55 | J43: 60
B44: Suction Line | D44: =ROUND($E50/$E$53,2) -> 1.17 | E44: =ROUND($E51/$E$53,2) -> 1.11 | F44: =ROUND($E52/$E$53,2) -> 1.06 | G44: =ROUND($E54/$E$53,2) -> 0.94 | H44: =ROUND($E55/$E$53,2) -> 0.89 | I44: =ROUND($E56/$E$53,2) -> 0.83 | J44: =ROUND($E57/$E$53,2) -> 0.77
E47: NRE @ -5°C
D48: Liquid | E48: Evap,
D49: Temp, °C | E49: Btu/lb
D50: 25 | E50: =Enthalpy($D$1,"TVAP","C",-5)-Enthalpy($D$1,"TLIQ","C",$D50) -> 151.4086055
D51: 30 | E51: 144.339517
D52: 35 | E52: 137.1730203
D53: 40 | E53: 129.9001105
D54: 45 | E54: 122.5102705
D55: 50 | E55: 114.9909727
D56: 55 | E56: 107.3269542
D57: 60 | E57: 99.49913808

Sheet Table 14
A1: NIST Refrigerant File | D1: R449A.mix | F1: =Pressure($D$1,"TVAP","E",C6)-Pressure($D$1,"TVAP","E",C6-1) -> 0.3943244026 | G1: =Pressure($D$1,"TVAP","E",C6)-Pressure($D$1,"TVAP","E",C6-0.5) -> 0.1982236852 | H1: =Pressure($D$1,"TVAP","E",E6)-Pressure($D$1,"TVAP","E",E6-1) -> 0.5910558296 | I1: =Pressure($D$1,"TVAP","E",E6)-Pressure($D$1,"TVAP","E",E6-0.5) -> 0.2969339642 | J1: =Pressure($D$1,"TVAP","E",G6)-Pressure($D$1,"TVAP","E",G6-1) -> 0.8466246772 | K1: =Pressure($D$1,"TVAP","E",G6)-Pressure($D$1,"TVAP","E",G6-0.5) -> 0.4251080246 | L1: =Pressure($D$1,"TVAP","E",I6)-Pressure($D$1,"TVAP","E",I6-1) -> 1.16791353 | M1: =Pressure($D$1,"TVAP","E",I6)-Pressure($D$1,"TVAP","E",I6-0.5) -> 0.5861841538 | N1: =Pressure($D$1,"TVAP","E",K6)-Pressure($D$1,"TVAP","E",K6-1) -> 1.561680127 | O1: =Pressure($D$1,"TVAP","E",K6)-Pressure($D$1,"TVAP","E",K6-0.5) -> 0.7835422634
A3: Table 14 Suction Line Capacities in Tons for Refrigerant 448A/449A (Single- or High-Stage Applications)
A5: Line Size | C5: Saturated Suction Temperature, °F
A6: Type L, | C6: -40 | E6: -20 | G6: 0 | I6: 20 | K6: 40
A7: Copper, | C7: Dt = 1°F | D7: Dt = 0.5°F | E7: Dt = 1°F | F7: Dt = 0.5°F | G7: Dt = 1°F | H7: Dt = 0.5°F | I7: Dt = 1°F | J7: Dt = 0.5°F | K7: Dt = 1°F | L7: Dt = 0.5°F
A8: OD, in | C8: Dp = 0.39 psi | D8: Dp = 0.20 psi | E8: Dp = 0.59 psi | F8: Dp = 0.30 psi | G8: Dp = 0.85 psi | H8: Dp = 0.43 psi | I8: Dp = 1.17 psi | J8: Dp = 0.59 psi | K8: Dp = 1.56 psi | L8: Dp = 0.78 psi
A9: 3/8 | C9: --- | D9: --- | E9: --- | F9: --- | G9: --- | H9: --- | I9: 0.108 | J9: --- | K9: 0.161 | L9: 0.11
A10: 1/2 | C10: --- | D10: --- | E10: 0.105 | F10: --- | G10: 0.171 | H10: 0.117 | I10: 0.267 | J10: 0.182 | K10: 0.398 | L10: 0.272
A11: 5/8 | C11: 0.111 | D11: --- | E11: 0.191 | F11: 0.13 | G11: 0.312 | H11: 0.212 | I11: 0.484 | J11: 0.331 | K11: 0.722 | L11: 0.494
A12: 3/4 | C12: 0.19 | D12: 0.129 | E12: 0.327 | F12: 0.223 | G12: 0.532 | H12: 0.364 | I12: 0.826 | J12: 0.565 | K12: 1.23 | L12: 0.844
A13: 7/8 | C13: 0.295 | D13: 0.201 | E13: 0.508 | F13: 0.346 | G13: 0.825 | H13: 0.564 | I13: 1.28 | J13: 0.876 | K13: 1.9 | L13: 1.31
A14: 1 1/8 | C14: 0.603 | D14: 0.411 | E14: 1.03 | F14: 0.707 | G14: 1.68 | H14: 1.15 | I14: 2.59 | J14: 1.78 | K14: 3.85 | L14: 2.65
A15: 1 3/8 | C15: 1.06 | D15: 0.722 | E15: 1.81 | F15: 1.24 | G15: 2.93 | H15: 2.01 | I15: 4.53 | J15: 3.11 | K15: 6.72 | L15: 4.63
A16: 1 5/8 | C16: 1.68 | D16: 1.15 | E16: 2.87 | F16: 1.97 | G16: 4.65 | H16: 3.19 | I16: 7.16 | J16: 4.93 | K16: 10.6 | L16: 7.33
A17: 2 1/8 | C17: 3.5 | D17: 2.4 | E17: 5.98 | F17: 4.11 | G17: 9.65 | H17: 6.65 | I17: 14.9 | J17: 10.3 | K17: 22 | L17: 15.2
A18: 2 5/8 | C18: 6.22 | D18: 4.27 | E18: 10.6 | F18: 7.3 | G18: 17.1 | H18: 11.8 | I18: 26.3 | J18: 18.2 | K18: 38.9 | L18: 26.9
A19: 3 1/8 | C19: 10 | D19: 6.84 | E19: 17 | F19: 11.7 | G19: 27.3 | H19: 18.8 | I19: 41.9 | J19: 29 | K19: 61.9 | L19: 42.9
A20: 3 5/8 | C20: 14.1 | D20: 10.2 | E20: 24.2 | F20: 17.4 | G20: 39.5 | H20: 28 | I20: 61.8 | J20: 43.1 | K20: 92 | L20: 63.8
A21: 4 1/8 | C21: 18.4 | D21: 14.4 | E21: 31.5 | F21: 24.6 | G21: 51.3 | H21: 39.6 | I21: 80.4 | J21: 60.9 | K21: 122 | L21: 90
A22: Steel
A23: IPS | B23: SCH
A24: 3/8 | B24: 80 | C24: --- | D24: --- | E24: --- | F24: --- | G24: 0.131 | H24: --- | I24: 0.199 | J24: 0.139 | K24: 0.29 | L24: 0.204
A25: 1/2 | B25: 80 | C25: --- | D25: --- | E25: 0.163 | F25: 0.114 | G25: 0.258 | H25: 0.181 | I25: 0.392 | J25: 0.275 | K25: 0.572 | L25: 0.402
A26: 3/4 | B26: 80 | C26: 0.22 | D26: 0.153 | E26: 0.369 | F26: 0.258 | G26: 0.584 | H26: 0.409 | I26: 0.884 | J26: 0.621 | K26: 1.29 | L26: 0.907
A27: 1 | B27: 80 | C27: 0.434 | D27: 0.303 | E27: 0.725 | F27: 0.507 | G27: 1.15 | H27: 0.805 | I27: 1.73 | J27: 1.22 | K27: 2.53 | L27: 1.78
A28: 1 1/4 | B28: 80 | C28: 0.935 | D28: 0.654 | E28: 1.56 | F28: 1.09 | G28: 2.46 | H28: 1.73 | I28: 3.72 | J28: 2.62 | K28: 5.41 | L28: 3.82
A29: 1 1/2 | B29: 80 | C29: 1.43 | D29: 1 | E29: 2.38 | F29: 1.67 | G29: 3.76 | H29: 2.64 | I29: 5.67 | J29: 4 | K29: 8.25 | L29: 5.82
A30: 2 | B30: 40 | C30: 3.33 | D30: 2.34 | E30: 5.54 | F30: 3.9 | G30: 8.73 | H30: 6.15 | I30: 13.2 | J30: 9.29 | K30: 19.2 | L30: 13.5
A31: 2 1/2 | B31: 40 | C31: 5.32 | D31: 3.74 | E31: 8.84 | F31: 6.22 | G31: 13.9 | H31: 9.82 | I31: 21 | J31: 14.8 | K31: 30.6 | L31: 21.6
A32: 3 | B32: 40 | C32: 9.42 | D32: 6.62 | E32: 15.6 | F32: 11 | G32: 24.6 | H32: 17.4 | I32: 37.1 | J32: 26.2 | K32: 54 | L32: 38.1
A33: 4 | B33: 40 | C33: 19.2 | D33: 13.5 | E33: 31.9 | F33: 22.5 | G33: 50.2 | H33: 35.4 | I33: 75.6 | J33: 53.4 | K33: 110 | L33: 77.7
A34: Notes:
A35: 1. Table capacities are in tons of refrigeration. Maximum veloxity = 3000 fpm. Suction refrigerant state is at saturation.
A36: Dp = pressure drop from line friction, psi per 100 ft equivalent length.
A37: Dt = change in saturation temperature corresponding to Dp, °F per 100 ft equivalent length.
A38: 2. Same as I-P R2022 chapter 1 tables.
A39: 3. Same as I-P R2022 chapter 1 tables.
A40: 4. Refrigerant thermodynamic and thermophysical properties calculated using NIST RefProp v10.0. Refrigerant flow rates calculated using the Darcy-Weisbach and Colebrook equations.
A41: 5. Table capacities based on 105°F liquid temperature entering the expension device. Multiply capacities by the following correction factors for other liquid temperatures. Correction factors based on a 0°F evaporator temperature, and are suitable in the range of -40°F to 40°F.
D42: Liquid Temperature, °F
D43: 80 | E43: 90 | F43: 100 | G43: 110 | H43: 120 | I43: 130 | J43: 140
B44: Suction Line | D44: =ROUND($E50/$E$53,2) -> 1.17 | E44: =ROUND($E51/$E$53,2) -> 1.11 | F44: =ROUND($E52/$E$53,2) -> 1.04 | G44: =ROUND($E54/$E$53,2) -> 0.96 | H44: =ROUND($E55/$E$53,2) -> 0.89 | I44: =ROUND($E56/$E$53,2) -> 0.81 | J44: =ROUND($E57/$E$53,2) -> 0.73
E47: NRE @ 0°F
D48: Liquid | E48: Evap,
D49: Temp, °F | E49: Btu/lb
D50: 80 | E50: =Enthalpy($D$1,"TVAP","E",0)-Enthalpy($D$1,"TLIQ","E",$D50) -> 64.55821516
D51: 90 | E51: 60.80449751
D52: 100 | E52: 56.95193591
D53: 105 | E53: 54.98334136
D54: 110 | E54: 52.98300071
D55: 120 | E55: 48.87331616
D56: 130 | E56: 44.58741924
D57: 140 | E57: 40.06990523

Sheet Table 14 SI
A1: NIST Refrigerant File | D1: R449A.mix | F1: =(Pressure($D$1,"TVAP","C",C6)-Pressure($D$1,"TVAP","C",C6-0.5))*1000 -> 2.449522596 | G1: =(Pressure($D$1,"TVAP","C",C6)-Pressure($D$1,"TVAP","C",C6-0.25))*1000 -> 1.230686695 | H1: =(Pressure($D$1,"TVAP","C",E6)-Pressure($D$1,"TVAP","C",E6-0.5))*1000 -> 3.533334291 | I1: =(Pressure($D$1,"TVAP","C",E6)-Pressure($D$1,"TVAP","C",E6-0.25))*1000 -> 1.77429395 | J1: =(Pressure($D$1,"TVAP","C",G6)-Pressure($D$1,"TVAP","C",G6-0.5))*1000 -> 4.909327574 | K1: =(Pressure($D$1,"TVAP","C",G6)-Pressure($D$1,"TVAP","C",G6-0.25))*1000 -> 2.464243661 | L1: =(Pressure($D$1,"TVAP","C",I6)-Pressure($D$1,"TVAP","C",I6-0.5))*1000 -> 7.589721777 | M1: =(Pressure($D$1,"TVAP","C",I6)-Pressure($D$1,"TVAP","C",I6-0.25))*1000 -> 3.807688657 | N1: =(Pressure($D$1,"TVAP","C",K6)-Pressure($D$1,"TVAP","C",K6-0.5))*1000 -> 9.832188062 | O1: =(Pressure($D$1,"TVAP","C",K6)-Pressure($D$1,"TVAP","C",K6-0.25))*1000 -> 4.931331503
A3: Table 14 Suction Line Capacities in Tons for Refrigerant 448A/449A (Single- or High-Stage Applications)
A5: Line Size | C5: Saturated Suction Temperature, °C
A6: Type L, | C6: -40 | E6: -30 | G6: -20 | I6: -5 | K6: 5
A7: Copper, | C7: Dt = 0.5 K | D7: Dt = 0.25 K | E7: Dt = 0.5 K | F7: Dt = 0.25 K | G7: Dt = 0.5 K | H7: Dt = 0.25 K | I7: Dt = 0.5 K | J7: Dt = 0.25 K | K7: Dt = 0.5 K | L7: Dt = 0.25 K
A8: OD, in (mm) | C8: Dp = 2.45 kPa | D8: Dp = 1.23 kPa | E8: Dp = 3.53 kPa | F8: Dp = 1.77 kPa | G8: Dp = 4.91 kPa | H8: Dp = 2.46 kPa | I8: Dp = 7.59 kPa | J8: Dp = 3.81 kPa | K8: Dp = 9.83 kPa | L8: Dp = 4.93 kPa
A9: 3/8 (10) | C9: --- | D9: --- | E9: 0.135 | F9: --- | G9: 0.212 | H9: 0.143 | I9: 0.387 | J9: 0.263 | K9: 0.554 | L9: 0.378
A10: 1/2 (13) | C10: 0.204 | D10: 0.138 | E10: 0.336 | F10: 0.228 | G10: 0.526 | H10: 0.357 | I10: 0.957 | J10: 0.652 | K10: 1.37 | L10: 0.935
A11: 5/8 (16) | C11: 0.373 | D11: 0.253 | E11: 0.612 | F11: 0.416 | G11: 0.957 | H11: 0.652 | I11: 1.74 | J11: 1.19 | K11: 2.48 | L11: 1.7
A12: 3/4 (19) | C12: 0.64 | D12: 0.435 | E12: 1.05 | F12: 0.713 | G12: 1.64 | H12: 1.12 | I12: 2.96 | J12: 2.03 | K12: 4.23 | L12: 2.9
A13: 7/8 (22) | C13: 1 | D13: 0.677 | E13: 1.63 | F13: 1.11 | G13: 2.54 | H13: 1.73 | I13: 4.59 | J13: 3.14 | K13: 6.54 | L13: 4.49
A14: 1 1/8 (29) | C14: 2.03 | D14: 1.39 | E14: 3.32 | F14: 2.27 | G14: 5.16 | H14: 3.53 | I14: 9.31 | J14: 6.39 | K14: 13.3 | L14: 9.12
A15: 1 3/8 (35) | C15: 3.57 | D15: 2.44 | E15: 5.81 | F15: 3.97 | G15: 9.02 | H15: 6.19 | I15: 16.2 | J15: 11.2 | K15: 23.1 | L15: 15.9
A16: 1 5/8 (41) | C16: 5.67 | D16: 3.88 | E16: 9.22 | F16: 6.31 | G16: 14.3 | H16: 9.82 | I16: 25.7 | J16: 17.7 | K16: 36.5 | L16: 25.2
A17: 2 1/8 (54) | C17: 11.8 | D17: 8.11 | E17: 19.2 | F17: 13.2 | G17: 29.7 | H17: 20.5 | I17: 53.4 | J17: 36.8 | K17: 75.7 | L17: 52.3
A18: 2 5/8 (67) | C18: 21 | D18: 14.4 | E18: 34.1 | F18: 23.4 | G18: 52.7 | H18: 36.3 | I18: 94.3 | J18: 65.1 | K18: 134 | L18: 92.5
A19: 3 1/8 (79) | C19: 33.7 | D19: 23.1 | E19: 54.5 | F19: 37.5 | G19: 84.2 | H19: 58 | I19: 151 | J19: 104 | K19: 213 | L19: 148
A20: 3 5/8 (92) | C20: 49.3 | D20: 34.5 | E20: 80.2 | F20: 55.9 | G20: 125 | H20: 86.4 | I20: 224 | J20: 155 | K20: 317 | L20: 219
A21: 4 1/8 (105) | C21: 64.1 | D21: 48.8 | E21: 104 | F21: 79 | G21: 163 | H21: 122 | I21: 299 | J21: 218 | K21: 432 | L21: 310
A22: Steel
A23: IPS (mm) | B23: SCH
A24: 3/8 (10) | B24: 80 | C24: 0.165 | D24: 0.114 | E24: 0.265 | F24: 0.184 | G24: 0.405 | H24: 0.282 | I24: 0.713 | J24: 0.499 | K24: 1 | L24: 0.701
A25: 1/2 (13) | B25: 80 | C25: 0.328 | D25: 0.228 | E25: 0.525 | F25: 0.365 | G25: 0.8 | H25: 0.559 | I25: 1.41 | J25: 0.986 | K25: 1.97 | L25: 1.38
A26: 3/4 (19) | B26: 80 | C26: 0.746 | D26: 0.519 | E26: 1.19 | F26: 0.83 | G26: 1.81 | H26: 1.27 | I26: 3.17 | J26: 2.23 | K26: 4.44 | L26: 3.12
A27: 1 (25) | B27: 80 | C27: 1.47 | D27: 1.02 | E27: 2.34 | F27: 1.63 | G27: 3.55 | H27: 2.49 | I27: 6.22 | J27: 4.38 | K27: 8.7 | L27: 6.13
A28: 1 1/4 (32) | B28: 80 | C28: 3.17 | D28: 2.21 | E28: 5.03 | F28: 3.52 | G28: 7.64 | H28: 5.36 | I28: 13.3 | J28: 9.4 | K28: 18.7 | L28: 13.2
A29: 1 1/2 (38) | B29: 80 | C29: 4.84 | D29: 3.38 | E29: 7.68 | F29: 5.39 | G29: 11.7 | H29: 8.19 | I29: 20.4 | J29: 14.3 | K29: 28.4 | L29: 20.1
A30: 2 (51) | B30: 40 | C30: 11.3 | D30: 7.91 | E30: 17.9 | F30: 12.6 | G30: 27.1 | H30: 19.1 | I30: 47.3 | J30: 33.3 | K30: 66.1 | L30: 46.6
A31: 2 1/2 (64) | B31: 40 | C31: 18 | D31: 12.6 | E31: 28.5 | F31: 20.1 | G31: 43.2 | H31: 30.5 | I31: 75.4 | J31: 53.2 | K31: 105 | L31: 74.3
A32: 3 (76) | B32: 40 | C32: 31.9 | D32: 22.4 | E32: 50.5 | F32: 35.5 | G32: 76.5 | H32: 53.9 | I32: 133 | J32: 94.1 | K32: 186 | L32: 131
A33: 4 (102) | B33: 40 | C33: 65.2 | D33: 45.8 | E33: 103 | F33: 72.5 | G33: 156 | H33: 110 | I33: 217 | J33: 192 | K33: 379 | L33: 268
A34: Notes:
A35: 1. Table capacities are in kilowatts of refrigeration. Maximum veloxity = 15 m/s. Suction refrigerant state is at saturation.
A36: Dp = pressure drop from line friction, kPa per 30 meters equivalent length.
A37: Dt = change in saturation temperature corresponding to Dp, K per 30 meters equivalent length.
A38: 2. Same as SI R2022 chapter 1 tables.
A39: 3. Same as SI R2022 chapter 1 tables.
A40: 4. Refrigerant thermodynamic and thermophysical properties calculated using NIST RefProp v10.0. Refrigerant flow rates calculated using the Darcy-Weisbach and Colebrook equations.
A41: 5. Table capacities based on 40°C liquid temperature entering the expansion device. Multiply capacities by the following correction factors for other liquid temperatures. Correction factors based on a -18°C evaporator temperature, and are suitable in the range of -40°C to 5°C.
D42: Liquid Temperature, °C
D43: 25 | E43: 30 | F43: 35 | G43: 45 | H43: 50 | I43: 55 | J43: 60
B44: Suction Line | D44: =ROUND($E50/$E$53,2) -> 1.19 | E44: =ROUND($E51/$E$53,2) -> 1.13 | F44: =ROUND($E52/$E$53,2) -> 1.06 | G44: =ROUND($E54/$E$53,2) -> 0.93 | H44: =ROUND($E55/$E$53,2) -> 0.87 | I44: =ROUND($E56/$E$53,2) -> 0.8 | J44: =ROUND($E57/$E$53,2) -> 0.72
E47: NRE @ -18°C
D48: Liquid | E48: Evap,
D49: Temp, °C | E49: Btu/lb
D50: 25 | E50: =Enthalpy($D$1,"TVAP","C",-18)-Enthalpy($D$1,"TLIQ","C",$D50) -> 152.5189624
D51: 30 | E51: 144.7319272
D52: 35 | E52: 136.7695599
D53: 40 | E53: 128.6060278
D54: 45 | E54: 120.2071497
D55: 50 | E55: 111.5263193
D56: 55 | E56: 102.4972907
D57: 60 | E57: 93.01971356

Sheet Table 15
A1: NIST Refrigerant File | D1: R32.fld | F1: =Pressure($D$1,"TVAP","E",C6)-Pressure($D$1,"TVAP","E",C6-1) -> 0.9338676437 | G1: =Pressure($D$1,"TVAP","E",C6)-Pressure($D$1,"TVAP","E",C6-0.5) -> 0.4689973776 | H1: =Pressure($D$1,"TVAP","E",E6)-Pressure($D$1,"TVAP","E",E6-1) -> 1.109050285 | I1: =Pressure($D$1,"TVAP","E",E6)-Pressure($D$1,"TVAP","E",E6-0.5) -> 0.5568433051 | J1: =Pressure($D$1,"TVAP","E",G6)-Pressure($D$1,"TVAP","E",G6-1) -> 1.305113806 | K1: =Pressure($D$1,"TVAP","E",G6)-Pressure($D$1,"TVAP","E",G6-0.5) -> 0.6551424174 | L1: =Pressure($D$1,"TVAP","E",I6)-Pressure($D$1,"TVAP","E",I6-1) -> 1.763895411 | M1: =Pressure($D$1,"TVAP","E",I6)-Pressure($D$1,"TVAP","E",I6-0.5) -> 0.885105207 | N1: =Pressure($D$1,"TVAP","E",K6)-Pressure($D$1,"TVAP","E",K6-1) -> 2.318198754 | O1: =Pressure($D$1,"TVAP","E",K6)-Pressure($D$1,"TVAP","E",K6-0.5) -> 1.162879347
A3: Table 15 Suction Line Capacities in Tons for Refrigerant 32 (Single- or High-Stage Applications)
A5: Line Size | C5: Saturated Suction Temperature, °F
A6: Type L, | C6: -20 | E6: -10 | G6: 0 | I6: 20 | K6: 40
A7: Copper, | C7: Dt = 1°F | D7: Dt = 0.5°F | E7: Dt = 1°F | F7: Dt = 0.5°F | G7: Dt = 1°F | H7: Dt = 0.5°F | I7: Dt = 1°F | J7: Dt = 0.5°F | K7: Dt = 1°F | L7: Dt = 0.5°F
A8: OD, in | C8: Dp = 0.93 psi | D8: Dp = 0.47 psi | E8: Dp = 1.11 psi | F8: Dp = 0.56 psi | G8: Dp = 1.31 psi | H8: Dp = 0.66 psi | I8: Dp = 1.76 psi | J8: Dp = 0.89 psi | K8: Dp = 2.32 psi | L8: Dp = 1.16 psi
A9: 3/8 | C9: 0.105 | D9: --- | E9: 0.131 | F9: --- | G9: 0.161 | H9: 0.11 | I9: 0.238 | J9: 0.162 | K9: 0.34 | L9: 0.232
A10: 1/2 | C10: 0.26 | D10: 0.177 | E10: 0.324 | F10: 0.221 | G10: 0.4 | H10: 0.272 | I10: 0.589 | J10: 0.402 | K10: 0.838 | L10: 0.573
A11: 5/8 | C11: 0.473 | D11: 0.322 | E11: 0.59 | F11: 0.402 | G11: 0.726 | H11: 0.496 | I11: 1.07 | J11: 0.731 | K11: 1.52 | L11: 1.04
A12: 3/4 | C12: 0.81 | D12: 0.552 | E12: 1.01 | F12: 0.688 | G12: 1.24 | H12: 0.848 | I12: 1.82 | J12: 1.25 | K12: 2.58 | L12: 1.77
A13: 7/8 | C13: 1.26 | D13: 0.858 | E13: 1.56 | F13: 1.07 | G13: 1.92 | H13: 1.31 | I13: 2.82 | J13: 1.93 | K13: 3.99 | L13: 2.74
A14: 1 1/8 | C14: 2.55 | D14: 1.75 | E14: 3.17 | F14: 2.18 | G14: 3.9 | H14: 2.68 | I14: 5.71 | J14: 3.93 | K14: 8.08 | L14: 5.57
A15: 1 3/8 | C15: 4.47 | D15: 3.06 | E15: 5.55 | F15: 3.81 | G15: 6.81 | H15: 4.68 | I15: 10 | J15: 6.86 | K15: 14.1 | L15: 9.71
A16: 1 5/8 | C16: 7.08 | D16: 4.86 | E16: 8.78 | F16: 6.04 | G16: 10.8 | H16: 7.42 | I16: 15.8 | J16: 10.9 | K16: 22.2 | L16: 15.4
A17: 2 1/8 | C17: 14.7 | D17: 10.1 | E17: 18.3 | F17: 12.6 | G17: 22.4 | H17: 15.4 | I17: 32.6 | J17: 22.6 | K17: 46 | L17: 31.9
A18: 2 5/8 | C18: 24.5 | D18: 18 | E18: 30.5 | F18: 22.3 | G18: 37.7 | H18: 27.3 | I18: 56.2 | J18: 39.9 | K18: 81.2 | L18: 56.3
A19: 3 1/8 | C19: 34.9 | D19: 28.7 | E19: 43.6 | F19: 35.6 | G19: 53.9 | H19: 43.7 | I19: 80.2 | J19: 63.7 | K19: 116 | L19: 89.8
A20: 3 5/8 | C20: 47.3 | D20: 42.8 | E20: 59 | F20: 53 | G20: 72.9 | H20: 65 | I20: 108 | J20: 94.7 | K20: 157 | L20: 133
A21: 4 1/8 | C21: 61.4 | D21: 60.5 | E21: 76.6 | F21: 74.9 | G21: 94.7 | H21: 91.7 | I21: 141 | J21: 134 | K21: 204 | L21: 188
A22: Steel
A23: IPS | B23: SCH
A24: 3/8 | B24: 80 | C24: 0.201 | D24: 0.14 | E24: 0.247 | F24: 0.173 | G24: 0.3 | H24: 0.21 | I24: 0.432 | J24: 0.303 | K24: 0.602 | L24: 0.423
A25: 1/2 | B25: 80 | C25: 0.397 | D25: 0.277 | E25: 0.487 | F25: 0.341 | G25: 0.593 | H25: 0.416 | I25: 0.853 | J25: 0.599 | K25: 1.19 | L25: 0.835
A26: 3/4 | B26: 80 | C26: 0.897 | D26: 0.628 | E26: 1.1 | F26: 0.773 | G26: 1.34 | H26: 0.94 | I26: 1.92 | J26: 1.35 | K26: 2.67 | L26: 1.88
A27: 1 | B27: 80 | C27: 1.76 | D27: 1.24 | E27: 2.16 | F27: 1.52 | G27: 2.63 | H27: 1.85 | I27: 3.77 | J27: 2.65 | K27: 5.24 | L27: 3.69
A28: 1 1/4 | B28: 80 | C28: 3.78 | D28: 2.66 | E28: 4.64 | F28: 3.26 | G28: 5.64 | H28: 3.97 | I28: 8.08 | J28: 5.7 | K28: 11.2 | L28: 7.92
A29: 1 1/2 | B29: 80 | C29: 5.77 | D29: 4.06 | E29: 7.08 | F29: 4.98 | G29: 8.6 | H29: 6.05 | I29: 12.3 | J29: 8.69 | K29: 17.1 | L29: 12.1
A30: 2 | B30: 40 | C30: 13.4 | D30: 9.46 | E30: 16.5 | F30: 11.6 | G30: 20 | H30: 14.1 | I30: 28.6 | J30: 20.2 | K30: 39.7 | L30: 28
A31: 2 1/2 | B31: 40 | C31: 21.4 | D31: 15.1 | E31: 26.3 | F31: 18.5 | G31: 31.9 | H31: 22.5 | I31: 45.6 | J31: 32.2 | K31: 63.3 | L31: 44.7
A32: 3 | B32: 40 | C32: 37.9 | D32: 26.7 | E32: 46.4 | F32: 32.7 | G32: 56.3 | H32: 39.7 | I32: 80.6 | J32: 56.9 | K32: 112 | L32: 79
A33: 4 | B33: 40 | C33: 65.3 | D33: 54.5 | E33: 81.5 | F33: 66.8 | G33: 101 | H33: 81 | I33: 150 | J33: 116 | K33: 217 | L33: 161
A34: Notes:
A35: 1. Table capacities are in tons of refrigeration. Maximum veloxity = 3000 fpm. Suction refrigerant state is at saturation.
A36: Dp = pressure drop from line friction, psi per 100 ft equivalent length.
A37: Dt = change in saturation temperature corresponding to Dp, °F per 100 ft equivalent length.
A38: 2. Same as I-P R2022 chapter 1 tables.
A39: 3. Same as I-P R2022 chapter 1 tables.
A40: 4. Refrigerant thermodynamic and thermophysical properties calculated using NIST RefProp v10.0. Refrigerant flow rates calculated using the Darcy-Weisbach and Colebrook equations.
A41: 5. Table capacities based on 105°F liquid temperature entering the expension device. Multiply capacities by the following correction factors for other liquid temperatures. Correction factors based on a 10°F evaporator temperature, and are suitable in the range of -20°F to 40°F.
D42: Liquid Temperature, °F
D43: 80 | E43: 90 | F43: 100 | G43: 110 | H43: 120 | I43: 130 | J43: 140
B44: Suction Line | D44: =ROUND($E50/$E$53,2) -> 1.12 | E44: =ROUND($E51/$E$53,2) -> 1.07 | F44: =ROUND($E52/$E$53,2) -> 1.02 | G44: =ROUND($E54/$E$53,2) -> 0.97 | H44: =ROUND($E55/$E$53,2) -> 0.92 | I44: =ROUND($E56/$E$53,2) -> 0.87 | J44: =ROUND($E57/$E$53,2) -> 0.81
E47: NRE @ 10°F
D48: Cond | E48: Evap,
D49: Temp, °F | E49: Btu/lb
D50: 80 | E50: =Enthalpy($D$1,"TVAP","E",10)-Enthalpy($D$1,"TLIQ","E",$D50) -> 113.3996637
D51: 90 | E51: 108.7076011
D52: 100 | E52: 103.8602229
D53: 105 | E53: 101.3681357
D54: 110 | E54: 98.82350981
D55: 120 | E55: 93.5489882
D56: 130 | E56: 87.96324149
D57: 140 | E57: 81.94528167

Sheet Table 15 SI
A1: NIST Refrigerant File | D1: R32.fld | F1: =(Pressure($D$1,"TVAP","C",C6)-Pressure($D$1,"TVAP","C",C6-0.5))*1000 -> 5.597478089 | G1: =(Pressure($D$1,"TVAP","C",C6)-Pressure($D$1,"TVAP","C",C6-0.25))*1000 -> 2.809994714 | H1: =(Pressure($D$1,"TVAP","C",E6)-Pressure($D$1,"TVAP","C",E6-0.5))*1000 -> 7.602134732 | I1: =(Pressure($D$1,"TVAP","C",E6)-Pressure($D$1,"TVAP","C",E6-0.25))*1000 -> 3.814908674 | J1: =(Pressure($D$1,"TVAP","C",G6)-Pressure($D$1,"TVAP","C",G6-0.5))*1000 -> 10.03882359 | K1: =(Pressure($D$1,"TVAP","C",G6)-Pressure($D$1,"TVAP","C",G6-0.25))*1000 -> 5.036066422 | L1: =(Pressure($D$1,"TVAP","C",I6)-Pressure($D$1,"TVAP","C",I6-0.5))*1000 -> 11.43044939 | M1: =(Pressure($D$1,"TVAP","C",I6)-Pressure($D$1,"TVAP","C",I6-0.25))*1000 -> 5.733370102 | N1: =(Pressure($D$1,"TVAP","C",K6)-Pressure($D$1,"TVAP","C",K6-0.5))*1000 -> 14.58298122 | O1: =(Pressure($D$1,"TVAP","C",K6)-Pressure($D$1,"TVAP","C",K6-0.25))*1000 -> 7.312791528
A3: Table 15 Suction Line Capacities in Tons for Refrigerant 32 (Single- or High-Stage Applications)
A5: Line Size | C5: Saturated Suction Temperature, °C
A6: Type L, | C6: -30 | E6: -20 | G6: -10 | I6: -5 | K6: 5
A7: Copper, | C7: Dt = 0.5 K | D7: Dt = 0.25 K | E7: Dt = 0.5 K | F7: Dt = 0.25 K | G7: Dt = 0.5 K | H7: Dt = 0.25 K | I7: Dt = 0.5 K | J7: Dt = 0.25 K | K7: Dt = 0.5 K | L7: Dt = 0.25 K
A8: OD, in (mm) | C8: Dp = 5.60 kPa | D8: Dp = 2.81 kPa | E8: Dp = 7.60 kPa | F8: Dp = 3.81 kPa | G8: Dp = 10.0 kPa | H8: Dp = 5.04 kPa | I8: Dp = 11.4 kPa | J8: Dp = 5.73 kPa | K8: Dp = 14.6 kPa | L8: Dp = 7.31 kPa
A9: 3/8 (10) | C9: 0.336 | D9: 0.228 | E9: 0.5 | F9: 0.339 | G9: 0.716 | H9: 0.487 | I9: 0.848 | J9: 0.577 | K9: 1.16 | L9: 0.793
A10: 1/2 (13) | C10: 0.836 | D10: 0.568 | E10: 1.24 | F10: 0.843 | G10: 1.77 | H10: 1.21 | I10: 2.09 | J10: 1.43 | K10: 2.87 | L10: 1.96
A11: 5/8 (16) | C11: 1.52 | D11: 1.04 | E11: 2.25 | F11: 1.54 | G11: 3.21 | H11: 2.2 | I11: 3.8 | J11: 2.6 | K11: 5.19 | L11: 3.56
A12: 3/4 (19) | C12: 2.6 | D12: 1.78 | E12: 3.85 | F12: 2.63 | G12: 5.48 | H12: 3.75 | I12: 6.47 | J12: 4.44 | K12: 8.84 | L12: 6.07
A13: 7/8 (22) | C13: 4.04 | D13: 2.76 | E13: 5.96 | F13: 4.08 | G13: 8.49 | H13: 5.82 | I13: 10 | J13: 6.87 | K13: 13.7 | L13: 9.4
A14: 1 1/8 (29) | C14: 8.22 | D14: 5.63 | E14: 12.1 | F14: 8.3 | G14: 17.2 | H14: 11.8 | I14: 20.3 | J14: 14 | K14: 27.7 | L14: 19.1
A15: 1 3/8 (35) | C15: 14.4 | D15: 9.86 | E15: 21.2 | F15: 14.5 | G15: 30.1 | H15: 20.7 | I15: 35.4 | J15: 24.4 | K15: 48.2 | L15: 33.3
A16: 1 5/8 (41) | C16: 22.8 | D16: 15.6 | E16: 33.5 | F16: 23 | G16: 47.5 | H16: 32.7 | I16: 56 | J16: 38.6 | K16: 76.2 | L16: 52.6
A17: 2 1/8 (54) | C17: 47.5 | D17: 32.6 | E17: 69.6 | F17: 47.9 | G17: 98.6 | H17: 68.1 | I17: 116 | J17: 80.2 | K17: 158 | L17: 109
A18: 2 5/8 (67) | C18: 81.4 | D18: 57.9 | E18: 121 | F18: 84.9 | G18: 174 | H18: 120 | I18: 205 | J18: 142 | K18: 278 | L18: 193
A19: 3 1/8 (79) | C19: 116 | D19: 92.6 | E19: 172 | F19: 136 | G19: 248 | H19: 192 | I19: 295 | J19: 226 | K19: 410 | L19: 308
A20: 3 5/8 (92) | C20: 157 | D20: 138 | E20: 233 | F20: 202 | G20: 336 | H20: 286 | I20: 399 | J20: 337 | K20: 555 | L20: 457
A21: 4 1/8 (105) | C21: 204 | D21: 195 | E21: 303 | F21: 285 | G21: 437 | H21: 404 | I21: 519 | J21: 475 | K21: 722 | L21: 645
A22: Steel
A23: IPS (mm) | B23: SCH
A24: 3/8 (10) | B24: 80 | C24: 0.649 | D24: 0.452 | E24: 0.939 | F24: 0.656 | G24: 1.31 | H24: 0.921 | I24: 1.54 | J24: 1.08 | K24: 2.07 | L24: 1.45
A25: 1/2 (13) | B25: 80 | C25: 1.28 | D25: 0.896 | E25: 1.85 | F25: 1.3 | G25: 2.59 | H25: 1.82 | I25: 3.03 | J25: 2.13 | K25: 4.07 | L25: 2.86
A26: 3/4 (19) | B26: 80 | C26: 2.9 | D26: 2.03 | E26: 4.19 | F26: 2.94 | G26: 5.85 | H26: 4.11 | I26: 6.84 | J26: 4.81 | K26: 9.17 | L26: 6.46
A27: 1 (25) | B27: 80 | C27: 5.7 | D27: 4 | E27: 8.22 | F27: 5.77 | G27: 11.5 | H27: 8.07 | I27: 13.4 | J27: 9.43 | K27: 18 | L27: 12.7
A28: 1 1/4 (32) | B28: 80 | C28: 12.3 | D28: 8.6 | E28: 17.6 | F28: 12.4 | G28: 24.6 | H28: 17.3 | I28: 28.7 | J28: 20.3 | K28: 38.5 | L28: 27.2
A29: 1 1/2 (38) | B29: 80 | C29: 18.7 | D29: 13.1 | E29: 26.9 | F29: 18.9 | G29: 37.5 | H29: 26.4 | I29: 43.8 | J29: 30.9 | K29: 58.7 | L29: 41.4
A30: 2 (51) | B30: 40 | C30: 43.5 | D30: 30.6 | E30: 62.6 | F30: 44.1 | G30: 87.1 | H30: 61.5 | I30: 102 | J30: 71.8 | K30: 136 | L30: 96.3
A31: 2 1/2 (64) | B31: 40 | C31: 69.4 | D31: 48.9 | E31: 100 | F31: 70.3 | G31: 139 | H31: 98 | I31: 162 | J31: 115 | K31: 217 | L31: 153
A32: 3 (76) | B32: 40 | C32: 123 | D32: 86.5 | E32: 176 | F32: 124 | G32: 246 | H32: 173 | I32: 287 | J32: 202 | K32: 384 | L32: 271
A33: 4 (102) | B33: 40 | C33: 217 | D33: 176 | E33: 322 | F33: 254 | G33: 454 | H33: 353 | I33: 552 | J33: 412 | K33: 767 | L33: 552
A34: Notes:
A35: 1. Table capacities are in kilowatts of refrigeration. Maximum veloxity = 15 m/s. Suction refrigerant state is at saturation.
A36: Dp = pressure drop from line friction, kPa per 30 meters equivalent length.
A37: Dt = change in saturation temperature corresponding to Dp, K per 30 meters equivalent length.
A38: 2. Same as SI R2022 chapter 1 tables.
A39: 3. Same as SI R2022 chapter 1 tables.
A40: 4. Refrigerant thermodynamic and thermophysical properties calculated using NIST RefProp v10.0. Refrigerant flow rates calculated using the Darcy-Weisbach and Colebrook equations.
A41: 5. Table capacities based on 40°C liquid temperature entering the expansion device. Multiply capacities by the following correction factors for other liquid temperatures. Correction factors based on a -12°C evaporator temperature, and are suitable in the range of -30°C to 5°C.
D42: Liquid Temperature, °C
D43: 25 | E43: 30 | F43: 35 | G43: 45 | H43: 50 | I43: 55 | J43: 60
B44: Suction Line | D44: =ROUND($E50/$E$53,2) -> 1.13 | E44: =ROUND($E51/$E$53,2) -> 1.09 | F44: =ROUND($E52/$E$53,2) -> 1.04 | G44: =ROUND($E54/$E$53,2) -> 0.95 | H44: =ROUND($E55/$E$53,2) -> 0.91 | I44: =ROUND($E56/$E$53,2) -> 0.86 | J44: =ROUND($E57/$E$53,2) -> 0.8
E47: NRE @ -12°C
D48: Liquid | E48: Evap,
D49: Temp, °C | E49: Btu/lb
D50: 25 | E50: =Enthalpy($D$1,"TVAP","C",-12)-Enthalpy($D$1,"TLIQ","C",$D50) -> 266.86505
D51: 30 | E51: 257.1502463
D52: 35 | E52: 247.1637155
D53: 40 | E53: 236.855676
D54: 45 | E54: 226.1592367
D55: 50 | E55: 214.9806657
D56: 55 | E56: 203.1813119
D57: 60 | E57: 190.5404539

Sheet Table 16
A1: NIST Refrigerant File | D1: R454C.mix | F1: =Pressure($D$1,"TVAP","E",C6)-Pressure($D$1,"TVAP","E",C6-1) -> 0.3486971348 | G1: =Pressure($D$1,"TVAP","E",C6)-Pressure($D$1,"TVAP","E",C6-0.5) -> 0.1752746745 | H1: =Pressure($D$1,"TVAP","E",E6)-Pressure($D$1,"TVAP","E",E6-1) -> 0.520305865 | I1: =Pressure($D$1,"TVAP","E",E6)-Pressure($D$1,"TVAP","E",E6-0.5) -> 0.2613787329 | J1: =Pressure($D$1,"TVAP","E",G6)-Pressure($D$1,"TVAP","E",G6-1) -> 0.7430565716 | K1: =Pressure($D$1,"TVAP","E",G6)-Pressure($D$1,"TVAP","E",G6-0.5) -> 0.3730932655 | L1: =Pressure($D$1,"TVAP","E",I6)-Pressure($D$1,"TVAP","E",I6-1) -> 1.023129446 | M1: =Pressure($D$1,"TVAP","E",I6)-Pressure($D$1,"TVAP","E",I6-0.5) -> 0.5135070367 | N1: =Pressure($D$1,"TVAP","E",K6)-Pressure($D$1,"TVAP","E",K6-1) -> 1.366713485 | O1: =Pressure($D$1,"TVAP","E",K6)-Pressure($D$1,"TVAP","E",K6-0.5) -> 0.6857162078
A3: Table 16 Suction Line Capacities in Tons for Refrigerant 454C (Single- or High-Stage Applications)
A5: Line Size | C5: Saturated Suction Temperature, °F
A6: Type L, | C6: -40 | E6: -20 | G6: 0 | I6: 20 | K6: 40
A7: Copper, | C7: Dt = 1°F | D7: Dt = 0.5°F | E7: Dt = 1°F | F7: Dt = 0.5°F | G7: Dt = 1°F | H7: Dt = 0.5°F | I7: Dt = 1°F | J7: Dt = 0.5°F | K7: Dt = 1°F | L7: Dt = 0.5°F
A8: OD, in | C8: Dp = 0.35 psi | D8: Dp = 0.18 psi | E8: Dp = 0.52 psi | F8: Dp = 0.26 psi | G8: Dp = 0.74 psi | H8: Dp = 0.37 psi | I8: Dp = 1.02 psi | J8: Dp = 0.51 psi | K8: Dp = 1.37 psi | L8: Dp = 0.69 psi
A9: 3/8 | C9: --- | D9: --- | E9: --- | F9: --- | G9: --- | H9: --- | I9: --- | J9: --- | K9: 0.134 | L9: ---
A10: 1/2 | C10: --- | D10: --- | E10: --- | F10: --- | G10: 0.14 | H10: --- | I10: 0.22 | J10: 0.15 | K10: 0.33 | L10: 0.225
A11: 5/8 | C11: --- | D11: --- | E11: 0.156 | F11: 0.106 | G11: 0.255 | H11: 0.174 | I11: 0.399 | J11: 0.272 | K11: 0.598 | L11: 0.41
A12: 3/4 | C12: 0.155 | D12: 0.105 | E12: 0.267 | F12: 0.182 | G12: 0.437 | H12: 0.298 | I12: 0.681 | J12: 0.466 | K12: 1.02 | L12: 0.699
A13: 7/8 | C13: 0.241 | D13: 0.164 | E13: 0.415 | F13: 0.283 | G13: 0.677 | H13: 0.463 | I13: 1.05 | J13: 0.722 | K13: 1.58 | L13: 1.08
A14: 1 1/8 | C14: 0.491 | D14: 0.335 | E14: 0.846 | F14: 0.578 | G14: 1.38 | H14: 0.943 | I14: 2.14 | J14: 1.47 | K14: 3.2 | L14: 2.2
A15: 1 3/8 | C15: 0.862 | D15: 0.589 | E15: 1.48 | F15: 1.01 | G15: 2.41 | H15: 1.65 | I15: 3.74 | J15: 2.57 | K15: 5.58 | L15: 3.84
A16: 1 5/8 | C16: 1.37 | D16: 0.936 | E16: 2.35 | F16: 1.61 | G16: 3.81 | H16: 2.62 | I16: 5.91 | J16: 4.07 | K16: 8.82 | L16: 6.08
A17: 2 1/8 | C17: 2.86 | D17: 1.96 | E17: 4.89 | F17: 3.36 | G17: 7.93 | H17: 5.46 | I17: 12.3 | J17: 8.46 | K17: 18.3 | L17: 12.6
A18: 2 5/8 | C18: 5.07 | D18: 3.48 | E18: 8.67 | F18: 5.97 | G18: 14 | H18: 9.68 | I18: 21.7 | J18: 15 | K18: 32.3 | L18: 22.3
A19: 3 1/8 | C19: 8.13 | D19: 5.58 | E19: 13.9 | F19: 9.55 | G19: 22.4 | H19: 15.5 | I19: 34.7 | J19: 24 | K19: 51.5 | L19: 35.7
A20: 3 5/8 | C20: 11.9 | D20: 8.33 | E20: 20.4 | F20: 14.2 | G20: 33.4 | H20: 23 | I20: 51.5 | J20: 35.6 | K20: 76.5 | L20: 53
A21: 4 1/8 | C21: 15.4 | D21: 11.8 | E21: 26.5 | F21: 20.1 | G21: 43.4 | H21: 32.5 | I21: 68.1 | J21: 50.3 | K21: 104 | L21: 74.8
A22: Steel
A23: IPS | B23: SCH
A24: 3/8 | B24: 80 | C24: --- | D24: --- | E24: --- | F24: --- | G24: 0.108 | H24: --- | I24: 0.164 | J24: 0.115 | K24: 0.242 | L24: 0.17
A25: 1/2 | B25: 80 | C25: --- | D25: --- | E25: 0.133 | F25: --- | G25: 0.213 | H25: 0.149 | I25: 0.325 | J25: 0.228 | K25: 0.477 | L25: 0.335
A26: 3/4 | B26: 80 | C26: 0.18 | D26: 0.125 | E26: 0.302 | F26: 0.211 | G26: 0.481 | H26: 0.337 | I26: 0.733 | J26: 0.515 | K26: 1.08 | L26: 0.757
A27: 1 | B27: 80 | C27: 0.354 | D27: 0.247 | E27: 0.594 | F27: 0.416 | G27: 0.945 | H27: 0.663 | I27: 1.44 | J27: 1.01 | K27: 2.11 | L27: 1.48
A28: 1 1/4 | B28: 80 | C28: 0.764 | D28: 0.534 | E28: 1.28 | F28: 0.896 | G28: 2.03 | H28: 1.43 | I28: 3.08 | J28: 2.17 | K28: 4.52 | L28: 3.19
A29: 1 1/2 | B29: 80 | C29: 1.17 | D29: 0.817 | E29: 1.95 | F29: 1.37 | G29: 3.1 | H29: 2.18 | I29: 4.7 | J29: 3.31 | K29: 6.89 | L29: 4.86
A30: 2 | B30: 40 | C30: 2.72 | D30: 1.91 | E30: 4.55 | F30: 3.19 | G30: 7.2 | H30: 5.07 | I30: 10.9 | J30: 7.71 | K30: 16 | L30: 11.3
A31: 2 1/2 | B31: 40 | C31: 4.35 | D31: 3.05 | E31: 7.25 | F31: 5.1 | G31: 11.5 | H31: 8.1 | I31: 17.4 | J31: 12.3 | K31: 25.5 | L31: 18
A32: 3 | B32: 40 | C32: 7.7 | D32: 5.41 | E32: 12.8 | F32: 9.04 | G32: 20.3 | H32: 14.3 | I32: 30.8 | J32: 21.7 | K32: 45.1 | L32: 31.8
A33: 4 | B33: 40 | C33: 15.7 | D33: 11.1 | E33: 26.2 | F33: 18.4 | G33: 41.4 | H33: 29.2 | I33: 62.7 | J33: 44.3 | K33: 91.8 | L33: 64.8
A34: Notes:
A35: 1. Table capacities are in tons of refrigeration. Maximum veloxity = 3000 fpm. Suction refrigerant state is at saturation.
A36: Dp = pressure drop from line friction, psi per 100 ft equivalent length.
A37: Dt = change in saturation temperature corresponding to Dp, °F per 100 ft equivalent length.
A38: 2. Same as I-P R2022 chapter 1 tables.
A39: 3. Same as I-P R2022 chapter 1 tables.
A40: 4. Refrigerant thermodynamic and thermophysical properties calculated using NIST RefProp v10.0. Refrigerant flow rates calculated using the Darcy-Weisbach and Colebrook equations.
A41: 5. Table capacities based on 105°F liquid temperature entering the expension device. Multiply capacities by the following correction factors for other liquid temperatures. Correction factors based on a 0°F evaporator temperature, and are suitable in the range of -40°F to 40°F.
D42: Liquid Temperature, °F
D43: 80 | E43: 90 | F43: 100 | G43: 110 | H43: 120 | I43: 130 | J43: 140
B44: Suction Line | D44: =ROUND($E50/$E$53,2) -> 1.19 | E44: =ROUND($E51/$E$53,2) -> 1.11 | F44: =ROUND($E52/$E$53,2) -> 1.04 | G44: =ROUND($E54/$E$53,2) -> 0.96 | H44: =ROUND($E55/$E$53,2) -> 0.88 | I44: =ROUND($E56/$E$53,2) -> 0.8 | J44: =ROUND($E57/$E$53,2) -> 0.71
E47: NRE @ 0°F
D48: Liquid | E48: Evap,
D49: Temp, °F | E49: Btu/lb
D50: 80 | E50: =Enthalpy($D$1,"TVAP","E",0)-Enthalpy($D$1,"TLIQ","E",$D50) -> 60.02186986
D51: 90 | E51: 56.29620343
D52: 100 | E52: 52.47988076
D53: 105 | E53: 50.53323371
D54: 110 | E54: 48.55791263
D55: 120 | E55: 44.50977707
D56: 130 | E56: 40.30698009
D57: 140 | E57: 35.90806907

Sheet Table 16 SI
A1: NIST Refrigerant File | D1: R454C.mix | F1: =(Pressure($D$1,"TVAP","C",C6)-Pressure($D$1,"TVAP","C",C6-0.5))*1000 -> 2.166057939 | G1: =(Pressure($D$1,"TVAP","C",C6)-Pressure($D$1,"TVAP","C",C6-0.25))*1000 -> 1.088204925 | H1: =(Pressure($D$1,"TVAP","C",E6)-Pressure($D$1,"TVAP","C",E6-0.5))*1000 -> 3.111481086 | I1: =(Pressure($D$1,"TVAP","C",E6)-Pressure($D$1,"TVAP","C",E6-0.25))*1000 -> 1.562413225 | J1: =(Pressure($D$1,"TVAP","C",G6)-Pressure($D$1,"TVAP","C",G6-0.5))*1000 -> 4.310885137 | K1: =(Pressure($D$1,"TVAP","C",G6)-Pressure($D$1,"TVAP","C",G6-0.25))*1000 -> 2.163791585 | L1: =(Pressure($D$1,"TVAP","C",I6)-Pressure($D$1,"TVAP","C",I6-0.5))*1000 -> 6.647484731 | M1: =(Pressure($D$1,"TVAP","C",I6)-Pressure($D$1,"TVAP","C",I6-0.25))*1000 -> 3.334930098 | N1: =(Pressure($D$1,"TVAP","C",K6)-Pressure($D$1,"TVAP","C",K6-0.5))*1000 -> 8.604420736 | O1: =(Pressure($D$1,"TVAP","C",K6)-Pressure($D$1,"TVAP","C",K6-0.25))*1000 -> 4.315516549
A3: Table 16 Suction Line Capacities in Tons for Refrigerant 454C (Single- or High-Stage Applications)
A5: Line Size | C5: Saturated Suction Temperature, °C
A6: Type L, | C6: -40 | E6: -30 | G6: -20 | I6: -5 | K6: 5
A7: Copper, | C7: Dt = 0.5 K | D7: Dt = 0.25 K | E7: Dt = 0.5 K | F7: Dt = 0.25 K | G7: Dt = 0.5 K | H7: Dt = 0.25 K | I7: Dt = 0.5 K | J7: Dt = 0.25 K | K7: Dt = 0.5 K | L7: Dt = 0.25 K
A8: OD, in (mm) | C8: Dp = 2.17 kPa | D8: Dp = 1.09 kPa | E8: Dp = 3.11 kPa | F8: Dp = 1.56 kPa | G8: Dp = 4.31 kPa | H8: Dp = 2.16 kPa | I8: Dp = 6.65 kPa | J8: Dp = 3.33 kPa | K8: Dp = 8.60 kPa | L8: Dp = 4.32 kPa
A9: 3/8 (10) | C9: --- | D9: --- | E9: 0.11 | F9: --- | G9: 0.173 | H9: 0.117 | I9: 0.319 | J9: 0.217 | K9: 0.46 | L9: 0.313
A10: 1/2 (13) | C10: 0.167 | D10: 0.113 | E10: 0.274 | F10: 0.186 | G10: 0.431 | H10: 0.293 | I10: 0.789 | J10: 0.538 | K10: 1.14 | L10: 0.775
A11: 5/8 (16) | C11: 0.304 | D11: 0.206 | E11: 0.5 | F11: 0.34 | G11: 0.784 | H11: 0.534 | I11: 1.43 | J11: 0.978 | K11: 2.06 | L11: 1.41
A12: 3/4 (19) | C12: 0.522 | D12: 0.355 | E12: 0.856 | F12: 0.583 | G12: 1.34 | H12: 0.914 | I12: 2.45 | J12: 1.67 | K12: 3.51 | L12: 2.4
A13: 7/8 (22) | C13: 0.812 | D13: 0.552 | E13: 1.33 | F13: 0.906 | G13: 2.08 | H13: 1.42 | I13: 3.79 | J13: 2.59 | K13: 5.43 | L13: 3.73
A14: 1 1/8 (29) | C14: 1.66 | D14: 1.13 | E14: 2.71 | F14: 1.85 | G14: 4.23 | H14: 2.9 | I14: 7.69 | J14: 5.28 | K14: 11 | L14: 7.57
A15: 1 3/8 (35) | C15: 2.91 | D15: 1.99 | E15: 4.75 | F15: 3.25 | G15: 7.41 | H15: 5.07 | I15: 13.4 | J15: 9.23 | K15: 19.2 | L15: 13.2
A16: 1 5/8 (41) | C16: 4.63 | D16: 3.16 | E16: 7.54 | F16: 5.16 | G16: 11.7 | H16: 8.05 | I16: 21.3 | J16: 14.6 | K16: 30.4 | L16: 20.9
A17: 2 1/8 (54) | C17: 9.66 | D17: 6.61 | E17: 15.7 | F17: 10.8 | G17: 24.4 | H17: 16.8 | I17: 44.1 | J17: 30.4 | K17: 62.9 | L17: 43.5
A18: 2 5/8 (67) | C18: 17.2 | D18: 11.8 | E18: 27.9 | F18: 19.1 | G18: 43.3 | H18: 29.8 | I18: 78 | J18: 53.9 | K18: 111 | L18: 76.9
A19: 3 1/8 (79) | C19: 27.5 | D19: 18.9 | E19: 44.6 | F19: 30.7 | G19: 69.1 | H19: 47.6 | I19: 125 | J19: 86.1 | K19: 177 | L19: 123
A20: 3 5/8 (92) | C20: 40.9 | D20: 28.1 | E20: 66.4 | F20: 45.7 | G20: 103 | H20: 71 | I20: 185 | J20: 128 | K20: 263 | L20: 183
A21: 4 1/8 (105) | C21: 53.9 | D21: 39.8 | E21: 87.8 | F21: 64.6 | G21: 138 | H21: 100 | I21: 253 | J21: 181 | K21: 368 | L21: 258
A22: Steel
A23: IPS (mm) | B23: SCH
A24: 3/8 (10) | B24: 80 | C24: 0.135 | D24: --- | E24: 0.217 | F24: 0.151 | G24: 0.333 | H24: 0.232 | I24: 0.591 | J24: 0.414 | K24: 0.834 | L24: 0.585
A25: 1/2 (13) | B25: 80 | C25: 0.268 | D25: 0.186 | E25: 0.43 | F25: 0.299 | G25: 0.659 | H25: 0.46 | I25: 1.17 | J25: 0.818 | K25: 1.64 | L25: 1.15
A26: 3/4 (19) | B26: 80 | C26: 0.609 | D26: 0.424 | E26: 0.974 | F26: 0.68 | G26: 1.49 | H26: 1.04 | I26: 2.63 | J26: 1.85 | K26: 3.71 | L26: 2.61
A27: 1 (25) | B27: 80 | C27: 1.2 | D27: 0.836 | E27: 1.92 | F27: 1.34 | G27: 2.93 | H27: 2.05 | I27: 5.16 | J27: 3.63 | K27: 7.27 | L27: 5.12
A28: 1 1/4 (32) | B28: 80 | C28: 2.59 | D28: 1.81 | E28: 4.12 | F28: 2.89 | G28: 6.29 | H28: 4.42 | I28: 11.1 | J28: 7.8 | K28: 15.6 | L28: 11
A29: 1 1/2 (38) | B29: 80 | C29: 3.96 | D29: 2.77 | E29: 6.3 | F29: 4.42 | G29: 9.6 | H29: 6.75 | I29: 16.9 | J29: 11.9 | K29: 23.8 | L29: 16.8
A30: 2 (51) | B30: 40 | C30: 9.23 | D30: 6.47 | E30: 14.7 | F30: 10.3 | G30: 22.3 | H30: 15.7 | I30: 39.3 | J30: 27.7 | K30: 55.2 | L30: 38.9
A31: 2 1/2 (64) | B31: 40 | C31: 14.7 | D31: 10.3 | E31: 23.4 | F31: 16.5 | G31: 35.6 | H31: 25.1 | I31: 62.6 | J31: 44.2 | K31: 88 | L31: 62.1
A32: 3 (76) | B32: 40 | C32: 26.1 | D32: 18.3 | E32: 41.4 | F32: 29.2 | G32: 63 | H32: 44.4 | I32: 111 | J32: 78.1 | K32: 155 | L32: 110
A33: 4 (102) | B33: 40 | C33: 53.3 | D33: 37.5 | E33: 84.5 | F33: 59.5 | G33: 128 | H33: 90.6 | I33: 226 | J33: 159 | K33: 317 | L33: 224
A34: Notes:
A35: 1. Table capacities are in kilowatts of refrigeration. Maximum veloxity = 15 m/s. Suction refrigerant state is at saturation.
A36: Dp = pressure drop from line friction, kPa per 30 meters equivalent length.
A37: Dt = change in saturation temperature corresponding to Dp, K per 30 meters equivalent length.
A38: 2. Same as SI R2022 chapter 1 tables.
A39: 3. Same as SI R2022 chapter 1 tables.
A40: 4. Refrigerant thermodynamic and thermophysical properties calculated using NIST RefProp v10.0. Refrigerant flow rates calculated using the Darcy-Weisbach and Colebrook equations.
A41: 5. Table capacities based on 40°C liquid temperature entering the expansion device. Multiply capacities by the following correction factors for other liquid temperatures. Correction factors based on a -18°C evaporator temperature, and are suitable in the range of -40°C to 5°C.
D42: Liquid Temperature, °C
D43: 25 | E43: 30 | F43: 35 | G43: 45 | H43: 50 | I43: 55 | J43: 60
B44: Suction Line | D44: =ROUND($E50/$E$53,2) -> 1.2 | E44: =ROUND($E51/$E$53,2) -> 1.14 | F44: =ROUND($E52/$E$53,2) -> 1.07 | G44: =ROUND($E54/$E$53,2) -> 0.93 | H44: =ROUND($E55/$E$53,2) -> 0.86 | I44: =ROUND($E56/$E$53,2) -> 0.78 | J44: =ROUND($E57/$E$53,2) -> 0.7
E47: NRE @ -18°C
D48: Liquid | E48: Evap,
D49: Temp, °C | E49: Btu/lb
D50: 25 | E50: =Enthalpy($D$1,"TVAP","C",-18)-Enthalpy($D$1,"TLIQ","C",$D50) -> 141.9443758
D51: 30 | E51: 134.2110478
D52: 35 | E52: 126.3161728
D53: 40 | E53: 118.237741
D54: 45 | E54: 109.9465772
D55: 50 | E55: 101.403901
D56: 55 | E56: 92.55722761
D57: 60 | E57: 83.33223867

Sheet Table 17
A1: NIST Refrigerant File | D1: R455A.mix | F1: =Pressure($D$1,"TVAP","E",C6)-Pressure($D$1,"TVAP","E",C6-1) -> 0.3724283148 | G1: =Pressure($D$1,"TVAP","E",C6)-Pressure($D$1,"TVAP","E",C6-0.5) -> 0.1872014588 | H1: =Pressure($D$1,"TVAP","E",E6)-Pressure($D$1,"TVAP","E",E6-1) -> 0.5553231381 | I1: =Pressure($D$1,"TVAP","E",E6)-Pressure($D$1,"TVAP","E",E6-0.5) -> 0.2789677078 | J1: =Pressure($D$1,"TVAP","E",G6)-Pressure($D$1,"TVAP","E",G6-1) -> 0.7926478139 | K1: =Pressure($D$1,"TVAP","E",G6)-Pressure($D$1,"TVAP","E",G6-0.5) -> 0.3979912108 | L1: =Pressure($D$1,"TVAP","E",I6)-Pressure($D$1,"TVAP","E",I6-1) -> 1.091068702 | M1: =Pressure($D$1,"TVAP","E",I6)-Pressure($D$1,"TVAP","E",I6-0.5) -> 0.5476042766 | N1: =Pressure($D$1,"TVAP","E",K6)-Pressure($D$1,"TVAP","E",K6-1) -> 1.457357202 | O1: =Pressure($D$1,"TVAP","E",K6)-Pressure($D$1,"TVAP","E",K6-0.5) -> 0.7311950329
A3: Table 17 Suction Line Capacities in Tons for Refrigerant 455A (Single- or High-Stage Applications)
A5: Line Size | C5: Saturated Suction Temperature, °F
A6: Type L, | C6: -40 | E6: -20 | G6: 0 | I6: 20 | K6: 40
A7: Copper, | C7: Dt = 1°F | D7: Dt = 0.5°F | E7: Dt = 1°F | F7: Dt = 0.5°F | G7: Dt = 1°F | H7: Dt = 0.5°F | I7: Dt = 1°F | J7: Dt = 0.5°F | K7: Dt = 1°F | L7: Dt = 0.5°F
A8: OD, in | C8: Dp = 0.37 psi | D8: Dp = 0.19 psi | E8: Dp = 0.56 psi | F8: Dp = 0.28 psi | G8: Dp = 0.79 psi | H8: Dp = 0.40 psi | I8: Dp = 1.09 psi | J8: Dp = 0.55 psi | K8: Dp = 1.45 psi | L8: Dp = 0.73 psi
A9: 3/8 | C9: --- | D9: --- | E9: --- | F9: --- | G9: --- | H9: --- | I9: --- | J9: --- | K9: 0.143 | L9: ---
A10: 1/2 | C10: --- | D10: --- | E10: --- | F10: --- | G10: 0.151 | H10: 0.103 | I10: 0.235 | J10: 0.16 | K10: 0.353 | L10: 0.241
A11: 5/8 | C11: --- | D11: --- | E11: 0.168 | F11: 0.114 | G11: 0.274 | H11: 0.187 | I11: 0.427 | J11: 0.292 | K11: 0.64 | L11: 0.438
A12: 3/4 | C12: 0.167 | D12: 0.114 | E12: 0.288 | F12: 0.196 | G12: 0.469 | H12: 0.32 | I12: 0.729 | J12: 0.499 | K12: 1.09 | L12: 0.748
A13: 7/8 | C13: 0.26 | D13: 0.177 | E13: 0.447 | F13: 0.305 | G13: 0.727 | H13: 0.497 | I13: 1.13 | J13: 0.774 | K13: 1.69 | L13: 1.16
A14: 1 1/8 | C14: 0.53 | D14: 0.362 | E14: 0.91 | F14: 0.622 | G14: 1.48 | H14: 1.01 | I14: 2.29 | J14: 1.57 | K14: 3.42 | L14: 2.35
A15: 1 3/8 | C15: 0.93 | D15: 0.635 | E15: 1.59 | F15: 1.09 | G15: 2.58 | H15: 1.77 | I15: 4 | J15: 2.75 | K15: 5.96 | L15: 4.11
A16: 1 5/8 | C16: 1.48 | D16: 1.01 | E16: 2.53 | F16: 1.73 | G16: 4.09 | H16: 2.81 | I16: 6.33 | J16: 4.36 | K16: 9.43 | L16: 6.5
A17: 2 1/8 | C17: 3.08 | D17: 2.11 | E17: 5.26 | F17: 3.62 | G17: 8.51 | H17: 5.86 | I17: 13.1 | J17: 9.07 | K17: 19.5 | L17: 13.5
A18: 2 5/8 | C18: 5.47 | D18: 3.76 | E18: 9.33 | F18: 6.42 | G18: 15.1 | H18: 10.4 | I18: 23.2 | J18: 16.1 | K18: 34.5 | L18: 23.9
A19: 3 1/8 | C19: 8.77 | D19: 6.02 | E19: 14.9 | F19: 10.3 | G19: 24.1 | H19: 16.6 | I19: 37.1 | J19: 25.6 | K19: 55 | L19: 38.1
A20: 3 5/8 | C20: 12.5 | D20: 8.99 | E20: 21.5 | F20: 15.3 | G20: 35.1 | H20: 24.7 | I20: 55 | J20: 38.2 | K20: 81.7 | L20: 56.7
A21: 4 1/8 | C21: 16.3 | D21: 12.7 | E21: 27.9 | F21: 21.6 | G21: 45.6 | H21: 34.9 | I21: 71.4 | J21: 53.9 | K21: 108 | L21: 79.9
A22: Steel
A23: IPS | B23: SCH
A24: 3/8 | B24: 80 | C24: --- | D24: --- | E24: --- | F24: --- | G24: 0.115 | H24: --- | I24: 0.176 | J24: 0.123 | K24: 0.258 | L24: 0.181
A25: 1/2 | B25: 80 | C25: --- | D25: --- | E25: 0.143 | F25: 0.1 | G25: 0.228 | H25: 0.16 | I25: 0.347 | J25: 0.243 | K25: 0.509 | L25: 0.358
A26: 3/4 | B26: 80 | C26: 0.194 | D26: 0.135 | E26: 0.325 | F26: 0.227 | G26: 0.516 | H26: 0.361 | I26: 0.783 | J26: 0.55 | K26: 1.15 | L26: 0.807
A27: 1 | B27: 80 | C27: 0.382 | D27: 0.266 | E27: 0.638 | F27: 0.447 | G27: 1.01 | H27: 0.71 | I27: 1.54 | J27: 1.08 | K27: 2.25 | L27: 1.58
A28: 1 1/4 | B28: 80 | C28: 0.823 | D28: 0.575 | E28: 1.37 | F28: 0.963 | G28: 2.17 | H28: 1.53 | I28: 3.3 | J28: 2.32 | K28: 4.82 | L28: 3.4
A29: 1 1/2 | B29: 80 | C29: 1.26 | D29: 0.88 | E29: 2.1 | F29: 1.47 | G29: 3.32 | H29: 2.33 | I29: 5.03 | J29: 3.54 | K29: 7.35 | L29: 5.18
A30: 2 | B30: 40 | C30: 2.93 | D30: 2.06 | E30: 4.88 | F30: 3.43 | G30: 7.71 | H30: 5.43 | I30: 11.7 | J30: 8.24 | K30: 17.1 | L30: 12
A31: 2 1/2 | B31: 40 | C31: 4.68 | D31: 3.29 | E31: 7.79 | F31: 5.48 | G31: 12.3 | H31: 8.67 | I31: 18.6 | J31: 13.1 | K31: 27.2 | L31: 19.2
A32: 3 | B32: 40 | C32: 8.29 | D32: 5.83 | E32: 13.8 | F32: 9.7 | G32: 21.8 | H32: 15.3 | I32: 32.9 | J32: 23.2 | K32: 48.1 | L32: 34
A33: 4 | B33: 40 | C33: 16.9 | D33: 11.9 | E33: 28.1 | F33: 19.8 | G33: 44.3 | H33: 31.3 | I33: 67 | J33: 47.3 | K33: 97.9 | L33: 69.2
A34: Notes:
A35: 1. Table capacities are in tons of refrigeration. Maximum veloxity = 3000 fpm. Suction refrigerant state is at saturation.
A36: Dp = pressure drop from line friction, psi per 100 ft equivalent length.
A37: Dt = change in saturation temperature corresponding to Dp, °F per 100 ft equivalent length.
A38: 2. Same as I-P R2022 chapter 1 tables.
A39: 3. Same as I-P R2022 chapter 1 tables.
A40: 4. Refrigerant thermodynamic and thermophysical properties calculated using NIST RefProp v10.0. Refrigerant flow rates calculated using the Darcy-Weisbach and Colebrook equations.
A41: 5. Table capacities based on 105°F liquid temperature entering the expension device. Multiply capacities by the following correction factors for other liquid temperatures. Correction factors based on a 0°F evaporator temperature, and are suitable in the range of -40°F to 40°F.
D42: Liquid Temperature, °F
D43: 80 | E43: 90 | F43: 100 | G43: 110 | H43: 120 | I43: 130 | J43: 140
B44: Suction Line | D44: =ROUND($E50/$E$53,2) -> 1.19 | E44: =ROUND($E51/$E$53,2) -> 1.11 | F44: =ROUND($E52/$E$53,2) -> 1.04 | G44: =ROUND($E54/$E$53,2) -> 0.96 | H44: =ROUND($E55/$E$53,2) -> 0.88 | I44: =ROUND($E56/$E$53,2) -> 0.8 | J44: =ROUND($E57/$E$53,2) -> 0.71
E47: NRE @ 0°F
D48: Liquid | E48: Evap,
D49: Temp, °F | E49: Btu/lb
D50: 80 | E50: =Enthalpy($D$1,"TVAP","E",0)-Enthalpy($D$1,"TLIQ","E",$D50) -> 61.31628682
D51: 90 | E51: 57.5260696
D52: 100 | E52: 53.64113273
D53: 105 | E53: 51.65830192
D54: 110 | E54: 49.64535442
D55: 120 | E55: 45.51705728
D56: 130 | E56: 41.22641037
D57: 140 | E57: 36.72966201

Sheet Table 17 SI
A1: NIST Refrigerant File | D1: R455A.mix | F1: =(Pressure($D$1,"TVAP","C",C6)-Pressure($D$1,"TVAP","C",C6-0.5))*1000 -> 2.313468193 | G1: =(Pressure($D$1,"TVAP","C",C6)-Pressure($D$1,"TVAP","C",C6-0.25))*1000 -> 1.1622521 | H1: =(Pressure($D$1,"TVAP","C",E6)-Pressure($D$1,"TVAP","C",E6-0.5))*1000 -> 3.321092168 | I1: =(Pressure($D$1,"TVAP","C",E6)-Pressure($D$1,"TVAP","C",E6-0.25))*1000 -> 1.667656323 | J1: =(Pressure($D$1,"TVAP","C",G6)-Pressure($D$1,"TVAP","C",G6-0.5))*1000 -> 4.598997105 | K1: =(Pressure($D$1,"TVAP","C",G6)-Pressure($D$1,"TVAP","C",G6-0.25))*1000 -> 2.308393441 | L1: =(Pressure($D$1,"TVAP","C",I6)-Pressure($D$1,"TVAP","C",I6-0.5))*1000 -> 7.088703785 | M1: =(Pressure($D$1,"TVAP","C",I6)-Pressure($D$1,"TVAP","C",I6-0.25))*1000 -> 3.556275688 | N1: =(Pressure($D$1,"TVAP","C",K6)-Pressure($D$1,"TVAP","C",K6-0.5))*1000 -> 9.175109158 | O1: =(Pressure($D$1,"TVAP","C",K6)-Pressure($D$1,"TVAP","C",K6-0.25))*1000 -> 4.60174924
A3: Table 17 Suction Line Capacities in Tons for Refrigerant 455A (Single- or High-Stage Applications)
A5: Line Size | C5: Saturated Suction Temperature, °C
A6: Type L, | C6: -40 | E6: -30 | G6: -20 | I6: -5 | K6: 5
A7: Copper, | C7: Dt = 0.5 K | D7: Dt = 0.25 K | E7: Dt = 0.5 K | F7: Dt = 0.25 K | G7: Dt = 0.5 K | H7: Dt = 0.25 K | I7: Dt = 0.5 K | J7: Dt = 0.25 K | K7: Dt = 0.5 K | L7: Dt = 0.25 K
A8: OD, in (mm) | C8: Dp = 2.31 kPa | D8: Dp = 1.16 kPa | E8: Dp = 3.32 kPa | F8: Dp = 1.67 kPa | G8: Dp = 4.60 kPa | H8: Dp = 2.31 kPa | I8: Dp = 7.09 kPa | J8: Dp = 3.56 kPa | K8: Dp = 9.18 kPa | L8: Dp = 4.60 kPa
A9: 3/8 (10) | C9: --- | D9: --- | E9: 0.119 | F9: --- | G9: 0.186 | H9: 0.126 | I9: 0.342 | J9: 0.232 | K9: 0.492 | L9: 0.335
A10: 1/2 (13) | C10: 0.18 | D10: 0.122 | E10: 0.295 | F10: 0.2 | G10: 0.463 | H10: 0.315 | I10: 0.846 | J10: 0.576 | K10: 1.21 | L10: 0.829
A11: 5/8 (16) | C11: 0.329 | D11: 0.223 | E11: 0.539 | F11: 0.366 | G11: 0.843 | H11: 0.574 | I11: 1.54 | J11: 1.05 | K11: 2.2 | L11: 1.51
A12: 3/4 (19) | C12: 0.564 | D12: 0.383 | E12: 0.922 | F12: 0.628 | G12: 1.44 | H12: 0.983 | I12: 2.62 | J12: 1.79 | K12: 3.75 | L12: 2.57
A13: 7/8 (22) | C13: 0.877 | D13: 0.596 | E13: 1.43 | F13: 0.976 | G13: 2.24 | H13: 1.53 | I13: 4.06 | J13: 2.78 | K13: 5.8 | L13: 3.98
A14: 1 1/8 (29) | C14: 1.79 | D14: 1.22 | E14: 2.92 | F14: 1.99 | G14: 4.55 | H14: 3.11 | I14: 8.24 | J14: 5.65 | K14: 11.8 | L14: 8.09
A15: 1 3/8 (35) | C15: 3.14 | D15: 2.15 | E15: 5.11 | F15: 3.5 | G15: 7.95 | H15: 5.45 | I15: 14.4 | J15: 9.88 | K15: 20.5 | L15: 14.1
A16: 1 5/8 (41) | C16: 4.99 | D16: 3.41 | E16: 8.11 | F16: 5.56 | G16: 12.6 | H16: 8.65 | I16: 22.8 | J16: 15.7 | K16: 32.4 | L16: 22.4
A17: 2 1/8 (54) | C17: 10.4 | D17: 7.14 | E17: 16.9 | F17: 11.6 | G17: 26.2 | H17: 18 | I17: 47.2 | J17: 32.6 | K17: 67.2 | L17: 46.4
A18: 2 5/8 (67) | C18: 18.5 | D18: 12.7 | E18: 30 | F18: 20.6 | G18: 46.4 | H18: 32 | I18: 83.5 | J18: 57.7 | K18: 119 | L18: 82.2
A19: 3 1/8 (79) | C19: 29.6 | D19: 20.4 | E19: 48 | F19: 33 | G19: 74.2 | H19: 51.2 | I19: 133 | J19: 92.1 | K19: 189 | L19: 131
A20: 3 5/8 (92) | C20: 43.8 | D20: 30.4 | E20: 71.2 | F20: 49.2 | G20: 110 | H20: 76.2 | I20: 198 | J20: 137 | K20: 281 | L20: 195
A21: 4 1/8 (105) | C21: 56.9 | D21: 43 | E21: 92.6 | F21: 69.5 | G21: 145 | H21: 108 | I21: 266 | J21: 193 | K21: 385 | L21: 275
A22: Steel
A23: IPS (mm) | B23: SCH
A24: 3/8 (10) | B24: 80 | C24: 0.146 | D24: 0.101 | E24: 0.233 | F24: 0.162 | G24: 0.357 | H24: 0.249 | I24: 0.632 | J24: 0.442 | K24: 0.89 | L24: 0.624
A25: 1/2 (13) | B25: 80 | C25: 0.289 | D25: 0.2 | E25: 0.462 | F25: 0.322 | G25: 0.707 | H25: 0.494 | I25: 1.25 | J25: 0.874 | K25: 1.75 | L25: 1.23
A26: 3/4 (19) | B26: 80 | C26: 0.656 | D26: 0.457 | E26: 1.05 | F26: 0.731 | G26: 1.6 | H26: 1.12 | I26: 2.81 | J26: 1.98 | K26: 3.95 | L26: 2.78
A27: 1 (25) | B27: 80 | C27: 1.29 | D27: 0.901 | E27: 2.06 | F27: 1.44 | G27: 3.14 | H27: 2.2 | I27: 5.52 | J27: 3.88 | K27: 7.75 | L27: 5.46
A28: 1 1/4 (32) | B28: 80 | C28: 2.79 | D28: 1.95 | E28: 4.43 | F28: 3.1 | G28: 6.74 | H28: 4.74 | I28: 11.8 | J28: 8.34 | K28: 16.6 | L28: 11.7
A29: 1 1/2 (38) | B29: 80 | C29: 4.26 | D29: 2.98 | E29: 6.76 | F29: 4.74 | G29: 10.3 | H29: 7.23 | I29: 18.1 | J29: 12.7 | K29: 25.3 | L29: 17.9
A30: 2 (51) | B30: 40 | C30: 9.94 | D30: 6.96 | E30: 15.8 | F30: 11.1 | G30: 23.9 | H30: 16.8 | I30: 42 | J30: 29.6 | K30: 58.9 | L30: 41.5
A31: 2 1/2 (64) | B31: 40 | C31: 15.9 | D31: 11.1 | E31: 25.2 | F31: 17.7 | G31: 38.2 | H31: 26.9 | I31: 66.9 | J31: 47.2 | K31: 93.8 | L31: 66.2
A32: 3 (76) | B32: 40 | C32: 28.1 | D32: 19.7 | E32: 44.5 | F32: 31.3 | G32: 67.5 | H32: 47.6 | I32: 118 | J32: 83.5 | K32: 166 | L32: 117
A33: 4 (102) | B33: 40 | C33: 57.4 | D33: 40.4 | E33: 90.8 | F33: 63.9 | G33: 138 | H33: 97.1 | I33: 241 | J33: 170 | K33: 338 | L33: 238
A34: Notes:
A35: 1. Table capacities are in kilowatts of refrigeration. Maximum veloxity = 15 m/s. Suction refrigerant state is at saturation.
A36: Dp = pressure drop from line friction, kPa per 30 meters equivalent length.
A37: Dt = change in saturation temperature corresponding to Dp, K per 30 meters equivalent length.
A38: 2. Same as SI R2022 chapter 1 tables.
A39: 3. Same as SI R2022 chapter 1 tables.
A40: 4. Refrigerant thermodynamic and thermophysical properties calculated using NIST RefProp v10.0. Refrigerant flow rates calculated using the Darcy-Weisbach and Colebrook equations.
A41: 5. Table capacities based on 40°C liquid temperature entering the expansion device. Multiply capacities by the following correction factors for other liquid temperatures. Correction factors based on a -18°C evaporator temperature, and are suitable in the range of -40°C to 5°C.
D42: Liquid Temperature, °C
D43: 25 | E43: 30 | F43: 35 | G43: 45 | H43: 50 | I43: 55 | J43: 60
B44: Suction Line | D44: =ROUND($E50/$E$53,2) -> 1.2 | E44: =ROUND($E51/$E$53,2) -> 1.13 | F44: =ROUND($E52/$E$53,2) -> 1.07 | G44: =ROUND($E54/$E$53,2) -> 0.93 | H44: =ROUND($E55/$E$53,2) -> 0.86 | I44: =ROUND($E56/$E$53,2) -> 0.78 | J44: =ROUND($E57/$E$53,2) -> 0.71
E47: NRE @ -18°C
D48: Liquid | E48: Evap,
D49: Temp, °C | E49: Btu/lb
D50: 25 | E50: =Enthalpy($D$1,"TVAP","C",-18)-Enthalpy($D$1,"TLIQ","C",$D50) -> 144.9976195
D51: 30 | E51: 137.1317207
D52: 35 | E52: 129.0974335
D53: 40 | E53: 120.8708861
D54: 45 | E54: 112.4209583
D55: 50 | E55: 103.7068849
D56: 55 | E56: 94.67372804
D57: 60 | E57: 85.2428933

Sheet Table 18
A1: NIST Refrigerant File | D1: R457A.mix | F1: =Pressure($D$1,"TVAP","E",C6)-Pressure($D$1,"TVAP","E",C6-1) -> 0.3164855614 | G1: =Pressure($D$1,"TVAP","E",C6)-Pressure($D$1,"TVAP","E",C6-0.5) -> 0.159092653 | H1: =Pressure($D$1,"TVAP","E",E6)-Pressure($D$1,"TVAP","E",E6-1) -> 0.4743263588 | I1: =Pressure($D$1,"TVAP","E",E6)-Pressure($D$1,"TVAP","E",E6-0.5) -> 0.238292806 | J1: =Pressure($D$1,"TVAP","E",G6)-Pressure($D$1,"TVAP","E",G6-1) -> 0.679964256 | K1: =Pressure($D$1,"TVAP","E",G6)-Pressure($D$1,"TVAP","E",G6-0.5) -> 0.3414289923 | L1: =Pressure($D$1,"TVAP","E",I6)-Pressure($D$1,"TVAP","E",I6-1) -> 0.9392049046 | M1: =Pressure($D$1,"TVAP","E",I6)-Pressure($D$1,"TVAP","E",I6-0.5) -> 0.4714019049 | N1: =Pressure($D$1,"TVAP","E",K6)-Pressure($D$1,"TVAP","E",K6-1) -> 1.257673584 | O1: =Pressure($D$1,"TVAP","E",K6)-Pressure($D$1,"TVAP","E",K6-0.5) -> 0.6310242538
A3: Table 18 Suction Line Capacities in Tons for Refrigerant 457A (Single- or High-Stage Applications)
A5: Line Size | C5: Saturated Suction Temperature, °F
A6: Type L, | C6: -40 | E6: -20 | G6: 0 | I6: 20 | K6: 40
A7: Copper, | C7: Dt = 1°F | D7: Dt = 0.5°F | E7: Dt = 1°F | F7: Dt = 0.5°F | G7: Dt = 1°F | H7: Dt = 0.5°F | I7: Dt = 1°F | J7: Dt = 0.5°F | K7: Dt = 1°F | L7: Dt = 0.5°F
A8: OD, in | C8: Dp = 0.32 psi | D8: Dp = 0.16 psi | E8: Dp = 0.47 psi | F8: Dp = 0.24 psi | G8: Dp = 0.68 psi | H8: Dp = 0.34 psi | I8: Dp = 0.94 psi | J8: Dp = 0.47 psi | K8: Dp = 1.26 psi | L8: Dp = 0.63 psi
A9: 3/8 | C9: --- | D9: --- | E9: --- | F9: --- | G9: --- | H9: --- | I9: --- | J9: --- | K9: 0.13 | L9: ---
A10: 1/2 | C10: --- | D10: --- | E10: --- | F10: --- | G10: 0.136 | H10: --- | I10: 0.213 | J10: 0.145 | K10: 0.32 | L10: 0.219
A11: 5/8 | C11: --- | D11: --- | E11: 0.151 | F11: 0.103 | G11: 0.248 | H11: 0.169 | I11: 0.387 | J11: 0.264 | K11: 0.581 | L11: 0.397
A12: 3/4 | C12: 0.15 | D12: 0.102 | E12: 0.259 | F12: 0.176 | G12: 0.424 | H12: 0.289 | I12: 0.661 | J12: 0.452 | K12: 0.991 | L12: 0.679
A13: 7/8 | C13: 0.233 | D13: 0.159 | E13: 0.403 | F13: 0.274 | G13: 0.657 | H13: 0.449 | I13: 1.02 | J13: 0.701 | K13: 1.53 | L13: 1.05
A14: 1 1/8 | C14: 0.477 | D14: 0.325 | E14: 0.821 | F14: 0.561 | G14: 1.34 | H14: 0.916 | I14: 2.08 | J14: 1.43 | K14: 3.11 | L14: 2.14
A15: 1 3/8 | C15: 0.836 | D15: 0.571 | E15: 1.44 | F15: 0.984 | G15: 2.34 | H15: 1.6 | I15: 3.63 | J15: 2.5 | K15: 5.42 | L15: 3.73
A16: 1 5/8 | C16: 1.33 | D16: 0.908 | E16: 2.28 | F16: 1.56 | G16: 3.71 | H16: 2.54 | I16: 5.75 | J16: 3.96 | K16: 8.58 | L16: 5.91
A17: 2 1/8 | C17: 2.78 | D17: 1.9 | E17: 4.76 | F17: 3.26 | G17: 7.71 | H17: 5.3 | I17: 11.9 | J17: 8.23 | K17: 17.8 | L17: 12.3
A18: 2 5/8 | C18: 4.93 | D18: 3.38 | E18: 8.44 | F18: 5.8 | G18: 13.7 | H18: 9.41 | I18: 21.1 | J18: 14.6 | K18: 31.4 | L18: 21.7
A19: 3 1/8 | C19: 7.9 | D19: 5.42 | E19: 13.5 | F19: 9.29 | G19: 21.8 | H19: 15.1 | I19: 33.7 | J19: 23.3 | K19: 50.1 | L19: 34.7
A20: 3 5/8 | C20: 11.4 | D20: 8.09 | E20: 19.5 | F20: 13.8 | G20: 31.9 | H20: 22.4 | I20: 50.1 | J20: 34.7 | K20: 74.5 | L20: 51.6
A21: 4 1/8 | C21: 14.8 | D21: 11.5 | E21: 25.4 | F21: 19.6 | G21: 41.5 | H21: 31.7 | I21: 65.1 | J21: 49 | K21: 98.8 | L21: 72.8
A22: Steel
A23: IPS | B23: SCH
A24: 3/8 | B24: 80 | C24: --- | D24: --- | E24: --- | F24: --- | G24: 0.105 | H24: --- | I24: 0.161 | J24: 0.112 | K24: 0.236 | L24: 0.166
A25: 1/2 | B25: 80 | C25: --- | D25: --- | E25: 0.13 | F25: --- | G25: 0.208 | H25: 0.145 | I25: 0.317 | J25: 0.222 | K25: 0.466 | L25: 0.327
A26: 3/4 | B26: 80 | C26: 0.176 | D26: 0.122 | E26: 0.295 | F26: 0.206 | G26: 0.47 | H26: 0.329 | I26: 0.716 | J26: 0.503 | K26: 1.05 | L26: 0.739
A27: 1 | B27: 80 | C27: 0.346 | D27: 0.241 | E27: 0.581 | F27: 0.406 | G27: 0.924 | H27: 0.648 | I27: 1.41 | J27: 0.988 | K27: 2.06 | L27: 1.45
A28: 1 1/4 | B28: 80 | C28: 0.747 | D28: 0.521 | E28: 1.25 | F28: 0.876 | G28: 1.99 | H28: 1.39 | I28: 3.02 | J28: 2.12 | K28: 4.42 | L28: 3.11
A29: 1 1/2 | B29: 80 | C29: 1.14 | D29: 0.798 | E29: 1.91 | F29: 1.34 | G29: 3.03 | H29: 2.13 | I29: 4.6 | J29: 3.24 | K29: 6.74 | L29: 4.75
A30: 2 | B30: 40 | C30: 2.66 | D30: 1.87 | E30: 4.45 | F30: 3.12 | G30: 7.05 | H30: 4.96 | I30: 10.7 | J30: 7.54 | K30: 15.7 | L30: 11
A31: 2 1/2 | B31: 40 | C31: 4.26 | D31: 2.98 | E31: 7.1 | F31: 4.99 | G31: 11.2 | H31: 7.92 | I31: 17.1 | J31: 12 | K31: 25 | L31: 17.6
A32: 3 | B32: 40 | C32: 7.54 | D32: 5.29 | E32: 12.6 | F32: 8.84 | G32: 19.9 | H32: 14 | I32: 30.2 | J32: 21.3 | K32: 44.1 | L32: 31.1
A33: 4 | B33: 40 | C33: 15.4 | D33: 10.8 | E33: 25.6 | F33: 18.1 | G33: 40.5 | H33: 28.6 | I33: 61.4 | J33: 43.4 | K33: 89.8 | L33: 63.4
A34: Notes:
A35: 1. Table capacities are in tons of refrigeration. Maximum veloxity = 3000 fpm. Suction refrigerant state is at saturation.
A36: Dp = pressure drop from line friction, psi per 100 ft equivalent length.
A37: Dt = change in saturation temperature corresponding to Dp, °F per 100 ft equivalent length.
A38: 2. Same as I-P R2022 chapter 1 tables.
A39: 3. Same as I-P R2022 chapter 1 tables.
A40: 4. Refrigerant thermodynamic and thermophysical properties calculated using NIST RefProp v10.0. Refrigerant flow rates calculated using the Darcy-Weisbach and Colebrook equations.
A41: 5. Table capacities based on 105°F liquid temperature entering the expension device. Multiply capacities by the following correction factors for other liquid temperatures. Correction factors based on a 0°F evaporator temperature, and are suitable in the range of -40°F to 40°F.
D42: Liquid Temperature, °F
D43: 80 | E43: 90 | F43: 100 | G43: 110 | H43: 120 | I43: 130 | J43: 140
B44: Suction Line | D44: =ROUND($E50/$E$53,2) -> 1.17 | E44: =ROUND($E51/$E$53,2) -> 1.1 | F44: =ROUND($E52/$E$53,2) -> 1.04 | G44: =ROUND($E54/$E$53,2) -> 0.96 | H44: =ROUND($E55/$E$53,2) -> 0.89 | I44: =ROUND($E56/$E$53,2) -> 0.82 | J44: =ROUND($E57/$E$53,2) -> 0.74
E47: NRE @ 0°F
D48: Liquid | E48: Evap,
D49: Temp, °F | E49: Btu/lb
D50: 80 | E50: =Enthalpy($D$1,"TVAP","E",0)-Enthalpy($D$1,"TLIQ","E",$D50) -> 65.06641288
D51: 90 | E51: 61.29315062
D52: 100 | E52: 57.43574187
D53: 105 | E53: 55.4719114
D54: 110 | E54: 53.48227653
D55: 120 | E55: 49.41654695
D56: 130 | E56: 45.216346
D57: 140 | E57: 40.8505871

Sheet Table 18 SI
A1: NIST Refrigerant File | D1: R457A.mix | F1: =(Pressure($D$1,"TVAP","C",C6)-Pressure($D$1,"TVAP","C",C6-0.5))*1000 -> 1.965987196 | G1: =(Pressure($D$1,"TVAP","C",C6)-Pressure($D$1,"TVAP","C",C6-0.25))*1000 -> 0.9877435616 | H1: =(Pressure($D$1,"TVAP","C",E6)-Pressure($D$1,"TVAP","C",E6-0.5))*1000 -> 2.835377196 | I1: =(Pressure($D$1,"TVAP","C",E6)-Pressure($D$1,"TVAP","C",E6-0.25))*1000 -> 1.423835481 | J1: =(Pressure($D$1,"TVAP","C",G6)-Pressure($D$1,"TVAP","C",G6-0.5))*1000 -> 3.94209601 | K1: =(Pressure($D$1,"TVAP","C",G6)-Pressure($D$1,"TVAP","C",G6-0.25))*1000 -> 1.978762586 | L1: =(Pressure($D$1,"TVAP","C",I6)-Pressure($D$1,"TVAP","C",I6-0.5))*1000 -> 6.104769703 | M1: =(Pressure($D$1,"TVAP","C",I6)-Pressure($D$1,"TVAP","C",I6-0.25))*1000 -> 3.062751797 | N1: =(Pressure($D$1,"TVAP","C",K6)-Pressure($D$1,"TVAP","C",K6-0.5))*1000 -> 7.918788796 | O1: =(Pressure($D$1,"TVAP","C",K6)-Pressure($D$1,"TVAP","C",K6-0.25))*1000 -> 3.971730411
A3: Table 18 Suction Line Capacities in Tons for Refrigerant 457A (Single- or High-Stage Applications)
A5: Line Size | C5: Saturated Suction Temperature, °C
A6: Type L, | C6: -40 | E6: -30 | G6: -20 | I6: -5 | K6: 5
A7: Copper, | C7: Dt = 0.5 K | D7: Dt = 0.25 K | E7: Dt = 0.5 K | F7: Dt = 0.25 K | G7: Dt = 0.5 K | H7: Dt = 0.25 K | I7: Dt = 0.5 K | J7: Dt = 0.25 K | K7: Dt = 0.5 K | L7: Dt = 0.25 K
A8: OD, in (mm) | C8: Dp = 1.97 kPa | D8: Dp = 0.99 kPa | E8: Dp = 2.84 kPa | F8: Dp = 1.42 kPa | G8: Dp = 3.94 kPa | H8: Dp = 1.98 kPa | I8: Dp = 6.10 kPa | J8: Dp = 3.06 kPa | K8: Dp = 7.92 kPa | L8: Dp = 3.97 kPa
A9: 3/8 (10) | C9: --- | D9: --- | E9: 0.106 | F9: --- | G9: 0.168 | H9: 0.113 | I9: 0.309 | J9: 0.21 | K9: 0.445 | L9: 0.303
A10: 1/2 (13) | C10: 0.161 | D10: 0.109 | E10: 0.265 | F10: 0.18 | G10: 0.417 | H10: 0.283 | I10: 0.765 | J10: 0.521 | K10: 1.1 | L10: 0.751
A11: 5/8 (16) | C11: 0.294 | D11: 0.199 | E11: 0.484 | F11: 0.329 | G11: 0.76 | H11: 0.517 | I11: 1.39 | J11: 0.948 | K11: 2 | L11: 1.36
A12: 3/4 (19) | C12: 0.506 | D12: 0.343 | E12: 0.83 | F12: 0.564 | G12: 1.3 | H12: 0.886 | I12: 2.37 | J12: 1.62 | K12: 3.41 | L12: 2.33
A13: 7/8 (22) | C13: 0.787 | D13: 0.535 | E13: 1.29 | F13: 0.878 | G13: 2.02 | H13: 1.38 | I13: 3.68 | J13: 2.52 | K13: 5.27 | L13: 3.61
A14: 1 1/8 (29) | C14: 1.61 | D14: 1.1 | E14: 2.63 | F14: 1.8 | G14: 4.11 | H14: 2.81 | I14: 7.47 | J14: 5.12 | K14: 10.7 | L14: 7.34
A15: 1 3/8 (35) | C15: 2.82 | D15: 1.93 | E15: 4.61 | F15: 3.15 | G15: 7.19 | H15: 4.92 | I15: 13 | J15: 8.96 | K15: 18.7 | L15: 12.8
A16: 1 5/8 (41) | C16: 4.49 | D16: 3.07 | E16: 7.32 | F16: 5.01 | G16: 11.4 | H16: 7.82 | I16: 20.7 | J16: 14.2 | K16: 29.5 | L16: 20.3
A17: 2 1/8 (54) | C17: 9.37 | D17: 6.42 | E17: 15.3 | F17: 10.5 | G17: 23.7 | H17: 16.3 | I17: 42.9 | J17: 29.5 | K17: 61.2 | L17: 42.2
A18: 2 5/8 (67) | C18: 16.7 | D18: 11.4 | E18: 27.1 | F18: 18.6 | G18: 42.1 | H18: 28.9 | I18: 75.9 | J18: 52.3 | K18: 108 | L18: 74.7
A19: 3 1/8 (79) | C19: 26.7 | D19: 18.3 | E19: 43.3 | F19: 29.8 | G19: 67.2 | H19: 46.3 | I19: 121 | J19: 83.7 | K19: 173 | L19: 119
A20: 3 5/8 (92) | C20: 39.7 | D20: 27.3 | E20: 64.5 | F20: 44.4 | G20: 100 | H20: 69 | I20: 180 | J20: 125 | K20: 256 | L20: 178
A21: 4 1/8 (105) | C21: 51.6 | D21: 38.7 | E21: 84.1 | F21: 62.8 | G21: 132 | H21: 97.5 | I21: 242 | J21: 176 | K21: 351 | L21: 250
A22: Steel
A23: IPS (mm) | B23: SCH
A24: 3/8 (10) | B24: 80 | C24: 0.132 | D24: --- | E24: 0.212 | F24: 0.147 | G24: 0.325 | H24: 0.226 | I24: 0.577 | J24: 0.404 | K24: 0.814 | L24: 0.571
A25: 1/2 (13) | B25: 80 | C25: 0.261 | D25: 0.181 | E25: 0.42 | F25: 0.292 | G25: 0.643 | H25: 0.449 | I25: 1.14 | J25: 0.798 | K25: 1.61 | L25: 1.13
A26: 3/4 (19) | B26: 80 | C26: 0.594 | D26: 0.413 | E26: 0.951 | F26: 0.663 | G26: 1.46 | H26: 1.02 | I26: 2.57 | J26: 1.81 | K26: 3.62 | L26: 2.55
A27: 1 (25) | B27: 80 | C27: 1.17 | D27: 0.815 | E27: 1.87 | F27: 1.31 | G27: 2.86 | H27: 2 | I27: 5.05 | J27: 3.55 | K27: 7.1 | L27: 5
A28: 1 1/4 (32) | B28: 80 | C28: 2.53 | D28: 1.76 | E28: 4.03 | F28: 2.82 | G28: 6.15 | H28: 4.32 | I28: 10.8 | J28: 7.62 | K28: 15.2 | L28: 10.7
A29: 1 1/2 (38) | B29: 80 | C29: 3.86 | D29: 2.7 | E29: 6.16 | F29: 4.31 | G29: 9.39 | H29: 6.59 | I29: 16.5 | J29: 11.6 | K29: 23.2 | L29: 16.4
A30: 2 (51) | B30: 40 | C30: 9.02 | D30: 6.32 | E30: 14.3 | F30: 10.1 | G30: 21.9 | H30: 15.4 | I30: 38.4 | J30: 27.1 | K30: 54 | L30: 38.1
A31: 2 1/2 (64) | B31: 40 | C31: 14.4 | D31: 10.1 | E31: 22.9 | F31: 16.1 | G31: 34.9 | H31: 24.5 | I31: 61.3 | J31: 43.2 | K31: 86 | L31: 60.7
A32: 3 (76) | B32: 40 | C32: 25.5 | D32: 17.9 | E32: 40.6 | F32: 28.5 | G32: 61.7 | H32: 43.4 | I32: 108 | J32: 76.4 | K32: 152 | L32: 107
A33: 4 (102) | B33: 40 | C33: 52.2 | D33: 36.6 | E33: 82.7 | F33: 58.2 | G33: 126 | H33: 88.6 | I33: 221 | J33: 156 | K33: 310 | L33: 219
A34: Notes:
A35: 1. Table capacities are in kilowatts of refrigeration. Maximum veloxity = 15 m/s. Suction refrigerant state is at saturation.
A36: Dp = pressure drop from line friction, kPa per 30 meters equivalent length.
A37: Dt = change in saturation temperature corresponding to Dp, K per 30 meters equivalent length.
A38: 2. Same as SI R2022 chapter 1 tables.
A39: 3. Same as SI R2022 chapter 1 tables.
A40: 4. Refrigerant thermodynamic and thermophysical properties calculated using NIST RefProp v10.0. Refrigerant flow rates calculated using the Darcy-Weisbach and Colebrook equations.
A41: 5. Table capacities based on 40°C liquid temperature entering the expansion device. Multiply capacities by the following correction factors for other liquid temperatures. Correction factors based on a -18°C evaporator temperature, and are suitable in the range of -40°C to 5°C.
D42: Liquid Temperature, °C
D43: 25 | E43: 30 | F43: 35 | G43: 45 | H43: 50 | I43: 55 | J43: 60
B44: Suction Line | D44: =ROUND($E50/$E$53,2) -> 1.18 | E44: =ROUND($E51/$E$53,2) -> 1.12 | F44: =ROUND($E52/$E$53,2) -> 1.06 | G44: =ROUND($E54/$E$53,2) -> 0.94 | H44: =ROUND($E55/$E$53,2) -> 0.87 | I44: =ROUND($E56/$E$53,2) -> 0.8 | J44: =ROUND($E57/$E$53,2) -> 0.73
E47: NRE @ -18°C
D48: Liquid | E48: Evap,
D49: Temp, °C | E49: Btu/lb
D50: 25 | E50: =Enthalpy($D$1,"TVAP","C",-18)-Enthalpy($D$1,"TLIQ","C",$D50) -> 153.7016604
D51: 30 | E51: 145.8651001
D52: 35 | E52: 137.877435
D53: 40 | E53: 129.7210849
D54: 45 | E54: 121.3729423
D55: 50 | E55: 112.8024493
D56: 55 | E56: 103.9689263
D57: 60 | E57: 94.81701524

Sheet Table 18A
A1: NIST Refrigerant File | D1: R1234yf;7750;R134a;850;R152a;1400 mass | F1: =Pressure($D$1,"TVAP","E",C6)-Pressure($D$1,"TVAP","E",C6-1) -> 0.526080126 | G1: =Pressure($D$1,"TVAP","E",C6)-Pressure($D$1,"TVAP","E",C6-0.5) -> 0.2641741608 | H1: =Pressure($D$1,"TVAP","E",E6)-Pressure($D$1,"TVAP","E",E6-1) -> 0.622183929 | I1: =Pressure($D$1,"TVAP","E",E6)-Pressure($D$1,"TVAP","E",E6-0.5) -> 0.3123615 | J1: =Pressure($D$1,"TVAP","E",G6)-Pressure($D$1,"TVAP","E",G6-1) -> 0.7293681542 | K1: =Pressure($D$1,"TVAP","E",G6)-Pressure($D$1,"TVAP","E",G6-0.5) -> 0.366095133 | L1: =Pressure($D$1,"TVAP","E",I6)-Pressure($D$1,"TVAP","E",I6-1) -> 0.8481080113 | M1: =Pressure($D$1,"TVAP","E",I6)-Pressure($D$1,"TVAP","E",I6-0.5) -> 0.4256123957 | N1: =Pressure($D$1,"TVAP","E",K6)-Pressure($D$1,"TVAP","E",K6-1) -> 0.9788613247 | O1: =Pressure($D$1,"TVAP","E",K6)-Pressure($D$1,"TVAP","E",K6-0.5) -> 0.4911420371
A3: Table 18A Suction Line Capacities in Tons for Refrigerant 516A (Single- or High-Stage Applications)
A5: Line Size | C5: Saturated Suction Temperature, °F
A6: Type L, | C6: 0 | E6: 10 | G6: 20 | I6: 30 | K6: 40
A7: Copper, | C7: Dt = 1°F | D7: Dt = 0.5°F | E7: Dt = 1°F | F7: Dt = 0.5°F | G7: Dt = 1°F | H7: Dt = 0.5°F | I7: Dt = 1°F | J7: Dt = 0.5°F | K7: Dt = 1°F | L7: Dt = 0.5°F
A8: OD, in | C8: Dp = 0.53 psi | D8: Dp = 0.26 psi | E8: Dp = 0.62 psi | F8: Dp = 0.31 psi | G8: Dp = 0.73 psi | H8: Dp = 0.37 psi | I8: Dp = 0.85 psi | J8: Dp = 0.43 psi | K8: Dp = 0.98 psi | L8: Dp = 0.49 psi
A9: 3/8 | C9: --- | D9: --- | E9: --- | F9: --- | G9: --- | H9: --- | I9: --- | J9: --- | K9: --- | L9: ---
A10: 1/2 | C10: --- | D10: --- | E10: 0.124 | F10: --- | G10: 0.156 | H10: 0.106 | I10: 0.193 | J10: 0.131 | K10: 0.237 | L10: 0.162
A11: 5/8 | C11: 0.178 | D11: 0.121 | E11: 0.226 | F11: 0.154 | G11: 0.283 | H11: 0.193 | I11: 0.351 | J11: 0.239 | K11: 0.43 | L11: 0.294
A12: 3/4 | C12: 0.305 | D12: 0.208 | E12: 0.386 | F12: 0.263 | G12: 0.483 | H12: 0.33 | I12: 0.599 | J12: 0.409 | K12: 0.734 | L12: 0.503
A13: 7/8 | C13: 0.473 | D13: 0.323 | E13: 0.599 | F13: 0.409 | G13: 0.749 | H13: 0.512 | I13: 0.927 | J13: 0.635 | K13: 1.14 | L13: 0.779
A14: 1 1/8 | C14: 0.964 | D14: 0.659 | E14: 1.22 | F14: 0.834 | G14: 1.52 | H14: 1.04 | I14: 1.88 | J14: 1.29 | K14: 2.31 | L14: 1.58
A15: 1 3/8 | C15: 1.69 | D15: 1.16 | E15: 2.13 | F15: 1.46 | G15: 2.66 | H15: 1.83 | I15: 3.29 | J15: 2.26 | K15: 4.03 | L15: 2.77
A16: 1 5/8 | C16: 2.68 | D16: 1.83 | E16: 3.38 | F16: 2.32 | G16: 4.22 | H16: 2.9 | I16: 5.21 | J16: 3.58 | K16: 6.38 | L16: 4.39
A17: 2 1/8 | C17: 5.57 | D17: 3.83 | E17: 7.03 | F17: 4.83 | G17: 8.76 | H17: 6.03 | I17: 10.8 | J17: 7.45 | K17: 13.2 | L17: 9.13
A18: 2 5/8 | C18: 9.87 | D18: 6.79 | E18: 12.4 | F18: 8.57 | G18: 15.5 | H18: 10.7 | I18: 19.1 | J18: 13.2 | K18: 23.4 | L18: 16.2
A19: 3 1/8 | C19: 15.8 | D19: 10.9 | E19: 19.9 | F19: 13.7 | G19: 24.8 | H19: 17.1 | I19: 30.6 | J19: 21.1 | K19: 37.3 | L19: 25.8
A20: 3 5/8 | C20: 23.5 | D20: 16.2 | E20: 29.6 | F20: 20.4 | G20: 36.9 | H20: 25.5 | I20: 45.4 | J20: 31.4 | K20: 55.5 | L20: 38.4
A21: 4 1/8 | C21: 32.5 | D21: 22.9 | E21: 41.2 | F21: 28.8 | G21: 51.7 | H21: 35.9 | I21: 64.1 | J21: 44.3 | K21: 78.3 | L21: 54.2
A22: Steel
A23: IPS | B23: SCH
A24: 3/8 | B24: 80 | C24: --- | D24: --- | E24: --- | F24: --- | G24: 0.119 | H24: --- | I24: 0.146 | J24: 0.102 | K24: 0.177 | L24: 0.124
A25: 1/2 | B25: 80 | C25: 0.151 | D25: 0.106 | E25: 0.189 | F25: 0.132 | G25: 0.234 | H25: 0.164 | I25: 0.287 | J25: 0.201 | K25: 0.349 | L25: 0.245
A26: 3/4 | B26: 80 | C26: 0.342 | D26: 0.239 | E26: 0.428 | F26: 0.3 | G26: 0.53 | H26: 0.372 | I26: 0.649 | J26: 0.456 | K26: 0.788 | L26: 0.554
A27: 1 | B27: 80 | C27: 0.673 | D27: 0.471 | E27: 0.841 | F27: 0.59 | G27: 1.04 | H27: 0.73 | I27: 1.27 | J27: 0.895 | K27: 1.55 | L27: 1.09
A28: 1 1/4 | B28: 80 | C28: 1.45 | D28: 1.02 | E28: 1.81 | F28: 1.27 | G28: 2.23 | H28: 1.57 | I28: 2.73 | J28: 1.92 | K28: 3.32 | L28: 2.33
A29: 1 1/2 | B29: 80 | C29: 2.21 | D29: 1.55 | E29: 2.76 | F29: 1.94 | G29: 3.41 | H29: 2.4 | I29: 4.17 | J29: 2.94 | K29: 5.06 | L29: 3.56
A30: 2 | B30: 40 | C30: 5.14 | D30: 3.62 | E30: 6.42 | F30: 4.52 | G30: 7.92 | H30: 5.58 | I30: 9.69 | J30: 6.83 | K30: 11.8 | L30: 8.29
A31: 2 1/2 | B31: 40 | C31: 8.21 | D31: 5.77 | E31: 10.2 | F31: 7.21 | G31: 12.6 | H31: 8.91 | I31: 15.5 | J31: 10.9 | K31: 18.7 | L31: 13.2
A32: 3 | B32: 40 | C32: 14.5 | D32: 10.2 | E32: 18.1 | F32: 12.8 | G32: 22.3 | H32: 15.8 | I32: 27.3 | J32: 19.3 | K32: 33.1 | L32: 23.4
A33: 4 | B33: 40 | C33: 29.6 | D33: 20.9 | E33: 36.9 | F33: 26 | G33: 45.5 | H33: 32.1 | I33: 55.7 | J33: 39.3 | K33: 67.4 | L33: 47.6
A34: Notes:
A35: 1. Table capacities are in tons of refrigeration. Maximum veloxity = 3000 fpm. Suction refrigerant state is at saturation.
A36: Dp = pressure drop from line friction, psi per 100 ft equivalent length.
A37: Dt = change in saturation temperature corresponding to Dp, °F per 100 ft equivalent length.
A38: 2. Same as I-P R2022 chapter 1 tables.
A39: 3. Same as I-P R2022 chapter 1 tables.
A40: 4. Refrigerant thermodynamic and thermophysical properties calculated using NIST RefProp v10.0. Refrigerant flow rates calculated using the Darcy-Weisbach and Colebrook equations.
A41: 5. Table capacities based on 105°F liquid temperature entering the expension device. Multiply capacities by the following correction factors for other liquid temperatures. Correction factors based on a 20°F evaporator temperature, and are suitable in the range of 0°F to 40°F.
D42: Liquid Temperature, °F
D43: 80 | E43: 90 | F43: 100 | G43: 110 | H43: 120 | I43: 130 | J43: 140
B44: Suction Line | D44: =ROUND($E50/$E$53,2) -> 1.17 | E44: =ROUND($E51/$E$53,2) -> 1.1 | F44: =ROUND($E52/$E$53,2) -> 1.04 | G44: =ROUND($E54/$E$53,2) -> 0.96 | H44: =ROUND($E55/$E$53,2) -> 0.89 | I44: =ROUND($E56/$E$53,2) -> 0.82 | J44: =ROUND($E57/$E$53,2) -> 0.74
E47: NRE @ 20°F
D48: Liquid | E48: Evap,
D49: Temp, °F | E49: Btu/lb
D50: 80 | E50: =Enthalpy($D$1,"TVAP","E",20)-Enthalpy($D$1,"TLIQ","E",$D50) -> 61.09057414
D51: 90 | E51: 57.56063376
D52: 100 | E52: 53.96384488
D53: 105 | E53: 52.13843073
D54: 110 | E54: 50.29369435
D55: 120 | E55: 46.54123603
D56: 130 | E56: 42.69407656
D57: 140 | E57: 38.73516985

Sheet Table 18A SI
A1: NIST Refrigerant File | D1: R1234yf;7750;R134a;850;R152a;1400 mass | F1: =(Pressure($D$1,"TVAP","C",C6)-Pressure($D$1,"TVAP","C",C6-0.5))*1000 -> 3.557222758 | G1: =(Pressure($D$1,"TVAP","C",C6)-Pressure($D$1,"TVAP","C",C6-0.25))*1000 -> 1.78532265 | H1: =(Pressure($D$1,"TVAP","C",E6)-Pressure($D$1,"TVAP","C",E6-0.5))*1000 -> 4.121735982 | I1: =(Pressure($D$1,"TVAP","C",E6)-Pressure($D$1,"TVAP","C",E6-0.25))*1000 -> 2.068274132 | J1: =(Pressure($D$1,"TVAP","C",G6)-Pressure($D$1,"TVAP","C",G6-0.5))*1000 -> 4.742924812 | K1: =(Pressure($D$1,"TVAP","C",G6)-Pressure($D$1,"TVAP","C",G6-0.25))*1000 -> 2.379590378 | L1: =(Pressure($D$1,"TVAP","C",I6)-Pressure($D$1,"TVAP","C",I6-0.5))*1000 -> 5.422905788 | M1: =(Pressure($D$1,"TVAP","C",I6)-Pressure($D$1,"TVAP","C",I6-0.25))*1000 -> 2.720328713 | N1: =(Pressure($D$1,"TVAP","C",K6)-Pressure($D$1,"TVAP","C",K6-0.5))*1000 -> 6.163735215 | O1: =(Pressure($D$1,"TVAP","C",K6)-Pressure($D$1,"TVAP","C",K6-0.25))*1000 -> 3.091516737
A3: Table 18A Suction Line Capacities in Tons for Refrigerant 516A (Single- or High-Stage Applications)
A5: Line Size | C5: Saturated Suction Temperature, °C
A6: Type L, | C6: -15 | E6: -10 | G6: -5 | I6: 0 | K6: 5
A7: Copper, | C7: Dt = 0.5 K | D7: Dt = 0.25 K | E7: Dt = 0.5 K | F7: Dt = 0.25 K | G7: Dt = 0.5 K | H7: Dt = 0.25 K | I7: Dt = 0.5 K | J7: Dt = 0.25 K | K7: Dt = 0.5 K | L7: Dt = 0.25 K
A8: OD, in (mm) | C8: Dp = 3.56 kPa | D8: Dp = 1.79 kPa | E8: Dp = 4.12 kPa | F8: Dp = 2.07 kPa | G8: Dp = 4.74 kPa | H8: Dp = 2.38 kPa | I8: Dp = 5.42 kPa | J8: Dp = 2.72 kPa | K8: Dp = 6.16 kPa | L8: Dp = 3.09 kPa
A9: 3/8 (10) | C9: 0.149 | D9: 0.101 | E9: 0.184 | F9: 0.125 | G9: 0.226 | H9: 0.153 | I9: 0.274 | J9: 0.186 | K9: 0.329 | L9: 0.224
A10: 1/2 (13) | C10: 0.372 | D10: 0.252 | E10: 0.458 | F10: 0.311 | G10: 0.56 | H10: 0.381 | I10: 0.678 | J10: 0.462 | K10: 0.815 | L10: 0.556
A11: 5/8 (16) | C11: 0.677 | D11: 0.461 | E11: 0.834 | F11: 0.568 | G11: 1.02 | H11: 0.694 | I11: 1.23 | J11: 0.841 | K11: 1.48 | L11: 1.01
A12: 3/4 (19) | C12: 1.16 | D12: 0.79 | E12: 1.43 | F12: 0.973 | G12: 1.74 | H12: 1.19 | I12: 2.1 | J12: 1.44 | K12: 2.53 | L12: 1.73
A13: 7/8 (22) | C13: 1.8 | D13: 1.23 | E13: 2.21 | F13: 1.51 | G13: 2.7 | H13: 1.84 | I13: 3.26 | J13: 2.23 | K13: 3.91 | L13: 2.68
A14: 1 1/8 (29) | C14: 3.66 | D14: 2.5 | E14: 4.5 | F14: 3.08 | G14: 5.48 | H14: 3.76 | I14: 6.62 | J14: 4.54 | K14: 7.94 | L14: 5.45
A15: 1 3/8 (35) | C15: 6.41 | D15: 4.39 | E15: 7.87 | F15: 5.39 | G15: 9.58 | H15: 6.57 | I15: 11.6 | J15: 7.94 | K15: 13.9 | L15: 9.53
A16: 1 5/8 (41) | C16: 10.2 | D16: 6.97 | E16: 12.5 | F16: 8.56 | G16: 15.2 | H16: 10.4 | I16: 18.3 | J16: 12.6 | K16: 21.9 | L16: 15.1
A17: 2 1/8 (54) | C17: 21.2 | D17: 14.5 | E17: 25.9 | F17: 17.8 | G17: 31.5 | H17: 21.7 | I17: 38.1 | J17: 26.2 | K17: 45.6 | L17: 31.4
A18: 2 5/8 (67) | C18: 37.5 | D18: 25.8 | E18: 46 | F18: 31.6 | G18: 55.8 | H18: 38.5 | I18: 67.3 | J18: 46.4 | K18: 80.6 | L18: 55.6
A19: 3 1/8 (79) | C19: 59.9 | D19: 41.3 | E19: 73.4 | F19: 50.6 | G19: 89.2 | H19: 61.5 | I19: 107 | J19: 74.2 | K19: 129 | L19: 88.8
A20: 3 5/8 (92) | C20: 89.2 | D20: 61.5 | E20: 109 | F20: 75.4 | G20: 133 | H20: 91.6 | I20: 160 | J20: 110 | K20: 191 | L20: 132
A21: 4 1/8 (105) | C21: 126 | D21: 86.9 | E21: 154 | F21: 106 | G21: 187 | H21: 129 | I21: 225 | J21: 156 | K21: 270 | L21: 187
A22: Steel
A23: IPS (mm) | B23: SCH
A24: 3/8 (10) | B24: 80 | C24: 0.29 | D24: 0.202 | E24: 0.353 | F24: 0.247 | G24: 0.427 | H24: 0.298 | I24: 0.512 | J24: 0.358 | K24: 0.61 | L24: 0.427
A25: 1/2 (13) | B25: 80 | C25: 0.574 | D25: 0.4 | E25: 0.699 | F25: 0.488 | G25: 0.844 | H25: 0.591 | I25: 1.01 | J25: 0.709 | K25: 1.2 | L25: 0.844
A26: 3/4 (19) | B26: 80 | C26: 1.3 | D26: 0.908 | E26: 1.58 | F26: 1.11 | G26: 1.91 | H26: 1.34 | I26: 2.28 | J26: 1.6 | K26: 2.72 | L26: 1.91
A27: 1 (25) | B27: 80 | C27: 2.55 | D27: 1.79 | E27: 3.1 | F27: 2.18 | G27: 3.74 | H27: 2.63 | I27: 4.48 | J27: 3.15 | K27: 5.33 | L27: 3.75
A28: 1 1/4 (32) | B28: 80 | C28: 5.48 | D28: 3.85 | E28: 6.67 | F28: 4.68 | G28: 8.04 | H28: 5.65 | I28: 9.62 | J28: 6.77 | K28: 11.4 | L28: 8.05
A29: 1 1/2 (38) | B29: 80 | C29: 8.37 | D29: 5.88 | E29: 10.2 | F29: 7.15 | G29: 12.3 | H29: 8.63 | I29: 14.7 | J29: 10.3 | K29: 17.4 | L29: 12.3
A30: 2 (51) | B30: 40 | C30: 19.5 | D30: 13.7 | E30: 23.7 | F30: 16.7 | G30: 28.5 | H30: 20.1 | I30: 34.1 | J30: 24 | K30: 40.5 | L30: 28.6
A31: 2 1/2 (64) | B31: 40 | C31: 31.1 | D31: 21.9 | E31: 37.8 | F31: 26.6 | G31: 45.5 | H31: 32.1 | I31: 54.4 | J31: 38.4 | K31: 64.6 | L31: 45.6
A32: 3 (76) | B32: 40 | C32: 55 | D32: 38.7 | E32: 66.8 | F32: 47.1 | G32: 80.4 | H32: 56.7 | I32: 96.2 | J32: 67.8 | K32: 114 | L32: 80.6
A33: 4 (102) | B33: 40 | C33: 112 | D33: 79 | E33: 136 | F33: 96 | G33: 164 | H33: 116 | I33: 196 | J33: 138 | K33: 233 | L33: 164
A34: Notes:
A35: 1. Table capacities are in kilowatts of refrigeration. Maximum veloxity = 15 m/s. Suction refrigerant state is at saturation.
A36: Dp = pressure drop from line friction, kPa per 30 meters equivalent length.
A37: Dt = change in saturation temperature corresponding to Dp, K per 30 meters equivalent length.
A38: 2. Same as SI R2022 chapter 1 tables.
A39: 3. Same as SI R2022 chapter 1 tables.
A40: 4. Refrigerant thermodynamic and thermophysical properties calculated using NIST RefProp v10.0. Refrigerant flow rates calculated using the Darcy-Weisbach and Colebrook equations.
A41: 5. Table capacities based on 40°C liquid temperature entering the expansion device. Multiply capacities by the following correction factors for other liquid temperatures. Correction factors based on a -5°C evaporator temperature, and are suitable in the range of -15°C to 5°C.
D42: Liquid Temperature, °C
D43: 25 | E43: 30 | F43: 35 | G43: 45 | H43: 50 | I43: 55 | J43: 60
B44: Suction Line | D44: =ROUND($E50/$E$53,2) -> 1.18 | E44: =ROUND($E51/$E$53,2) -> 1.12 | F44: =ROUND($E52/$E$53,2) -> 1.06 | G44: =ROUND($E54/$E$53,2) -> 0.94 | H44: =ROUND($E55/$E$53,2) -> 0.87 | I44: =ROUND($E56/$E$53,2) -> 0.81 | J44: =ROUND($E57/$E$53,2) -> 0.74
E47: NRE @ -5°C
D48: Liquid | E48: Evap,
D49: Temp, °C | E49: Btu/lb
D50: 25 | E50: =Enthalpy($D$1,"TVAP","C",-5)-Enthalpy($D$1,"TLIQ","C",$D50) -> 145.5207993
D51: 30 | E51: 138.1826255
D52: 35 | E52: 130.7226188
D53: 40 | E53: 123.1311413
D54: 45 | E54: 115.3955353
D55: 50 | E55: 107.4988474
D56: 55 | E56: 99.41836689
D57: 60 | E57: 91.12387964

Sheet Example 3
A1: I-P
A3: Example 3. Determine the maximum size suction and discharge riser that will transport
A4: oil at minimum loading, using R-454B with a 40 ton compressor having capacity steps of
A5: of 25, 50, 75 and 100 percent. Minimum system loading is 10 tons at 40°F evaporator
A6: and 100°F condenser temperature with 25°F superheated refrigerant entering the compressor.
A8: Solution: From Table 22, the minimum rating for the 2-1/8" OD suction riser at 40°F evaporator,
A9: 25°F superheat and 105°F liquid to transport oil is approximately 8.56 tons. Use Note 1,
A10: to determine capacity at 100°F condensing and zero subcooling:
A12: Actual minimum 2-1/8" OD line capacity | E12: = | F12: 8.56 x 1.03 = | H12: 8.8 tons
A14: Simple inspection shows the 2-5/8" OD suction riser is too large.
A16: From Table 23, the minimum capacity for the 1-5/8" OD discharge riser at 40°F evaporator,
A17: 25°F superheat and 100°F condensing to transport oil is 6.21 tons. The 2-1/8" OD riser
A18: having a 12.4 ton minumum capacity is too large.
A21: SI
A23: Example 3. Determine the maximum size suction and discharge riser that will transport
A24: oil at minimum loading, using R-454B with a 140 kW compressor having capacity steps of
A25: of 25, 50, 75 and 100 percent. Minimum system loading is 35 kW at 5°C evaporator
A26: and 35°C condenser temperature with 14 K superheated refrigerant entering the compressor.
A28: Solution: From Table 22, the minimum rating for the 54 mm OD suction riser at 5°C evaporator,
A29: 14 K superheat and 40°C liquid to transport oil is approximately 30.5 kW. Use Note 1,
A30: to determine capacity at 35°C condensing and zero subcooling:
A32: Actual minimum 54 mm OD line capacity | E32: = | F32: 30.5 x 1.05 = | H32: 32.0 kW
A34: Simple inspection shows the 67 mm OD suction riser is too large.
A36: From Table 23, the minimum capacity for the 41 mm OD discharge riser at 5°C evaporator,
A37: 14 K superheat and 35°C condensing to transport oil is approximately 21.8 kW. The 54 mm OD
A38: riser having approximately a 43.7 kW minumum capacity is too large.

Sheet Table 22
B1: jg*1/2 | C1: 0.85 | F1: in to m | H1: 0.0254
B2: g, m/s2 | C2: 9.80665 | F2: lb/ft3 to kg/m3 | H2: 16.01846337 | K2: Jacob's Limit, kg/m2-s | X2: Minimum Capacity, tons | AK2: Velocity, ft/min | AX2: Capacity, tons - R2022 Table 20 Data, R-22 & R-134a, 90°F liquid | BK2: Capacity Difference, percent
B3: tl, °F | C3: 105 | F3: kg/m2-s to lb/ft2-s | H3: =0.09290304/0.45359237 -> 0.2048161436 | K3: Pipe OD, in | X3: Pipe OD, in | AK3: Pipe OD, in | AX3: Pipe OD, in | BK3: Pipe OD, in
H4: Liquid | I4: POE32 & | K4: 1/2 | L4: 5/8 | M4: 3/4 | N4: 7/8 | O4: 1 1/8 | P4: 1 3/8 | Q4: 1 5/8 | R4: 2 1/8 | S4: 2 5/8 | T4: 3 1/8 | U4: 3 5/8 | V4: 4 1/8 | X4: 1/2 | Y4: 5/8 | Z4: 3/4 | AA4: 7/8 | AB4: 1 1/8 | AC4: 1 3/8 | AD4: 1 5/8 | AE4: 2 1/8 | AF4: 2 5/8 | AG4: 3 1/8 | AH4: 3 5/8 | AI4: 4 1/8 | AK4: 1/2 | AL4: 5/8 | AM4: 3/4 | AN4: 7/8 | AO4: 1 1/8 | AP4: 1 3/8 | AQ4: 1 5/8 | AR4: 2 1/8 | AS4: 2 5/8 | AT4: 3 1/8 | AU4: 3 5/8 | AV4: 4 1/8 | AX4: 1/2 | AY4: 5/8 | AZ4: 3/4 | BA4: 7/8 | BB4: 1 1/8 | BC4: 1 3/8 | BD4: 1 5/8 | BE4: 2 1/8 | BF4: 2 5/8 | BG4: 3 1/8 | BH4: 3 5/8 | BI4: 4 1/8 | BK4: 1/2 | BL4: 5/8 | BM4: 3/4 | BN4: 7/8 | BO4: 1 1/8 | BP4: 1 3/8 | BQ4: 1 5/8 | BR4: 2 1/8 | BS4: 2 5/8 | BT4: 3 1/8 | BU4: 3 5/8 | BV4: 4 1/8
F5: Suction | H5: Density at | I5: Refrigerant | K5: Pipe ID, in | X5: Pipe ID, in | AK5: Pipe ID, in | AX5: Pipe ID, in | BK5: Pipe ID, in
C6: Suction | E6: Evap | F6: Gas | H6: Saturated | I6: Mixture | K6: 0.436 | L6: 0.545 | M6: 0.666 | N6: 0.785 | O6: 1.025 | P6: 1.265 | Q6: 1.505 | R6: 1.985 | S6: 2.465 | T6: 2.945 | U6: 3.425 | V6: 3.905 | X6: 0.436 | Y6: 0.545 | Z6: 0.666 | AA6: 0.785 | AB6: 1.025 | AC6: 1.265 | AD6: 1.505 | AE6: 1.985 | AF6: 2.465 | AG6: 2.945 | AH6: 3.425 | AI6: 3.905 | AK6: 0.436 | AL6: 0.545 | AM6: 0.666 | AN6: 0.785 | AO6: 1.025 | AP6: 1.265 | AQ6: 1.505 | AR6: 1.985 | AS6: 2.465 | AT6: 2.945 | AU6: 3.425 | AV6: 3.905 | AX6: 0.436 | AY6: 0.545 | AZ6: 0.666 | BA6: 0.785 | BB6: 1.025 | BC6: 1.265 | BD6: 1.505 | BE6: 1.985 | BF6: 2.465 | BG6: 2.945 | BH6: 3.425 | BI6: 3.905 | BK6: 0.436 | BL6: 0.545 | BM6: 0.666 | BN6: 0.785 | BO6: 1.025 | BP6: 1.265 | BQ6: 1.505 | BR6: 1.985 | BS6: 2.465 | BT6: 2.945 | BU6: 3.425 | BV6: 3.905
A7: Refrigerant | B7: Evap | C7: Gas | E7: Pressure | F7: Density | G7: NRE | H7: Suction | I7: Density | K7: Area, in2 | X7: Area, in2 | AK7: Area, in2 | AX7: Area, in2 | BK7: Area, in2
A8: NIST file | B8: Temp, °F | C8: Temp, °F | E8: psia | F8: lb/ft3 | G8: Btu/lb | H8: Temp, lb/ft3 | I8: (est), lb/ft3 | K8: =PI()*K6*K6/4 -> 0.1493010493 | L8: =PI()*L6*L6/4 -> 0.2332828895 | M8: 0.3483680678 | N8: 0.4839819832 | O8: 0.8251589454 | P8: 1.256813776 | Q8: 1.778946475 | R8: 3.094645478 | S8: 4.772255955 | T8: 6.811777906 | U8: 9.213211331 | V8: 11.97655623 | X8: =PI()*X6*X6/4 -> 0.1493010493 | Y8: =PI()*Y6*Y6/4 -> 0.2332828895 | Z8: 0.3483680678 | AA8: 0.4839819832 | AB8: 0.8251589454 | AC8: 1.256813776 | AD8: 1.778946475 | AE8: 3.094645478 | AF8: 4.772255955 | AG8: 6.811777906 | AH8: 9.213211331 | AI8: =PI()*AI6*AI6/4 -> 11.97655623 | AK8: =PI()*AK6*AK6/4 -> 0.1493010493 | AL8: =PI()*AL6*AL6/4 -> 0.2332828895 | AM8: 0.3483680678 | AN8: 0.4839819832 | AO8: 0.8251589454 | AP8: 1.256813776 | AQ8: 1.778946475 | AR8: 3.094645478 | AS8: 4.772255955 | AT8: 6.811777906 | AU8: 9.213211331 | AV8: 11.97655623 | AX8: =PI()*AX6*AX6/4 -> 0.1493010493 | AY8: =PI()*AY6*AY6/4 -> 0.2332828895 | AZ8: 0.3483680678 | BA8: 0.4839819832 | BB8: 0.8251589454 | BC8: 1.256813776 | BD8: 1.778946475 | BE8: 3.094645478 | BF8: 4.772255955 | BG8: 6.811777906 | BH8: 9.213211331 | BI8: 11.97655623 | BK8: =PI()*BK6*BK6/4 -> 0.1493010493 | BL8: =PI()*BL6*BL6/4 -> 0.2332828895 | BM8: 0.3483680678 | BN8: 0.4839819832 | BO8: 0.8251589454 | BP8: 1.256813776 | BQ8: 1.778946475 | BR8: 3.094645478 | BS8: 4.772255955 | BT8: 6.811777906 | BU8: 9.213211331 | BV8: 11.97655623
A9: =VLOOKUP(A10,'NIST refrigerants listing'!A1:B176,2) -> R22.fld | B9: -40 | C9: -30 | E9: =Pressure($A$9,"TVAP","E",$B$9) -> 15.26241801 | F9: =Density($A$9,"PT","E",E9,C9) -> 0.2961788178 | G9: =Enthalpy($A$9,"TVAP","E",$B$9)-Enthalpy($A$9,"TLIQ","E",$C$3) -> 59.25843676 | H9: =Density($A$9,"TLIQ","E",$B$9) -> 87.82432426 | I9: =(-0.545*C9+1024)*0.0624279605761446 -> 64.94692879 | K9: =$C$1*$C$1*SQRT($F9*$H$2*$C$2*K$6*$H$1*($I9-$F9)*$H$2) -> 16.68948463 | L9: =$C$1*$C$1*SQRT($F9*$H$2*$C$2*L$6*$H$1*($I9-$F9)*$H$2) -> 18.65941107 | M9: 20.62703455 | N9: 22.39414623 | O9: 25.58948903 | P9: 28.4279108 | Q9: 31.00758417 | R9: 35.61065295 | S9: 39.68333316 | T9: 43.37528396 | U9: 46.77674193 | V9: 49.94709114 | W9: =$C$1*$C$1*SQRT($F9*$H$2*$C$2*W$6*$H$1*($H9-$F9)*$H$2) -> 0 | X9: =K9*$H$3*X$8/144*60/(200/$G9) -> 0.06300556695 | Y9: =L9*$H$3*Y$8/144*60/(200/$G9) -> 0.1100661958 | Z9: =M9*$H$3*Z$8/144*60/(200/$G9) -> 0.1816972163 | AA9: =N9*$H$3*AA$8/144*60/(200/$G9) -> 0.27405444 | AB9: =O9*$H$3*AB$8/144*60/(200/$G9) -> 0.5339152974 | AC9: =P9*$H$3*AC$8/144*60/(200/$G9) -> 0.9034185724 | AD9: =Q9*$H$3*AD$8/144*60/(200/$G9) -> 1.394774345 | AE9: =R9*$H$3*AE$8/144*60/(200/$G9) -> 2.786531639 | AF9: =S9*$H$3*AF$8/144*60/(200/$G9) -> 4.788560841 | AG9: =T9*$H$3*AG$8/144*60/(200/$G9) -> 7.470952041 | AH9: =U9*$H$3*AH$8/144*60/(200/$G9) -> 10.89718039 | AI9: =V9*$H$3*AI$8/144*60/(200/$G9) -> 15.12569352 | AK9: =K9*$H$3/$F9*60 -> 692.4754255 | AL9: =L9*$H$3/$F9*60 -> 774.2110621 | AM9: 855.8511445 | AN9: 929.1716478 | AO9: 1061.751917 | AP9: 1179.522919 | AQ9: 1286.558004 | AR9: 1477.547246 | AS9: 1646.529753 | AT9: 1799.715142 | AU9: 1940.847485 | AV9: 2072.390727 | AX9: 0.067 | AY9: 0.119 | AZ9: 0.197 | BA9: 0.298 | BB9: 0.58 | BC9: 0.981 | BD9: 1.52 | BE9: 3.03 | BF9: 5.2 | BG9: 8.12 | BH9: 11.8 | BI9: 16.4 | BK9: =AX9/X9-1 -> 0.06339809706 | BL9: =AY9/Y9-1 -> 0.08116755651 | BM9: 0.08422134391 | BN9: 0.08737519441 | BO9: 0.08631463227 | BP9: 0.08587539596 | BQ9: 0.08978201769 | BR9: 0.08737326285 | BS9: 0.08592125531 | BT9: 0.08687620469 | BU9: 0.08284891826 | BV9: 0.08424780546
A10: 10 | C10: -10 | E10: =Pressure($A$9,"TVAP","E",$B$9) -> 15.26241801 | F10: 0.2814946492 | G10: =Enthalpy($A$9,"TVAP","E",$B$9)-Enthalpy($A$9,"TLIQ","E",$C$3) -> 59.25843676 | H10: =Density($A$9,"TLIQ","E",$B$9) -> 87.82432426 | I10: =(-0.545*C10+1024)*0.0624279605761446 -> 64.26646402 | K10: =$C$1*$C$1*SQRT($F10*$H$2*$C$2*K$6*$H$1*($I10-$F10)*$H$2) -> 16.18650925 | L10: 18.0970675 | M10: 20.00539219 | N10: 21.71924796 | O10: 24.81829188 | P10: 27.57117139 | Q10: 30.07310047 | R10: 34.53744535 | S10: 38.48738613 | T10: 42.06807164 | U10: 45.36701898 | V10: 48.44182254 | W10: 0 | X10: 0.06110675164 | Y10: 0.106749102 | Z10: 0.1762213596 | AA10: 0.2657951894 | AB10: 0.5178245519 | AC10: 0.8761920097 | AD10: 1.352739664 | AE10: 2.702553203 | AF10: 4.644246726 | AG10: 7.245797998 | AH10: 10.56876921 | AI10: 14.66984652 | AK10: =K10*$H$3/$F10*60 -> 706.6404453 | AL10: 790.0480357 | AM10: 873.3581172 | AN10: 948.1784376 | AO10: 1083.47072 | AP10: 1203.650801 | AQ10: 1312.875357 | AR10: 1507.771403 | AS10: 1680.210554 | AT10: 1836.529446 | AU10: 1980.548739 | AV10: 2114.782781 | AX10: 0.065 | AY10: 0.117 | AZ10: 0.194 | BA10: 0.292 | BB10: 0.57 | BC10: 0.963 | BD10: 1.49 | BE10: 2.97 | BF10: 5.11 | BG10: 7.97 | BH10: 11.6 | BI10: 16.1 | BK10: =AX10/X10-1 -> 0.0637122455 | BL10: 0.09602795546 | BM10: 0.1008881131 | BN10: 0.09859023651 | BO10: 0.1007589305 | BP10: 0.09907416339 | BQ10: 0.1014684046 | BR10: 0.09896078886 | BS10: 0.1002860747 | BT10: 0.09994785973 | BU10: 0.09757340463 | BV10: 0.09748932816
C11: 10 | E11: =Pressure($A$9,"TVAP","E",$B$9) -> 15.26241801 | F11: 0.2683620737 | G11: =Enthalpy($A$9,"TVAP","E",$B$9)-Enthalpy($A$9,"TLIQ","E",$C$3) -> 59.25843676 | H11: =Density($A$9,"TLIQ","E",$B$9) -> 87.82432426 | I11: 63.58599924 | K11: 15.72179265 | L11: 17.57749855 | M11: 19.43103501 | N11: 21.09568578 | O11: 24.10575578 | P11: 26.77959979 | Q11: 29.20969818 | R11: 33.5458712 | S11: 37.38240871 | T11: 40.86029231 | U11: 44.06452648 | V11: 47.05105206 | W11: 0 | X11: 0.05935236955 | Y11: 0.1036843226 | Z11: 0.1711620234 | AA11: 0.258164178 | AB11: 0.5029577476 | AC11: 0.8510364331 | AD11: 1.313902348 | AE11: 2.62496258 | AF11: 4.510909851 | AG11: 7.037770278 | AH11: 10.26533859 | AI11: 14.24867348 | AK11: 719.9400937 | AL11: 804.9174947 | AM11: 889.7955516 | AN11: 966.0240618 | AO11: 1103.862674 | AP11: 1226.304659 | AQ11: 1337.584925 | AR11: 1536.149102 | AS11: 1711.833722 | AT11: 1871.094685 | AU11: 2017.824559 | AV11: 2154.585014 | AX11: 0.066 | AY11: 0.118 | AZ11: 0.195 | BA11: 0.295 | BB11: 0.575 | BC11: 0.972 | BD11: 1.5 | BE11: 3 | BF11: 5.15 | BG11: 8.04 | BH11: 11.7 | BI11: 16.3 | BK11: 0.1120027811 | BL11: 0.1380698358 | BM11: 0.1392714115 | BN11: 0.1426837073 | BO11: 0.1432371859 | BP11: 0.1421367667 | BQ11: 0.1416373539 | BR11: 0.1428734348 | BS11: 0.1416765508 | BT11: 0.14240728 | BU11: 0.1397578268 | BV11: 0.1439661396
